Workbook

Sheet Resi Price Out
A1: Residential Price Out | F1: Constants
A2: LG Calculation % Price Increases | C2: Adjustor | F2: Weekly | G2: 4.333
A3: Garbage | B3: 0.0025 | C3: 0 | F3: Every Other Week | G3: =+G2/2 -> 2.1665 | L3: Revenue
A4: Recycling | B4: 0.0025 | F4: Monthly | G4: 1 | K4: Sub-LOB | L4: Current | M4: Proposed | N4: Difference
A5: Yardwaste | B5: =(65/52.74-1)+0.25% -> 0.2349611301 | F5: Months / Yr | G5: 12 | I5: =I7-I9 ->  | K5: Garbage Svc | L5: =+SUM(I16:I26,I49:I68,I96:I106,I132:I143) -> 645306.12 | M5: =+SUM(K16:K26,K49:K68,K96:K106,K132:K143) -> 646919.3853 | N5: =M5-L5 -> 1613.2653
K6: MSW Cont | L6: =SUM(I32:I42,I76:I86,I115:I125,I145:I156) -> 0 | M6: =SUM(K32:K42,K76:K86,K115:K125,K145:K156) -> 0
A7: Total Revenue from Proforma | I7: =+#REF! ->  | K7: RCY Service | L7: =SUM(I27:I28,I69:I70,I107:I108) -> 0 | M7: =SUM(K27:K28,K69:K70,K107:K108) -> 0
A8: % Variance | I8: =+I7/I9-1 ->  | K8: YW Service | L8: =SUM(I29:I30,I71:I74,I109:I112) -> 0 | M8: =SUM(K29:K30,K71:K74,K109:K112) -> 0
A9: Total Price Out Revenue | I9: =SUM(I14:I161) -> 645306.12 | K9: YW Cont | L9: =SUM(I43,I87,I126) -> 0 | M9: =SUM(K43,K87,K126) -> 0 | P9: From Price-out | Q9: From Staff Combined LG | R9: Difference | S9: %
N10: =SUM(N5:N9)+'Comm (+MF) Price Out'!Q10+'IND (+MF) Price Out'!P10 -> 2813.039225 | O10: Totals | P10: =N10+'IND (+MF) Price Out'!P10 -> 3924.09985 | Q10: =#REF! ->  | R10: =Q10-P10 ->  | S10: =R10/P10 -> 
A11: Item # 100 Residential Service
G12: Tariff | H12: Gross | I12: Annual | J12: Proposed | K12: Proposed | L12: Proposed
A13: Type Of Can / Container | B13: Service Type | C13: Service Frequency | D13: Type | E13: Size | F13: Current Rate | G13: Page # | H13: Customers | I13: Revenue | J13: Rates | K13: Ann'l Rev | L13: % Rate Inc.
A15: City of Goldendale
A16: 20 Gallon Can | B16: Garbage | C16: Weekly | D16: CN | E16: 0.1 | F16: 0 | G16: 21 | H16: =SUMIFS('Residential Counts'!F:F,'Residential Counts'!L:L,RIGHT('Resi Price Out'!$A$15,10),'Residential Counts'!C:C,D16,'Residential Counts'!D:D,E16) -> 0 | I16: =+H16*F16*$G$5 -> 0 | J16: =+F16*(1+$B$3) -> 0 | K16: =+J16*H16*$G$5 -> 0 | L16: =IF(OR(F16=0,J16=0),"",J16/F16-1) -> 
A17: 1 Can | B17: Garbage | C17: Weekly | D17: CN | E17: 0.16 | F17: 14.19 | G17: 21 | H17: =SUMIFS('Residential Counts'!F:F,'Residential Counts'!L:L,RIGHT('Resi Price Out'!$A$15,10),'Residential Counts'!C:C,D17,'Residential Counts'!D:D,E17) -> 722 | I17: =+H17*F17*$G$5 -> 122942.16 | J17: =+F17*(1+$B$3) -> 14.225475 | K17: =+J17*H17*$G$5 -> 123249.5154 | L17: =IF(OR(F17=0,J17=0),"",J17/F17-1) -> 0.0025 | M17: =+J17-F17 -> 0.035475
A18: 2 Can | B18: Garbage | C18: Weekly | D18: CN | F18: 18.84 | G18: 21 | H18: =SUMIFS('Residential Counts'!F:F,'Residential Counts'!L:L,RIGHT('Resi Price Out'!$A$15,10),'Residential Counts'!C:C,D18,'Residential Counts'!D:D,E18) -> 0 | I18: 0 | J18: =+F18*(1+$B$3) -> 18.8871 | K18: 0 | L18: 0.0025 | M18: =+J18-F18 -> 0.0471
A19: 3 Can | B19: Garbage | C19: Weekly | D19: CN | F19: 23.24 | G19: 21 | H19: =SUMIFS('Residential Counts'!F:F,'Residential Counts'!L:L,RIGHT('Resi Price Out'!$A$15,10),'Residential Counts'!C:C,D19,'Residential Counts'!D:D,E19) -> 0 | I19: =+H19*F19*$G$5 -> 0 | J19: 23.2981 | K19: 0 | L19: 0.0025 | M19: 0.0581
A20: 4 Can | B20: Garbage | C20: Weekly | D20: CN | F20: 27.85 | G20: 21 | H20: =SUMIFS('Residential Counts'!F:F,'Residential Counts'!L:L,RIGHT('Resi Price Out'!$A$15,10),'Residential Counts'!C:C,D20,'Residential Counts'!D:D,E20) -> 0 | I20: =+H20*F20*$G$5 -> 0 | J20: 27.919625 | K20: 0 | L20: 0.0025
A21: 5 Can | B21: Garbage | C21: Weekly | D21: CN | F21: 33.71 | G21: 21 | H21: =SUMIFS('Residential Counts'!F:F,'Residential Counts'!L:L,RIGHT('Resi Price Out'!$A$15,10),'Residential Counts'!C:C,D21,'Residential Counts'!D:D,E21) -> 0 | I21: 0 | J21: 33.794275 | K21: 0 | L21: 0.0025
A22: 6 Can | B22: Garbage | C22: Weekly | D22: CN | F22: 39.58 | G22: 21 | H22: =SUMIFS('Residential Counts'!F:F,'Residential Counts'!L:L,RIGHT('Resi Price Out'!$A$15,10),'Residential Counts'!C:C,D22,'Residential Counts'!D:D,E22) -> 0 | I22: 0 | J22: 39.67895 | K22: 0 | L22: 0.0025
A23: 32 Gal Toter | B23: Garbage | C23: Weekly | D23: CA | E23: 0.17 | F23: 0 | G23: 21 | H23: =SUMIFS('Residential Counts'!F:F,'Residential Counts'!L:L,RIGHT('Resi Price Out'!$A$15,10),'Residential Counts'!C:C,D23,'Residential Counts'!D:D,E23) -> 0 | I23: 0 | J23: 0 | K23: 0
A24: 64 Gal Toter | B24: Garbage | C24: Weekly | D24: CA | E24: 0.33 | F24: 0 | G24: 21 | H24: =SUMIFS('Residential Counts'!F:F,'Residential Counts'!L:L,RIGHT('Resi Price Out'!$A$15,10),'Residential Counts'!C:C,D24,'Residential Counts'!D:D,E24) -> 0 | I24: =+H24*F24*$G$5 -> 0 | J24: 0 | K24: 0
A25: 96 Gal Toter | B25: Garbage | C25: Weekly | D25: CA | E25: 0.48 | F25: 0 | G25: 21 | H25: =SUMIFS('Residential Counts'!F:F,'Residential Counts'!L:L,RIGHT('Resi Price Out'!$A$15,10),'Residential Counts'!C:C,D25,'Residential Counts'!D:D,E25) -> 0 | I25: 0 | J25: 0 | K25: 0
A26: 1 Can Monthly | B26: Garbage | C26: Monthly | D26: CN | F26: 6.66 | G26: 21 | H26: =SUMIFS('Residential Counts'!F:F,'Residential Counts'!L:L,RIGHT('Resi Price Out'!$A$15,10),'Residential Counts'!C:C,D26,'Residential Counts'!D:D,E26) -> 0 | I26: =+H26*F26*$G$5 -> 0 | J26: 6.67665 | K26: 0 | L26: 0.0025
A27: Recycle 96 Gal Toter | B27: Recycle | C27: Every Other Week | D27: CA | F27: 0 | G27: 21 | H27: =SUMIFS('Residential Counts'!F:F,'Residential Counts'!L:L,RIGHT('Resi Price Out'!$A$15,10),'Residential Counts'!C:C,D27,'Residential Counts'!D:D,E27) -> 0 | I27: =+H27*F27*$G$5 -> 0 | J27: =+F27*(1+$B$4) -> 0 | K27: 0
A28: Recycle Only | B28: Recycle | C28: Every Other Week | D28: CA | F28: 0 | G28: 21 | H28: =SUMIFS('Residential Counts'!F:F,'Residential Counts'!L:L,RIGHT('Resi Price Out'!$A$15,10),'Residential Counts'!C:C,D28,'Residential Counts'!D:D,E28) -> 0 | I28: =+H28*F28*$G$5 -> 0 | J28: =+F28*(1+$B$4) -> 0 | K28: 0
A29: Yardwaste 96 Gal Toter | B29: Yardwaste | C29: Every Other Week | D29: CA | F29: 0 | G29: 21 | H29: =SUMIFS('Residential Counts'!F:F,'Residential Counts'!L:L,RIGHT('Resi Price Out'!$A$15,10),'Residential Counts'!C:C,D29,'Residential Counts'!D:D,E29) -> 0 | I29: =+H29*F29*$G$5 -> 0 | J29: =+F29*(1+$B$5) -> 0 | K29: 0
A30: Yardwaste Only | B30: Yardwaste | C30: Every Other Week | D30: CA | F30: 0 | G30: 21 | H30: =SUMIFS('Residential Counts'!F:F,'Residential Counts'!L:L,RIGHT('Resi Price Out'!$A$15,10),'Residential Counts'!C:C,D30,'Residential Counts'!D:D,E30) -> 0 | I30: 0 | J30: =+F30*(1+$B$5) -> 0 | K30: 0
A32: 20 Gallon Can Rental | B32: Container Rental | C32: Monthly | G32: 21 | H32: =IFERROR(SUM('Revenue Lookup'!E117:F117,'Revenue Lookup'!E126:F126)/G5/F32,0) -> 0 | I32: =+H32*F32*$G$5 -> 0 | J32: =+F32*(1+$B$3) -> 0 | K32: =+J32*H32*$G$5 -> 0 | L32: =IF(OR(F32=0,J32=0),"",J32/F32-1) -> 
A33: 1 Can Rental | B33: Container Rental | C33: Monthly | G33: 21 | H33: =IFERROR(SUM('Revenue Lookup'!E118:F118,'Revenue Lookup'!E127:F127)/G6/F33,0) -> 0 | I33: 0 | J33: =+F33*(1+$B$3) -> 0 | K33: 0
A34: 2 Can Rental | B34: Container Rental | C34: Monthly | G34: 21 | H34: =IFERROR(SUM('Revenue Lookup'!E119:F119,'Revenue Lookup'!E128:F128)/G7/F34,0) -> 0 | I34: 0 | J34: =+$J$33*LEFT(A34,1) -> 0 | K34: 0
A35: 3 Can Rental | B35: Container Rental | C35: Monthly | G35: 21 | H35: =IFERROR(SUM('Revenue Lookup'!E120:F120,'Revenue Lookup'!E129:F129)/G8/F35,0) -> 0 | I35: 0 | J35: =+$J$33*LEFT(A35,1) -> 0 | K35: 0
A36: 4 Can Rental | B36: Container Rental | C36: Monthly | G36: 21 | H36: =IFERROR(SUM('Revenue Lookup'!E123:F123,'Revenue Lookup'!E130:F130)/G9/F36,0) -> 0 | I36: 0 | J36: =+$J$33*LEFT(A36,1) -> 0 | K36: 0
A37: 5 Can Rental | B37: Container Rental | C37: Monthly | G37: 21 | H37: =IFERROR(SUM('Revenue Lookup'!E124:F124,'Revenue Lookup'!E131:F131)/G10/F37,0) -> 0 | I37: 0 | J37: =+$J$33*LEFT(A37,1) -> 0 | K37: 0
A38: 6 Can Rental | B38: Container Rental | C38: Monthly | G38: 21 | H38: =IFERROR(SUM('Revenue Lookup'!E125:F125,'Revenue Lookup'!E132:F132)/G11/F38,0) -> 0 | I38: =+H38*F38*$G$5 -> 0 | J38: =+$J$33*LEFT(A38,1) -> 0 | K38: 0
A39: 32 Gal Toter Rental | B39: Container Rental | C39: Monthly | G39: 21 | H39: =IFERROR(SUM('Revenue Lookup'!E126:F126,'Revenue Lookup'!E133:F133)/G12/F39,0) -> 0 | I39: =+H39*F39*$G$5 -> 0 | J39: =+F39*(1+$B$3) -> 0 | K39: 0
A40: 64 Gal Toter Rental | B40: Container Rental | C40: Monthly | G40: 21 | H40: =IFERROR(SUM('Revenue Lookup'!E127:F127,'Revenue Lookup'!E134:F134)/G13/F40,0) -> 0 | I40: =+H40*F40*$G$5 -> 0 | J40: =+F40*(1+$B$3) -> 0 | K40: 0
A41: 96 Gal Toter Rental | B41: Container Rental | C41: Monthly | G41: 21 | H41: =IFERROR(SUM('Revenue Lookup'!E128:F128,'Revenue Lookup'!E135:F135)/G14/F41,0) -> 0 | I41: =+H41*F41*$G$5 -> 0 | J41: =+F41*(1+$B$3) -> 0 | K41: 0
A42: 1 Can Rental | B42: Container Rental | C42: Monthly | G42: 21 | H42: =IFERROR(SUM('Revenue Lookup'!E129:F129,'Revenue Lookup'!E136:F136)/G15/F42,0) -> 0 | I42: =+H42*F42*$G$5 -> 0 | J42: =+J33 -> 0 | K42: 0
A43: Yardwaste Only Rental | B43: Container Rental | C43: Monthly | G43: 21 | H43: =IFERROR(SUM('Revenue Lookup'!E130:F130,'Revenue Lookup'!E137:F137)/G16/F43,0) -> 0 | I43: 0 | J43: =+F43*(1+$B$5) -> 0 | K43: 0
A45: 32 Gal Can | B45: Extra | C45: Per Pickup | F45: 3.02 | G45: 22 | J45: =+F45*(1+$B$3) -> 3.02755 | L45: =IF(OR(F45=0,J45=0),"",J45/F45-1) -> 0.0025
A46: Bag | B46: Extra | C46: Per Pickup | F46: 3.02 | G46: 22 | J46: =+F46*(1+$B$3) -> 3.02755 | L46: =IF(OR(F46=0,J46=0),"",J46/F46-1) -> 0.0025
A48: City of White Salmon
A49: 20 Gallon Can | B49: Garbage | C49: Weekly | D49: CN | E49: 0.1 | G49: 22a | H49: =SUMIFS('Residential Counts'!F:F,'Residential Counts'!L:L,RIGHT('Resi Price Out'!$A$48,12),'Residential Counts'!C:C,D49,'Residential Counts'!D:D,E49) -> 0 | I49: =+H49*F49*$G$5 -> 0 | J49: =+F49*(1+$B$3) -> 0 | K49: =+J49*H49*$G$5 -> 0 | L49: =IF(OR(F49=0,J49=0),"",J49/F49-1) ->  | M49: =ROUND(J49,2) -> 0
A50: 1 Can | B50: Garbage | C50: Weekly | D50: CN | E50: 0.16 | G50: 22a | H50: =SUMIFS('Residential Counts'!F:F,'Residential Counts'!L:L,RIGHT('Resi Price Out'!$A$48,12),'Residential Counts'!C:C,D50,'Residential Counts'!D:D,E50) -> 0 | I50: 0 | J50: 0 | K50: 0 | M50: =ROUND(J50,2) -> 0
A51: 2 Can | B51: Garbage | C51: Weekly | D51: CN | G51: 22a | H51: =SUMIFS('Residential Counts'!F:F,'Residential Counts'!L:L,RIGHT('Resi Price Out'!$A$48,12),'Residential Counts'!C:C,D51,'Residential Counts'!D:D,E51) -> 0 | I51: 0 | J51: 0 | K51: 0 | M51: 0
A52: 3 Can | B52: Garbage | C52: Weekly | D52: CN | G52: 22a | H52: =SUMIFS('Residential Counts'!F:F,'Residential Counts'!L:L,RIGHT('Resi Price Out'!$A$48,12),'Residential Counts'!C:C,D52,'Residential Counts'!D:D,E52) -> 0 | I52: 0 | J52: 0 | K52: 0 | M52: 0
A53: 4 Can | B53: Garbage | C53: Weekly | D53: CN | G53: 22a | H53: =SUMIFS('Residential Counts'!F:F,'Residential Counts'!L:L,RIGHT('Resi Price Out'!$A$48,12),'Residential Counts'!C:C,D53,'Residential Counts'!D:D,E53) -> 0 | I53: 0 | J53: 0 | K53: 0 | M53: 0
A54: 5 Can | B54: Garbage | C54: Weekly | D54: CN | G54: 22a | H54: =SUMIFS('Residential Counts'!F:F,'Residential Counts'!L:L,RIGHT('Resi Price Out'!$A$48,12),'Residential Counts'!C:C,D54,'Residential Counts'!D:D,E54) -> 0 | I54: 0 | J54: 0 | K54: 0 | M54: 0
A55: 6 Can | B55: Garbage | C55: Weekly | D55: CN | G55: 22a | H55: =SUMIFS('Residential Counts'!F:F,'Residential Counts'!L:L,RIGHT('Resi Price Out'!$A$48,12),'Residential Counts'!C:C,D55,'Residential Counts'!D:D,E55) -> 0 | I55: 0 | J55: 0 | K55: 0 | M55: 0
A56: 35 Gal Toter | B56: Garbage | C56: Weekly | D56: CA | E56: 0.17 | F56: 14.19 | G56: 22a | H56: =SUMIFS('Residential Counts'!F:F,'Residential Counts'!L:L,RIGHT('Resi Price Out'!$A$48,12),'Residential Counts'!C:C,D56,'Residential Counts'!D:D,E56) -> 680 | I56: 115790.4 | J56: 14.225475 | K56: 116079.876 | L56: 0.0025 | M56: 14.23 | N56: =+J56-F56 -> 0.035475
A57: 65 Gal Toter | B57: Garbage | C57: Weekly | D57: CA | E57: 0.33 | F57: 19.87 | G57: 22a | H57: =SUMIFS('Residential Counts'!F:F,'Residential Counts'!L:L,RIGHT('Resi Price Out'!$A$48,12),'Residential Counts'!C:C,D57,'Residential Counts'!D:D,E57) -> 121 | I57: 28851.24 | J57: 19.919675 | K57: 28923.3681 | L57: 0.0025 | M57: 19.92 | N57: =+J57-F57 -> 0.049675
A58: 95 Gal Toter | B58: Garbage | C58: Weekly | D58: CA | E58: 0.48 | F58: 28.81 | G58: 22a | H58: =SUMIFS('Residential Counts'!F:F,'Residential Counts'!L:L,RIGHT('Resi Price Out'!$A$48,12),'Residential Counts'!C:C,D58,'Residential Counts'!D:D,E58) -> 8 | I58: 2765.76 | J58: 28.882025 | K58: 2772.6744 | L58: 0.0025 | M58: 28.88 | N58: 0.072025
A59: 35 Gal Toter x2 | B59: Garbage | C59: Weekly | F59: 18.84 | G59: 22a | H59: =SUMIFS('Residential Counts'!F:F,'Residential Counts'!L:L,RIGHT('Resi Price Out'!$A$48,12),'Residential Counts'!C:C,D59,'Residential Counts'!D:D,E59) -> 0 | I59: =+H59*F59*$G$5 -> 0 | J59: =+F59*(1+$B$3) -> 18.8871 | K59: =+J59*H59*$G$5 -> 0 | L59: =IF(OR(F59=0,J59=0),"",J59/F59-1) -> 0.0025 | M59: =ROUND(J59,2) -> 18.89
A60: 65 Gal Toter x2 | B60: Garbage | C60: Weekly | F60: 24.83 | G60: 22a | H60: =SUMIFS('Residential Counts'!F:F,'Residential Counts'!L:L,RIGHT('Resi Price Out'!$A$48,12),'Residential Counts'!C:C,D60,'Residential Counts'!D:D,E60) -> 0 | I60: 0 | J60: 24.892075 | K60: 0 | L60: 0.0025 | M60: 24.89
A61: 95 Gal Toter x2 | B61: Garbage | C61: Weekly | F61: 36.01 | G61: 22a | H61: =SUMIFS('Residential Counts'!F:F,'Residential Counts'!L:L,RIGHT('Resi Price Out'!$A$48,12),'Residential Counts'!C:C,D61,'Residential Counts'!D:D,E61) -> 0 | I61: 0 | J61: 36.100025 | K61: 0 | L61: 0.0025 | M61: 36.1
A62: 35 Gal Toter x3 | B62: Garbage | C62: Weekly | F62: 23.24 | G62: 22a | H62: =SUMIFS('Residential Counts'!F:F,'Residential Counts'!L:L,RIGHT('Resi Price Out'!$A$48,12),'Residential Counts'!C:C,D62,'Residential Counts'!D:D,E62) -> 0 | I62: 0 | J62: 23.2981 | K62: 0 | L62: 0.0025 | M62: 23.3
A63: 65 Gal Toter x3 | B63: Garbage | C63: Weekly | F63: 31.04 | G63: 22a | H63: =SUMIFS('Residential Counts'!F:F,'Residential Counts'!L:L,RIGHT('Resi Price Out'!$A$48,12),'Residential Counts'!C:C,D63,'Residential Counts'!D:D,E63) -> 0 | I63: 0 | J63: 31.1176 | K63: 0 | L63: 0.0025 | M63: 31.12
A64: 95 Gal Toter x3 | B64: Garbage | C64: Weekly | F64: 45.01 | G64: 22a | H64: =SUMIFS('Residential Counts'!F:F,'Residential Counts'!L:L,RIGHT('Resi Price Out'!$A$48,12),'Residential Counts'!C:C,D64,'Residential Counts'!D:D,E64) -> 0 | I64: 0 | J64: 45.122525 | K64: 0 | L64: 0.0025 | M64: 45.12
A65: 35 Gal Toter | B65: Garbage | C65: Monthly | F65: 6.66 | G65: 22a | H65: =SUMIFS('Residential Counts'!F:F,'Residential Counts'!L:L,RIGHT('Resi Price Out'!$A$48,12),'Residential Counts'!C:C,D65,'Residential Counts'!D:D,E65) -> 0 | I65: 0 | J65: 6.67665 | K65: 0 | L65: 0.0025 | M65: 6.68
A66: 65 Gal Toter | B66: Garbage | C66: Monthly | F66: 9.33 | G66: 22a | H66: =SUMIFS('Residential Counts'!F:F,'Residential Counts'!L:L,RIGHT('Resi Price Out'!$A$48,12),'Residential Counts'!C:C,D66,'Residential Counts'!D:D,E66) -> 0 | I66: 0 | J66: 9.353325 | K66: 0 | L66: 0.0025 | M66: 9.35
A67: 95 Gal Toter | B67: Garbage | C67: Monthly | F67: 13.53 | G67: 22a | H67: =SUMIFS('Residential Counts'!F:F,'Residential Counts'!L:L,RIGHT('Resi Price Out'!$A$48,12),'Residential Counts'!C:C,D67,'Residential Counts'!D:D,E67) -> 0 | I67: 0 | J67: 13.563825 | K67: 0 | L67: 0.0025 | M67: 13.56
A68: 1 Can Monthly | B68: Garbage | C68: Monthly | D68: CN | G68: 22a | H68: =SUMIFS('Residential Counts'!F:F,'Residential Counts'!L:L,RIGHT('Resi Price Out'!$A$48,12),'Residential Counts'!C:C,D68,'Residential Counts'!D:D,E68) -> 0 | I68: 0 | J68: 0 | K68: 0 | M68: 0
A69: Recycle 96 Gal Toter | B69: Recycle | C69: Every Other Week | D69: CA | G69: 22a | H69: =SUMIFS('Residential Counts'!F:F,'Residential Counts'!L:L,RIGHT('Resi Price Out'!$A$48,12),'Residential Counts'!C:C,D69,'Residential Counts'!D:D,E69) -> 0 | I69: 0 | J69: =+F69*(1+$B$4) -> 0 | K69: =+J69*H69*$G$5 -> 0 | M69: 0
A70: Recycle Only | B70: Recycle | C70: Every Other Week | D70: CA | G70: 22a | H70: =SUMIFS('Residential Counts'!F:F,'Residential Counts'!L:L,RIGHT('Resi Price Out'!$A$48,12),'Residential Counts'!C:C,D70,'Residential Counts'!D:D,E70) -> 0 | I70: 0 | J70: =+F70*(1+$B$4) -> 0 | K70: 0 | M70: 0
A71: Yardwaste 64 Gal Toter | B71: Yardwaste | C71: Every Other Week | D71: CA | G71: 22a | H71: =SUMIFS('Residential Counts'!F:F,'Residential Counts'!L:L,RIGHT('Resi Price Out'!$A$48,12),'Residential Counts'!C:C,D71,'Residential Counts'!D:D,E71) -> 0 | I71: 0 | J71: =+F71*(1+$B$5) -> 0 | K71: 0 | M71: 0
A72: Yardwaste 96 Gal Toter | B72: Yardwaste | C72: Every Other Week | D72: CA | G72: 22a | H72: =SUMIFS('Residential Counts'!F:F,'Residential Counts'!L:L,RIGHT('Resi Price Out'!$A$48,12),'Residential Counts'!C:C,D72,'Residential Counts'!D:D,E72) -> 0 | I72: 0 | J72: =+F72*(1+$B$5) -> 0 | K72: 0 | M72: 0
A73: Yardwaste Only (64 Gal) | B73: Yardwaste | C73: Every Other Week | G73: 22a | H73: =SUMIFS('Residential Counts'!F:F,'Residential Counts'!L:L,RIGHT('Resi Price Out'!$A$48,12),'Residential Counts'!C:C,D73,'Residential Counts'!D:D,E73) -> 0 | I73: 0 | J73: =+F73*(1+$B$5) -> 0 | K73: 0 | M73: 0
A74: Yardwaste Only (96 Gal) | B74: Yardwaste | C74: Every Other Week | G74: 22a | H74: =SUMIFS('Residential Counts'!F:F,'Residential Counts'!L:L,RIGHT('Resi Price Out'!$A$48,12),'Residential Counts'!C:C,D74,'Residential Counts'!D:D,E74) -> 0 | I74: 0 | J74: =+F74*(1+$B$5) -> 0 | K74: 0 | M74: 0
A76: 20 Gallon Can Rental | B76: Container Rental | C76: Monthly | G76: 25 | I76: =+H76*F76*$G$5 -> 0 | J76: =+F76*(1+$B$3) -> 0 | K76: =+J76*H76*$G$5 -> 0 | L76: =IF(OR(F76=0,J76=0),"",J76/F76-1) ->  | M76: 0
A77: 1 Can Rental | B77: Container Rental | C77: Monthly | G77: 25 | I77: 0 | J77: 0 | K77: 0 | M77: 0
A78: 2 Can Rental | B78: Container Rental | C78: Monthly | G78: 25 | I78: 0 | J78: 0 | K78: 0 | M78: 0
A79: 3 Can Rental | B79: Container Rental | C79: Monthly | G79: 25 | I79: 0 | J79: 0 | K79: 0 | M79: 0
A80: 4 Can Rental | B80: Container Rental | C80: Monthly | G80: 25 | I80: 0 | J80: 0 | K80: 0 | M80: 0
A81: 5 Can Rental | B81: Container Rental | C81: Monthly | G81: 25 | I81: 0 | J81: 0 | K81: 0 | M81: 0
A82: 6 Can Rental | B82: Container Rental | C82: Monthly | G82: 25 | I82: 0 | J82: 0 | K82: 0 | M82: 0
A83: 32 Gal Toter Rental | B83: Container Rental | C83: Monthly | G83: 25 | I83: 0 | J83: 0 | K83: 0 | M83: 0
A84: 64 Gal Toter Rental | B84: Container Rental | C84: Monthly | G84: 25 | I84: 0 | J84: 0 | K84: 0 | M84: 0
A85: 96 Gal Toter Rental | B85: Container Rental | C85: Monthly | G85: 25 | I85: 0 | J85: 0 | K85: 0 | M85: 0
A86: 1 Can Rental | B86: Container Rental | C86: Monthly | G86: 25 | I86: 0 | J86: 0 | K86: 0 | M86: 0
A87: Yardwaste Only Rental | B87: Container Rental | C87: Monthly | G87: 25 | I87: 0 | J87: =+F87*(1+$B$5) -> 0 | K87: 0 | M87: 0
A89: 35 Gal Toter | B89: Extra | C89: Per Pickup | F89: 3.02 | G89: 22b | J89: =+F89*(1+$B$3) -> 3.02755 | L89: =IF(OR(F89=0,J89=0),"",J89/F89-1) -> 0.0025
A90: 65 Gal Toter | B90: Extra | C90: Per Pickup | F90: 4.6 | G90: 22b | J90: =+F90*(1+$B$3) -> 4.6115 | L90: =IF(OR(F90=0,J90=0),"",J90/F90-1) -> 0.0025
A91: 95 Gal Toter | B91: Extra | C91: Per Pickup | F91: 6.65 | G91: 22b | J91: =+F91*(1+$B$3) -> 6.666625 | L91: =IF(OR(F91=0,J91=0),"",J91/F91-1) -> 0.0025
A92: Bag | B92: Extra | C92: Per Pickup | F92: 3.02 | G92: 22b | J92: =+F92*(1+$B$3) -> 3.02755 | L92: =IF(OR(F92=0,J92=0),"",J92/F92-1) -> 0.0025
A94: Appendix A | B94: Months | C94: 7
A95: 10 Gallon Can | B95: Garbage | C95: Weekly | D95: BA | G95: 22c | H95: =SUMIFS('Residential Counts'!F:F,'Residential Counts'!L:L,"<>White Salmon",'Residential Counts'!L:L,"<>Goldendale",'Residential Counts'!C:C,D95,'Residential Counts'!D:D,E95) -> 0 | I95: =+H95*F95*$G$5 -> 0 | J95: =+F95*(1+$B$3) -> 0 | K95: =+J95*H95*$G$5 -> 0 | L95: =IF(OR(F95=0,J95=0),"",J95/F95-1) -> 
A96: 20 Gallon Can | B96: Garbage | C96: Weekly | D96: CN | E96: 0.1 | G96: 22c | H96: =SUMIFS('Residential Counts'!F:F,'Residential Counts'!L:L,"<>White Salmon",'Residential Counts'!L:L,"<>Goldendale",'Residential Counts'!C:C,D96,'Residential Counts'!D:D,E96) -> 0 | I96: =+H96*F96*$G$5 -> 0 | J96: =+F96*(1+$B$3) -> 0 | K96: =+J96*H96*$G$5 -> 0 | L96: =IF(OR(F96=0,J96=0),"",J96/F96-1) -> 
A97: 1 Can | B97: Garbage | C97: Weekly | D97: CN | E97: 0.16 | F97: 14.19 | G97: 22c | H97: =SUMIFS('Residential Counts'!F:F,'Residential Counts'!L:L,"<>White Salmon",'Residential Counts'!L:L,"<>Goldendale",'Residential Counts'!C:C,D97,'Residential Counts'!D:D,E97) -> 2202 | I97: 374956.56 | J97: 14.225475 | K97: 375893.9514 | L97: 0.0025
A98: 2 Can | B98: Garbage | C98: Weekly | D98: CN | F98: 18.84 | G98: 22c | H98: =SUMIFS('Residential Counts'!F:F,'Residential Counts'!L:L,"<>White Salmon",'Residential Counts'!L:L,"<>Goldendale",'Residential Counts'!C:C,D98,'Residential Counts'!D:D,E98) -> 0 | I98: 0 | J98: 18.8871 | K98: 0 | L98: 0.0025
A99: 3 Can | B99: Garbage | C99: Weekly | D99: CN | F99: 23.24 | G99: 22c | H99: =SUMIFS('Residential Counts'!F:F,'Residential Counts'!L:L,"<>White Salmon",'Residential Counts'!L:L,"<>Goldendale",'Residential Counts'!C:C,D99,'Residential Counts'!D:D,E99) -> 0 | I99: 0 | J99: 23.2981 | K99: 0 | L99: 0.0025
A100: 4 Can | B100: Garbage | C100: Weekly | D100: CN | F100: 27.85 | G100: 22c | H100: =SUMIFS('Residential Counts'!F:F,'Residential Counts'!L:L,"<>White Salmon",'Residential Counts'!L:L,"<>Goldendale",'Residential Counts'!C:C,D100,'Residential Counts'!D:D,E100) -> 0 | I100: 0 | J100: 27.919625 | K100: 0 | L100: 0.0025
A101: 5 Can | B101: Garbage | C101: Weekly | D101: CN | F101: 33.71 | G101: 22c | H101: =SUMIFS('Residential Counts'!F:F,'Residential Counts'!L:L,"<>White Salmon",'Residential Counts'!L:L,"<>Goldendale",'Residential Counts'!C:C,D101,'Residential Counts'!D:D,E101) -> 0 | I101: 0 | J101: 33.794275 | K101: 0 | L101: 0.0025
A102: 6 Can | B102: Garbage | C102: Weekly | D102: CN | F102: 39.58 | G102: 22c | H102: =SUMIFS('Residential Counts'!F:F,'Residential Counts'!L:L,"<>White Salmon",'Residential Counts'!L:L,"<>Goldendale",'Residential Counts'!C:C,D102,'Residential Counts'!D:D,E102) -> 0 | I102: 0 | J102: 39.67895 | K102: 0 | L102: 0.0025
A103: 32 Gal Toter | B103: Garbage | C103: Weekly | D103: CA | E103: 0.17 | G103: 22c | H103: =SUMIFS('Residential Counts'!F:F,'Residential Counts'!L:L,"<>White Salmon",'Residential Counts'!L:L,"<>Goldendale",'Residential Counts'!C:C,D103,'Residential Counts'!D:D,E103) -> 0 | I103: 0 | J103: 0 | K103: 0
A104: 64 Gal Toter | B104: Garbage | C104: Weekly | D104: CA | E104: 0.33 | G104: 22c | H104: =SUMIFS('Residential Counts'!F:F,'Residential Counts'!L:L,"<>White Salmon",'Residential Counts'!L:L,"<>Goldendale",'Residential Counts'!C:C,D104,'Residential Counts'!D:D,E104) -> 0 | I104: 0 | J104: 0 | K104: 0
A105: 96 Gal Toter | B105: Garbage | C105: Weekly | D105: CA | E105: 0.48 | G105: 22c | H105: =SUMIFS('Residential Counts'!F:F,'Residential Counts'!L:L,"<>White Salmon",'Residential Counts'!L:L,"<>Goldendale",'Residential Counts'!C:C,D105,'Residential Counts'!D:D,E105) -> 0 | I105: 0 | J105: 0 | K105: 0
A106: 1 Can Monthly | B106: Garbage | C106: Monthly | D106: CN | F106: 6.66 | G106: 22c | H106: =SUMIFS('Residential Counts'!F:F,'Residential Counts'!L:L,"<>White Salmon",'Residential Counts'!L:L,"<>Goldendale",'Residential Counts'!C:C,D106,'Residential Counts'!D:D,E106) -> 0 | I106: 0 | J106: 6.67665 | K106: 0 | L106: 0.0025
A107: Recycle 96 Gal Toter | B107: Recycle | C107: Every Other Week | D107: CA | H107: =SUMIFS('Residential Counts'!F:F,'Residential Counts'!L:L,"<>White Salmon",'Residential Counts'!L:L,"<>Goldendale",'Residential Counts'!C:C,D107,'Residential Counts'!D:D,E107) -> 0 | I107: 0 | J107: =+F107*(1+$B$4) -> 0 | K107: 0
A108: Recycle Only | B108: Recycle | C108: Every Other Week | D108: CA | H108: =SUMIFS('Residential Counts'!F:F,'Residential Counts'!L:L,"<>White Salmon",'Residential Counts'!L:L,"<>Goldendale",'Residential Counts'!C:C,D108,'Residential Counts'!D:D,E108) -> 0 | I108: 0 | J108: =+F108*(1+$B$4) -> 0 | K108: 0
A109: Yardwaste 64 Gal Toter | B109: Yardwaste | C109: Every Other Week | D109: CA | H109: =SUMIFS('Residential Counts'!F:F,'Residential Counts'!L:L,"<>White Salmon",'Residential Counts'!L:L,"<>Goldendale",'Residential Counts'!C:C,D109,'Residential Counts'!D:D,E109) -> 0 | I109: 0 | J109: =+F109*(1+$B$5) -> 0 | K109: 0
A110: Yardwaste 96 Gal Toter | B110: Yardwaste | C110: Every Other Week | D110: CA | H110: =SUMIFS('Residential Counts'!F:F,'Residential Counts'!L:L,"<>White Salmon",'Residential Counts'!L:L,"<>Goldendale",'Residential Counts'!C:C,D110,'Residential Counts'!D:D,E110) -> 0 | I110: =+H110*F110*$G$5 -> 0 | J110: =+F110*(1+$B$5) -> 0 | K110: 0 | L110: =IF(OR(F110=0,J110=0),"",J110/F110-1) -> 
A111: Yardwaste Only (64 Gal) | B111: Yardwaste | C111: Every Other Week | H111: =SUMIFS('Residential Counts'!F:F,'Residential Counts'!L:L,"<>White Salmon",'Residential Counts'!L:L,"<>Goldendale",'Residential Counts'!C:C,D111,'Residential Counts'!D:D,E111) -> 0 | I111: =+H111*F111*$G$5 -> 0 | J111: =+F111*(1+$B$5) -> 0 | K111: 0 | L111: =IF(OR(F111=0,J111=0),"",J111/F111-1) -> 
A112: Yardwaste Only (96 Gal) | B112: Yardwaste | C112: Every Other Week | H112: =SUMIFS('Residential Counts'!F:F,'Residential Counts'!L:L,"<>White Salmon",'Residential Counts'!L:L,"<>Goldendale",'Residential Counts'!C:C,D112,'Residential Counts'!D:D,E112) -> 0 | I112: 0 | J112: =+F112*(1+$B$5) -> 0 | K112: 0
A114: 10 Gallon Can Rental | B114: Container Rental | C114: Monthly | I114: =+H114*F114*$G$5 -> 0 | J114: =+F114*(1+$B$3) -> 0 | K114: =+J114*H114*$G$5 -> 0 | L114: =IF(OR(F114=0,J114=0),"",J114/F114-1) -> 
A115: 20 Gallon Can Rental | B115: Container Rental | C115: Monthly | I115: =+H115*F115*$G$5 -> 0 | J115: =+F115*(1+$B$3) -> 0 | K115: =+J115*H115*$G$5 -> 0
A116: 1 Can Rental | B116: Container Rental | C116: Monthly | I116: 0 | J116: 0 | K116: 0
A117: 2 Can Rental | B117: Container Rental | C117: Monthly | I117: 0 | J117: 0 | K117: 0
A118: 3 Can Rental | B118: Container Rental | C118: Monthly | I118: 0 | J118: 0 | K118: 0
A119: 4 Can Rental | B119: Container Rental | C119: Monthly | I119: 0 | J119: 0 | K119: 0
A120: 5 Can Rental | B120: Container Rental | C120: Monthly | I120: 0 | J120: 0 | K120: 0
A121: 6 Can Rental | B121: Container Rental | C121: Monthly | I121: 0 | J121: 0 | K121: 0
A122: 32 Gal Toter Rental | B122: Container Rental | C122: Monthly | I122: 0 | J122: 0 | K122: 0
A123: 64 Gal Toter Rental | B123: Container Rental | C123: Monthly | I123: 0 | J123: 0 | K123: 0
A124: 96 Gal Toter Rental | B124: Container Rental | C124: Monthly | I124: 0 | J124: 0 | K124: 0
A125: 1 Can Rental | B125: Container Rental | C125: Monthly | I125: 0 | J125: 0 | K125: 0
A126: Yardwaste Only Rental | B126: Container Rental | C126: Monthly | I126: 0 | J126: =+F126*(1+$B$5) -> 0 | K126: 0
A128: 32 Gal Can | B128: Extra | C128: Per Pickup | F128: 3.02 | G128: 22d | J128: =+F128*(1+$B$3) -> 3.02755 | L128: =IF(OR(F128=0,J128=0),"",J128/F128-1) -> 0.0025
A129: Bag | B129: Extra | C129: Per Pickup | F129: 3.02 | G129: 22d | J129: =+F129*(1+$B$3) -> 3.02755 | L129: =IF(OR(F129=0,J129=0),"",J129/F129-1) -> 0.0025
O130: PF Adj
A132: 10 Gal Can | B132: Garbage | C132: Weekly | G132: 22c | I132: =+H132*F132*$G$5 -> 0 | J132: =+F132*(1+$B$3) -> 0 | K132: =+J132*H132*$G$5 -> 0 | L132: =IF(OR(F132=0,J132=0),"",J132/F132-1) -> 
A133: 20 Gal Can | B133: Garbage | C133: Weekly | G133: 22c | I133: 0 | J133: 0 | K133: 0
A134: 1 Can | B134: Garbage | C134: Weekly | G134: 22c | I134: 0 | J134: 0 | K134: 0
A135: 2 Can | B135: Garbage | C135: Weekly | G135: 22c | I135: 0 | J135: 0 | K135: 0
A136: 3 Can | B136: Garbage | C136: Weekly | G136: 22c | I136: 0 | J136: 0 | K136: 0
A137: 4 Can | B137: Garbage | C137: Weekly | G137: 22c | I137: 0 | J137: 0 | K137: 0
A138: 5 Can | B138: Garbage | C138: Weekly | G138: 22c | I138: 0 | J138: 0 | K138: 0
A139: 6 Can | B139: Garbage | C139: Weekly | G139: 22c | I139: 0 | J139: 0 | K139: 0
A140: 32 Gal Toter | B140: Garbage | C140: Weekly | G140: 22c | I140: 0 | J140: 0 | K140: 0
A141: 64 Gal Toter | B141: Garbage | C141: Weekly | G141: 22c | I141: 0 | J141: 0 | K141: 0
A142: 96 Gal Toter | B142: Garbage | C142: Weekly | G142: 22c | I142: 0 | J142: 0 | K142: 0
A143: 1 Can Monthly | B143: Garbage | C143: Monthly | G143: 22c | I143: 0 | J143: 0 | K143: 0
A145: 10 Gal Can Rental | B145: Container Rental | C145: Monthly | I145: =+H145*F145*$G$5 -> 0 | J145: =+F145*(1+$B$3) -> 0 | K145: =+J145*H145*$G$5 -> 0 | L145: =IF(OR(F145=0,J145=0),"",J145/F145-1) -> 
A146: 20 Gal Can Rental | B146: Container Rental | C146: Monthly | I146: 0 | J146: 0 | K146: 0
A147: 1 Can Rental | B147: Container Rental | C147: Monthly | I147: 0 | J147: 0 | K147: 0
A148: 2 Can Rental | B148: Container Rental | C148: Monthly | I148: 0 | J148: 0 | K148: 0
A149: 3 Can Rental | B149: Container Rental | C149: Monthly | I149: 0 | J149: 0 | K149: 0
A150: 4 Can Rental | B150: Container Rental | C150: Monthly | I150: 0 | J150: 0 | K150: 0
A151: 5 Can Rental | B151: Container Rental | C151: Monthly | I151: 0 | J151: 0 | K151: 0
A152: 6 Can Rental | B152: Container Rental | C152: Monthly | I152: 0 | J152: 0 | K152: 0
A153: 32 Gal Toter Rental | B153: Container Rental | C153: Monthly | I153: 0 | J153: 0 | K153: 0
A154: 64 Gal Toter Rental | B154: Container Rental | C154: Monthly | I154: 0 | J154: 0 | K154: 0
A155: 96 Gal Toter Rental | B155: Container Rental | C155: Monthly | I155: 0 | J155: 0 | K155: 0
A156: 1 Can Rental | B156: Container Rental | C156: Monthly | I156: 0 | J156: 0 | K156: 0
A158: 32 Gal Can | B158: Extra | C158: Per Pickup | J158: =+F158*(1+$B$3) -> 0 | L158: =IF(OR(F158=0,J158=0),"",J158/F158-1) -> 
A159: Bag | B159: Extra | C159: Per Pickup | J159: =+F159*(1+$B$3) -> 0 | L159: =IF(OR(F159=0,J159=0),"",J159/F159-1) -> 

Sheet Comm (+MF) Price Out
A1: Commercial & Multi-Family Price Out | H1: =+'Resi Price Out'!F1 -> Constants
H2: =+'Resi Price Out'!F2 -> Weekly | I2: =+'Resi Price Out'!G2 -> 4.333
A3: LG Calculation % Price Increases | H3: =+'Resi Price Out'!F3 -> Every Other Week | I3: =+'Resi Price Out'!G3 -> 2.1665
A4: Garbage | F4: ='Resi Price Out'!B3 -> 0.0025 | H4: =+'Resi Price Out'!F4 -> Monthly | I4: =+'Resi Price Out'!G4 -> 1 | O4: Revenue
A5: Multi-Family Recycling | F5: ='Resi Price Out'!B4 -> 0.0025 | H5: =+'Resi Price Out'!F5 -> Months / Yr | I5: =+'Resi Price Out'!G5 -> 12 | N5: Sub-LOB | O5: Current | P5: Proposed
A6: Prior MF RCY Rate | F6: 0 | G6: Per Yard | N6: Garbage Svc | O6: =SUM(L19:L51,L74:L81,L239:L250,L271:L312,L378:L384,L495:L535)-O8 -> 0 | P6: =SUM(O19:O51,O74:O81,O239:O250,O271:O312)-O8 -> 0 | Q6: =P6-O6 -> 0
A7: Current MF RCY Rate | F7: 0 | G7: Per Yard | N7: MSW Cont | O7: =SUM(L222:L231) -> 35485.32 | P7: =SUM(O222:O231) -> 35574.0333 | Q7: =P7-O7 -> 88.7133
A8: Total Revenue from Proforma | L8: =+#REF! ->  | N8: MF RCY Scv
A9: % Variance | K9: =L10-L8 ->  | L9: =+L8/L10-1 ->  | N9: MF RCY Cont | Q9: Difference
A10: Total Price Out Revenue | L10: =SUM(L14:L536) -> 35485.32 | Q10: =SUM(Q6:Q8) -> 88.7133
R11: Multifamily Recycling
H12: Tariff | K12: Monthly | L12: Annual | M12: Annual | N12: Proposed | O12: Proposed | P12: Proposed | R12: Currnet | S12: Proposed
A13: Container Service | B13: Cont Type | C13: Compactor? | D13: On Call | E13: Perm / Temp? | F13: Compaction Rate | G13: Current Rate | H13: Page # | I13: Yards | J13: Containers | K13: Pickups | L13: Revenue | M13: Yards | N13: Rates | O13: Ann'l Rev | P13: % Rate Inc. | R13: Annual Revenue | S13: =+R13 -> Annual Revenue
A15: Item 240 - Container Service - City of Goldendale
A16: Company Owned Container
A17: Non Compacted Material
A18: Permanent Service
A19: 32 Gallon First Pickup | B19: CN | C19: N | D19: =">0" -> >0 | E19: P | F19: 1 | G19: 3.04 | H19: 34 | I19: =LEFT(A19,2)/100/2 -> 0.16 | K19: 0 | L19: =G19*K19*$I$5 -> 0 | M19: 0 | N19: =G19*(1+$F$4) -> 3.0476 | O19: =+N19*K19*$I$5 -> 0 | P19: =IF(OR(G19=0,N19=0),"",N19/G19-1) -> 0.0025 | R19: =+N19-G19 -> 0.0076 | S19: =+R19/G19 -> 0.0025
A20: 64 Gallon First Pickup | B20: CN | C20: N | D20: =">0" -> >0 | E20: P | F20: 1 | H20: 34 | I20: =LEFT(A20,2)/100/2 -> 0.32 | K20: 0 | L20: =G20*K20*$I$5 -> 0 | M20: 0 | N20: =G20*(1+$F$4) -> 0 | O20: 0 | R20: =+N20-G20 -> 0
A21: 96 Gallon First Pickup | B21: CN | C21: N | D21: >0 | E21: P | F21: 1 | H21: 34 | I21: =LEFT(A21,2)/100/2 -> 0.48 | K21: 0 | L21: 0 | M21: 0 | N21: 0 | O21: 0 | R21: 0
A22: 1 Yard First Pickup | B22: RL | C22: N | D22: >0 | E22: P | F22: 1 | H22: 34 | I22: =VALUE(LEFT(A22,1))*F22 -> 1 | K22: 0 | L22: 0 | M22: 0 | N22: 0 | O22: 0 | R22: 0
A23: 1.5 Yard First Pickup | B23: RL | C23: N | D23: >0 | E23: P | F23: 1 | G23: 10.66 | H23: 34 | I23: =VALUE(LEFT(A23,3))*F23 -> 1.5 | K23: 0 | L23: 0 | M23: 0 | N23: 10.68665 | O23: 0 | P23: 0.0025 | R23: 0.02665
A24: 2 Yard First Pickup | B24: RL | C24: N | D24: >0 | E24: P | F24: 1 | G24: 12.42 | H24: 34 | I24: =VALUE(LEFT(A24,1))*F24 -> 2 | K24: 0 | L24: 0 | M24: 0 | N24: 12.45105 | O24: 0 | P24: 0.0025 | R24: 0.03105
A25: 3 Yard First Pickup | B25: RL | C25: N | D25: >0 | E25: P | F25: 1 | G25: 15.99 | H25: 34 | I25: =VALUE(LEFT(A25,1))*F25 -> 3 | K25: 0 | L25: 0 | M25: 0 | N25: 16.029975 | O25: 0 | P25: 0.0025 | R25: 0.039975
A26: 4 Yard First Pickup | B26: RL | C26: N | D26: >0 | E26: P | F26: 1 | H26: 34 | I26: =VALUE(LEFT(A26,1))*F26 -> 4 | K26: 0 | L26: 0 | M26: 0 | N26: 0 | O26: 0 | R26: 0
A27: 6 Yard First Pickup | B27: RL | C27: N | D27: >0 | E27: P | F27: 1 | H27: 34 | I27: =VALUE(LEFT(A27,1))*F27 -> 6 | K27: 0 | L27: 0 | M27: 0 | N27: 0 | O27: 0 | R27: 0
A28: 8 Yard First Pickup | B28: RL | C28: N | D28: >0 | E28: P | F28: 1 | H28: 34 | I28: =VALUE(LEFT(A28,1))*F28 -> 8 | K28: 0 | L28: 0 | M28: 0 | N28: 0 | O28: 0 | R28: 0
A30: 32 Gallon Additional Pickup | F30: 1 | G30: 3.04 | H30: 34 | I30: =LEFT(A30,2)/100/2 -> 0.16 | N30: =G30*(1+$F$4) -> 3.0476 | O30: =+N30*K30*$I$5 -> 0 | P30: =IF(OR(G30=0,N30=0),"",N30/G30-1) -> 0.0025
A31: 64 Gallon Additional Pickup | F31: 1 | H31: 34 | I31: =LEFT(A31,2)/100/2 -> 0.32 | N31: 0 | O31: 0
A32: 96 Gallon Additional Pickup | F32: 1 | H32: 34 | I32: =LEFT(A32,2)/100/2 -> 0.48 | N32: 0 | O32: 0
A33: 1 Yard Additional Pickup | F33: 1 | H33: 34 | I33: =VALUE(LEFT(A33,1)) -> 1 | N33: 0 | O33: 0
A34: 1.5 Yard Additional Pickup | F34: 1 | G34: 18.45 | H34: 34 | I34: =VALUE(LEFT(A34,3))*F34 -> 1.5 | N34: 18.496125 | O34: 0 | P34: 0.0025
A35: 2 Yard Additional Pickup | F35: 1 | G35: 23.41 | H35: 34 | I35: =VALUE(LEFT(A35,1))*F35 -> 2 | N35: 23.468525 | O35: 0 | P35: 0.0025
A36: 3 Yard Additional Pickup | F36: 1 | G36: 30.92 | H36: 34 | I36: =VALUE(LEFT(A36,1))*F36 -> 3 | N36: 30.9973 | O36: 0 | P36: 0.0025
A37: 4 Yard Additional Pickup | F37: 1 | H37: 34 | I37: =VALUE(LEFT(A37,1))*F37 -> 4 | N37: 0 | O37: 0
A38: 6 Yard Additional Pickup | F38: 1 | H38: 34 | I38: =VALUE(LEFT(A38,1))*F38 -> 6 | N38: 0 | O38: 0
A39: 8 Yard Additional Pickup | F39: 1 | H39: 34 | I39: =VALUE(LEFT(A39,1))*F39 -> 8 | N39: 0 | O39: 0
A41: 32 Gallon Special Pickup | B41: CN | C41: N | D41: 0 | E41: P | F41: 1 | G41: 11.09 | H41: 34 | I41: =LEFT(A41,2)/100/2 -> 0.16 | K41: 0 | L41: =G41*K41*$I$5 -> 0 | M41: 0 | N41: =G41*(1+$F$4) -> 11.117725 | O41: =+N41*K41*$I$5 -> 0 | P41: =IF(OR(G41=0,N41=0),"",N41/G41-1) -> 0.0025
A42: 64 Gallon Special Pickup | B42: CN | C42: N | D42: 0 | E42: P | F42: 1 | H42: 34 | I42: =LEFT(A42,2)/100/2 -> 0.32 | K42: 0 | L42: =G42*K42*$I$5 -> 0 | M42: 0 | N42: 0 | O42: =+N42*K42*$I$5 -> 0
A43: 96 Gallon Special Pickup | B43: CN | C43: N | D43: 0 | E43: P | F43: 1 | H43: 34 | I43: =LEFT(A43,2)/100/2 -> 0.48 | K43: 0 | L43: 0 | M43: 0 | N43: 0 | O43: 0
A44: 1 Yard Special Pickup | B44: RL | C44: N | D44: 0 | E44: P | F44: 1 | H44: 34 | I44: =VALUE(LEFT(A44,1)) -> 1 | K44: 0 | L44: 0 | M44: 0 | N44: 0 | O44: 0
A45: 1.5 Yard Special Pickup | B45: RL | C45: N | D45: 0 | E45: P | F45: 1 | G45: 23.83 | H45: 34 | I45: =VALUE(LEFT(A45,3))*F45 -> 1.5 | K45: 0 | L45: 0 | M45: 0 | N45: 23.889575 | O45: 0 | P45: 0.0025
A46: 2 Yard Special Pickup | B46: RL | C46: N | D46: 0 | E46: P | F46: 1 | G46: 26.76 | H46: 34 | I46: =VALUE(LEFT(A46,1))*F46 -> 2 | K46: 0 | L46: 0 | M46: 0 | N46: 26.8269 | O46: 0 | P46: 0.0025
A47: 3 Yard Special Pickup | B47: RL | C47: N | D47: 0 | E47: P | F47: 1 | G47: 35.99 | H47: 34 | I47: =VALUE(LEFT(A47,1))*F47 -> 3 | K47: 0 | L47: 0 | M47: 0 | N47: 36.079975 | O47: 0 | P47: 0.0025
A48: 4 Yard Special Pickup | B48: RL | C48: N | D48: 0 | E48: P | F48: 1 | H48: 34 | I48: =VALUE(LEFT(A48,1))*F48 -> 4 | K48: 0 | L48: 0 | M48: 0 | N48: 0 | O48: 0
A49: 6 Yard Special Pickup | B49: RL | C49: N | D49: 0 | E49: P | F49: 1 | H49: 34 | I49: =VALUE(LEFT(A49,1))*F49 -> 6 | K49: 0 | L49: 0 | M49: 0 | N49: 0 | O49: 0
A50: 8 Yard Special Pickup | B50: RL | C50: N | D50: 0 | E50: P | F50: 1 | H50: 34 | I50: =VALUE(LEFT(A50,1))*F50 -> 8 | K50: 0 | L50: 0 | M50: 0 | N50: 0 | O50: 0
A52: 32 Gallon Monthly Rent | H52: 34 | J52: =IFERROR(+SUM('Revenue Lookup'!I118:L118,'Revenue Lookup'!I127:L127)/I5/G52,0) -> 0 | L52: =G52*J52*$I$5 -> 0 | N52: =G52*(1+$F$4) -> 0 | O52: =+N52*J52*$I$5 -> 0 | P52: =IF(OR(G52=0,N52=0),"",N52/G52-1) -> 
A53: 64 Gallon Monthly Rent | H53: 34 | J53: =IFERROR(+SUM('Revenue Lookup'!I120:L120)/$I$5/G53,0) -> 0 | L53: =G53*J53*$I$5 -> 0 | N53: 0 | O53: =+N53*J53*$I$5 -> 0
A54: 96 Gallon Monthly Rent | H54: 34 | J54: =IFERROR(+SUM('Revenue Lookup'!I123:K124,'Revenue Lookup'!I166:L167)/$I$5/G54,0) -> 0 | L54: 0 | N54: 0 | O54: 0
A55: 1 Yard Monthly Rent | H55: 34 | J55: =IFERROR(+SUM('Revenue Lookup'!I129:L129)/$I$5/G55,0) -> 0 | L55: 0 | N55: 0 | O55: 0
A56: 1.5 Yard Monthly Rent | G56: 10.66 | H56: 34 | J56: =+SUM('Revenue Lookup'!I130:L130)/$I$5/G56 -> 0 | L56: 0 | N56: 10.68665 | O56: 0 | P56: 0.0025
A57: 2 Yard Monthly Rent | G57: 12.42 | H57: 34 | J57: =+SUM('Revenue Lookup'!I131:L131)/$I$5/G57 -> 0 | L57: 0 | N57: 12.45105 | O57: 0 | P57: 0.0025
A58: 3 Yard Monthly Rent | G58: 15.99 | H58: 34 | J58: =+SUM('Revenue Lookup'!I132:L132)/$I$5/G58 -> 0 | L58: 0 | N58: 16.029975 | O58: 0 | P58: 0.0025
A59: 4 Yard Monthly Rent | H59: 34 | J59: =IFERROR(+SUM('Revenue Lookup'!I133:L133)/$I$5/G59,0) -> 0 | L59: 0 | N59: 0 | O59: 0
A60: 6 Yard Monthly Rent | H60: 34 | J60: =IFERROR(+SUM('Revenue Lookup'!I134:L134)/$I$5/G60,0) -> 0 | L60: 0 | N60: 0 | O60: 0
A61: 8 Yard Monthly Rent | H61: 34 | J61: =IFERROR(+SUM('Revenue Lookup'!I135:L135)/$I$5/G61,0) -> 0 | L61: 0 | N61: 0 | O61: 0
A63: 32-Gal Can or Bag | G63: 3.04 | H63: 34 | N63: =G63*(1+$F$4) -> 3.0476
A65: Temporary Service
A66: 1 Yard Delivery | H66: 34 | J66: =IFERROR(SUM('Revenue Lookup'!I184:L184)/G66,0) -> 0 | L66: =G66*J66 -> 0 | N66: =G66*(1+$F$4) -> 0 | O66: =J66*N66 -> 0 | P66: =IF(OR(G66=0,N66=0),"",N66/G66-1) -> 
A67: 1.5 Yard Delivery | H67: 34 | J67: =IFERROR(SUM('Revenue Lookup'!I185:L185)/G67,0) -> 0 | L67: =G67*J67 -> 0 | N67: 0 | O67: =J67*N67 -> 0 | P67: =IF(OR(G67=0,N67=0),"",N67/G67-1) -> 
A68: 2 Yard Delivery | H68: 34 | J68: =IFERROR(SUM('Revenue Lookup'!I186:L186)/G68,0) -> 0 | L68: 0 | N68: 0 | O68: 0
A69: 3 Yard Delivery | H69: 34 | J69: =IFERROR(SUM('Revenue Lookup'!I187:L187)/G69,0) -> 0 | L69: 0 | N69: 0 | O69: 0
A70: 4 Yard Delivery | H70: 34 | J70: =IFERROR(SUM('Revenue Lookup'!I188:L188)/G70,0) -> 0 | L70: 0 | N70: 0 | O70: 0
A71: 6 Yard Delivery | H71: 34 | J71: =IFERROR(SUM('Revenue Lookup'!I189:L189)/G71,0) -> 0 | L71: 0 | N71: 0 | O71: 0
A72: 8 Yard Delivery | H72: 34 | J72: =IFERROR(SUM('Revenue Lookup'!I190:L190)/G72,0) -> 0 | L72: 0 | N72: 0 | O72: 0
A74: 1 Yard Pickup | B74: RL | C74: N | D74: 0 | E74: T | F74: 1 | H74: 34 | I74: =VALUE(LEFT(A74,1)) -> 1 | K74: 0 | L74: =G74*K74*$I$5 -> 0 | M74: 0 | N74: =G74*(1+$F$4) -> 0 | O74: =+N74*K74*$I$5 -> 0 | P74: =IF(OR(G74=0,N74=0),"",N74/G74-1) -> 
A75: 1.5 Yard Pickup | B75: RL | C75: N | D75: 0 | E75: T | F75: 1 | G75: 18.45 | H75: 34 | I75: =VALUE(LEFT(A75,3))*F75 -> 1.5 | K75: 0 | L75: 0 | M75: 0 | N75: 18.496125 | O75: 0 | P75: 0.0025
A76: 2 Yard Pickup | B76: RL | C76: N | D76: 0 | E76: T | F76: 1 | G76: 23.41 | H76: 34 | I76: =VALUE(LEFT(A76,1))*F76 -> 2 | K76: 0 | L76: 0 | M76: 0 | N76: 23.468525 | O76: 0 | P76: 0.0025
A77: 3 Yard Pickup | B77: RL | C77: N | D77: 0 | E77: T | F77: 1 | G77: 30.92 | H77: 34 | I77: =VALUE(LEFT(A77,1))*F77 -> 3 | K77: 0 | L77: 0 | M77: 0 | N77: 30.9973 | O77: 0 | P77: 0.0025
A78: 4 Yard Pickup | B78: RL | C78: N | D78: 0 | E78: T | F78: 1 | H78: 34 | I78: =VALUE(LEFT(A78,1))*F78 -> 4 | K78: 0 | L78: 0 | M78: 0 | N78: 0 | O78: 0
A79: 6 Yard Pickup | B79: RL | C79: N | D79: 0 | E79: T | F79: 1 | H79: 34 | I79: =VALUE(LEFT(A79,1))*F79 -> 6 | K79: 0 | L79: 0 | M79: 0 | N79: 0 | O79: 0
A80: 8 Yard Pickup | B80: RL | C80: N | D80: 0 | E80: T | F80: 1 | H80: 34 | I80: =VALUE(LEFT(A80,1))*F80 -> 8 | K80: 0 | L80: 0 | M80: 0 | N80: 0 | O80: 0
A82: 1 Yard Rent/Calendar Day | H82: 34 | L82: =G82*K82*$I$5 -> 0 | N82: =G82*(1+$F$4) -> 0 | O82: =+N82*J82*$I$5 -> 0 | P82: =IF(OR(G82=0,N82=0),"",N82/G82-1) -> 
A83: 1.5 Yard Rent/Calendar Day | G83: 1.17 | H83: 34 | L83: 0 | N83: 1.172925 | O83: 0 | P83: 0.0025
A84: 2 Yard Rent/Calendar Day | G84: 1.28 | H84: 34 | L84: 0 | N84: 1.2832 | O84: 0 | P84: 0.0025
A85: 3 Yard Rent/Calendar Day | G85: 1.6 | H85: 34 | L85: 0 | N85: 1.604 | O85: 0 | P85: 0.0025
A86: 4 Yard Rent/Calendar Day | H86: 34 | L86: 0 | N86: 0 | O86: 0
A87: 6 Yard Rent/Calendar Day | H87: 34 | L87: 0 | N87: 0 | O87: 0
A88: 8 Yard Rent/Calendar Day | H88: 34 | L88: 0 | N88: 0 | O88: 0
A90: 1 Yard Rent / Month | H90: 34 | L90: =G90*K90*$I$5 -> 0 | N90: =G90*(1+$F$4) -> 0 | O90: =+N90*J90*$I$5 -> 0 | P90: =IF(OR(G90=0,N90=0),"",N90/G90-1) -> 
A91: 1.5 Yard Rent / Month | G91: 35.19 | H91: 34 | L91: 0 | N91: 35.277975 | O91: 0 | P91: 0.0025
A92: 2 Yard Rent / Month | G92: 39.45 | H92: 34 | L92: 0 | N92: 39.548625 | O92: 0 | P92: 0.0025
A93: 3 Yard Rent / Month | G93: 46.92 | H93: 34 | L93: 0 | N93: 47.0373 | O93: 0 | P93: 0.0025
A94: 4 Yard Rent / Month | H94: 34 | L94: 0 | N94: 0 | O94: 0
A95: 6 Yard Rent / Month | H95: 34 | L95: 0 | N95: 0 | O95: 0
A96: 8 Yard Rent / Month | H96: 34 | L96: 0 | N96: 0 | O96: 0
A98: Item 240 - Container Service - City of White Salmon
A99: Company Owned Container
A100: Non Compacted Material
A101: Permanent Service
A102: 35 Gallon First Pickup | B102: CA | C102: N | D102: =">0" -> >0 | E102: P | F102: 1 | G102: 3.04 | H102: 34a | I102: 0.17 | K102: 0 | L102: =G102*K102*$I$5 -> 0 | M102: 0 | N102: =G102*(1+$F$4) -> 3.0476 | O102: =+N102*K102*$I$5 -> 0 | P102: =IF(OR(G102=0,N102=0),"",N102/G102-1) -> 0.0025
A103: 65 Gallon First Pickup | B103: CA | C103: N | D103: =">0" -> >0 | E103: P | F103: 1 | G103: 4.59 | H103: 34a | I103: 0.33 | K103: 0 | L103: =G103*K103*$I$5 -> 0 | M103: 0 | N103: =G103*(1+$F$4) -> 4.601475 | O103: 0 | P103: 0.0025
A104: 95 Gallon First Pickup | B104: CA | C104: N | D104: >0 | E104: P | F104: 1 | G104: 6.66 | H104: 34a | I104: 0.48 | K104: 0 | L104: 0 | M104: 0 | N104: 6.67665 | O104: 0 | P104: 0.0025
A105: 95 Gallon First Pickup | B105: CA | C105: N | D105: >0 | E105: P | F105: 1 | G105: 6.66 | H105: 34a | I105: 0.45 | K105: 0 | L105: =G105*K105*$I$5 -> 0 | M105: 0 | N105: 6.67665 | O105: =+N105*K105*$I$5 -> 0 | P105: =IF(OR(G105=0,N105=0),"",N105/G105-1) -> 0.0025
A106: 1 Yard First Pickup | B106: RL | C106: N | D106: >0 | E106: P | F106: 1 | G106: 12.32 | H106: 34a | I106: =VALUE(LEFT(A106,1))*F106 -> 1 | K106: 0 | L106: 0 | M106: 0 | N106: 12.3508 | O106: 0 | P106: 0.0025
A107: 1.5 Yard First Pickup | B107: RL | C107: N | D107: >0 | E107: P | F107: 1 | G107: 18.45 | H107: 34a | I107: =VALUE(LEFT(A107,3))*F107 -> 1.5 | K107: 0 | L107: 0 | M107: 0 | N107: 18.496125 | O107: 0 | P107: 0.0025
A108: 2 Yard First Pickup | B108: RL | C108: N | D108: >0 | E108: P | F108: 1 | G108: 23.41 | H108: 34a | I108: =VALUE(LEFT(A108,1))*F108 -> 2 | K108: 0 | L108: 0 | M108: 0 | N108: 23.468525 | O108: 0 | P108: 0.0025
A109: 3 Yard First Pickup | B109: RL | C109: N | D109: >0 | E109: P | F109: 1 | G109: 30.92 | H109: 34a | I109: =VALUE(LEFT(A109,1))*F109 -> 3 | K109: 0 | L109: 0 | M109: 0 | N109: 30.9973 | O109: 0 | P109: 0.0025
A110: 4 Yard First Pickup | B110: RL | C110: N | D110: >0 | E110: P | F110: 1 | H110: 34a | I110: =VALUE(LEFT(A110,1))*F110 -> 4 | K110: 0 | L110: 0 | M110: 0 | N110: 0 | O110: 0
A111: 6 Yard First Pickup | B111: RL | C111: N | D111: >0 | E111: P | F111: 1 | H111: 34a | I111: =VALUE(LEFT(A111,1))*F111 -> 6 | K111: 0 | L111: 0 | M111: 0 | N111: 0 | O111: 0
A112: 8 Yard First Pickup | B112: RL | C112: N | D112: >0 | E112: P | F112: 1 | H112: 34a | I112: =VALUE(LEFT(A112,1))*F112 -> 8 | K112: 0 | L112: 0 | M112: 0 | N112: 0 | O112: 0
A114: 35 Gallon Additional Pickup | F114: 1 | G114: 3.04 | H114: 34a | I114: =LEFT(A114,2)/100/2 -> 0.175 | N114: =G114*(1+$F$4) -> 3.0476 | O114: =+N114*K114*$I$5 -> 0 | P114: =IF(OR(G114=0,N114=0),"",N114/G114-1) -> 0.0025
A115: 65 Gallon Additional Pickup | F115: 1 | G115: 4.59 | H115: 34a | I115: =LEFT(A115,2)/100/2 -> 0.325 | N115: 4.601475 | O115: 0 | P115: 0.0025
A116: 95 Gallon Additional Pickup | F116: 1 | G116: 6.66 | H116: 34a | I116: =LEFT(A116,2)/100/2 -> 0.475 | N116: 6.67665 | O116: 0 | P116: 0.0025
A117: 1 Yard Additional Pickup | F117: 1 | G117: 12.32 | H117: 34a | I117: =VALUE(LEFT(A117,1)) -> 1 | N117: 12.3508 | O117: 0 | P117: 0.0025
A118: 1.5 Yard Additional Pickup | F118: 1 | G118: 18.45 | H118: 34a | I118: =VALUE(LEFT(A118,3))*F118 -> 1.5 | N118: 18.496125 | O118: 0 | P118: 0.0025
A119: 2 Yard Additional Pickup | F119: 1 | G119: 23.41 | H119: 34a | I119: =VALUE(LEFT(A119,1))*F119 -> 2 | N119: 23.468525 | O119: 0 | P119: 0.0025
A120: 3 Yard Additional Pickup | F120: 1 | G120: 30.92 | H120: 34a | I120: =VALUE(LEFT(A120,1))*F120 -> 3 | N120: 30.9973 | O120: 0 | P120: 0.0025
A121: 4 Yard Additional Pickup | F121: 1 | H121: 34a | I121: =VALUE(LEFT(A121,1))*F121 -> 4 | N121: 0 | O121: 0
A122: 6 Yard Additional Pickup | F122: 1 | H122: 34a | I122: =VALUE(LEFT(A122,1))*F122 -> 6 | N122: 0 | O122: 0
A123: 8 Yard Additional Pickup | F123: 1 | H123: 34a | I123: =VALUE(LEFT(A123,1))*F123 -> 8 | N123: 0 | O123: 0
A125: 35 Gallon Special Pickup | B125: CA | C125: N | D125: 0 | E125: P | F125: 1 | G125: 11.09 | H125: 34a | I125: 0.17 | K125: 0 | L125: =G125*K125*$I$5 -> 0 | M125: 0 | N125: =G125*(1+$F$4) -> 11.117725 | O125: =+N125*K125*$I$5 -> 0 | P125: =IF(OR(G125=0,N125=0),"",N125/G125-1) -> 0.0025
A126: 65 Gallon Special Pickup | B126: CA | C126: N | D126: 0 | E126: P | F126: 1 | G126: 11.46 | H126: 34a | I126: 0.33 | K126: 0 | L126: =G126*K126*$I$5 -> 0 | M126: 0 | N126: 11.48865 | O126: =+N126*K126*$I$5 -> 0 | P126: 0.0025
A127: 95 Gallon Special Pickup | B127: CA | C127: N | D127: 0 | E127: P | F127: 1 | G127: 16.63 | H127: 34a | I127: 0.48 | K127: 0 | L127: 0 | M127: 0 | N127: 16.671575 | O127: 0 | P127: 0.0025
A128: 1 Yard Special Pickup | B128: RL | C128: N | D128: 0 | E128: P | F128: 1 | G128: 15.89 | H128: 34a | I128: =VALUE(LEFT(A128,1)) -> 1 | K128: 0 | L128: 0 | M128: 0 | N128: 15.929725 | O128: 0 | P128: 0.0025
A129: 1.5 Yard Special Pickup | B129: RL | C129: N | D129: 0 | E129: P | F129: 1 | G129: 23.83 | H129: 34a | I129: =VALUE(LEFT(A129,3))*F129 -> 1.5 | K129: 0 | L129: 0 | M129: 0 | N129: 23.889575 | O129: 0 | P129: 0.0025
A130: 2 Yard Special Pickup | B130: RL | C130: N | D130: 0 | E130: P | F130: 1 | G130: 26.76 | H130: 34a | I130: =VALUE(LEFT(A130,1))*F130 -> 2 | K130: 0 | L130: 0 | M130: 0 | N130: 26.8269 | O130: 0 | P130: 0.0025
A131: 3 Yard Special Pickup | B131: RL | C131: N | D131: 0 | E131: P | F131: 1 | G131: 35.99 | H131: 34a | I131: =VALUE(LEFT(A131,1))*F131 -> 3 | K131: 0 | L131: 0 | M131: 0 | N131: 36.079975 | O131: 0 | P131: 0.0025
A132: 4 Yard Special Pickup | B132: RL | C132: N | D132: 0 | E132: P | F132: 1 | H132: 34a | I132: =VALUE(LEFT(A132,1))*F132 -> 4 | K132: 0 | L132: 0 | M132: 0 | N132: 0 | O132: 0
A133: 6 Yard Special Pickup | B133: RL | C133: N | D133: 0 | E133: P | F133: 1 | H133: 34a | I133: =VALUE(LEFT(A133,1))*F133 -> 6 | K133: 0 | L133: 0 | M133: 0 | N133: 0 | O133: 0
A134: 8 Yard Special Pickup | B134: RL | C134: N | D134: 0 | E134: P | F134: 1 | H134: 34a | I134: =VALUE(LEFT(A134,1))*F134 -> 8 | K134: 0 | L134: 0 | M134: 0 | N134: 0 | O134: 0
K135: 0 | M135: 0
A136: 35 Gallon Monthly Rent | H136: 34a | J136: =IFERROR(+SUM('Revenue Lookup'!I203:L203,'Revenue Lookup'!I210:L210)/I88/G136,0) -> 0 | L136: =G136*J136*$I$5 -> 0 | N136: =G136*(1+$F$4) -> 0 | O136: =+N136*J136*$I$5 -> 0 | P136: =IF(OR(G136=0,N136=0),"",N136/G136-1) -> 
A137: 65 Gallon Monthly Rent | H137: 34a | J137: =IFERROR(+SUM('Revenue Lookup'!I205:L205)/$I$5/G137,0) -> 0 | L137: =G137*J137*$I$5 -> 0 | N137: 0 | O137: =+N137*J137*$I$5 -> 0
A138: 95 Gallon Monthly Rent | H138: 34a | J138: =IFERROR(+SUM('Revenue Lookup'!I206:K207,'Revenue Lookup'!I249:L250)/$I$5/G138,0) -> 0 | L138: 0 | N138: 0 | O138: 0
A139: 1 Yard Monthly Rent | H139: 34a | J139: =IFERROR(+SUM('Revenue Lookup'!I212:L212)/$I$5/G139,0) -> 0 | L139: 0 | N139: 0 | O139: 0
A140: 1.5 Yard Monthly Rent | G140: 10.66 | H140: 34a | J140: =+SUM('Revenue Lookup'!I213:L213)/$I$5/G140 -> 0 | L140: 0 | N140: 10.68665 | O140: 0 | P140: 0.0025
A141: 2 Yard Monthly Rent | G141: 12.42 | H141: 34a | J141: =+SUM('Revenue Lookup'!I214:L214)/$I$5/G141 -> 0 | L141: 0 | N141: 12.45105 | O141: 0 | P141: 0.0025
A142: 3 Yard Monthly Rent | G142: 15.99 | H142: 34a | J142: =+SUM('Revenue Lookup'!I215:L215)/$I$5/G142 -> 0 | L142: 0 | N142: 16.029975 | O142: 0 | P142: 0.0025
A143: 4 Yard Monthly Rent | H143: 34a | J143: =IFERROR(+SUM('Revenue Lookup'!I216:L216)/$I$5/G143,0) -> 0 | L143: 0 | N143: 0 | O143: 0
A144: 6 Yard Monthly Rent | H144: 34a | J144: =IFERROR(+SUM('Revenue Lookup'!I217:L217)/$I$5/G144,0) -> 0 | L144: 0 | N144: 0 | O144: 0
A145: 8 Yard Monthly Rent | H145: 34a | J145: =IFERROR(+SUM('Revenue Lookup'!I218:L218)/$I$5/G145,0) -> 0 | L145: 0 | N145: 0 | O145: 0
A147: 32-Gal Can or Bag | H147: 34a | N147: =G147*(1+$F$4) -> 0
A148: 35 Gal Toter | G148: 3.04 | H148: 34a | N148: 3.0476
A149: 65 Gal Toter | G149: 4.59 | H149: 34a | N149: 4.601475
A150: 95 Gal Toter | G150: 6.66 | H150: 34a | N150: 6.67665
H151: 34a | N151: 0
A152: Temporary Service
A153: 1 Yard Delivery | H153: 34a | J153: =IFERROR(SUM('Revenue Lookup'!I267:L267)/G153,0) -> 0 | L153: =G153*J153 -> 0 | N153: 0 | O153: =J153*N153 -> 0 | P153: =IF(OR(G153=0,N153=0),"",N153/G153-1) -> 
A154: 1.5 Yard Delivery | H154: 34a | J154: =IFERROR(SUM('Revenue Lookup'!I268:L268)/G154,0) -> 0 | L154: =G154*J154 -> 0 | N154: 0 | O154: =J154*N154 -> 0 | P154: =IF(OR(G154=0,N154=0),"",N154/G154-1) -> 
A155: 2 Yard Delivery | H155: 34a | J155: =IFERROR(SUM('Revenue Lookup'!I269:L269)/G155,0) -> 0 | L155: 0 | N155: 0 | O155: 0
A156: 3 Yard Delivery | G156: 0 | H156: 34a | J156: =IFERROR(SUM('Revenue Lookup'!I209:L209)/G156,0) -> 0 | L156: 0 | N156: 0 | O156: 0
A157: 4 Yard Delivery | H157: 34a | J157: =IFERROR(SUM('Revenue Lookup'!I271:L271)/G157,0) -> 0 | L157: 0 | N157: 0 | O157: 0
A158: 6 Yard Delivery | H158: 34a | J158: =IFERROR(SUM('Revenue Lookup'!I272:L272)/G158,0) -> 0 | L158: 0 | N158: 0 | O158: 0
A159: 8 Yard Delivery | H159: 34a | J159: =IFERROR(SUM('Revenue Lookup'!I273:L273)/G159,0) -> 0 | L159: 0 | N159: 0 | O159: 0
A161: 1 Yard Pickup | B161: RL | C161: N | D161: 0 | E161: T | F161: 1 | G161: 12.32 | H161: 34a | I161: =VALUE(LEFT(A161,1)) -> 1 | K161: 0 | L161: =G161*K161*$I$5 -> 0 | M161: 0 | N161: 12.3508 | O161: =+N161*K161*$I$5 -> 0 | P161: =IF(OR(G161=0,N161=0),"",N161/G161-1) -> 0.0025
A162: 1.5 Yard Pickup | B162: RL | C162: N | D162: 0 | E162: T | F162: 1 | G162: 18.45 | H162: 34a | I162: =VALUE(LEFT(A162,3))*F162 -> 1.5 | K162: 0 | L162: =G162*K162*$I$5 -> 0 | M162: 0 | N162: 18.496125 | O162: 0 | P162: 0.0025
A163: 2 Yard Pickup | B163: RL | C163: N | D163: 0 | E163: T | F163: 1 | G163: 23.41 | H163: 34a | I163: =VALUE(LEFT(A163,1))*F163 -> 2 | K163: 0 | L163: 0 | M163: 0 | N163: 23.468525 | O163: 0 | P163: 0.0025
A164: 3 Yard Pickup | B164: RL | C164: N | D164: 0 | E164: T | F164: 1 | G164: 30.92 | H164: 34a | I164: =VALUE(LEFT(A164,1))*F164 -> 3 | K164: 0 | L164: 0 | M164: 0 | N164: 30.9973 | O164: 0 | P164: 0.0025
A165: 4 Yard Pickup | B165: RL | C165: N | D165: 0 | E165: T | F165: 1 | H165: 34a | I165: =VALUE(LEFT(A165,1))*F165 -> 4 | K165: 0 | L165: 0 | M165: 0 | N165: 0 | O165: 0
A166: 6 Yard Pickup | B166: RL | C166: N | D166: 0 | E166: T | F166: 1 | H166: 34a | I166: =VALUE(LEFT(A166,1))*F166 -> 6 | K166: 0 | L166: 0 | M166: 0 | N166: 0 | O166: 0
A167: 8 Yard Pickup | B167: RL | C167: N | D167: 0 | E167: T | F167: 1 | H167: 34a | I167: =VALUE(LEFT(A167,1))*F167 -> 8 | K167: 0 | L167: 0 | M167: 0 | N167: 0 | O167: 0
K168: 0
A169: 1 Yard Rent/Calendar Day | H169: 34a | K169: 0 | L169: =G169*K169*$I$5 -> 0 | N169: 0 | O169: =+N169*J169*$I$5 -> 0 | P169: =IF(OR(G169=0,N169=0),"",N169/G169-1) -> 
A170: 1.5 Yard Rent/Calendar Day | G170: 1.17 | H170: 34a | K170: 0 | L170: 0 | N170: 1.172925 | O170: 0 | P170: 0.0025
A171: 2 Yard Rent/Calendar Day | G171: 1.28 | H171: 34a | K171: 0 | L171: 0 | N171: 1.2832 | O171: 0 | P171: 0.0025
A172: 3 Yard Rent/Calendar Day | G172: 1.6 | H172: 34a | L172: 0 | N172: 1.604 | O172: 0 | P172: 0.0025
A173: 4 Yard Rent/Calendar Day | H173: 34a | L173: 0 | N173: 0 | O173: 0
A174: 6 Yard Rent/Calendar Day | H174: 34a | L174: 0 | N174: 0 | O174: 0
A175: 8 Yard Rent/Calendar Day | H175: 34a | L175: 0 | N175: 0 | O175: 0
A177: 1 Yard Rent / Month | H177: 34a | L177: =G177*K177*$I$5 -> 0 | N177: 0 | O177: =+N177*J177*$I$5 -> 0 | P177: =IF(OR(G177=0,N177=0),"",N177/G177-1) -> 
A178: 1.5 Yard Rent / Month | G178: 35.19 | H178: 34a | L178: 0 | N178: 35.277975 | O178: 0 | P178: 0.0025
A179: 2 Yard Rent / Month | G179: 39.45 | H179: 34a | L179: 0 | N179: 39.548625 | O179: 0 | P179: 0.0025
A180: 3 Yard Rent / Month | G180: 46.92 | H180: 34a | L180: 0 | N180: 47.0373 | O180: 0 | P180: 0.0025
A181: 4 Yard Rent / Month | H181: 34a | L181: 0 | N181: 0 | O181: 0
A182: 6 Yard Rent / Month | H182: 34a | L182: 0 | N182: 0 | O182: 0
A183: 8 Yard Rent / Month | H183: 34a | L183: 0 | N183: 0 | O183: 0
A185: Item 240 - Container Service - Appendix A
A186: Company Owned Container
A187: Non Compacted Material
A188: Permanent Service
A189: 32 Gallon First Pickup | B189: CA | C189: N | D189: =">0" -> >0 | E189: P | F189: 1 | G189: 3.04 | H189: 34 | I189: 0.16 | K189: 0 | L189: =G189*K189*$I$5 -> 0 | M189: 0 | N189: =G189*(1+$F$4) -> 3.0476 | O189: =+N189*K189*$I$5 -> 0 | P189: =IF(OR(G189=0,N189=0),"",N189/G189-1) -> 0.0025
A190: 64 Gallon First Pickup | B190: CA | C190: N | D190: =">0" -> >0 | E190: P | F190: 1 | H190: 34 | I190: =LEFT(A190,2)/100/2 -> 0.32 | K190: 0 | L190: =G190*K190*$I$5 -> 0 | M190: 0 | N190: 0 | O190: 0
A191: 96 Gallon First Pickup | B191: CA | C191: N | D191: >0 | E191: P | F191: 1 | H191: 34 | I191: =LEFT(A191,2)/100/2 -> 0.48 | K191: 0 | L191: 0 | M191: 0 | N191: 0 | O191: 0
A192: 1 Yard First Pickup | B192: RL | C192: N | D192: >0 | E192: P | F192: 1 | H192: 34 | I192: =VALUE(LEFT(A192,1))*F192 -> 1 | K192: 0 | L192: 0 | M192: 0 | N192: 0 | O192: 0
A193: 1.5 Yard First Pickup | B193: RL | C193: N | D193: >0 | E193: P | F193: 1 | G193: 18.45 | H193: 34 | I193: =VALUE(LEFT(A193,3))*F193 -> 1.5 | K193: 0 | L193: 0 | M193: 0 | N193: 18.496125 | O193: 0 | P193: 0.0025
A194: 2 Yard First Pickup | B194: RL | C194: N | D194: >0 | E194: P | F194: 1 | G194: 23.41 | H194: 34 | I194: =VALUE(LEFT(A194,1))*F194 -> 2 | K194: 0 | L194: 0 | M194: 0 | N194: 23.468525 | O194: 0 | P194: 0.0025
A195: 3 Yard First Pickup | B195: RL | C195: N | D195: >0 | E195: P | F195: 1 | G195: 30.92 | H195: 34 | I195: =VALUE(LEFT(A195,1))*F195 -> 3 | K195: 0 | L195: 0 | M195: 0 | N195: 30.9973 | O195: 0 | P195: 0.0025
A196: 4 Yard First Pickup | B196: RL | C196: N | D196: >0 | E196: P | F196: 1 | H196: 34 | I196: =VALUE(LEFT(A196,1))*F196 -> 4 | K196: 0 | L196: 0 | M196: 0 | N196: 0 | O196: 0
A197: 6 Yard First Pickup | B197: RL | C197: N | D197: >0 | E197: P | F197: 1 | H197: 34 | I197: =VALUE(LEFT(A197,1))*F197 -> 6 | K197: 0 | L197: 0 | M197: 0 | N197: 0 | O197: 0
A198: 8 Yard First Pickup | B198: RL | C198: N | D198: >0 | E198: P | F198: 1 | H198: 34 | I198: =VALUE(LEFT(A198,1))*F198 -> 8 | K198: 0 | L198: 0 | M198: 0 | N198: 0 | O198: 0
A200: 32 Gallon Additional Pickup | F200: 1 | G200: 3.04 | H200: 34 | I200: =LEFT(A200,2)/100/2 -> 0.16 | N200: 3.0476 | O200: =+N200*K200*$I$5 -> 0 | P200: =IF(OR(G200=0,N200=0),"",N200/G200-1) -> 0.0025
A201: 64 Gallon Additional Pickup | F201: 1 | H201: 34 | I201: =LEFT(A201,2)/100/2 -> 0.32 | N201: 0 | O201: 0
A202: 96 Gallon Additional Pickup | F202: 1 | H202: 34 | I202: =LEFT(A202,2)/100/2 -> 0.48 | N202: 0 | O202: 0
A203: 1 Yard Additional Pickup | F203: 1 | H203: 34 | I203: =VALUE(LEFT(A203,1)) -> 1 | N203: 0 | O203: 0
A204: 1.5 Yard Additional Pickup | F204: 1 | G204: 18.45 | H204: 34 | I204: =VALUE(LEFT(A204,3))*F204 -> 1.5 | N204: 18.496125 | O204: 0 | P204: 0.0025
A205: 2 Yard Additional Pickup | F205: 1 | G205: 23.41 | H205: 34 | I205: =VALUE(LEFT(A205,1))*F205 -> 2 | N205: 23.468525 | O205: 0 | P205: 0.0025
A206: 3 Yard Additional Pickup | F206: 1 | G206: 30.92 | H206: 34 | I206: =VALUE(LEFT(A206,1))*F206 -> 3 | N206: 30.9973 | O206: 0 | P206: 0.0025
A207: 4 Yard Additional Pickup | F207: 1 | H207: 34 | I207: =VALUE(LEFT(A207,1))*F207 -> 4 | N207: 0 | O207: 0
A208: 6 Yard Additional Pickup | F208: 1 | H208: 34 | I208: =VALUE(LEFT(A208,1))*F208 -> 6 | N208: 0 | O208: 0
A209: 8 Yard Additional Pickup | F209: 1 | H209: 34 | I209: =VALUE(LEFT(A209,1))*F209 -> 8 | N209: 0 | O209: 0
A211: 32 Gallon Special Pickup | B211: CA | C211: N | D211: 0 | E211: P | F211: 1 | G211: 11.09 | H211: 34 | I211: =LEFT(A211,2)/100/2 -> 0.16 | K211: 0 | L211: =G211*K211*$I$5 -> 0 | M211: 0 | N211: 11.117725 | O211: =+N211*K211*$I$5 -> 0 | P211: =IF(OR(G211=0,N211=0),"",N211/G211-1) -> 0.0025
A212: 64 Gallon Special Pickup | B212: CA | C212: N | D212: 0 | E212: P | F212: 1 | H212: 34 | I212: =LEFT(A212,2)/100/2 -> 0.32 | K212: 0 | L212: =G212*K212*$I$5 -> 0 | M212: 0 | N212: 0 | O212: =+N212*K212*$I$5 -> 0
A213: 96 Gallon Special Pickup | B213: CA | C213: N | D213: 0 | E213: P | F213: 1 | H213: 34 | I213: =LEFT(A213,2)/100/2 -> 0.48 | K213: 0 | L213: 0 | M213: 0 | N213: 0 | O213: 0
A214: 1 Yard Special Pickup | B214: RL | C214: N | D214: 0 | E214: P | F214: 1 | H214: 34 | I214: =VALUE(LEFT(A214,1)) -> 1 | K214: 0 | L214: 0 | M214: 0 | N214: 0 | O214: 0
A215: 1.5 Yard Special Pickup | B215: RL | C215: N | D215: 0 | E215: P | F215: 1 | G215: 23.83 | H215: 34 | I215: =VALUE(LEFT(A215,3))*F215 -> 1.5 | K215: 0 | L215: 0 | M215: 0 | N215: 23.889575 | O215: 0 | P215: 0.0025
A216: 2 Yard Special Pickup | B216: RL | C216: N | D216: 0 | E216: P | F216: 1 | G216: 26.76 | H216: 34 | I216: =VALUE(LEFT(A216,1))*F216 -> 2 | K216: 0 | L216: 0 | M216: 0 | N216: 26.8269 | O216: 0 | P216: 0.0025
A217: 3 Yard Special Pickup | B217: RL | C217: N | D217: 0 | E217: P | F217: 1 | G217: 35.99 | H217: 34 | I217: =VALUE(LEFT(A217,1))*F217 -> 3 | K217: 0 | L217: 0 | M217: 0 | N217: 36.079975 | O217: 0 | P217: 0.0025
A218: 4 Yard Special Pickup | B218: RL | C218: N | D218: 0 | E218: P | F218: 1 | H218: 34 | I218: =VALUE(LEFT(A218,1))*F218 -> 4 | K218: 0 | L218: 0 | M218: 0 | N218: 0 | O218: 0
... 276 more rows

Sheet IND (+MF) Price Out
A1: Roll-off / Industrial & Multi-Family Price Out | H1: =+'Resi Price Out'!F1 -> Constants
H2: =+'Resi Price Out'!F2 -> Weekly | I2: =+'Resi Price Out'!G2 -> 4.333
A3: LG Calculation % Price Increases | H3: =+'Resi Price Out'!F3 -> Every Other Week | I3: =+'Resi Price Out'!G3 -> 2.1665
A4: Garbage | F4: ='Resi Price Out'!B3 -> 0.0025 | H4: =+'Resi Price Out'!F4 -> Monthly | I4: =+'Resi Price Out'!G4 -> 1 | N4: Revenue
A5: Multi-Family Recycling | F5: ='Resi Price Out'!B4 -> 0.0025 | H5: =+'Resi Price Out'!F5 -> Months / Yr | I5: =+'Resi Price Out'!G5 -> 12 | M5: Sub-LOB | N5: Current | O5: Proposed | P5: Difference
M6: Garbage Svc | N6: =SUM(K18:K41,K59:K66,K87:K104) -> 339733.13 | O6: =SUM(N18:N41,N59:N66,N87:N104) -> 340582.4628 | P6: =O6-N6 -> 849.332825
A7: Total Revenue from Proforma | K7: =+#REF! ->  | M7: MSW Cont | N7: =SUM(K42:K58,K67:K74) -> 104691.12 | O7: =SUM(N42:N58,N67:N74) -> 104952.8478 | P7: =O7-N7 -> 261.7278
A8: % Variance | K8: =+K7/K9-1 ->  | M8: MF RCY Scv
A9: Total Price Out Revenue | K9: =SUM(K13:K188) -> 444424.25 | M9: MF RCY Cont
P10: =SUM(P6:P9) -> 1111.060625 | Q10: Totals
H11: Tariff | J11: Annual | K11: Annual | L11: Annual | M11: Proposed | N11: Proposed | O11: Proposed
A12: Container Service | B12: Service Parameters | F12: Compaction Rate | G12: Current Rate | H12: Page # | I12: Yards | J12: Hauls | K12: Revenue | L12: Yards | M12: Rates | N12: Ann'l Rev | O12: % Rate Inc.
A14: Item# 260 Drop Box Service - Appendix A
A15: Compact Material
A16: Company Owned Cont. | D16: Haul | E16: Cont/Mat
A17: Permanent Service | B17: Perm | C17: Compctr | D17: Wght | E17: Type
A18: 10 Yard First Pickup | B18: P | C18: ="" ->  | D18: =">0" -> >0 | E18: RO | F18: 1 | H18: 37 | I18: =VALUE(LEFT(A18,3))*F18 -> 10 | J18: =SUMIFS('IND Data'!$U:$U,'IND Data'!$X:$X,B18,'IND Data'!$H:$H,'Revenue Lookup'!$B$76,'IND Data'!$M:$M,C18,'IND Data'!$K:$K,E18,'IND Data'!$L:$L,LEFT(A18,2),'IND Data'!$W:$W,D18,'IND Data'!$N:$N,"<>U")+SUMIFS('IND Data'!$U:$U,'IND Data'!$X:$X,B18,'IND Data'!$H:$H,'Revenue Lookup'!$B$77,'IND Data'!$M:$M,C18,'IND Data'!$K:$K,E18,'IND Data'!$L:$L,LEFT(A18,2),'IND Data'!$W:$W,D18,'IND Data'!$N:$N,"<>U") -> 0 | K18: =+G18*J18 -> 0 | L18: =+I18*J18 -> 0 | M18: =G18*(1+$F$4) -> 0 | N18: =+M18*J18 -> 0 | O18: =IF(OR(G18=0,M18=0),"",M18/G18-1) -> 
A19: 13 Yard First Pickup | B19: P | C19: ="" ->  | D19: =">0" -> >0 | E19: RO | F19: 1 | G19: 159.89 | H19: 37 | I19: 13 | J19: =SUMIFS('IND Data'!$U:$U,'IND Data'!$X:$X,B19,'IND Data'!$H:$H,'Revenue Lookup'!$B$76,'IND Data'!$M:$M,C19,'IND Data'!$K:$K,E19,'IND Data'!$L:$L,LEFT(A19,2),'IND Data'!$W:$W,D19,'IND Data'!$N:$N,"<>U")+SUMIFS('IND Data'!$U:$U,'IND Data'!$X:$X,B19,'IND Data'!$H:$H,'Revenue Lookup'!$B$77,'IND Data'!$M:$M,C19,'IND Data'!$K:$K,E19,'IND Data'!$L:$L,LEFT(A19,2),'IND Data'!$W:$W,D19,'IND Data'!$N:$N,"<>U") -> 0 | K19: 0 | L19: 0 | M19: 160.289725 | N19: =+M19*J19 -> 0 | O19: 0.0025
A20: 20 Yard First Pickup | B20: P | C20: ="" ->  | D20: >0 | E20: RO | F20: 1 | G20: 159.89 | H20: 37 | I20: 20 | J20: =SUMIFS('IND Data'!$U:$U,'IND Data'!$X:$X,B20,'IND Data'!$H:$H,'Revenue Lookup'!$B$76,'IND Data'!$M:$M,C20,'IND Data'!$K:$K,E20,'IND Data'!$L:$L,LEFT(A20,2),'IND Data'!$W:$W,D20,'IND Data'!$N:$N,"<>U")+SUMIFS('IND Data'!$U:$U,'IND Data'!$X:$X,B20,'IND Data'!$H:$H,'Revenue Lookup'!$B$77,'IND Data'!$M:$M,C20,'IND Data'!$K:$K,E20,'IND Data'!$L:$L,LEFT(A20,2),'IND Data'!$W:$W,D20,'IND Data'!$N:$N,"<>U") -> 6 | K20: 959.34 | L20: 120 | M20: 160.289725 | N20: 961.73835 | O20: 0.0025
A21: 25 Yard First Pickup | B21: P | C21: ="" ->  | D21: >0 | E21: RO | F21: 1 | H21: 37 | I21: 25 | J21: =SUMIFS('IND Data'!$U:$U,'IND Data'!$X:$X,B21,'IND Data'!$H:$H,'Revenue Lookup'!$B$76,'IND Data'!$M:$M,C21,'IND Data'!$K:$K,E21,'IND Data'!$L:$L,LEFT(A21,2),'IND Data'!$W:$W,D21,'IND Data'!$N:$N,"<>U")+SUMIFS('IND Data'!$U:$U,'IND Data'!$X:$X,B21,'IND Data'!$H:$H,'Revenue Lookup'!$B$77,'IND Data'!$M:$M,C21,'IND Data'!$K:$K,E21,'IND Data'!$L:$L,LEFT(A21,2),'IND Data'!$W:$W,D21,'IND Data'!$N:$N,"<>U") -> 0 | K21: 0 | L21: 0 | M21: 0 | N21: 0
A22: 30 Yard First Pickup | B22: P | C22: ="" ->  | D22: >0 | E22: RO | F22: 1 | H22: 37 | I22: 30 | J22: =SUMIFS('IND Data'!$U:$U,'IND Data'!$X:$X,B22,'IND Data'!$H:$H,'Revenue Lookup'!$B$76,'IND Data'!$M:$M,C22,'IND Data'!$K:$K,E22,'IND Data'!$L:$L,LEFT(A22,2),'IND Data'!$W:$W,D22,'IND Data'!$N:$N,"<>U")+SUMIFS('IND Data'!$U:$U,'IND Data'!$X:$X,B22,'IND Data'!$H:$H,'Revenue Lookup'!$B$77,'IND Data'!$M:$M,C22,'IND Data'!$K:$K,E22,'IND Data'!$L:$L,LEFT(A22,2),'IND Data'!$W:$W,D22,'IND Data'!$N:$N,"<>U") -> 0 | K22: 0 | L22: 0 | M22: 0 | N22: 0
A23: 40 Yard First Pickup | B23: P | C23: ="" ->  | D23: >0 | E23: RO | F23: 1 | G23: 159.89 | H23: 37 | I23: 40 | J23: =SUMIFS('IND Data'!$U:$U,'IND Data'!$X:$X,B23,'IND Data'!$H:$H,'Revenue Lookup'!$B$76,'IND Data'!$M:$M,C23,'IND Data'!$K:$K,E23,'IND Data'!$L:$L,LEFT(A23,2),'IND Data'!$W:$W,D23,'IND Data'!$N:$N,"<>U")+SUMIFS('IND Data'!$U:$U,'IND Data'!$X:$X,B23,'IND Data'!$H:$H,'Revenue Lookup'!$B$77,'IND Data'!$M:$M,C23,'IND Data'!$K:$K,E23,'IND Data'!$L:$L,LEFT(A23,2),'IND Data'!$W:$W,D23,'IND Data'!$N:$N,"<>U") -> 62 | K23: 9913.18 | L23: 2480 | M23: 160.289725 | N23: 9937.96295 | O23: 0.0025
A24: 50 Yard First Pickup | B24: P | C24: ="" ->  | D24: >0 | E24: RO | F24: 1 | G24: 159.89 | H24: 37 | I24: 50 | J24: =SUMIFS('IND Data'!$U:$U,'IND Data'!$X:$X,B24,'IND Data'!$H:$H,'Revenue Lookup'!$B$76,'IND Data'!$M:$M,C24,'IND Data'!$K:$K,E24,'IND Data'!$L:$L,LEFT(A24,2),'IND Data'!$W:$W,D24,'IND Data'!$N:$N,"<>U")+SUMIFS('IND Data'!$U:$U,'IND Data'!$X:$X,B24,'IND Data'!$H:$H,'Revenue Lookup'!$B$77,'IND Data'!$M:$M,C24,'IND Data'!$K:$K,E24,'IND Data'!$L:$L,LEFT(A24,2),'IND Data'!$W:$W,D24,'IND Data'!$N:$N,"<>U") -> 0 | K24: 0 | L24: 0 | M24: 160.289725 | N24: 0 | O24: 0.0025
A26: 10 Yard Additional Pickup | B26: P | C26: ="" ->  | D26: =">0" -> >0 | E26: RO | F26: 1 | H26: 37 | I26: =VALUE(LEFT(A26,3))*F26 -> 10 | K26: =+G26*J26 -> 0 | L26: =+I26*J26 -> 0 | M26: 0 | N26: =+M26*J26 -> 0 | O26: =IF(OR(G26=0,M26=0),"",M26/G26-1) -> 
A27: 13 Yard Additional Pickup | B27: P | C27: ="" ->  | D27: =">0" -> >0 | E27: RO | F27: 1 | G27: 159.89 | H27: 37 | I27: 13 | K27: 0 | L27: 0 | M27: 160.289725 | N27: 0 | O27: 0.0025
A28: 20 Yard Additional Pickup | B28: P | C28: ="" ->  | D28: >0 | E28: RO | F28: 1 | G28: 159.89 | H28: 37 | I28: 20 | K28: 0 | L28: 0 | M28: 160.289725 | N28: 0 | O28: 0.0025
A29: 25 Yard Additional Pickup | B29: P | C29: ="" ->  | D29: >0 | E29: RO | F29: 1 | H29: 37 | I29: 25 | K29: 0 | L29: 0 | M29: 0 | N29: 0
A30: 30 Yard Additional Pickup | B30: P | C30: ="" ->  | D30: >0 | E30: RO | F30: 1 | H30: 37 | I30: 30 | K30: 0 | L30: 0 | M30: 0 | N30: 0
A31: 40 Yard Additional Pickup | B31: P | C31: ="" ->  | D31: >0 | E31: RO | F31: 1 | G31: 159.89 | H31: 37 | I31: 40 | K31: 0 | L31: 0 | M31: 160.289725 | N31: 0 | O31: 0.0025
A32: 50 Yard Additional Pickup | B32: P | C32: ="" ->  | D32: >0 | E32: RO | F32: 1 | G32: 159.89 | H32: 37 | I32: 50 | K32: 0 | L32: 0 | M32: 160.289725 | N32: 0 | O32: 0.0025
A34: 10 Yard Special Pickup | B34: P | C34: ="" ->  | D34: =">0" -> >0 | E34: RO | F34: 1 | H34: 37 | I34: =VALUE(LEFT(A34,3))*F34 -> 10 | K34: =+G34*J34 -> 0 | L34: =+I34*J34 -> 0 | M34: 0 | N34: =+M34*J34 -> 0 | O34: =IF(OR(G34=0,M34=0),"",M34/G34-1) -> 
A35: 13 Yard Special Pickup | B35: P | C35: ="" ->  | D35: =">0" -> >0 | E35: RO | F35: 1 | G35: 159.89 | H35: 37 | I35: 13 | K35: 0 | L35: 0 | M35: 160.289725 | N35: 0 | O35: 0.0025
A36: 20 Yard Special Pickup | B36: P | C36: ="" ->  | D36: >0 | E36: RO | F36: 1 | G36: 159.89 | H36: 37 | I36: 20 | K36: 0 | L36: 0 | M36: 160.289725 | N36: 0 | O36: 0.0025
A37: 25 Yard Special Pickup | B37: P | C37: ="" ->  | D37: >0 | E37: RO | F37: 1 | H37: 37 | I37: 25 | K37: 0 | L37: 0 | M37: 0 | N37: 0
A38: 30 Yard Special Pickup | B38: P | C38: ="" ->  | D38: >0 | E38: RO | F38: 1 | H38: 37 | I38: 30 | K38: 0 | L38: 0 | M38: 0 | N38: 0
A39: 40 Yard Special Pickup | B39: P | C39: ="" ->  | D39: >0 | E39: RO | F39: 1 | G39: 159.89 | H39: 37 | I39: 40 | K39: 0 | L39: 0 | M39: 160.289725 | N39: 0 | O39: 0.0025
A40: 50 Yard Special Pickup | B40: P | C40: ="" ->  | D40: >0 | E40: RO | F40: 1 | G40: 159.89 | H40: 37 | I40: 50 | K40: 0 | L40: 0 | M40: 160.289725 | N40: 0 | O40: 0.0025
A42: 10 Yard Monthly Rent | H42: 37 | J42: =IFERROR(SUM('Revenue Lookup'!I155:O155)/G42,0) -> 0 | K42: =+G42*J42 -> 0 | L42: =+I42*J42 -> 0 | M42: 0 | N42: =+M42*J42 -> 0 | O42: =IF(OR(G42=0,M42=0),"",M42/G42-1) -> 
A43: 13 Yard Monthly Rent | G43: 42.65 | H43: 37 | J43: =SUM('Revenue Lookup'!I156:O156)/G43 -> 0 | K43: =+G43*J43 -> 0 | L43: 0 | M43: 42.756625 | N43: 0 | O43: 0.0025
A44: 20 Yard Monthly Rent | G44: 54.38 | H44: 37 | J44: =SUM('Revenue Lookup'!I157:O157)/G44 -> 221.1244943 | K44: 12024.75 | L44: 0 | M44: 54.51595 | N44: 12054.81187 | O44: 0.0025
A45: 25 Yard Monthly Rent | H45: 37 | J45: =IFERROR(SUM('Revenue Lookup'!I158:O158)/G45,0) -> 0 | K45: 0 | L45: 0 | M45: 0 | N45: 0
A46: 30 Yard Monthly Rent | H46: 37 | J46: =IFERROR(SUM('Revenue Lookup'!I159:O159)/G46,0) -> 0 | K46: 0 | L46: 0 | M46: 0 | N46: 0
A47: 40 Yard Monthly Rent | G47: 61.85 | H47: 37 | J47: =SUM('Revenue Lookup'!I160:O160)/G47 -> 0 | K47: 0 | L47: 0 | M47: 62.004625 | N47: 0 | O47: 0.0025
A48: 50 Yard Monthly Rent | G48: 71.44 | H48: 37 | J48: =SUM('Revenue Lookup'!I161:O161)/G48 -> 292.5382139 | K48: 20898.93 | L48: 0 | M48: 71.6186 | N48: =+M48*J48 -> 20951.17733 | O48: 0.0025
D49: =+D16 -> Haul | E49: =+E16 -> Cont/Mat
A50: Temporary Service | B50: Temp | C50: =+C17 -> Compctr | D50: =+D17 -> Wght | E50: =+E17 -> Type
A51: 10 Yard Delivery | B51: T | C51: ="" ->  | D51: 0 | E51: RO | H51: 37 | J51: =SUMIFS('IND Data'!$U:$U,'IND Data'!$X:$X,B51,'IND Data'!$H:$H,'Revenue Lookup'!$B$76,'IND Data'!$M:$M,C51,'IND Data'!$K:$K,E51,'IND Data'!$L:$L,LEFT(A51,2),'IND Data'!$W:$W,D51,'IND Data'!$N:$N,"<>U")+SUMIFS('IND Data'!$U:$U,'IND Data'!$X:$X,B51,'IND Data'!$H:$H,'Revenue Lookup'!$B$77,'IND Data'!$M:$M,C51,'IND Data'!$K:$K,E51,'IND Data'!$L:$L,LEFT(A51,2),'IND Data'!$W:$W,D51,'IND Data'!$N:$N,"<>U") -> 0 | K51: =+G51*J51 -> 0 | M51: =G51*(1+$F$4) -> 0 | N51: =+M51*J51 -> 0 | O51: =IF(OR(G51=0,M51=0),"",M51/G51-1) -> 
A52: 13 Yard Delivery | B52: T | C52: ="" ->  | D52: 0 | E52: RO | G52: 47.34 | H52: 37 | J52: =SUMIFS('IND Data'!$U:$U,'IND Data'!$X:$X,B52,'IND Data'!$H:$H,'Revenue Lookup'!$B$76,'IND Data'!$M:$M,C52,'IND Data'!$K:$K,E52,'IND Data'!$L:$L,LEFT(A52,2),'IND Data'!$W:$W,D52,'IND Data'!$N:$N,"<>U")+SUMIFS('IND Data'!$U:$U,'IND Data'!$X:$X,B52,'IND Data'!$H:$H,'Revenue Lookup'!$B$77,'IND Data'!$M:$M,C52,'IND Data'!$K:$K,E52,'IND Data'!$L:$L,LEFT(A52,2),'IND Data'!$W:$W,D52,'IND Data'!$N:$N,"<>U") -> 52 | K52: 2461.68 | M52: 47.45835 | N52: 2467.8342 | O52: 0.0025
A53: 20 Yard Delivery | B53: T | C53: ="" ->  | D53: 0 | E53: RO | G53: 47.34 | H53: 37 | J53: =SUMIFS('IND Data'!$U:$U,'IND Data'!$X:$X,B53,'IND Data'!$H:$H,'Revenue Lookup'!$B$76,'IND Data'!$M:$M,C53,'IND Data'!$K:$K,E53,'IND Data'!$L:$L,LEFT(A53,2),'IND Data'!$W:$W,D53,'IND Data'!$N:$N,"<>U")+SUMIFS('IND Data'!$U:$U,'IND Data'!$X:$X,B53,'IND Data'!$H:$H,'Revenue Lookup'!$B$77,'IND Data'!$M:$M,C53,'IND Data'!$K:$K,E53,'IND Data'!$L:$L,LEFT(A53,2),'IND Data'!$W:$W,D53,'IND Data'!$N:$N,"<>U") -> 263 | K53: 12450.42 | M53: 47.45835 | N53: 12481.54605 | O53: 0.0025
A54: 25 Yard Delivery | B54: T | C54: ="" ->  | D54: 0 | E54: RO | H54: 37 | J54: =SUMIFS('IND Data'!$U:$U,'IND Data'!$X:$X,B54,'IND Data'!$H:$H,'Revenue Lookup'!$B$76,'IND Data'!$M:$M,C54,'IND Data'!$K:$K,E54,'IND Data'!$L:$L,LEFT(A54,2),'IND Data'!$W:$W,D54,'IND Data'!$N:$N,"<>U")+SUMIFS('IND Data'!$U:$U,'IND Data'!$X:$X,B54,'IND Data'!$H:$H,'Revenue Lookup'!$B$77,'IND Data'!$M:$M,C54,'IND Data'!$K:$K,E54,'IND Data'!$L:$L,LEFT(A54,2),'IND Data'!$W:$W,D54,'IND Data'!$N:$N,"<>U") -> 0 | K54: 0 | M54: 0 | N54: 0
A55: 30 Yard Delivery | B55: T | C55: ="" ->  | D55: 0 | E55: RO | H55: 37 | J55: =SUMIFS('IND Data'!$U:$U,'IND Data'!$X:$X,B55,'IND Data'!$H:$H,'Revenue Lookup'!$B$76,'IND Data'!$M:$M,C55,'IND Data'!$K:$K,E55,'IND Data'!$L:$L,LEFT(A55,2),'IND Data'!$W:$W,D55,'IND Data'!$N:$N,"<>U")+SUMIFS('IND Data'!$U:$U,'IND Data'!$X:$X,B55,'IND Data'!$H:$H,'Revenue Lookup'!$B$77,'IND Data'!$M:$M,C55,'IND Data'!$K:$K,E55,'IND Data'!$L:$L,LEFT(A55,2),'IND Data'!$W:$W,D55,'IND Data'!$N:$N,"<>U") -> 0 | K55: 0 | M55: 0 | N55: 0
A56: 40 Yard Delivery | B56: T | C56: ="" ->  | D56: 0 | E56: RO | G56: 47.34 | H56: 37 | J56: =SUMIFS('IND Data'!$U:$U,'IND Data'!$X:$X,B56,'IND Data'!$H:$H,'Revenue Lookup'!$B$76,'IND Data'!$M:$M,C56,'IND Data'!$K:$K,E56,'IND Data'!$L:$L,LEFT(A56,2),'IND Data'!$W:$W,D56,'IND Data'!$N:$N,"<>U")+SUMIFS('IND Data'!$U:$U,'IND Data'!$X:$X,B56,'IND Data'!$H:$H,'Revenue Lookup'!$B$77,'IND Data'!$M:$M,C56,'IND Data'!$K:$K,E56,'IND Data'!$L:$L,LEFT(A56,2),'IND Data'!$W:$W,D56,'IND Data'!$N:$N,"<>U") -> 523 | K56: 24758.82 | M56: 47.45835 | N56: 24820.71705 | O56: 0.0025
A57: 50 Yard Delivery | B57: T | C57: ="" ->  | D57: 0 | E57: RO | G57: 47.34 | H57: 37 | J57: =SUMIFS('IND Data'!$U:$U,'IND Data'!$X:$X,B57,'IND Data'!$H:$H,'Revenue Lookup'!$B$76,'IND Data'!$M:$M,C57,'IND Data'!$K:$K,E57,'IND Data'!$L:$L,LEFT(A57,2),'IND Data'!$W:$W,D57,'IND Data'!$N:$N,"<>U")+SUMIFS('IND Data'!$U:$U,'IND Data'!$X:$X,B57,'IND Data'!$H:$H,'Revenue Lookup'!$B$77,'IND Data'!$M:$M,C57,'IND Data'!$K:$K,E57,'IND Data'!$L:$L,LEFT(A57,2),'IND Data'!$W:$W,D57,'IND Data'!$N:$N,"<>U") -> 678 | K57: 32096.52 | M57: 47.45835 | N57: 32176.7613 | O57: 0.0025
A59: 10 Yard Pickup | B59: T | C59: ="" ->  | D59: =">0" -> >0 | E59: RO | F59: 1 | H59: 37 | I59: =VALUE(LEFT(A59,3))*F59 -> 10 | J59: =SUMIFS('IND Data'!$U:$U,'IND Data'!$X:$X,"T",'IND Data'!$H:$H,'Revenue Lookup'!$B$76,'IND Data'!$M:$M,"",'IND Data'!$K:$K,"RO",'IND Data'!$L:$L,LEFT(A59,2),'IND Data'!$W:$W,"<>U")+SUMIFS('IND Data'!$U:$U,'IND Data'!$X:$X,"T",'IND Data'!$H:$H,'Revenue Lookup'!$B$77,'IND Data'!$M:$M,"",'IND Data'!$K:$K,"RO",'IND Data'!$L:$L,LEFT(A59,2),'IND Data'!$W:$W,"<>U") -> 0 | K59: =+G59*J59 -> 0 | L59: =+I59*J59 -> 0 | M59: =G59*(1+$F$4) -> 0 | N59: =+M59*J59 -> 0 | O59: =IF(OR(G59=0,M59=0),"",M59/G59-1) -> 
A60: 13 Yard Pickup | B60: T | C60: ="" ->  | D60: =">0" -> >0 | E60: RO | F60: 1 | G60: 159.89 | H60: 37 | I60: 13 | J60: =SUMIFS('IND Data'!$U:$U,'IND Data'!$X:$X,"T",'IND Data'!$H:$H,'Revenue Lookup'!$B$76,'IND Data'!$M:$M,"",'IND Data'!$K:$K,"RO",'IND Data'!$L:$L,LEFT(A60,2),'IND Data'!$W:$W,"<>U")+SUMIFS('IND Data'!$U:$U,'IND Data'!$X:$X,"T",'IND Data'!$H:$H,'Revenue Lookup'!$B$77,'IND Data'!$M:$M,"",'IND Data'!$K:$K,"RO",'IND Data'!$L:$L,LEFT(A60,2),'IND Data'!$W:$W,"<>U") -> 84 | K60: =+G60*J60 -> 13430.76 | L60: 1092 | M60: 160.289725 | N60: 13464.3369 | O60: 0.0025
A61: 20 Yard Pickup | B61: T | C61: ="" ->  | D61: >0 | E61: RO | F61: 1 | G61: 159.89 | H61: 37 | I61: 20 | J61: =SUMIFS('IND Data'!$U:$U,'IND Data'!$X:$X,"T",'IND Data'!$H:$H,'Revenue Lookup'!$B$76,'IND Data'!$M:$M,"",'IND Data'!$K:$K,"RO",'IND Data'!$L:$L,LEFT(A61,2),'IND Data'!$W:$W,"<>U")+SUMIFS('IND Data'!$U:$U,'IND Data'!$X:$X,"T",'IND Data'!$H:$H,'Revenue Lookup'!$B$77,'IND Data'!$M:$M,"",'IND Data'!$K:$K,"RO",'IND Data'!$L:$L,LEFT(A61,2),'IND Data'!$W:$W,"<>U") -> 334 | K61: =+G61*J61 -> 53403.26 | L61: 6680 | M61: 160.289725 | N61: 53536.76815 | O61: 0.0025
A62: 25 Yard Pickup | B62: T | C62: ="" ->  | D62: >0 | E62: RO | F62: 1 | H62: 37 | I62: 25 | J62: =SUMIFS('IND Data'!$U:$U,'IND Data'!$X:$X,"T",'IND Data'!$H:$H,'Revenue Lookup'!$B$76,'IND Data'!$M:$M,"",'IND Data'!$K:$K,"RO",'IND Data'!$L:$L,LEFT(A62,2),'IND Data'!$W:$W,"<>U")+SUMIFS('IND Data'!$U:$U,'IND Data'!$X:$X,"T",'IND Data'!$H:$H,'Revenue Lookup'!$B$77,'IND Data'!$M:$M,"",'IND Data'!$K:$K,"RO",'IND Data'!$L:$L,LEFT(A62,2),'IND Data'!$W:$W,"<>U") -> 0 | K62: 0 | L62: 0 | M62: 0 | N62: 0
A63: 30 Yard Pickup | B63: T | C63: ="" ->  | D63: >0 | E63: RO | F63: 1 | H63: 37 | I63: 30 | J63: =SUMIFS('IND Data'!$U:$U,'IND Data'!$X:$X,"T",'IND Data'!$H:$H,'Revenue Lookup'!$B$76,'IND Data'!$M:$M,"",'IND Data'!$K:$K,"RO",'IND Data'!$L:$L,LEFT(A63,2),'IND Data'!$W:$W,"<>U")+SUMIFS('IND Data'!$U:$U,'IND Data'!$X:$X,"T",'IND Data'!$H:$H,'Revenue Lookup'!$B$77,'IND Data'!$M:$M,"",'IND Data'!$K:$K,"RO",'IND Data'!$L:$L,LEFT(A63,2),'IND Data'!$W:$W,"<>U") -> 0 | K63: 0 | L63: 0 | M63: 0 | N63: 0
A64: 40 Yard Pickup | B64: T | C64: ="" ->  | D64: >0 | E64: RO | F64: 1 | G64: 159.89 | H64: 37 | I64: 40 | J64: =SUMIFS('IND Data'!$U:$U,'IND Data'!$X:$X,"T",'IND Data'!$H:$H,'Revenue Lookup'!$B$76,'IND Data'!$M:$M,"",'IND Data'!$K:$K,"RO",'IND Data'!$L:$L,LEFT(A64,2),'IND Data'!$W:$W,"<>U")+SUMIFS('IND Data'!$U:$U,'IND Data'!$X:$X,"T",'IND Data'!$H:$H,'Revenue Lookup'!$B$77,'IND Data'!$M:$M,"",'IND Data'!$K:$K,"RO",'IND Data'!$L:$L,LEFT(A64,2),'IND Data'!$W:$W,"<>U") -> 647 | K64: 103448.83 | L64: 25880 | M64: 160.289725 | N64: 103707.4521 | O64: 0.0025
A65: 50 Yard Pickup | B65: T | C65: ="" ->  | D65: >0 | E65: RO | F65: 1 | G65: 159.89 | H65: 37 | I65: 50 | J65: =SUMIFS('IND Data'!$U:$U,'IND Data'!$X:$X,"T",'IND Data'!$H:$H,'Revenue Lookup'!$B$76,'IND Data'!$M:$M,"",'IND Data'!$K:$K,"RO",'IND Data'!$L:$L,LEFT(A65,2),'IND Data'!$W:$W,"<>U")+SUMIFS('IND Data'!$U:$U,'IND Data'!$X:$X,"T",'IND Data'!$H:$H,'Revenue Lookup'!$B$77,'IND Data'!$M:$M,"",'IND Data'!$K:$K,"RO",'IND Data'!$L:$L,LEFT(A65,2),'IND Data'!$W:$W,"<>U") -> 678 | K65: 108405.42 | L65: 33900 | M65: 160.289725 | N65: 108676.4335 | O65: 0.0025
A67: 10 Yard Rent/Calendar Day | H67: 37 | K67: =+G67*J67 -> 0 | M67: =G67*(1+$F$4) -> 0 | N67: =+M67*J67 -> 0 | O67: =IF(OR(G67=0,M67=0),"",M67/G67-1) -> 
A68: 13 Yard Rent/Calendar Day | G68: 1.49 | H68: 37 | K68: 0 | M68: 1.493725 | N68: 0 | O68: 0.0025
A69: 20 Yard Rent/Calendar Day | G69: 1.65 | H69: 37 | K69: 0 | M69: 1.654125 | N69: 0 | O69: 0.0025
A70: 25 Yard Rent/Calendar Day | H70: 37 | K70: 0 | M70: 0 | N70: 0
A71: 30 Yard Rent/Calendar Day | H71: 37 | K71: 0 | M71: 0 | N71: 0
A72: 40 Yard Rent/Calendar Day | G72: 1.76 | H72: 37 | K72: 0 | M72: 1.7644 | N72: 0 | O72: 0.0025
A73: 50 Yard Rent/Calendar Day | G73: 1.92 | H73: 37 | K73: 0 | M73: 1.9248 | N73: 0 | O73: 0.0025
A75: 10 Yard Monthly Rent | H75: 37 | J75: =IFERROR(SUM('Revenue Lookup'!I188:O188)/G75,0) -> 0 | K75: =+G75*J75 -> 0 | L75: =+I75*J75 -> 0 | M75: =G75*(1+$F$4) -> 0 | N75: =+M75*J75 -> 0 | O75: =IF(OR(G75=0,M75=0),"",M75/G75-1) -> 
A76: 13 Yard Monthly Rent | G76: 42.65 | H76: 37 | J76: =SUM('Revenue Lookup'!I189:O189)/G76 -> 0 | K76: =+G76*J76 -> 0 | L76: 0 | M76: 42.756625 | N76: 0 | O76: 0.0025
A77: 20 Yard Monthly Rent | G77: 54.38 | H77: 37 | J77: =SUM('Revenue Lookup'!I190:O190)/G77 -> 0 | K77: 0 | L77: 0 | M77: 54.51595 | N77: 0 | O77: 0.0025
A78: 25 Yard Monthly Rent | H78: 37 | J78: =IFERROR(SUM('Revenue Lookup'!I191:O191)/G78,0) -> 0 | K78: 0 | L78: 0 | M78: 0 | N78: 0
A79: 30 Yard Monthly Rent | H79: 37 | J79: =IFERROR(SUM('Revenue Lookup'!I192:O192)/G79,0) -> 0 | K79: 0 | L79: 0 | M79: 0 | N79: 0
A80: 40 Yard Monthly Rent | G80: 61.85 | H80: 37 | J80: =SUM('Revenue Lookup'!I193:O193)/G80 -> 0 | K80: 0 | L80: 0 | M80: 62.004625 | N80: 0 | O80: 0.0025
A81: 50 Yard Monthly Rent | G81: 71.44 | H81: 37 | J81: =SUM('Revenue Lookup'!I194:O194)/G81 -> 0 | K81: 0 | L81: 0 | M81: 71.6186 | N81: =+M81*J81 -> 0 | O81: 0.0025
M82: 0
A83: Item# 275 Drop Box Service - Appendix A
A84: Compact Material
A85: Customer Owned Cont. | D85: =+D49 -> Haul | E85: =+E49 -> Cont/Mat
A86: Permanent Service | B86: Perm | C86: =+C50 -> Compctr | D86: =+D50 -> Wght | E86: =+E50 -> Type
A87: 10 Yard First Pickup (3.5x) | B87: P | C87: C | D87: =">0" -> >0 | E87: RO | F87: 3.5 | G87: 206.55 | H87: 38 | I87: =VALUE(LEFT(A87,1))*F87 -> 3.5 | J87: =SUMIFS('IND Data'!$U:$U,'IND Data'!$H:$H,'Revenue Lookup'!$B$76,'IND Data'!$M:$M,"C",'IND Data'!$K:$K,"RO",'IND Data'!$L:$L,LEFT(A87,2),'IND Data'!$W:$W,"<>U")+SUMIFS('IND Data'!$U:$U,'IND Data'!$H:$H,'Revenue Lookup'!$B$77,'IND Data'!$M:$M,"C",'IND Data'!$K:$K,"RO",'IND Data'!$L:$L,LEFT(A87,2),'IND Data'!$W:$W,"<>U") -> 0 | K87: =+G87*J87 -> 0 | L87: =+I87*J87 -> 0 | M87: =G87*(1+$F$4) -> 207.066375 | N87: =+M87*J87 -> 0 | O87: =IF(OR(G87=0,M87=0),"",M87/G87-1) -> 0.0025
A88: 15 Yard First Pickup (3.5x) | B88: P | C88: C | D88: =">0" -> >0 | E88: RO | F88: 3.5 | G88: 206.55 | H88: 38 | I88: 3.5 | J88: =SUMIFS('IND Data'!$U:$U,'IND Data'!$H:$H,'Revenue Lookup'!$B$76,'IND Data'!$M:$M,"C",'IND Data'!$K:$K,"RO",'IND Data'!$L:$L,LEFT(A88,2),'IND Data'!$W:$W,"<>U")+SUMIFS('IND Data'!$U:$U,'IND Data'!$H:$H,'Revenue Lookup'!$B$77,'IND Data'!$M:$M,"C",'IND Data'!$K:$K,"RO",'IND Data'!$L:$L,LEFT(A88,2),'IND Data'!$W:$W,"<>U") -> 0 | K88: 0 | L88: 0 | M88: 207.066375 | N88: 0 | O88: 0.0025
A89: 20 Yard First Pickup (3.5x) | B89: P | C89: C | D89: >0 | E89: RO | F89: 3.5 | G89: 206.55 | H89: 38 | I89: 7 | J89: =SUMIFS('IND Data'!$U:$U,'IND Data'!$H:$H,'Revenue Lookup'!$B$76,'IND Data'!$M:$M,"C",'IND Data'!$K:$K,"RO",'IND Data'!$L:$L,LEFT(A89,2),'IND Data'!$W:$W,"<>U")+SUMIFS('IND Data'!$U:$U,'IND Data'!$H:$H,'Revenue Lookup'!$B$77,'IND Data'!$M:$M,"C",'IND Data'!$K:$K,"RO",'IND Data'!$L:$L,LEFT(A89,2),'IND Data'!$W:$W,"<>U") -> 0 | K89: 0 | L89: 0 | M89: 207.066375 | N89: 0 | O89: 0.0025
A90: 25 Yard First Pickup (3.5x) | B90: P | C90: C | D90: >0 | E90: RO | F90: 3.5 | G90: 206.55 | H90: 38 | I90: 7 | J90: =SUMIFS('IND Data'!$U:$U,'IND Data'!$H:$H,'Revenue Lookup'!$B$76,'IND Data'!$M:$M,"C",'IND Data'!$K:$K,"RO",'IND Data'!$L:$L,LEFT(A90,2),'IND Data'!$W:$W,"<>U")+SUMIFS('IND Data'!$U:$U,'IND Data'!$H:$H,'Revenue Lookup'!$B$77,'IND Data'!$M:$M,"C",'IND Data'!$K:$K,"RO",'IND Data'!$L:$L,LEFT(A90,2),'IND Data'!$W:$W,"<>U") -> 0 | K90: 0 | L90: 0 | M90: 207.066375 | N90: 0 | O90: 0.0025
A91: 30 Yard First Pickup (3.5x) | B91: P | C91: C | D91: >0 | E91: RO | F91: 3.5 | G91: 206.55 | H91: 38 | I91: 10.5 | J91: =SUMIFS('IND Data'!$U:$U,'IND Data'!$H:$H,'Revenue Lookup'!$B$76,'IND Data'!$M:$M,"C",'IND Data'!$K:$K,"RO",'IND Data'!$L:$L,LEFT(A91,2),'IND Data'!$W:$W,"<>U")+SUMIFS('IND Data'!$U:$U,'IND Data'!$H:$H,'Revenue Lookup'!$B$77,'IND Data'!$M:$M,"C",'IND Data'!$K:$K,"RO",'IND Data'!$L:$L,LEFT(A91,2),'IND Data'!$W:$W,"<>U") -> 0 | K91: =+G91*J91 -> 0 | L91: 0 | M91: 207.066375 | N91: 0 | O91: 0.0025
A92: 35 Yard First Pickup (3.5x) | B92: P | C92: C | D92: >0 | E92: RO | F92: 3.5 | G92: 206.55 | H92: 38 | I92: 10.5 | J92: =SUMIFS('IND Data'!$U:$U,'IND Data'!$H:$H,'Revenue Lookup'!$B$76,'IND Data'!$M:$M,"C",'IND Data'!$K:$K,"RO",'IND Data'!$L:$L,LEFT(A92,2),'IND Data'!$W:$W,"<>U")+SUMIFS('IND Data'!$U:$U,'IND Data'!$H:$H,'Revenue Lookup'!$B$77,'IND Data'!$M:$M,"C",'IND Data'!$K:$K,"RO",'IND Data'!$L:$L,LEFT(A92,2),'IND Data'!$W:$W,"<>U") -> 0 | K92: 0 | L92: 0 | M92: 207.066375 | N92: 0 | O92: 0.0025
A93: 40 Yard First Pickup (3.5x) | B93: P | C93: C | D93: >0 | E93: RO | F93: 3.5 | G93: 206.55 | H93: 38 | I93: 14 | J93: =SUMIFS('IND Data'!$U:$U,'IND Data'!$H:$H,'Revenue Lookup'!$B$76,'IND Data'!$M:$M,"C",'IND Data'!$K:$K,"RO",'IND Data'!$L:$L,LEFT(A93,2),'IND Data'!$W:$W,"<>U")+SUMIFS('IND Data'!$U:$U,'IND Data'!$H:$H,'Revenue Lookup'!$B$77,'IND Data'!$M:$M,"C",'IND Data'!$K:$K,"RO",'IND Data'!$L:$L,LEFT(A93,2),'IND Data'!$W:$W,"<>U") -> 0 | K93: 0 | L93: 0 | M93: 207.066375 | N93: 0 | O93: 0.0025
A95: 10 Yard Additional Pickup (3.5x) | B95: P | C95: C | D95: =">0" -> >0 | E95: RO | F95: 3.5 | G95: 206.55 | H95: 38 | I95: =VALUE(LEFT(A95,1))*F95 -> 3.5 | K95: =+G95*J95 -> 0 | L95: =+I95*J95 -> 0 | M95: =G95*(1+$F$4) -> 207.066375 | N95: =+M95*J95 -> 0 | O95: =IF(OR(G95=0,M95=0),"",M95/G95-1) -> 0.0025
A96: 15 Yard Additional Pickup (3.5x) | B96: P | C96: C | D96: =">0" -> >0 | E96: RO | F96: 3.5 | G96: 206.55 | H96: 38 | I96: 3.5 | K96: 0 | L96: 0 | M96: 207.066375 | N96: 0 | O96: 0.0025
A97: 20 Yard Additional Pickup (3.5x) | B97: P | C97: C | D97: >0 | E97: RO | F97: 3.5 | G97: 206.55 | H97: 38 | I97: 7 | K97: 0 | L97: 0 | M97: 207.066375 | N97: 0 | O97: 0.0025
A98: 25 Yard Additional Pickup (3.5x) | B98: P | C98: C | D98: >0 | E98: RO | F98: 3.5 | G98: 206.55 | H98: 38 | I98: 7 | K98: 0 | L98: 0 | M98: 207.066375 | N98: 0 | O98: 0.0025
A99: 30 Yard Additional Pickup (3.5x) | B99: P | C99: C | D99: >0 | E99: RO | F99: 3.5 | G99: 206.55 | H99: 38 | I99: 10.5 | K99: 0 | L99: 0 | M99: 207.066375 | N99: 0 | O99: 0.0025
A100: 35 Yard Additional Pickup (3.5x) | B100: P | C100: C | D100: >0 | E100: RO | F100: 3.5 | G100: 206.55 | H100: 38 | I100: 10.5 | K100: 0 | L100: 0 | M100: 207.066375 | N100: 0 | O100: 0.0025
A101: 40 Yard Additional Pickup (3.5x) | B101: P | C101: C | D101: >0 | E101: RO | F101: 3.5 | G101: 206.55 | H101: 38 | I101: 14 | K101: 0 | L101: 0 | M101: 207.066375 | N101: 0 | O101: 0.0025
A103: Miles | G103: 3.01 | H103: 38 | J103: =+K103/G103 -> 16668.5515 | K103: =SUMIFS('SQL Revenue Analysis'!$E:$E,'SQL Revenue Analysis'!$D:$D,"DTC",'SQL Revenue Analysis'!$J:$J,'Revenue Lookup'!B76,'SQL Revenue Analysis'!$F:$F,"RO")+SUMIFS('SQL Revenue Analysis'!$E:$E,'SQL Revenue Analysis'!$D:$D,"DTC",'SQL Revenue Analysis'!$J:$J,'Revenue Lookup'!B77,'SQL Revenue Analysis'!$F:$F,"RO") -> 50172.34 | M103: =G103*(1+$F$4) -> 3.017525 | N103: =+M103*J103 -> 50297.77085 | O103: =IF(OR(G103=0,M103=0),"",M103/G103-1) -> 0.0025
A105: Multi-Family | B105: ** In regulated areas, MF Recycling is 'free' and the cost to the customer (property management) is added to the cost of garbage service, therefore…
C106: below is the garbage service for which the per yard MF recycling rate is added to…NOT…the MF recycling service levels
D109: =+D85 -> Haul | E109: Cont/Mat
A110: Permanent Service | B110: =+B86 -> Perm | C110: Compctr | D110: Wght | E110: Type
A111: 10 Yard First Pickup | B111: P | C111: ="" ->  | D111: =">0" -> >0 | E111: RO | F111: 1 | I111: =VALUE(LEFT(A111,3))*F111 -> 10 | J111: =SUMIFS('IND Data'!$U:$U,'IND Data'!$X:$X,B111,'IND Data'!$H:$H,'Revenue Lookup'!$B$76,'IND Data'!$M:$M,"",'IND Data'!$K:$K,E111,'IND Data'!$L:$L,LEFT(A111,2),'IND Data'!$N:$N,"U",'IND Data'!$W:$W,">0")+SUMIFS('IND Data'!$U:$U,'IND Data'!$X:$X,"P",'IND Data'!$H:$H,'Revenue Lookup'!$B$77,'IND Data'!$M:$M,"",'IND Data'!$K:$K,"RO",'IND Data'!$L:$L,LEFT(A111,2),'IND Data'!$N:$N,"U",'IND Data'!$W:$W,">0") -> 0 | K111: =+G111*J111 -> 0 | L111: =+I111*J111 -> 0 | M111: =G111*(1+$F$5) -> 0 | N111: =+M111*J111 -> 0 | O111: =IF(OR(G111=0,M111=0),"",M111/G111-1) -> 
A112: 15 Yard First Pickup | B112: P | C112: ="" ->  | D112: =">0" -> >0 | E112: RO | F112: 1 | I112: =VALUE(LEFT(A112,3))*F112 -> 15 | J112: =SUMIFS('IND Data'!$U:$U,'IND Data'!$X:$X,B112,'IND Data'!$H:$H,'Revenue Lookup'!$B$76,'IND Data'!$M:$M,"",'IND Data'!$K:$K,E112,'IND Data'!$L:$L,LEFT(A112,2),'IND Data'!$N:$N,"U",'IND Data'!$W:$W,">0")+SUMIFS('IND Data'!$U:$U,'IND Data'!$X:$X,"P",'IND Data'!$H:$H,'Revenue Lookup'!$B$77,'IND Data'!$M:$M,"",'IND Data'!$K:$K,"RO",'IND Data'!$L:$L,LEFT(A112,2),'IND Data'!$N:$N,"U",'IND Data'!$W:$W,">0") -> 0 | K112: 0 | L112: 0 | M112: =G112*(1+$F$5) -> 0 | N112: 0
A113: 20 Yard First Pickup | B113: P | C113: ="" ->  | D113: >0 | E113: RO | F113: 1 | I113: 20 | J113: =SUMIFS('IND Data'!$U:$U,'IND Data'!$X:$X,B113,'IND Data'!$H:$H,'Revenue Lookup'!$B$76,'IND Data'!$M:$M,"",'IND Data'!$K:$K,E113,'IND Data'!$L:$L,LEFT(A113,2),'IND Data'!$N:$N,"U",'IND Data'!$W:$W,">0")+SUMIFS('IND Data'!$U:$U,'IND Data'!$X:$X,"P",'IND Data'!$H:$H,'Revenue Lookup'!$B$77,'IND Data'!$M:$M,"",'IND Data'!$K:$K,"RO",'IND Data'!$L:$L,LEFT(A113,2),'IND Data'!$N:$N,"U",'IND Data'!$W:$W,">0") -> 0 | K113: 0 | L113: 0 | M113: 0 | N113: 0
A114: 25 Yard First Pickup | B114: P | C114: ="" ->  | D114: >0 | E114: RO | F114: 1 | I114: 25 | J114: =SUMIFS('IND Data'!$U:$U,'IND Data'!$X:$X,B114,'IND Data'!$H:$H,'Revenue Lookup'!$B$76,'IND Data'!$M:$M,"",'IND Data'!$K:$K,E114,'IND Data'!$L:$L,LEFT(A114,2),'IND Data'!$N:$N,"U",'IND Data'!$W:$W,">0")+SUMIFS('IND Data'!$U:$U,'IND Data'!$X:$X,"P",'IND Data'!$H:$H,'Revenue Lookup'!$B$77,'IND Data'!$M:$M,"",'IND Data'!$K:$K,"RO",'IND Data'!$L:$L,LEFT(A114,2),'IND Data'!$N:$N,"U",'IND Data'!$W:$W,">0") -> 0 | K114: 0 | L114: 0 | M114: 0 | N114: 0
A115: 30 Yard First Pickup | B115: P | C115: ="" ->  | D115: >0 | E115: RO | F115: 1 | I115: 30 | J115: =SUMIFS('IND Data'!$U:$U,'IND Data'!$X:$X,B115,'IND Data'!$H:$H,'Revenue Lookup'!$B$76,'IND Data'!$M:$M,"",'IND Data'!$K:$K,E115,'IND Data'!$L:$L,LEFT(A115,2),'IND Data'!$N:$N,"U",'IND Data'!$W:$W,">0")+SUMIFS('IND Data'!$U:$U,'IND Data'!$X:$X,"P",'IND Data'!$H:$H,'Revenue Lookup'!$B$77,'IND Data'!$M:$M,"",'IND Data'!$K:$K,"RO",'IND Data'!$L:$L,LEFT(A115,2),'IND Data'!$N:$N,"U",'IND Data'!$W:$W,">0") -> 0 | K115: 0 | L115: 0 | M115: 0 | N115: 0
A116: 35 Yard First Pickup | B116: P | C116: ="" ->  | D116: >0 | E116: RO | F116: 1 | I116: 35 | J116: =SUMIFS('IND Data'!$U:$U,'IND Data'!$X:$X,B116,'IND Data'!$H:$H,'Revenue Lookup'!$B$76,'IND Data'!$M:$M,"",'IND Data'!$K:$K,E116,'IND Data'!$L:$L,LEFT(A116,2),'IND Data'!$N:$N,"U",'IND Data'!$W:$W,">0")+SUMIFS('IND Data'!$U:$U,'IND Data'!$X:$X,"P",'IND Data'!$H:$H,'Revenue Lookup'!$B$77,'IND Data'!$M:$M,"",'IND Data'!$K:$K,"RO",'IND Data'!$L:$L,LEFT(A116,2),'IND Data'!$N:$N,"U",'IND Data'!$W:$W,">0") -> 0 | K116: 0 | L116: 0 | M116: 0 | N116: 0
A117: 40 Yard First Pickup | B117: P | C117: ="" ->  | D117: >0 | E117: RO | F117: 1 | I117: 40 | J117: =SUMIFS('IND Data'!$U:$U,'IND Data'!$X:$X,B117,'IND Data'!$H:$H,'Revenue Lookup'!$B$76,'IND Data'!$M:$M,"",'IND Data'!$K:$K,E117,'IND Data'!$L:$L,LEFT(A117,2),'IND Data'!$N:$N,"U",'IND Data'!$W:$W,">0")+SUMIFS('IND Data'!$U:$U,'IND Data'!$X:$X,"P",'IND Data'!$H:$H,'Revenue Lookup'!$B$77,'IND Data'!$M:$M,"",'IND Data'!$K:$K,"RO",'IND Data'!$L:$L,LEFT(A117,2),'IND Data'!$N:$N,"U",'IND Data'!$W:$W,">0") -> 0 | K117: 0 | L117: 0 | M117: 0 | N117: 0
A119: 10 Yard Additional Pickup | F119: 1 | I119: =VALUE(LEFT(A119,3))*F119 -> 10 | K119: =+G119*J119 -> 0 | L119: =+I119*J119 -> 0 | M119: =G119*(1+$F$5) -> 0 | N119: =+M119*J119 -> 0 | O119: =IF(OR(G119=0,M119=0),"",M119/G119-1) -> 
A120: 15 Yard Additional Pickup | F120: 1 | I120: =VALUE(LEFT(A120,3))*F120 -> 15 | K120: 0 | L120: 0 | M120: 0 | N120: 0
A121: 20 Yard Additional Pickup | F121: 1 | I121: 20 | K121: 0 | L121: 0 | M121: 0 | N121: 0
A122: 25 Yard Additional Pickup | F122: 1 | I122: 25 | K122: 0 | L122: 0 | M122: 0 | N122: 0
A123: 30 Yard Additional Pickup | F123: 1 | I123: 30 | K123: 0 | L123: 0 | M123: 0 | N123: 0
A124: 35 Yard Additional Pickup | F124: 1 | I124: 35 | K124: 0 | L124: 0 | M124: 0 | N124: 0
A125: 40 Yard Additional Pickup | F125: 1 | I125: 40 | K125: 0 | L125: 0 | M125: 0 | N125: 0
A127: 10 Yard Special Pickup | B127: P | C127: ="" ->  | D127: =">0" -> >0 | E127: RO | F127: 1 | I127: =VALUE(LEFT(A127,3))*F127 -> 10 | K127: =+G127*J127 -> 0 | L127: =+I127*J127 -> 0 | M127: =G127*(1+$F$5) -> 0 | N127: =+M127*J127 -> 0 | O127: =IF(OR(G127=0,M127=0),"",M127/G127-1) -> 
A128: 15 Yard Special Pickup | B128: P | C128: ="" ->  | D128: =">0" -> >0 | E128: RO | F128: 1 | I128: =VALUE(LEFT(A128,3))*F128 -> 15 | K128: 0 | L128: 0 | M128: 0 | N128: 0
A129: 20 Yard Special Pickup | B129: P | C129: ="" ->  | D129: >0 | E129: RO | F129: 1 | I129: 20 | K129: 0 | L129: 0 | M129: 0 | N129: 0
A130: 25 Yard Special Pickup | B130: P | C130: ="" ->  | D130: >0 | E130: RO | F130: 1 | I130: 25 | K130: 0 | L130: 0 | M130: 0 | N130: 0
A131: 30 Yard Special Pickup | B131: P | C131: ="" ->  | D131: >0 | E131: RO | F131: 1 | I131: 30 | K131: 0 | L131: 0 | M131: 0 | N131: 0
A132: 35 Yard Special Pickup | B132: P | C132: ="" ->  | D132: >0 | E132: RO | F132: 1 | I132: 35 | K132: 0 | L132: 0 | M132: 0 | N132: 0
A133: 40 Yard Special Pickup | B133: P | C133: ="" ->  | D133: >0 | E133: RO | F133: 1 | I133: 40 | K133: 0 | L133: 0 | M133: 0 | N133: 0
A135: 10 Yard Monthly Rent | K135: =+G135*J135 -> 0 | L135: =+I135*J135 -> 0 | M135: =G135*(1+$F$5) -> 0 | N135: =+M135*J135 -> 0 | O135: =IF(OR(G135=0,M135=0),"",M135/G135-1) -> 
A136: 15 Yard Monthly Rent | K136: 0 | L136: 0 | M136: 0 | N136: 0
A137: 20 Yard Monthly Rent | K137: 0 | L137: 0 | M137: 0 | N137: 0
A138: 25 Yard Monthly Rent | K138: 0 | L138: 0 | M138: 0 | N138: 0
A139: 30 Yard Monthly Rent | K139: 0 | L139: 0 | M139: 0 | N139: 0
A140: 35 Yard Monthly Rent | K140: 0 | L140: 0 | M140: 0 | N140: 0
A141: 40 Yard Monthly Rent | K141: 0 | L141: 0 | M141: 0 | N141: 0
D143: =+D109 -> Haul | E143: =+E109 -> Cont/Mat
A144: Temporary Service | B144: Temp | C144: =+C110 -> Compctr | D144: =+D110 -> Wght | E144: =+E110 -> Type
A145: 10 Yard Delivery | B145: T | C145: ="" ->  | D145: 0 | E145: RO | J145: =SUMIFS('IND Data'!$U:$U,'IND Data'!$X:$X,"T",'IND Data'!$A:$A,"DEL",'IND Data'!$H:$H,'Revenue Lookup'!$B$76,'IND Data'!$L:$L,LEFT(A145,2),'IND Data'!$K:$K,"RO",'IND Data'!$N:$N,"U")+SUMIFS('IND Data'!$U:$U,'IND Data'!$X:$X,"T",'IND Data'!$A:$A,"DEL",'IND Data'!$H:$H,'Revenue Lookup'!$B$77,'IND Data'!$L:$L,LEFT(A145,2),'IND Data'!$K:$K,"RO",'IND Data'!$N:$N,"U") -> 0 | K145: =+G145*J145 -> 0 | L145: =+I145*J145 -> 0 | M145: =G145*(1+$F$5) -> 0 | N145: =+M145*J145 -> 0 | O145: =IF(OR(G145=0,M145=0),"",M145/G145-1) -> 
A146: 15 Yard Delivery | B146: T | C146: ="" ->  | D146: 0 | E146: RO | J146: =SUMIFS('IND Data'!$U:$U,'IND Data'!$X:$X,"T",'IND Data'!$A:$A,"DEL",'IND Data'!$H:$H,'Revenue Lookup'!$B$76,'IND Data'!$L:$L,LEFT(A146,2),'IND Data'!$K:$K,"RO",'IND Data'!$N:$N,"U")+SUMIFS('IND Data'!$U:$U,'IND Data'!$X:$X,"T",'IND Data'!$A:$A,"DEL",'IND Data'!$H:$H,'Revenue Lookup'!$B$77,'IND Data'!$L:$L,LEFT(A146,2),'IND Data'!$K:$K,"RO",'IND Data'!$N:$N,"U") -> 0 | K146: 0 | L146: 0 | M146: 0 | N146: 0
A147: 20 Yard Delivery | B147: T | C147: ="" ->  | D147: 0 | E147: RO | J147: =SUMIFS('IND Data'!$U:$U,'IND Data'!$X:$X,"T",'IND Data'!$A:$A,"DEL",'IND Data'!$H:$H,'Revenue Lookup'!$B$76,'IND Data'!$L:$L,LEFT(A147,2),'IND Data'!$K:$K,"RO",'IND Data'!$N:$N,"U")+SUMIFS('IND Data'!$U:$U,'IND Data'!$X:$X,"T",'IND Data'!$A:$A,"DEL",'IND Data'!$H:$H,'Revenue Lookup'!$B$77,'IND Data'!$L:$L,LEFT(A147,2),'IND Data'!$K:$K,"RO",'IND Data'!$N:$N,"U") -> 0 | K147: 0 | L147: 0 | M147: 0 | N147: 0
A148: 25 Yard Delivery | B148: T | C148: ="" ->  | D148: 0 | E148: RO | J148: =SUMIFS('IND Data'!$U:$U,'IND Data'!$X:$X,"T",'IND Data'!$A:$A,"DEL",'IND Data'!$H:$H,'Revenue Lookup'!$B$76,'IND Data'!$L:$L,LEFT(A148,2),'IND Data'!$K:$K,"RO",'IND Data'!$N:$N,"U")+SUMIFS('IND Data'!$U:$U,'IND Data'!$X:$X,"T",'IND Data'!$A:$A,"DEL",'IND Data'!$H:$H,'Revenue Lookup'!$B$77,'IND Data'!$L:$L,LEFT(A148,2),'IND Data'!$K:$K,"RO",'IND Data'!$N:$N,"U") -> 0 | K148: 0 | L148: 0 | M148: 0 | N148: 0
A149: 30 Yard Delivery | B149: T | C149: ="" ->  | D149: 0 | E149: RO | J149: =SUMIFS('IND Data'!$U:$U,'IND Data'!$X:$X,"T",'IND Data'!$A:$A,"DEL",'IND Data'!$H:$H,'Revenue Lookup'!$B$76,'IND Data'!$L:$L,LEFT(A149,2),'IND Data'!$K:$K,"RO",'IND Data'!$N:$N,"U")+SUMIFS('IND Data'!$U:$U,'IND Data'!$X:$X,"T",'IND Data'!$A:$A,"DEL",'IND Data'!$H:$H,'Revenue Lookup'!$B$77,'IND Data'!$L:$L,LEFT(A149,2),'IND Data'!$K:$K,"RO",'IND Data'!$N:$N,"U") -> 0 | K149: 0 | L149: 0 | M149: 0 | N149: 0
A150: 35 Yard Delivery | B150: T | C150: ="" ->  | D150: 0 | E150: RO | J150: =SUMIFS('IND Data'!$U:$U,'IND Data'!$X:$X,"T",'IND Data'!$A:$A,"DEL",'IND Data'!$H:$H,'Revenue Lookup'!$B$76,'IND Data'!$L:$L,LEFT(A150,2),'IND Data'!$K:$K,"RO",'IND Data'!$N:$N,"U")+SUMIFS('IND Data'!$U:$U,'IND Data'!$X:$X,"T",'IND Data'!$A:$A,"DEL",'IND Data'!$H:$H,'Revenue Lookup'!$B$77,'IND Data'!$L:$L,LEFT(A150,2),'IND Data'!$K:$K,"RO",'IND Data'!$N:$N,"U") -> 0 | K150: 0 | L150: 0 | M150: 0 | N150: 0
A151: 40 Yard Delivery | B151: T | C151: ="" ->  | D151: 0 | E151: RO | J151: =SUMIFS('IND Data'!$U:$U,'IND Data'!$X:$X,"T",'IND Data'!$A:$A,"DEL",'IND Data'!$H:$H,'Revenue Lookup'!$B$76,'IND Data'!$L:$L,LEFT(A151,2),'IND Data'!$K:$K,"RO",'IND Data'!$N:$N,"U")+SUMIFS('IND Data'!$U:$U,'IND Data'!$X:$X,"T",'IND Data'!$A:$A,"DEL",'IND Data'!$H:$H,'Revenue Lookup'!$B$77,'IND Data'!$L:$L,LEFT(A151,2),'IND Data'!$K:$K,"RO",'IND Data'!$N:$N,"U") -> 0 | K151: 0 | L151: 0 | M151: 0 | N151: 0
A153: 10 Yard Pickup | B153: T | C153: ="" ->  | D153: =">0" -> >0 | E153: RO | F153: 1 | I153: =VALUE(LEFT(A153,3))*F153 -> 10 | J153: =SUMIFS('IND Data'!$U:$U,'IND Data'!$X:$X,"T",'IND Data'!$H:$H,'Revenue Lookup'!$B$76,'IND Data'!$M:$M,"",'IND Data'!$K:$K,"RO",'IND Data'!$L:$L,LEFT(A153,2),'IND Data'!$K:$K,"RO",'IND Data'!$N:$N,"U",'IND Data'!$W:$W,">0")+SUMIFS('IND Data'!$U:$U,'IND Data'!$X:$X,"T",'IND Data'!$H:$H,'Revenue Lookup'!$B$77,'IND Data'!$M:$M,"",'IND Data'!$K:$K,"RO",'IND Data'!$L:$L,LEFT(A153,2),'IND Data'!$K:$K,"RO",'IND Data'!$N:$N,"U",'IND Data'!$W:$W,">0") -> 0 | K153: =+G153*J153 -> 0 | L153: =+I153*J153 -> 0 | M153: =G153*(1+$F$5) -> 0 | N153: =+M153*J153 -> 0 | O153: =IF(OR(G153=0,M153=0),"",M153/G153-1) -> 
A154: 15 Yard Pickup | B154: T | C154: ="" ->  | D154: =">0" -> >0 | E154: RO | F154: 1 | I154: =VALUE(LEFT(A154,3))*F154 -> 15 | J154: =SUMIFS('IND Data'!$U:$U,'IND Data'!$X:$X,"T",'IND Data'!$H:$H,'Revenue Lookup'!$B$76,'IND Data'!$M:$M,"",'IND Data'!$K:$K,"RO",'IND Data'!$L:$L,LEFT(A154,2),'IND Data'!$K:$K,"RO",'IND Data'!$N:$N,"U",'IND Data'!$W:$W,">0")+SUMIFS('IND Data'!$U:$U,'IND Data'!$X:$X,"T",'IND Data'!$H:$H,'Revenue Lookup'!$B$77,'IND Data'!$M:$M,"",'IND Data'!$K:$K,"RO",'IND Data'!$L:$L,LEFT(A154,2),'IND Data'!$K:$K,"RO",'IND Data'!$N:$N,"U",'IND Data'!$W:$W,">0") -> 0 | K154: 0 | L154: 0 | M154: 0 | N154: 0
A155: 20 Yard Pickup | B155: T | C155: ="" ->  | D155: >0 | E155: RO | F155: 1 | I155: 20 | J155: =SUMIFS('IND Data'!$U:$U,'IND Data'!$X:$X,"T",'IND Data'!$H:$H,'Revenue Lookup'!$B$76,'IND Data'!$M:$M,"",'IND Data'!$K:$K,"RO",'IND Data'!$L:$L,LEFT(A155,2),'IND Data'!$K:$K,"RO",'IND Data'!$N:$N,"U",'IND Data'!$W:$W,">0")+SUMIFS('IND Data'!$U:$U,'IND Data'!$X:$X,"T",'IND Data'!$H:$H,'Revenue Lookup'!$B$77,'IND Data'!$M:$M,"",'IND Data'!$K:$K,"RO",'IND Data'!$L:$L,LEFT(A155,2),'IND Data'!$K:$K,"RO",'IND Data'!$N:$N,"U",'IND Data'!$W:$W,">0") -> 0 | K155: 0 | L155: 0 | M155: 0 | N155: 0
A156: 25 Yard Pickup | B156: T | C156: ="" ->  | D156: >0 | E156: RO | F156: 1 | I156: 25 | J156: =SUMIFS('IND Data'!$U:$U,'IND Data'!$X:$X,"T",'IND Data'!$H:$H,'Revenue Lookup'!$B$76,'IND Data'!$M:$M,"",'IND Data'!$K:$K,"RO",'IND Data'!$L:$L,LEFT(A156,2),'IND Data'!$K:$K,"RO",'IND Data'!$N:$N,"U",'IND Data'!$W:$W,">0")+SUMIFS('IND Data'!$U:$U,'IND Data'!$X:$X,"T",'IND Data'!$H:$H,'Revenue Lookup'!$B$77,'IND Data'!$M:$M,"",'IND Data'!$K:$K,"RO",'IND Data'!$L:$L,LEFT(A156,2),'IND Data'!$K:$K,"RO",'IND Data'!$N:$N,"U",'IND Data'!$W:$W,">0") -> 0 | K156: 0 | L156: 0 | M156: 0 | N156: 0
A157: 30 Yard Pickup | B157: T | C157: ="" ->  | D157: >0 | E157: RO | F157: 1 | I157: 30 | J157: =SUMIFS('IND Data'!$U:$U,'IND Data'!$X:$X,"T",'IND Data'!$H:$H,'Revenue Lookup'!$B$76,'IND Data'!$M:$M,"",'IND Data'!$K:$K,"RO",'IND Data'!$L:$L,LEFT(A157,2),'IND Data'!$K:$K,"RO",'IND Data'!$N:$N,"U",'IND Data'!$W:$W,">0")+SUMIFS('IND Data'!$U:$U,'IND Data'!$X:$X,"T",'IND Data'!$H:$H,'Revenue Lookup'!$B$77,'IND Data'!$M:$M,"",'IND Data'!$K:$K,"RO",'IND Data'!$L:$L,LEFT(A157,2),'IND Data'!$K:$K,"RO",'IND Data'!$N:$N,"U",'IND Data'!$W:$W,">0") -> 0 | K157: 0 | L157: 0 | M157: 0 | N157: 0
A158: 35 Yard Pickup | B158: T | C158: ="" ->  | D158: >0 | E158: RO | F158: 1 | I158: 35 | J158: =SUMIFS('IND Data'!$U:$U,'IND Data'!$X:$X,"T",'IND Data'!$H:$H,'Revenue Lookup'!$B$76,'IND Data'!$M:$M,"",'IND Data'!$K:$K,"RO",'IND Data'!$L:$L,LEFT(A158,2),'IND Data'!$K:$K,"RO",'IND Data'!$N:$N,"U",'IND Data'!$W:$W,">0")+SUMIFS('IND Data'!$U:$U,'IND Data'!$X:$X,"T",'IND Data'!$H:$H,'Revenue Lookup'!$B$77,'IND Data'!$M:$M,"",'IND Data'!$K:$K,"RO",'IND Data'!$L:$L,LEFT(A158,2),'IND Data'!$K:$K,"RO",'IND Data'!$N:$N,"U",'IND Data'!$W:$W,">0") -> 0 | K158: 0 | L158: 0 | M158: 0 | N158: 0
A159: 40 Yard Pickup | B159: T | C159: ="" ->  | D159: >0 | E159: RO | F159: 1 | I159: 40 | J159: =SUMIFS('IND Data'!$U:$U,'IND Data'!$X:$X,"T",'IND Data'!$H:$H,'Revenue Lookup'!$B$76,'IND Data'!$M:$M,"",'IND Data'!$K:$K,"RO",'IND Data'!$L:$L,LEFT(A159,2),'IND Data'!$K:$K,"RO",'IND Data'!$N:$N,"U",'IND Data'!$W:$W,">0")+SUMIFS('IND Data'!$U:$U,'IND Data'!$X:$X,"T",'IND Data'!$H:$H,'Revenue Lookup'!$B$77,'IND Data'!$M:$M,"",'IND Data'!$K:$K,"RO",'IND Data'!$L:$L,LEFT(A159,2),'IND Data'!$K:$K,"RO",'IND Data'!$N:$N,"U",'IND Data'!$W:$W,">0") -> 0 | K159: 0 | L159: 0 | M159: 0 | N159: 0
A161: 10 Yard Rent/Calendar Day | K161: =+G161*J161 -> 0 | L161: =+I161*J161 -> 0 | M161: =G161*(1+$F$5) -> 0 | N161: =+M161*J161 -> 0 | O161: =IF(OR(G161=0,M161=0),"",M161/G161-1) -> 
A162: 15 Yard Rent/Calendar Day | K162: 0 | L162: 0 | M162: 0 | N162: 0
A163: 20 Yard Rent/Calendar Day | K163: 0 | L163: 0 | M163: 0 | N163: 0
A164: 25 Yard Rent/Calendar Day | K164: 0 | L164: 0 | M164: 0 | N164: 0
A165: 30 Yard Rent/Calendar Day | K165: 0 | L165: 0 | M165: 0 | N165: 0
A166: 35 Yard Rent/Calendar Day | K166: 0 | L166: 0 | M166: 0 | N166: 0
A167: 40 Yard Rent/Calendar Day | K167: 0 | L167: 0 | M167: 0 | N167: 0
A169: Item # 110 - MF Drop Box Service
A170: Customer Owned Containers
A171: Compacted Material
A172: Permanent Service
A173: 10 Yard First Pickup (3.5x) | B173: P | C173: C | D173: =">0" -> >0 | E173: RO | F173: 3.5 | I173: =VALUE(LEFT(A173,3))*F173 -> 35 | J173: =SUMIFS('IND Data'!$U:$U,'IND Data'!$X:$X,"P",'IND Data'!$H:$H,'Revenue Lookup'!$B$76,'IND Data'!$M:$M,"C",'IND Data'!$K:$K,"RO",'IND Data'!$L:$L,LEFT(A173,2),'IND Data'!$N:$N,"U",'IND Data'!$W:$W,">0")+SUMIFS('IND Data'!$U:$U,'IND Data'!$X:$X,"P",'IND Data'!$H:$H,'Revenue Lookup'!$B$77,'IND Data'!$M:$M,"C",'IND Data'!$K:$K,"RO",'IND Data'!$L:$L,LEFT(A173,2),'IND Data'!$N:$N,"U",'IND Data'!$W:$W,">0") -> 0 | K173: =+G173*J173 -> 0 | L173: =+I173*J173 -> 0 | M173: =G173*(1+$F$5) -> 0 | N173: =+M173*J173 -> 0 | O173: =IF(OR(G173=0,M173=0),"",M173/G173-1) -> 
A174: 15 Yard First Pickup (3.5x) | B174: P | C174: C | D174: =">0" -> >0 | E174: RO | F174: 3.5 | I174: =VALUE(LEFT(A174,3))*F174 -> 52.5 | J174: =SUMIFS('IND Data'!$U:$U,'IND Data'!$X:$X,"P",'IND Data'!$H:$H,'Revenue Lookup'!$B$76,'IND Data'!$M:$M,"C",'IND Data'!$K:$K,"RO",'IND Data'!$L:$L,LEFT(A174,2),'IND Data'!$N:$N,"U",'IND Data'!$W:$W,">0")+SUMIFS('IND Data'!$U:$U,'IND Data'!$X:$X,"P",'IND Data'!$H:$H,'Revenue Lookup'!$B$77,'IND Data'!$M:$M,"C",'IND Data'!$K:$K,"RO",'IND Data'!$L:$L,LEFT(A174,2),'IND Data'!$N:$N,"U",'IND Data'!$W:$W,">0") -> 0 | K174: 0 | L174: 0 | M174: 0 | N174: 0
A175: 20 Yard First Pickup (3.5x) | B175: P | C175: C | D175: >0 | E175: RO | F175: 3.5 | I175: 70 | J175: =SUMIFS('IND Data'!$U:$U,'IND Data'!$X:$X,"P",'IND Data'!$H:$H,'Revenue Lookup'!$B$76,'IND Data'!$M:$M,"C",'IND Data'!$K:$K,"RO",'IND Data'!$L:$L,LEFT(A175,2),'IND Data'!$N:$N,"U",'IND Data'!$W:$W,">0")+SUMIFS('IND Data'!$U:$U,'IND Data'!$X:$X,"P",'IND Data'!$H:$H,'Revenue Lookup'!$B$77,'IND Data'!$M:$M,"C",'IND Data'!$K:$K,"RO",'IND Data'!$L:$L,LEFT(A175,2),'IND Data'!$N:$N,"U",'IND Data'!$W:$W,">0") -> 0 | K175: 0 | L175: 0 | M175: 0 | N175: 0
A176: 25 Yard First Pickup (3.5x) | B176: P | C176: C | D176: >0 | E176: RO | F176: 3.5 | I176: 87.5 | J176: =SUMIFS('IND Data'!$U:$U,'IND Data'!$X:$X,"P",'IND Data'!$H:$H,'Revenue Lookup'!$B$76,'IND Data'!$M:$M,"C",'IND Data'!$K:$K,"RO",'IND Data'!$L:$L,LEFT(A176,2),'IND Data'!$N:$N,"U",'IND Data'!$W:$W,">0")+SUMIFS('IND Data'!$U:$U,'IND Data'!$X:$X,"P",'IND Data'!$H:$H,'Revenue Lookup'!$B$77,'IND Data'!$M:$M,"C",'IND Data'!$K:$K,"RO",'IND Data'!$L:$L,LEFT(A176,2),'IND Data'!$N:$N,"U",'IND Data'!$W:$W,">0") -> 0 | K176: 0 | L176: 0 | M176: 0 | N176: 0
A177: 30 Yard First Pickup (3.5x) | B177: P | C177: C | D177: >0 | E177: RO | F177: 3.5 | I177: 105 | J177: =SUMIFS('IND Data'!$U:$U,'IND Data'!$X:$X,"P",'IND Data'!$H:$H,'Revenue Lookup'!$B$76,'IND Data'!$M:$M,"C",'IND Data'!$K:$K,"RO",'IND Data'!$L:$L,LEFT(A177,2),'IND Data'!$N:$N,"U",'IND Data'!$W:$W,">0")+SUMIFS('IND Data'!$U:$U,'IND Data'!$X:$X,"P",'IND Data'!$H:$H,'Revenue Lookup'!$B$77,'IND Data'!$M:$M,"C",'IND Data'!$K:$K,"RO",'IND Data'!$L:$L,LEFT(A177,2),'IND Data'!$N:$N,"U",'IND Data'!$W:$W,">0") -> 0 | K177: 0 | L177: 0 | M177: 0 | N177: 0
A178: 35 Yard First Pickup (3.5x) | B178: P | C178: C | D178: >0 | E178: RO | F178: 3.5 | I178: 122.5 | J178: =SUMIFS('IND Data'!$U:$U,'IND Data'!$X:$X,"P",'IND Data'!$H:$H,'Revenue Lookup'!$B$76,'IND Data'!$M:$M,"C",'IND Data'!$K:$K,"RO",'IND Data'!$L:$L,LEFT(A178,2),'IND Data'!$N:$N,"U",'IND Data'!$W:$W,">0")+SUMIFS('IND Data'!$U:$U,'IND Data'!$X:$X,"P",'IND Data'!$H:$H,'Revenue Lookup'!$B$77,'IND Data'!$M:$M,"C",'IND Data'!$K:$K,"RO",'IND Data'!$L:$L,LEFT(A178,2),'IND Data'!$N:$N,"U",'IND Data'!$W:$W,">0") -> 0 | K178: 0 | L178: 0 | M178: 0 | N178: 0
A179: 40 Yard First Pickup (3.5x) | B179: P | C179: C | D179: >0 | E179: RO | F179: 3.5 | I179: 140 | J179: =SUMIFS('IND Data'!$U:$U,'IND Data'!$X:$X,"P",'IND Data'!$H:$H,'Revenue Lookup'!$B$76,'IND Data'!$M:$M,"C",'IND Data'!$K:$K,"RO",'IND Data'!$L:$L,LEFT(A179,2),'IND Data'!$N:$N,"U",'IND Data'!$W:$W,">0")+SUMIFS('IND Data'!$U:$U,'IND Data'!$X:$X,"P",'IND Data'!$H:$H,'Revenue Lookup'!$B$77,'IND Data'!$M:$M,"C",'IND Data'!$K:$K,"RO",'IND Data'!$L:$L,LEFT(A179,2),'IND Data'!$N:$N,"U",'IND Data'!$W:$W,">0") -> 0 | K179: 0 | L179: 0 | M179: 0 | N179: 0
A181: 10 Yard Additional Pickup (3.5x) | B181: P | C181: C | D181: =">0" -> >0 | E181: RO | F181: 3.5 | I181: =VALUE(LEFT(A181,3))*F181 -> 35 | K181: =+G181*J181 -> 0 | L181: =+I181*J181 -> 0 | M181: =G181*(1+$F$5) -> 0 | N181: =+M181*J181 -> 0 | O181: =IF(OR(G181=0,M181=0),"",M181/G181-1) -> 
A182: 15 Yard Additional Pickup (3.5x) | B182: P | C182: C | D182: =">0" -> >0 | E182: RO | F182: 3.5 | I182: =VALUE(LEFT(A182,3))*F182 -> 52.5 | K182: 0 | L182: 0 | M182: 0 | N182: 0
A183: 20 Yard Additional Pickup (3.5x) | B183: P | C183: C | D183: >0 | E183: RO | F183: 3.5 | I183: 70 | K183: 0 | L183: 0 | M183: 0 | N183: 0
A184: 25 Yard Additional Pickup (3.5x) | B184: P | C184: C | D184: >0 | E184: RO | F184: 3.5 | I184: 87.5 | K184: 0 | L184: 0 | M184: 0 | N184: 0
A185: 30 Yard Additional Pickup (3.5x) | B185: P | C185: C | D185: >0 | E185: RO | F185: 3.5 | I185: 105 | K185: 0 | L185: 0 | M185: 0 | N185: 0
A186: 35 Yard Additional Pickup (3.5x) | B186: P | C186: C | D186: >0 | E186: RO | F186: 3.5 | I186: 122.5 | K186: 0 | L186: 0 | M186: 0 | N186: 0
A187: 40 Yard Additional Pickup (3.5x) | B187: P | C187: C | D187: >0 | E187: RO | F187: 3.5 | I187: 140 | K187: 0 | L187: 0 | M187: 0 | N187: 0

Sheet Residential Counts
A1: Charge Code | B1: Rev.'Dist'Code | C1: Container'Type | D1: Container Size | E1: # of containers | F1: # of customers | G1: Stop Code | H1: Rate Type | I1: Residential District | J1: Commodity
A2: 1CN | B2: 30 | C2: CN | D2: 0.16 | E2: 1543 | F2: 1542 | G2: G | H2: R | I2: 2 | J2: Garbage | K2: Regulated | L2: =IF(I2=89,"White Salmon",IF(I2=2,"County","Goldendale")) -> County
A3: 1CN | B3: 10 | C3: CN | D3: 0.16 | E3: 1 | F3: 1 | G3: G | H3: R | I3: 2 | J3: Garbage | K3: Regulated | L3: =IF(I3=89,"White Salmon",IF(I3=2,"County","Goldendale")) -> County
A4: 1CN | B4: 30 | C4: CN | D4: 0.16 | E4: 500 | F4: 500 | G4: G | H4: R | I4: 1 | J4: Garbage | K4: Regulated | L4: Goldendale
A5: 1CN | B5: 30 | C5: CN | D5: 0.16 | E5: 15 | F5: 15 | G5: G | H5: 3 | I5: 2 | J5: Garbage | K5: Regulated | L5: County
A6: 1XM | B6: 30 | C6: CN | D6: 0.16 | E6: 1 | F6: 1 | G6: G | H6: 3 | I6: 89 | J6: Garbage | K6: Regulated | L6: Bingen
A7: 1XM | B7: 30 | C7: CN | D7: 0.16 | E7: 4 | F7: 4 | G7: G | H7: 3 | I7: 1 | J7: Garbage | K7: Regulated | L7: Goldendale
A8: 1XM | B8: 30 | C8: CA | D8: 0.17 | E8: 30 | F8: 30 | G8: G | H8: 3 | I8: 89 | J8: Garbage | K8: Regulated | L8: White Salmon
A9: 1XM | B9: 30 | C9: CN | D9: 0.16 | E9: 39 | F9: 39 | G9: G | H9: 3 | I9: 2 | J9: Garbage | K9: Regulated | L9: County
A10: 2CN | B10: 30 | C10: CN | D10: 0.16 | E10: 936 | F10: 468 | G10: G | H10: R | I10: 2 | J10: Garbage | K10: Regulated | L10: County
A11: 2CN | B11: 30 | C11: CN | D11: 0.16 | E11: 340 | F11: 170 | G11: G | H11: R | I11: 1 | J11: Garbage | K11: Regulated | L11: Goldendale
A12: 35G | B12: 30 | C12: CA | D12: 0.17 | E12: 623 | F12: 622 | G12: G | H12: R | I12: 89 | J12: Garbage | K12: Regulated | L12: White Salmon
A13: 3CN | B13: 30 | C13: CN | D13: 0.16 | E13: 39 | F13: 13 | G13: G | H13: R | I13: 1 | J13: Garbage | K13: Regulated | L13: Goldendale
A14: 3CN | B14: 30 | C14: CN | D14: 0.16 | E14: 161 | F14: 54 | G14: G | H14: R | I14: 2 | J14: Garbage | K14: Regulated | L14: County
A15: 4CN | B15: 30 | C15: CN | D15: 0.16 | E15: 70 | F15: 18 | G15: G | H15: R | I15: 2 | J15: Garbage | K15: Regulated | L15: County
A16: 4CN | B16: 30 | C16: CN | D16: 0.16 | E16: 24 | F16: 6 | G16: G | H16: R | I16: 1 | J16: Garbage | K16: Regulated | L16: Goldendale
A17: 5CN | B17: 30 | C17: CN | D17: 0.16 | E17: 4 | F17: 1 | G17: G | H17: R | I17: 1 | J17: Garbage | K17: Regulated | L17: Goldendale
A18: 65G | B18: 30 | C18: CA | D18: 0.33 | E18: 118 | F18: 118 | G18: G | H18: R | I18: 89 | J18: Garbage | K18: Regulated | L18: White Salmon
A19: 96G | B19: 30 | C19: CA | D19: 0.48 | E19: 7 | F19: 7 | G19: G | H19: R | I19: 89 | J19: Garbage | K19: Regulated | L19: White Salmon
A20: NCH | B20: 30 | C20: CN | D20: 0.16 | E20: 25 | F20: 25 | G20: G | H20: E | I20: 1 | J20: Garbage | K20: Regulated | L20: Goldendale
A21: NCH | B21: 30 | C21: CN | D21: 0.16 | E21: 48 | F21: 48 | G21: G | H21: E | I21: 2 | J21: Garbage | K21: Regulated | L21: County
A22: R06 | B22: 30 | C22: CA | D22: 0.33 | E22: 1 | F22: 1 | G22: G | H22: 3 | I22: 89 | J22: Garbage | K22: Regulated | L22: White Salmon
A23: R35 | B23: 30 | C23: CA | D23: 0.17 | E23: 54 | F23: 27 | G23: G | H23: R | I23: 89 | J23: Garbage | K23: Regulated | L23: White Salmon
A24: R36 | B24: 30 | C24: CA | D24: 0.17 | E24: 3 | F24: 1 | G24: G | H24: R | I24: 89 | J24: Garbage | K24: Regulated | L24: White Salmon
A25: R65 | B25: 30 | C25: CA | D25: 0.33 | E25: 2 | F25: 1 | G25: G | H25: R | I25: 89 | J25: Garbage | K25: Regulated | L25: White Salmon
A26: R66 | B26: 30 | C26: CA | D26: 0.33 | E26: 3 | F26: 1 | G26: G | H26: R | I26: 89 | J26: Garbage | K26: Regulated | L26: White Salmon
A27: R95 | B27: 30 | C27: CA | D27: 0.48 | E27: 2 | F27: 1 | G27: G | H27: R | I27: 89 | J27: Garbage | K27: Regulated | L27: White Salmon
A28: REC | B28: 70 | C28: BA | D28: 0.03 | E28: 1 | F28: 1 | G28: R | H28: O | I28: 89 | J28: Recycle | K28: not in tariff | L28: White Salmon
A29: REC | B29: 30 | C29: BA | D29: 0.03 | E29: 810 | F29: 810 | G29: R | H29: O | I29: 1 | J29: Recycle | K29: not in tariff | L29: Goldendale
A30: REC | B30: 30 | C30: BA | D30: 0.03 | E30: 2421 | F30: 2421 | G30: R | H30: O | I30: 2 | J30: Recycle | K30: not in tariff | L30: County
A31: REC | B31: 30 | C31: BA | D31: 0.03 | E31: 215 | F31: 215 | G31: R | H31: A | I31: 2 | J31: Recycle | K31: not in tariff | L31: County
A32: REC | B32: 30 | C32: BA | D32: 0.03 | E32: 659 | F32: 659 | G32: R | H32: O | I32: 89 | J32: Recycle | K32: not in tariff | L32: White Salmon
A33: REC | B33: 30 | C33: BA | D33: 0.03 | E33: 15 | F33: 15 | G33: R | H33: A | I33: 1 | J33: Recycle | K33: not in tariff | L33: Goldendale
A34: ROC | B34: 30 | C34: CN | D34: 0.16 | E34: 3 | F34: 3 | G34: G | H34: A | I34: 1 | J34: Garbage | K34: Regulated | L34: Goldendale
A35: ROC | B35: 30 | C35: CN | D35: 0.16 | E35: 16 | F35: 16 | G35: G | H35: A | I35: 2 | J35: Garbage | K35: Regulated | L35: County

Sheet IND Data
A1: Type of Haul (ref table on calc tab) | B1: Customer Account # | H1: Location District | I1: Container Group | K1: IR = Recycle, RO = MSW | L1: Container Size in Yards | M1: If Compactor, then "C" | N1: Special Flag | O1: Travel Time | P1: Travel Distance | Q1: Service Time | R1: Service Distance | S1: Disposal Time | T1: Dispsoal Weight | U1: # of Services | V1: Total Hours (Calculated) | W1: Total Weight (Calculated) | X1: Temp or Perm Account
H2: REV | I2: CONT | L2: CONT | O2: TR | P2: AVEL | Q2: SER | R2: VICE | S2: DISP | U2: # OF
A3: SERVICE CODE | B3: ACCOUNT | C3: SITE | D3: SITE NAME | E3: SITE ADDRESS | F3: CITY | G3: ZIP | H3: DIST | I3: GRP | J3: QTY | K3: TP | L3: /SIZE | M3: C | N3: S | O3: TIME | P3: DIST | Q3: TIME | R3: DIST | S3: TIME | T3: WEIGHT | U3: SERV | V3: Total Hours | W3: Total Weight | X3: T / P
A4: DEL | B4: 1807 | C4: 1 | D4: RYAN HOMES LLC ROLL | E4: 497 EL CAMINO REAL | F4: WHITE SALMON | G4: 98672 | H4: 20 | I4: 2 | J4: 1 | K4: RO | L4: 20 | N4: N | O4: 0 | P4: 0 | Q4: 0.1284722222 | R4: 75 | S4: 0.03958333333 | T4: 0 | U4: 1 | V4: =(O4+Q4+S4)*U4 -> 0.1680555556 | W4: =+T4*U4 -> 0 | X4: T
A5: DEL | B5: 1992 | C5: 3 | D5: MOUNTAIN VIEW EXCAVA | E5: 1284 CANYON RD | F5: APPLETON | G5: 98602 | H5: 20 | I5: 1 | J5: 1 | K5: RO | L5: 40 | N5: N | O5: 0.0006944444444 | P5: 1 | Q5: 0.06805555556 | R5: 47 | S5: 0.03680555556 | T5: 0 | U5: 1 | V5: 0.1055555556 | W5: 0 | X5: T
A6: DEL | B6: 2677 | C6: 5 | D6: CRAIG DRESSEL ROLL O | E6: 207 W DARLAND ST | F6: GOLDENDALE | G6: 98620 | H6: 20 | I6: 1 | J6: 1 | K6: RO | L6: 40 | N6: N | O6: 0.02847222222 | P6: 28 | Q6: 0.03819444444 | R6: 2 | S6: 0.03541666667 | T6: 0 | U6: 1 | V6: 0.1020833333 | W6: 0 | X6: T
A7: DEL | B7: 2762 | C7: 4 | D7: RDC RECYCLE - DTS | E7: 126 TIDYMAN RD | F7: DALLESPORT | G7: 98617 | H7: 71 | I7: 7 | J7: 5 | K7: IR | L7: 40 | N7: R | O7: 0.01666666667 | P7: 1 | Q7: 0.1152777778 | R7: 120 | S7: 0.03472222222 | T7: 0 | U7: 1 | V7: 0.1666666667 | W7: 0 | X7: T
A8: DEL | B8: 2773 | C8: 4 | D8: RDC RECYCLE - DTS | E8: 126 TIDYMAN RD | F8: DALLESPORT | G8: 98617 | H8: 71 | I8: 7 | J8: 5 | K8: IR | L8: 40 | N8: R | O8: 0.01736111111 | P8: 11 | Q8: 0.1131944444 | R8: 109 | S8: 0.03263888889 | T8: 0 | U8: 67 | V8: 10.93402778 | W8: 0 | X8: T
A9: DEL | B9: 2892 | C9: 1 | D9: COYOTE CANYON VINEYA | E9: 80 MCKINLEY SPRINGS | F9: PROSSER | G9: 99350 | H9: 20 | I9: 15 | J9: 1 | K9: RO | L9: 40 | N9: N | O9: 0 | P9: 0 | Q9: 0.0625 | R9: 66 | S9: 0.03125 | T9: 3.75987 | U9: 1 | V9: 0.09375 | W9: 3.75987 | X9: T
A10: DEL | B10: 3260 | C10: 1 | D10: RDC GOLDENDALE TRANS | E10: 1205 W BROADWAY ST | F10: GOLDENDALE | G10: 98620 | H10: 71 | I10: 4 | J10: 1 | K10: IR | L10: 20 | N10: G | O10: 0 | P10: 0 | Q10: 0.06458333333 | R10: 30 | S10: 0.02986111111 | T10: 0 | U10: 1 | V10: 0.09444444444 | W10: 0 | X10: T
A11: DEL | B11: 3509 | C11: 1 | D11: RDC BZ CORNERS TRANS | E11: 5 FIRTREE RD | F11: HUSUM | G11: 98623 | H11: 71 | I11: 9 | J11: 3 | K11: IR | L11: 40 | N11: R | O11: 0.01180555556 | P11: 9 | Q11: 0.1201388889 | R11: 106 | S11: 0.02847222222 | T11: 0 | U11: 8 | V11: 1.283333333 | W11: 0 | X11: T
A12: DEL | B12: 3838 | C12: 4 | D12: RDC RECYCLE - DTS | E12: 126 TIDYMAN RD | F12: DALLESPORT | G12: 98617 | H12: 71 | I12: 7 | J12: 5 | K12: IR | L12: 40 | N12: R | O12: 0.02430555556 | P12: 20 | Q12: 0.08402777778 | R12: 70 | S12: 0.02847222222 | T12: 0 | U12: 22 | V12: 3.009722222 | W12: 0 | X12: T
A13: DEL | B13: 3897 | C13: 1 | D13: ALPINE ABATEMENT ASS | E13: 200 RHINE VILLAGE DR | F13: WHITE SALMON | G13: 98672 | H13: 20 | I13: 1 | J13: 1 | K13: RO | L13: 40 | N13: N | O13: 0 | P13: 0 | Q13: 0.1138888889 | R13: 98 | S13: 0.025 | T13: 0 | U13: 1 | V13: 0.1388888889 | W13: 0 | X13: T
A14: DEL | B14: 3897 | C14: 1 | D14: MILLS JENNIFER ROLL | E14: 12 PUMPHOUSE RD | F14: GOLDENDALE | G14: 98620 | H14: 20 | I14: 1 | J14: 1 | K14: RO | L14: 40 | N14: N | O14: 0.02152777778 | P14: 10 | Q14: 0.0625 | R14: 13 | S14: 0.025 | T14: 0 | U14: 1 | V14: 0.1090277778 | W14: 0 | X14: T
A15: DEL | B15: 3955 | C15: 1 | D15: STATE OF WA DCYF | E15: 229 NW 2ND ST | F15: GOLDENDALE | G15: 98620 | H15: 20 | I15: 1 | J15: 1 | K15: RO | L15: 40 | N15: N | O15: 0.03125 | P15: 29 | Q15: 0.03125 | R15: 1 | S15: 0.02430555556 | T15: 0 | U15: 1 | V15: 0.08680555556 | W15: 0 | X15: T
A16: DEL | B16: 4772 | C16: 1 | D16: CHERRY RIVER FARMS R | E16: 13020 HIGHWAY 14 | F16: ROOSEVELT | G16: 99356 | H16: 20 | I16: 2 | J16: 1 | K16: RO | L16: 13 | N16: N | O16: 0 | P16: 0 | Q16: 0.07291666667 | R16: 43 | S16: 0.02430555556 | T16: 2.9999 | U16: 1 | V16: 0.09722222222 | W16: 2.9999 | X16: T
A17: DEL | B17: 4773 | C17: 2 | D17: RDC RECYCLE - GLENWO | E17: 320 N BUNNELL ST | F17: GLENWOOD | G17: 98619 | H17: 71 | I17: 5 | J17: 1 | K17: IR | L17: 20 | N17: R | O17: 0.02916666667 | P17: 18 | Q17: 0.04861111111 | R17: 30 | S17: 0.02430555556 | T17: 0 | U17: 1 | V17: 0.1020833333 | W17: 0 | X17: T
A18: DEL | B18: 5278 | C18: 1 | D18: THORPE ERICA ROLL OF | E18: 354 BICKLETON HWY | F18: GOLDENDALE | G18: 98620 | H18: 20 | I18: 1 | J18: 1 | K18: RO | L18: 40 | N18: N | O18: 0 | P18: 0 | Q18: 0.04027777778 | R18: 11 | S18: 0.02361111111 | T18: 0 | U18: 1 | V18: 0.06388888889 | W18: 0 | X18: T
A19: DEL | B19: 5683 | C19: 1 | D19: BNSF (TEMP) 18102 | E19: 510 N BRIDGEWAY RD | F19: WISHRAM | G19: 98673 | H19: 20 | I19: 1 | J19: 1 | K19: RO | L19: 40 | N19: N | O19: 0.03472222222 | P19: 20 | Q19: 0.03819444444 | R19: 14 | S19: 0.02291666667 | T19: 0 | U19: 1 | V19: 0.09583333333 | W19: 0 | X19: T
A20: DEL | B20: 5683 | C20: 2 | D20: RYAN KREPS DUMPSTER | E20: 945 HIGHWAY 141 | F20: WHITE SALMON | G20: 98672 | H20: 20 | I20: 1 | J20: 1 | K20: RO | L20: 40 | N20: N | O20: 0.006944444444 | P20: 4 | Q20: 0.05763888889 | R20: 30 | S20: 0.02291666667 | T20: 0 | U20: 1 | V20: 0.0875 | W20: 0 | X20: T
A21: DEL | B21: 6245 | C21: 1 | D21: RANDALL MARIANNE | E21: 800 HOCTOR RD | F21: GOLDENDALE | G21: 98620 | H21: 20 | I21: 2 | J21: 1 | K21: RO | L21: 20 | N21: N | O21: 0.05208333333 | P21: 33 | Q21: 0.03819444444 | R21: 13 | S21: 0.02222222222 | T21: 0 | U21: 1 | V21: 0.1125 | W21: 0 | X21: P
A22: DEL | B22: 6741 | C22: 3 | D22: GOLDENDALE BIBLE BAP | E22: 100 CAMP GRACEWAY RD | F22: GOLDENDALE | G22: 98620 | H22: 20 | I22: 1 | J22: 1 | K22: RO | L22: 40 | N22: N | O22: 0.02361111111 | P22: 16 | Q22: 0.06458333333 | R22: 43 | S22: 0.02083333333 | T22: 0 | U22: 1 | V22: 0.1090277778 | W22: 0 | X22: T
A23: DEL | B23: 6951 | C23: 2 | D23: KIEWIT CONSTRUCTION | E23: THE DALLES DAM | F23: DALLESPORT | G23: 98617 | H23: 20 | I23: 6 | J23: 1 | K23: RO | L23: 20 | N23: N | O23: 0.01041666667 | P23: 7 | Q23: 0.06736111111 | R23: 5 | S23: 0.02013888889 | T23: 0 | U23: 1 | V23: 0.09791666667 | W23: 0 | X23: T
A24: DEL | B24: 7517 | C24: 2 | D24: GD BIBLE BAPTIST DUM | E24: 1005 S COLUMBUS AVE | F24: GOLDENDALE | G24: 98620 | H24: 20 | I24: 4 | J24: 1 | K24: RO | L24: 40 | N24: N | O24: 0.02152777778 | P24: 13 | Q24: 0.03055555556 | R24: 1 | S24: 0.01805555556 | T24: 0 | U24: 1 | V24: 0.07013888889 | W24: 0 | X24: T
A25: DEL | B25: 7529 | C25: 1 | D25: MARYHILL MUSEUM FINE | E25: 35 MARYHILL MUSEUM D | F25: GOLDENDALE | G25: 98620 | H25: 20 | I25: 15 | J25: 1 | K25: RO | L25: 20 | N25: N | O25: 0.01736111111 | P25: 16 | Q25: 0.02847222222 | R25: 14 | S25: 0.01805555556 | T25: 0 | U25: 1 | V25: 0.06388888889 | W25: 0 | X25: T
A26: DEL | B26: 8418 | C26: 1 | D26: RANDALL ROBISON CONS | E26: 20 FARRIS LN | F26: LYLE | G26: 98635 | H26: 20 | I26: 1 | J26: 1 | K26: RO | L26: 13 | N26: N | O26: 0.01875 | P26: 13 | Q26: 0.03888888889 | R26: 13 | S26: 0.01736111111 | T26: 0 | U26: 1 | V26: 0.075 | W26: 0 | X26: T
A27: DEL | B27: 8550 | C27: 1 | D27: STEVENS NICK ROLL O | E27: 70 RAMSAY LN | F27: WHITE SALMON | G27: 98672 | H27: 20 | I27: 1 | J27: 1 | K27: RO | L27: 40 | N27: N | O27: 0.09305555556 | P27: 28 | Q27: 0.05416666667 | R27: 28 | S27: 0.01666666667 | T27: 0 | U27: 1 | V27: 0.1638888889 | W27: 0 | X27: T
A28: DEL | B28: 8662 | C28: 1 | D28: IBERDROLA RENEWABLES | E28: 1051 EAST RD | F28: BICKLETON | G28: 99322 | H28: 20 | I28: 1 | J28: 1 | K28: RO | L28: 20 | N28: N | O28: 0 | P28: 0 | Q28: 0.04513888889 | R28: 26 | S28: 0.01666666667 | T28: 0.73664 | U28: 6 | V28: 0.3708333333 | W28: 4.41984 | X28: T
A29: DEL | B29: 8677 | C29: 2 | D29: WELLENS FARWELL CONS | E29: 211 NE SKYLINE DR | F29: WHITE SALMON | G29: 98672 | H29: 20 | I29: 1 | J29: 1 | K29: RO | L29: 13 | N29: N | O29: 0.02291666667 | P29: 20 | Q29: 0.03541666667 | R29: 19 | S29: 0.01597222222 | T29: 0 | U29: 1 | V29: 0.07430555556 | W29: 0 | X29: T
A30: DEL | B30: 8917 | C30: 1 | D30: KLICKITAT CO COURT H | E30: 205 S COLUMBUS AVE | F30: GOLDENDALE | G30: 98620 | H30: 20 | I30: 4 | J30: 1 | K30: RO | L30: 20 | N30: N | O30: 0 | P30: 0 | Q30: 0.02291666667 | R30: 2 | S30: 0.01597222222 | T30: 0 | U30: 1 | V30: 0.03888888889 | W30: 0 | X30: T
A31: DEL | B31: 8961 | C31: 3 | D31: PQ CONSTRUCTION INC | E31: 212 E ALLYN ST | F31: GOLDENDALE | G31: 98620 | H31: 20 | I31: 1 | J31: 1 | K31: RO | L31: 20 | N31: N | O31: 0.04652777778 | P31: 48 | Q31: 0.02222222222 | R31: 2 | S31: 0.01597222222 | T31: 0 | U31: 1 | V31: 0.08472222222 | W31: 0 | X31: T
A32: DEL | B32: 8963 | C32: 1 | D32: ROCKFORD CORPORATION | E32: 500 ROOSEVELT GRADE | F32: ROOSEVELT | G32: 99356 | H32: 20 | I32: 1 | J32: 1 | K32: RO | L32: 40 | N32: N | O32: 0 | P32: 0 | Q32: 0.02638888889 | R32: 7 | S32: 0.01527777778 | T32: 0 | U32: 1 | V32: 0.04166666667 | W32: 0 | X32: P
A33: DEL | B33: 8963 | C33: 2 | D33: WESTERN CONSTRUCTION | E33: 131 W BURGEN ST | F33: GOLDENDALE | G33: 98620 | H33: 20 | I33: 1 | J33: 1 | K33: RO | L33: 40 | N33: N | O33: 0.03402777778 | P33: 28 | Q33: 0.02013888889 | R33: 1 | S33: 0.01527777778 | T33: 0 | U33: 1 | V33: 0.06944444444 | W33: 0 | X33: P
A34: DEL | B34: 9026 | C34: 1 | D34: RDC BZ CORNERS TRANS | E34: 5 FIRTREE RD | F34: HUSUM | G34: 98623 | H34: 71 | I34: 9 | J34: 3 | K34: IR | L34: 40 | N34: R | O34: 0.02152777778 | P34: 23 | Q34: 0.1208333333 | R34: 101 | S34: 0.01527777778 | T34: 0 | U34: 6 | V34: 0.9458333333 | W34: 0 | X34: T
A35: DEL | B35: 9270 | C35: 14 | D35: THE INSITU GROUP/COM | E35: 901 E BINGEN POINT W | F35: BINGEN | G35: 98605 | H35: 20 | I35: 13 | J35: 1 | K35: RO | L35: 40 | N35: Y | O35: 0.04236111111 | P35: 46 | Q35: 0.08611111111 | R35: 82 | S35: 0.01527777778 | T35: 2.11993 | U35: 1 | V35: 0.14375 | W35: 2.11993 | X35: T
A36: DEL | B36: 9270 | C36: 1 | D36: FRANKLIN PETERSEN RO | E36: 58 CANYON RD | F36: LYLE | G36: 98635 | H36: 20 | I36: 1 | J36: 1 | K36: RO | L36: 20 | N36: N | O36: 0.02083333333 | P36: 11 | Q36: 0.02569444444 | R36: 11 | S36: 0.01458333333 | T36: 0 | U36: 1 | V36: 0.06111111111 | W36: 0 | X36: T
A37: DEL | B37: 9642 | C37: 2 | D37: RDC RECYCLE - GLENWO | E37: 320 N BUNNELL ST | F37: GLENWOOD | G37: 98619 | H37: 71 | I37: 5 | J37: 1 | K37: IR | L37: 20 | N37: R | O37: 0.01805555556 | P37: 15 | Q37: 0.1069444444 | R37: 79 | S37: 0.01458333333 | T37: 0 | U37: 2 | V37: 0.2791666667 | W37: 0 | X37: T
A38: DEL | B38: 9642 | C38: 1 | D38: MT ADAMS ORCHRDS ALD | E38: 151 COLUMBIA RIDGE - | F38: PROSSER | G38: 99350 | H38: 20 | I38: 32 | J38: 1 | K38: RO | L38: 40 | N38: N | O38: 0 | P38: 0 | Q38: 0.07430555556 | R38: 55 | S38: 0.01458333333 | T38: 19.19937 | U38: 1 | V38: 0.08888888889 | W38: 19.19937 | X38: T
A39: DEL | B39: 10238 | C39: 23 | D39: MERCER RANCHES VINEY | E39: 100 KELLEY AVE | F39: ROOSEVELT | G39: 99356 | H39: 20 | I39: 3 | J39: 1 | K39: RO | L39: 40 | N39: N | O39: 0.01597222222 | P39: 7 | Q39: 0.04027777778 | R39: 26 | S39: 0.01388888889 | T39: 4.41985 | U39: 1 | V39: 0.07013888889 | W39: 4.41985 | X39: T
A40: DEL | B40: 10414 | C40: 1 | D40: RICHART FAMILY INC | E40: 200 RHINE VILLAGE DR | F40: WHITE SALMON | G40: 98672 | H40: 20 | I40: 1 | J40: 1 | K40: RO | L40: 40 | N40: N | O40: 0.03194444444 | P40: 22 | Q40: 0.03194444444 | R40: 19 | S40: 0.01388888889 | T40: 0 | U40: 1 | V40: 0.07777777778 | W40: 0 | X40: T
A41: DEL | B41: 10450 | C41: 1 | D41: SYNCLINE WINERY | E41: 111 BALCH RD | F41: LYLE | G41: 98635 | H41: 20 | I41: 5 | J41: 1 | K41: RO | L41: 13 | N41: N | O41: 0.04861111111 | P41: 55 | Q41: 0.03125 | R41: 12 | S41: 0.01388888889 | T41: 0 | U41: 1 | V41: 0.09375 | W41: 0 | X41: T
A42: DEL | B42: 10706 | C42: 6 | D42: BYERS REALTY ROLL OF | E42: 415 E MAIN ST | F42: GOLDENDALE | G42: 98620 | H42: 20 | I42: 1 | J42: 1 | K42: RO | L42: 20 | N42: N | O42: 0.03055555556 | P42: 29 | Q42: 0.02430555556 | R42: 3 | S42: 0.01388888889 | T42: 0 | U42: 1 | V42: 0.06875 | W42: 0 | X42: T
A43: DEL | B43: 10916 | C43: 2 | D43: PUGET SOUND ENERGY | E43: 600 INDUSTRIAL WAY | F43: GOLDENDALE | G43: 98620 | H43: 20 | I43: 11 | J43: 1 | K43: RO | L43: 40 | N43: N | O43: 0.03819444444 | P43: 44 | Q43: 0.02083333333 | R43: 3 | S43: 0.01388888889 | T43: 0 | U43: 1 | V43: 0.07291666667 | W43: 0 | X43: T
A44: DEL | B44: 11047 | C44: 2 | D44: NORTH BANK CIVIL MAR | E44: THE DALLES DAM | F44: DALLSPORT | G44: 98617 | H44: 20 | I44: 1 | J44: 1 | K44: RO | L44: 20 | N44: N | O44: 0.02152777778 | P44: 5 | Q44: 0.02083333333 | R44: 4 | S44: 0.01388888889 | T44: 0 | U44: 1 | V44: 0.05625 | W44: 0 | X44: T
A45: DEL | B45: 11528 | C45: 1 | D45: SCOTT JAMES ROLL OFF | E45: 412 NESBITT ST | F45: GOLDENDALE | G45: 98620 | H45: 20 | I45: 1 | J45: 1 | K45: RO | L45: 20 | N45: N | O45: 0.02291666667 | P45: 3 | Q45: 0.01875 | R45: 1 | S45: 0.01388888889 | T45: 0 | U45: 1 | V45: 0.05555555556 | W45: 0 | X45: T
A46: DEL | B46: 11529 | C46: 19 | D46: MERCER RANCHES WIL | E46: 15 PETERSON (WILLIS | F46: PROSSER | G46: 99350 | H46: 20 | I46: 1 | J46: 1 | K46: RO | L46: 40 | N46: N | O46: 0.007638888889 | P46: 8 | Q46: 0.06180555556 | R46: 54 | S46: 0.01388888889 | T46: 2.40159 | U46: 6 | V46: 0.5 | W46: 14.40954 | X46: T
A47: DEL | B47: 11802 | C47: 1 | D47: MARYHILL WINERY | E47: 9774 HIGHWAY 14 | F47: GOLDENDALE | G47: 98620 | H47: 20 | I47: 18 | J47: 1 | K47: RO | L47: 40 | N47: N | O47: 0.00625 | P47: 1 | Q47: 0.04861111111 | R47: 29 | S47: 0.01388888889 | T47: 0 | U47: 1 | V47: 0.06875 | W47: 0 | X47: T
A48: DEL | B48: 11802 | C48: 3 | D48: PORTLAND DRYWALL SER | E48: 440 STRAWBERRY MOUNT | F48: WHITE SALMON | G48: 98672 | H48: 20 | I48: 1 | J48: 1 | K48: RO | L48: 13 | N48: N | O48: 0.02083333333 | P48: 20 | Q48: 0.04166666667 | R48: 21 | S48: 0.01388888889 | T48: 0 | U48: 1 | V48: 0.07638888889 | W48: 0 | X48: T
A49: DEL | B49: 11828 | C49: 21 | D49: MERCER RANCHES CHAPM | E49: 261 SUNDALE RD | F49: ROOSEVELT | G49: 99356 | H49: 20 | I49: 1 | J49: 1 | K49: RO | L49: 40 | N49: N | O49: 0.009722222222 | P49: 8 | Q49: 0.02986111111 | R49: 15 | S49: 0.01319444444 | T49: 4.70984 | U49: 1 | V49: 0.05277777778 | W49: 4.70984 | X49: T
A50: DEL | B50: 11860 | C50: 2 | D50: BISHOP SANITATION | E50: 53 OLSON RD | F50: GOLDENDALE | G50: 98620 | H50: 20 | I50: 1 | J50: 1 | K50: RO | L50: 40 | N50: N | O50: 0 | P50: 21 | Q50: 0.004861111111 | R50: 6 | S50: 0.01319444444 | T50: 0 | U50: 1 | V50: 0.01805555556 | W50: 0 | X50: P
A51: DEL | B51: 11860 | C51: 1 | D51: RICHART FAMILY INC | E51: 200 RHINE VILLAGE DR | F51: WHITE SALMON | G51: 98672 | H51: 20 | I51: 1 | J51: 1 | K51: RO | L51: 40 | N51: N | O51: 0 | P51: 0 | Q51: 0.05277777778 | R51: 38 | S51: 0.01319444444 | T51: 0 | U51: 2 | V51: 0.1319444444 | W51: 0 | X51: P
A52: DEL | B52: 11875 | C52: 1 | D52: QUAIL & POPPY DUMPST | E52: 490 SUNNYSIDE RD | F52: TROUT LAKE | G52: 98650 | H52: 20 | I52: 4 | J52: 1 | K52: RO | L52: 40 | N52: N | O52: 0.02847222222 | P52: 23 | Q52: 0.04861111111 | R52: 41 | S52: 0.01319444444 | T52: 0 | U52: 1 | V52: 0.09027777778 | W52: 0 | X52: T
A53: DEL | B53: 11991 | C53: 1 | D53: SR CONSTRUCTION | E53: 500 E MARKET ST | F53: BICKLETON | G53: 99322 | H53: 20 | I53: 1 | J53: 1 | K53: RO | L53: 40 | N53: N | O53: 0.03472222222 | P53: 24 | Q53: 0.04791666667 | R53: 26 | S53: 0.01319444444 | T53: 0 | U53: 1 | V53: 0.09583333333 | W53: 0 | X53: T
A54: DEL | B54: 12304 | C54: 1 | D54: BRUCE AUDREY ROLL O | E54: 1277 HIGHWAY 141 | F54: WHITE SALMON | G54: 98672 | H54: 20 | I54: 1 | J54: 1 | K54: RO | L54: 20 | N54: N | O54: 0.003472222222 | P54: 1 | Q54: 0.04513888889 | R54: 32 | S54: 0.01319444444 | T54: 0 | U54: 1 | V54: 0.06180555556 | W54: 0 | X54: T
A55: DEL | B55: 12375 | C55: 6 | D55: PUBLIC UTILITY DIST | E55: LOG YARD JEWETT AVE | F55: WHITE SALMON | G55: 98672 | H55: 20 | I55: 10 | J55: 1 | K55: RO | L55: 13 | N55: N | O55: 0.006944444444 | P55: 3 | Q55: 0.04166666667 | R55: 19 | S55: 0.01319444444 | T55: 0 | U55: 1 | V55: 0.06180555556 | W55: 0 | X55: T
A56: DEL | B56: 12375 | C56: 1 | D56: CHERRY RIVER FARMS R | E56: 13020 HIGHWAY 14 | F56: ROOSEVELT | G56: 99356 | H56: 20 | I56: 2 | J56: 1 | K56: RO | L56: 13 | N56: N | O56: 0.02222222222 | P56: 17 | Q56: 0.03888888889 | R56: 21 | S56: 0.0125 | T56: 3.58722 | U56: 15 | V56: 1.104166667 | W56: 53.8083 | X56: T
A57: DEL | B57: 12503 | C57: 3 | D57: PHINNY HILL VINEYARD | E57: 495 ALDERDALE RD | F57: PROSSER | G57: 99350 | H57: 20 | I57: 6 | J57: 1 | K57: RO | L57: 20 | N57: N | O57: 0.02152777778 | P57: 21 | Q57: 0.03680555556 | R57: 29 | S57: 0.0125 | T57: 4.51985 | U57: 1 | V57: 0.07083333333 | W57: 4.51985 | X57: T
A58: DEL | B58: 12503 | C58: 1 | D58: NIEL KELLY CONST ROL | E58: 1220 PANORAMA POINT | F58: WHITE SALMON | G58: 98672 | H58: 20 | I58: 3 | J58: 1 | K58: RO | L58: 20 | N58: N | O58: 0.007638888889 | P58: 4 | Q58: 0.03472222222 | R58: 23 | S58: 0.0125 | T58: 0 | U58: 1 | V58: 0.05486111111 | W58: 0 | X58: T
A59: DEL | B59: 12511 | C59: 1 | D59: ROOSEVELT SCHOOL | E59: 615 CHINOOK AVE | F59: ROOSEVELT | G59: 99356 | H59: 20 | I59: 4 | J59: 1 | K59: RO | L59: 20 | N59: N | O59: 0.01041666667 | P59: 1 | Q59: 0.03263888889 | R59: 15 | S59: 0.0125 | T59: 0 | U59: 1 | V59: 0.05555555556 | W59: 0 | X59: T
A60: DEL | B60: 12511 | C60: 1 | D60: FRANK CHRISTINA & JA | E60: 116 KELLEY AVE | F60: ROOSEVELT | G60: 99356 | H60: 20 | I60: 1 | J60: 1 | K60: RO | L60: 20 | N60: N | O60: 0.007638888889 | P60: 1 | Q60: 0.025 | R60: 16 | S60: 0.0125 | T60: 1.81994 | U60: 1 | V60: 0.04513888889 | W60: 1.81994 | X60: T
A61: DEL | B61: 12523 | C61: 3 | D61: NORTHWEST STORAGE IN | E61: 925 N FAIRGROUNDS RD | F61: GOLDENDALE | G61: 98620 | H61: 20 | I61: 1 | J61: 1 | K61: RO | L61: 40 | N61: N | O61: 0.005555555556 | P61: 8 | Q61: 0.01875 | R61: 3 | S61: 0.0125 | T61: 0 | U61: 6 | V61: 0.2208333333 | W61: 0 | X61: T
A62: DEL | B62: 12708 | C62: 19 | D62: MERCER RANCHES WIL | E62: 15 PETERSON (WILLIS | F62: PROSSER | G62: 99350 | H62: 20 | I62: 1 | J62: 1 | K62: RO | L62: 40 | N62: N | O62: 0.025 | P62: 26 | Q62: 0.07013888889 | R62: 62 | S62: 0.0125 | T62: 1.86993 | U62: 1 | V62: 0.1076388889 | W62: 1.86993 | X62: T
A63: DEL | B63: 12735 | C63: 6 | D63: MERCER RANCHES T | E63: 46 SONOVA (TANK FARM | F63: PROSSER | G63: 99350 | H63: 20 | I63: 9 | J63: 1 | K63: RO | L63: 40 | N63: N | O63: 0.009027777778 | P63: 7 | Q63: 0.07013888889 | R63: 62 | S63: 0.0125 | T63: 1.88994 | U63: 6 | V63: 0.55 | W63: 11.33964 | X63: T
A64: DEL | B64: 12779 | C64: 1 | D64: ANDRITZ HYDRO CORP. | E64: 85 JOHN DAY DAM RD | F64: GOLDENDALE | G64: 98620 | H64: 20 | I64: 1 | J64: 1 | K64: RO | L64: 20 | N64: N | O64: 0.02430555556 | P64: 19 | Q64: 0.05486111111 | R64: 41 | S64: 0.0125 | T64: 0 | U64: 1 | V64: 0.09166666667 | W64: 0 | X64: T
A65: DEL | B65: 12789 | C65: 1 | D65: AK BUILDERS | E65: 1280 SW PUCKER HUDDL | F65: WHITE SALMON | G65: 98672 | H65: 20 | I65: 1 | J65: 1 | K65: RO | L65: 20 | N65: N | O65: 0.02152777778 | P65: 21 | Q65: 0.05347222222 | R65: 43 | S65: 0.0125 | T65: 0 | U65: 1 | V65: 0.0875 | W65: 0 | X65: T
A66: DEL | B66: 12803 | C66: 3 | D66: SDS LUMBER | E66: 261 OAK RIDGE RD | F66: WHITE SALMON | G66: 98672 | H66: 20 | I66: 2 | J66: 1 | K66: RO | L66: 40 | N66: N | O66: 0.01458333333 | P66: 9 | Q66: 0.04791666667 | R66: 30 | S66: 0.0125 | T66: 0 | U66: 1 | V66: 0.075 | W66: 0 | X66: T
A67: DEL | B67: 12808 | C67: 1 | D67: TSH BINGEN | E67: 405 E FRANKLIN ST | F67: BINGEN | G67: 98605 | H67: 20 | I67: 1 | J67: 1 | K67: RO | L67: 40 | N67: N | O67: 0.006944444444 | P67: 0 | Q67: 0.04583333333 | R67: 36 | S67: 0.0125 | T67: 0 | U67: 2 | V67: 0.1305555556 | W67: 0 | X67: T
A68: DEL | B68: 12816 | C68: 21 | D68: MERCER RANCHES CHAPM | E68: 261 SUNDALE RD | F68: ROOSEVELT | G68: 99356 | H68: 20 | I68: 1 | J68: 1 | K68: RO | L68: 40 | N68: N | O68: 0.01805555556 | P68: 14 | Q68: 0.04305555556 | R68: 25 | S68: 0.0125 | T68: 3.49989 | U68: 2 | V68: =(O68+Q68+S68)*U68 -> 0.1472222222 | W68: =+T68*U68 -> 6.99978 | X68: T
A69: DEL | B69: 12828 | C69: 1 | D69: FRANCES SUDERMAN ROL | E69: 1284 CANYON RD | F69: APPLETON | G69: 98602 | H69: 20 | I69: 1 | J69: 1 | K69: RO | L69: 40 | N69: N | O69: 0.02708333333 | P69: 23 | Q69: 0.04027777778 | R69: 23 | S69: 0.01180555556 | T69: 0 | U69: 1 | V69: 0.07916666667 | W69: 0 | X69: T
A70: DEL | B70: 12828 | C70: 2 | D70: VERLEY CONTRACTING | E70: 137 SE 5TH AVE | F70: WHITE SALMON | G70: 98672 | H70: 20 | I70: 1 | J70: 1 | K70: RO | L70: 40 | N70: N | O70: 0.01041666667 | P70: 2 | Q70: 0.03541666667 | R70: 21 | S70: 0.01180555556 | T70: 0 | U70: 1 | V70: 0.05763888889 | W70: 0 | X70: T
A71: DEL | B71: 12828 | C71: 1 | D71: PORTLAND DRYWALL SER | E71: 251 STERLING BLVD | F71: WHITE SALMON | G71: 98672 | H71: 20 | I71: 1 | J71: 1 | K71: RO | L71: 13 | N71: N | O71: 0.006944444444 | P71: 0 | Q71: 0.03263888889 | R71: 22 | S71: 0.01180555556 | T71: 0 | U71: 1 | V71: 0.05138888889 | W71: 0 | X71: T
A72: DEL | B72: 12828 | C72: 7 | D72: RDC RECYCLE - BICKLE | E72: 304 E MARKET ST | F72: BICKLETON | G72: 99322 | H72: 71 | I72: 2 | J72: 1 | K72: IR | L72: 20 | N72: R | O72: 0.003472222222 | P72: 0 | Q72: 0.03055555556 | R72: 19 | S72: 0.01180555556 | T72: 0 | U72: 1 | V72: 0.04583333333 | W72: 0 | X72: T
A73: DEL | B73: 12839 | C73: 5 | D73: CRAIG DRESSEL ROLL O | E73: 207 W DARLAND ST | F73: GOLDENDALE | G73: 98620 | H73: 20 | I73: 1 | J73: 1 | K73: RO | L73: 40 | N73: N | O73: 0.03472222222 | P73: 29 | Q73: 0.02291666667 | R73: 2 | S73: 0.01180555556 | T73: 0 | U73: 1 | V73: 0.06944444444 | W73: 0 | X73: T
A74: DEL | B74: 12844 | C74: 3 | D74: PHINNY HILL VINEYARD | E74: 495 ALDERDALE RD | F74: PROSSER | G74: 99350 | H74: 20 | I74: 6 | J74: 1 | K74: RO | L74: 20 | N74: N | O74: 0 | P74: 0 | Q74: 0.08333333333 | R74: 56 | S74: 0.01180555556 | T74: 2.48991 | U74: 1 | V74: 0.09513888889 | W74: 2.48991 | X74: T
A75: DEL | B75: 12851 | C75: 1 | D75: SR CONSTRUCTION | E75: 500 E MARKET ST | F75: BICKLETON | G75: 99322 | H75: 20 | I75: 1 | J75: 1 | K75: RO | L75: 40 | N75: N | O75: 0.0006944444444 | P75: 0 | Q75: 0.06180555556 | R75: 44 | S75: 0.01180555556 | T75: 0 | U75: 7 | V75: 0.5201388889 | W75: 0 | X75: T
A76: DEL | B76: 12865 | C76: 1 | D76: TRI-PLY CONSTUCTION | E76: 6550 HIGHWAY 14 | F76: WHITE SALMON | G76: 98672 | H76: 20 | I76: 1 | J76: 1 | K76: RO | L76: 40 | N76: N | O76: 0.007638888889 | P76: 6 | Q76: 0.05416666667 | R76: 34 | S76: 0.01180555556 | T76: 0 | U76: 10 | V76: 0.7361111111 | W76: 0 | X76: T
A77: DEL | B77: 12869 | C77: 2 | D77: ALEXANDRIA NICOLE CE | E77: 158422 W SONOVA RD | F77: PROSSER | G77: 99350 | H77: 20 | I77: 7 | J77: 1 | K77: RO | L77: 20 | N77: N | O77: 0.02638888889 | P77: 28 | Q77: 0.04583333333 | R77: 57 | S77: 0.01180555556 | T77: 3.75738 | U77: 8 | V77: 0.6722222222 | W77: 30.05904 | X77: T
A78: DEL | B78: 12876 | C78: 1 | D78: PERFORMANCE PLUS RES | E78: 11 GRAVES RD | F78: WHITE SALMON | G78: 98672 | H78: 20 | I78: 1 | J78: 1 | K78: RO | L78: 20 | N78: N | O78: 0.0625 | P78: 52 | Q78: 0.03888888889 | R78: 25 | S78: 0.01111111111 | T78: 0 | U78: 1 | V78: 0.1125 | W78: 0 | X78: P
A79: DEL | B79: 12886 | C79: 2 | D79: GRADE WORX-BLOCKHOUS | E79: 2765 HIGHWAY 142 | F79: GOLDENDALE | G79: 98620 | H79: 20 | I79: 2 | J79: 1 | K79: RO | L79: 20 | N79: N | O79: 0.01388888889 | P79: 3 | Q79: 0.03819444444 | R79: 14 | S79: 0.01111111111 | T79: 0 | U79: 3 | V79: 0.1895833333 | W79: 0 | X79: T
A80: DEL | B80: 12928 | C80: 3 | D80: DAVE BIGELOW ROLL OF | E80: 526 W LINCOLN ST | F80: BINGEN | G80: 98605 | H80: 20 | I80: 2 | J80: 1 | K80: RO | L80: 20 | N80: N | O80: 0.02291666667 | P80: 19 | Q80: 0.02708333333 | R80: 19 | S80: 0.01111111111 | T80: 0 | U80: 1 | V80: 0.06111111111 | W80: 0 | X80: T
A81: DEL | B81: 12933 | C81: 3 | D81: NORTH SPORTS INC | E81: 1 NORTHSHORE DR | F81: WHITE SALMON | G81: 98672 | H81: 20 | I81: 3 | J81: 1 | K81: RO | L81: 20 | N81: N | O81: 0.02013888889 | P81: 19 | Q81: 0.02708333333 | R81: 20 | S81: 0.01111111111 | T81: 0 | U81: 1 | V81: 0.05833333333 | W81: 0 | X81: T
A82: DEL | B82: 12959 | C82: 1 | D82: MARYHILL MUSEUM FINE | E82: 35 MARYHILL MUSEUM D | F82: GOLDENDALE | G82: 98620 | H82: 20 | I82: 14 | J82: 1 | K82: RO | L82: 40 | N82: N | O82: 0.01736111111 | P82: 13 | Q82: 0.02430555556 | R82: 17 | S82: 0.01111111111 | T82: 0 | U82: 1 | V82: 0.05277777778 | W82: 0 | X82: T
A83: DEL | B83: 12969 | C83: 2 | D83: MICHELS CORP | E83: 500 ROOSEVELT GRADE | F83: ROOSEVELT | G83: 99356 | H83: 20 | I83: 2 | J83: 1 | K83: RO | L83: 20 | N83: N | O83: 0.004861111111 | P83: 2 | Q83: 0.02361111111 | R83: 7 | S83: 0.01111111111 | T83: 0 | U83: 2 | V83: 0.07916666667 | W83: 0 | X83: T
A84: DEL | B84: 12976 | C84: 1 | D84: DEHART MARY ROLL OFF | E84: 716 WASHINGTON ST | F84: LYLE | G84: 98635 | H84: 20 | I84: 1 | J84: 1 | K84: RO | L84: 40 | N84: N | O84: 0.01527777778 | P84: 12 | Q84: 0.01805555556 | R84: 8 | S84: 0.01111111111 | T84: 0 | U84: 1 | V84: 0.04444444444 | W84: 0 | X84: T
A85: DEL | B85: 12977 | C85: 10 | D85: PUD LFG PLANT ROL | E85: 500 ROOSEVELT GRADE | F85: ROOSEVELT | G85: 99350 | H85: 20 | I85: 8 | J85: 1 | K85: RO | L85: 40 | N85: N | O85: 0.006944444444 | P85: 2 | Q85: 0.01388888889 | R85: 4 | S85: 0.01111111111 | T85: 0 | U85: 1 | V85: 0.03194444444 | W85: 0 | X85: T
A86: DEL | B86: 12978 | C86: 1 | D86: KOWALEWSKI JOE ROLL | E86: 12456 HIGHWAY 141 | F86: WHITE SALMON | G86: 98672 | H86: 20 | I86: 1 | J86: 1 | K86: RO | L86: 13 | N86: N | O86: 0.0006944444444 | P86: 0 | Q86: 0.01111111111 | R86: 0 | S86: 0.01111111111 | T86: 0 | U86: 1 | V86: 0.02291666667 | W86: 0 | X86: T
A87: DEL | B87: 12982 | C87: 14 | D87: THE INSITU GROUP/COM | E87: 901 E BINGEN POINT W | F87: BINGEN | G87: 98605 | H87: 20 | I87: 11 | J87: 1 | K87: RO | L87: 40 | N87: Y | O87: 0.04722222222 | P87: 46 | Q87: 0.08541666667 | R87: 77 | S87: 0.01111111111 | T87: 3.07989 | U87: 1 | V87: 0.14375 | W87: 3.07989 | X87: T
A88: DEL | B88: 12983 | C88: 2 | D88: ALDER RIDGE VINEYARD | E88: 103 COLUMBIA RIDGE R | F88: PROSSER | G88: 99350 | H88: 20 | I88: 2 | J88: 1 | K88: RO | L88: 20 | N88: N | O88: 0.01388888889 | P88: 12 | Q88: 0.07916666667 | R88: 69 | S88: 0.01111111111 | T88: 1.4171 | U88: 7 | V88: 0.7291666667 | W88: 9.9197 | X88: T
A89: DEL | B89: 12983 | C89: 23 | D89: MERCER RANCHES VINEY | E89: 100 KELLEY AVE | F89: ROOSEVELT | G89: 99356 | H89: 20 | I89: 3 | J89: 1 | K89: RO | L89: 40 | N89: N | O89: 0 | P89: 0 | Q89: 0.07152777778 | R89: 65 | S89: 0.01111111111 | T89: 4.76984 | U89: 1 | V89: 0.08263888889 | W89: 4.76984 | X89: T
A90: DEL | B90: 12987 | C90: 3 | D90: GOLDENDALE BIBLE BAP | E90: 100 CAMP GRACEWAY RD | F90: GOLDENDALE | G90: 98620 | H90: 20 | I90: 1 | J90: 1 | K90: RO | L90: 40 | N90: N | O90: 0 | P90: 0 | Q90: 0.06944444444 | R90: 52 | S90: 0.01111111111 | T90: 0 | U90: 1 | V90: 0.08055555556 | W90: 0 | X90: T
A91: DEL | B91: 12988 | C91: 14 | D91: THE INSITU GROUP/COM | E91: 901 E BINGEN POINT W | F91: BINGEN | G91: 98605 | H91: 20 | I91: 10 | J91: 1 | K91: RO | L91: 40 | N91: X | O91: 0.05208333333 | P91: 46 | Q91: 0.06319444444 | R91: 76 | S91: 0.01111111111 | T91: 2.7699 | U91: 1 | V91: 0.1263888889 | W91: 2.7699 | X91: T
A92: DEL | B92: 12997 | C92: 1 | D92: WM BOLTHOUSE FARMS | E92: 10 SONOVA RD | F92: PROSSER | G92: 99350 | H92: 20 | I92: 5 | J92: 1 | K92: RO | L92: 40 | N92: N | O92: 0.00625 | P92: 2 | Q92: 0.06180555556 | R92: 46 | S92: 0.01111111111 | T92: 5.9198 | U92: 1 | V92: 0.07916666667 | W92: 5.9198 | X92: T
A93: DEL | B93: 13004 | C93: 22 | D93: MERCER RANCHES SUNDA | E93: 12781 HIGHWAY 14 | F93: ROOSEVELT | G93: 99356 | H93: 20 | I93: 2 | J93: 1 | K93: RO | L93: 20 | N93: N | O93: 0 | P93: 0 | Q93: 0.04652777778 | R93: 32 | S93: 0.01111111111 | T93: 0.61271 | U93: 11 | V93: 0.6340277778 | W93: 6.73981 | X93: T
A94: DEL | B94: 13005 | C94: 1 | D94: NIEL KELLY CONST ROL | E94: 1220 PANORAMA POINT | F94: WHITE SALMON | G94: 98672 | H94: 20 | I94: 2 | J94: 1 | K94: RO | L94: 20 | N94: N | O94: 0.03055555556 | P94: 35 | Q94: 0.04375 | R94: 43 | S94: 0.01111111111 | T94: 0 | U94: 5 | V94: 0.4270833333 | W94: 0 | X94: T
A95: DEL | B95: 13024 | C95: 2 | D95: PORTLAND DRYWALL SER | E95: 30 SECOND ST | F95: HUSUM | G95: 98623 | H95: 20 | I95: 1 | J95: 1 | K95: RO | L95: 13 | N95: N | O95: 0.0125 | P95: 6 | Q95: 0.04166666667 | R95: 28 | S95: 0.01111111111 | T95: 0 | U95: 1 | V95: 0.06527777778 | W95: 0 | X95: T
A96: DEL | B96: 13033 | C96: 3 | D96: MARYHILL MUSEUM FINE | E96: 121 STONEHENGE DR | F96: GOLDENDALE | G96: 98620 | H96: 20 | I96: 6 | J96: 1 | K96: RO | L96: 20 | N96: N | O96: 0.02777777778 | P96: 30 | Q96: 0.04097222222 | R96: 13 | S96: 0.01041666667 | T96: 0 | U96: 1 | V96: 0.07916666667 | W96: 0 | X96: T
A97: DEL | B97: 13070 | C97: 1 | D97: SUNGLESKA FOUNDATION | E97: 649 GARRISON RD | F97: GOLDENDALE | G97: 98620 | H97: 20 | I97: 2 | J97: 1 | K97: RO | L97: 20 | N97: N | O97: 0.07638888889 | P97: 57 | Q97: 0.02777777778 | R97: 11 | S97: 0.01041666667 | T97: 0 | U97: 1 | V97: 0.1145833333 | W97: 0 | X97: T
A98: DEL | B98: 13070 | C98: 4 | D98: WHITE SALMON BINGEN | E98: 208 MARINA ACCESS RD | F98: WHITE SALMON | G98: 98672 | H98: 20 | I98: 3 | J98: 2 | K98: IR | L98: 50 | N98: Y | O98: 0.01041666667 | P98: 0 | Q98: 0.02430555556 | R98: 20 | S98: 0.01041666667 | T98: 0 | U98: 1 | V98: 0.04513888889 | W98: 0 | X98: T
A99: DEL | B99: 13074 | C99: 1 | D99: BETTEN LINDER DORA | E99: 1525 HIGHWAY 97 | F99: GOLDENDALE | G99: 98620 | H99: 20 | I99: 1 | J99: 1 | K99: RO | L99: 20 | N99: N | O99: 0.01458333333 | P99: 9 | Q99: 0.02361111111 | R99: 10 | S99: 0.01041666667 | T99: 0 | U99: 1 | V99: 0.04861111111 | W99: 0 | X99: T
A100: DEL | B100: 13088 | C100: 2 | D100: GRADE WORX-BLOCKHOUS | E100: 2765 HIGHWAY 142 | F100: GOLDENDALE | G100: 98620 | H100: 20 | I100: 2 | J100: 1 | K100: RO | L100: 20 | N100: N | O100: 0.003472222222 | P100: 0 | Q100: 0.02361111111 | R100: 6 | S100: 0.01041666667 | T100: 0 | U100: 1 | V100: 0.0375 | W100: 0 | X100: T
A101: DEL | B101: 13095 | C101: 1 | D101: SPALDING BILL ROLL O | E101: 220 HILL RD | F101: GOLDENDALE | G101: 98620 | H101: 20 | I101: 2 | J101: 1 | K101: RO | L101: 40 | N101: N | O101: 0.009027777778 | P101: 6 | Q101: 0.02083333333 | R101: 5 | S101: 0.01041666667 | T101: 0 | U101: 1 | V101: 0.04027777778 | W101: 0 | X101: T
A102: DEL | B102: 13113 | C102: 2 | D102: THE DALLES/UNDERWOOD | E102: 111 PARALLEL AVE | F102: DALLESPORT | G102: 98617 | H102: 20 | I102: 15 | J102: 1 | K102: RO | L102: 40 | N102: N | O102: 0.009027777778 | P102: 6 | Q102: 0.01875 | R102: 3 | S102: 0.01041666667 | T102: 0 | U102: 67 | V102: 2.559027778 | W102: 0 | X102: T
A103: DEL | B103: 13116 | C103: 1 | D103: NETCOMPLIANCE ENVIRO | E103: 131 W BURGEN ST | F103: GOLDENDALE | G103: 98620 | H103: 20 | I103: 1 | J103: 1 | K103: RO | L103: 40 | N103: N | O103: 0.02708333333 | P103: 29 | Q103: 0.01736111111 | R103: 1 | S103: 0.01041666667 | T103: 0 | U103: 1 | V103: 0.05486111111 | W103: 0 | X103: T
A104: DEL | B104: 13121 | C104: 10 | D104: PUD LFG PLANT ROL | E104: 500 ROOSEVELT GRADE | F104: ROOSEVELT | G104: 99350 | H104: 20 | I104: 8 | J104: 1 | K104: RO | L104: 40 | N104: N | O104: 0 | P104: 0 | Q104: 0.01666666667 | R104: 7 | S104: 0.01041666667 | T104: 0 | U104: 1 | V104: 0.02708333333 | W104: 0 | X104: T
A105: DEL | B105: 13132 | C105: 2 | D105: KLICKITAT COUNTY FAI | E105: 855 N FAIRGROUNDS RD | F105: GOLDENDALE | G105: 98620 | H105: 20 | I105: 11 | J105: 1 | K105: RO | L105: 40 | N105: N | O105: 0.03055555556 | P105: 30 | Q105: 0.01458333333 | R105: 1 | S105: 0.01041666667 | T105: 0 | U105: 1 | V105: 0.05555555556 | W105: 0 | X105: T
A106: DEL | B106: 13140 | C106: 1 | D106: HEALOW MIKE ROLL OFF | E106: 15 MCPHERSON COX RD | F106: LYLE | G106: 98635 | H106: 20 | I106: 1 | J106: 1 | K106: RO | L106: 40 | N106: N | O106: 0 | P106: 0 | Q106: 0.01458333333 | R106: 0 | S106: 0.01041666667 | T106: 0 | U106: 1 | V106: 0.025 | W106: 0 | X106: T
A107: DEL | B107: 13141 | C107: 1 | D107: CITY OF GOLDENDALE O | E107: 1103 S COLUMBUS AVE | F107: GOLDENDALE | G107: 98620 | H107: 20 | I107: 4 | J107: 1 | K107: RO | L107: 20 | N107: N | O107: 0.01388888889 | P107: 6 | Q107: 0.01388888889 | R107: 2 | S107: 0.01041666667 | T107: 0 | U107: 1 | V107: 0.03819444444 | W107: 0 | X107: T
A108: DEL | B108: 13162 | C108: 1 | D108: DAVID SAUTER ROLL OF | E108: 365 OLD HWY | F108: LYLE | G108: 98635 | H108: 20 | I108: 2 | J108: 1 | K108: RO | L108: 40 | N108: N | O108: 0.02569444444 | P108: 0 | Q108: 0.01041666667 | R108: 0 | S108: 0.01041666667 | T108: 0 | U108: 1 | V108: 0.04652777778 | W108: 0 | X108: T
A109: DEL | B109: 13170 | C109: 4 | D109: ANDREWS AND ROWELL | E109: 1245 ALDERDALE RD | F109: PROSSER | G109: 99350 | H109: 20 | I109: 1 | J109: 1 | K109: RO | L109: 40 | N109: N | O109: 0.01875 | P109: 19 | Q109: 0.09305555556 | R109: 87 | S109: 0.01041666667 | T109: 2.51325 | U109: 3 | V109: 0.3666666667 | W109: 7.53975 | X109: T
A110: DEL | B110: 13177 | C110: 1 | D110: MT ADAMS ORCHARDS DU | E110: 503 OAK RIDGE RD | F110: WHITE SALMON | G110: 98672 | H110: 20 | I110: 6 | J110: 1 | K110: RO | L110: 20 | N110: N | O110: 0 | P110: 0 | Q110: 0.08333333333 | R110: 67 | S110: 0.01041666667 | T110: 0 | U110: 1 | V110: 0.09375 | W110: 0 | X110: P
A111: DEL | B111: 13184 | C111: 4 | D111: ANDREWS AND ROWELL | E111: 1245 ALDERDALE RD | F111: PROSSER | G111: 99350 | H111: 20 | I111: 1 | J111: 1 | K111: RO | L111: 40 | N111: N | O111: 0.02986111111 | P111: 28 | Q111: 0.07222222222 | R111: 68 | S111: 0.01041666667 | T111: 3.25989 | U111: 6 | V111: 0.675 | W111: 19.55934 | X111: T
A112: DEL | B112: 13185 | C112: 1 | D112: STEVENS NICK ROLL O | E112: 70 RAMSAY LN | F112: WHITE SALMON | G112: 98672 | H112: 20 | I112: 1 | J112: 1 | K112: RO | L112: 40 | N112: N | O112: 0.03125 | P112: 28 | Q112: 0.07152777778 | R112: 56 | S112: 0.01041666667 | T112: 0 | U112: 1 | V112: 0.1131944444 | W112: 0 | X112: T
A113: DEL | B113: 13186 | C113: 5 | D113: MERCER RANCHES SH | E113: 46 SONOVA (SHOP) RD | F113: PROSSER | G113: 99350 | H113: 20 | I113: 2 | J113: 1 | K113: RO | L113: 40 | N113: N | O113: 0.01527777778 | P113: 11 | Q113: 0.06458333333 | R113: 56 | S113: 0.01041666667 | T113: 2.65355 | U113: 11 | V113: 0.9930555556 | W113: 29.18905 | X113: T
A114: DEL | B114: 13207 | C114: 2 | D114: RYAN KREPS DUMPSTER | E114: 945 HIGHWAY 141 | F114: WHITE SALMON | G114: 98672 | H114: 20 | I114: 1 | J114: 1 | K114: RO | L114: 40 | N114: N | O114: 0.01041666667 | P114: 9 | Q114: 0.06111111111 | R114: 41 | S114: 0.01041666667 | T114: 0 | U114: 5 | V114: 0.4097222222 | W114: 0 | X114: T
A115: DEL | B115: 13209 | C115: 1 | D115: BNSF (TEMP) 18102 | E115: 510 N BRIDGEWAY RD | F115: WISHRAM | G115: 98673 | H115: 20 | I115: 1 | J115: 1 | K115: RO | L115: 40 | N115: N | O115: 0 | P115: 0 | Q115: 0.05902777778 | R115: 41 | S115: 0.01041666667 | T115: 0 | U115: 3 | V115: 0.2083333333 | W115: 0 | X115: T
A116: DEL | B116: 13209 | C116: 1 | D116: KNIGHT PEGGY ROLL O | E116: 650 SUNNYSIDE RD | F116: TROUT LAKE | G116: 98650 | H116: 20 | I116: 1 | J116: 1 | K116: RO | L116: 20 | N116: N | O116: 0.01736111111 | P116: 10 | Q116: 0.05694444444 | R116: 80 | S116: 0.01041666667 | T116: 0 | U116: 1 | V116: 0.08472222222 | W116: 0 | X116: T
A117: DEL | B117: 13225 | C117: 1 | D117: MARX ANGELENA ROLL | E117: 1280 SW PUCKER HUDDL | F117: WHITE SALMON | G117: 98672 | H117: 20 | I117: 1 | J117: 1 | K117: RO | L117: 20 | N117: N | O117: 0.01041666667 | P117: 5 | Q117: 0.05347222222 | R117: 45 | S117: 0.01041666667 | T117: 0 | U117: 2 | V117: 0.1486111111 | W117: 0 | X117: T
A118: DEL | B118: 13232 | C118: 1 | D118: GLENWOOD COMMUNITY C | E118: 320 N BUNNELL ST | F118: GLENWOOD | G118: 98619 | H118: 20 | I118: 8 | J118: 1 | K118: RO | L118: 50 | N118: N | O118: 0.03472222222 | P118: 33 | Q118: 0.05208333333 | R118: 38 | S118: 0.01041666667 | T118: 0 | U118: 1 | V118: 0.09722222222 | W118: 0 | X118: T
A119: DEL | B119: 13232 | C119: 1 | D119: RDC BZ CORNERS TRANS | E119: 5 FIRTREE RD | F119: HUSUM | G119: 98623 | H119: 71 | I119: 7 | J119: 1 | K119: IR | L119: 20 | N119: G | O119: 0.02083333333 | P119: 8 | Q119: 0.05138888889 | R119: 38 | S119: 0.01041666667 | T119: 0 | U119: 4 | V119: 0.3305555556 | W119: 0 | X119: T
A120: DEL | B120: 13232 | C120: 14 | D120: THE INSITU GROUP/COM | E120: 901 E BINGEN POINT W | F120: BINGEN | G120: 98605 | H120: 20 | I120: 1 | J120: 1 | K120: RO | L120: 20 | N120: N | O120: 0.02222222222 | P120: 15 | Q120: 0.04791666667 | R120: 38 | S120: 0.01041666667 | T120: 0 | U120: 11 | V120: 0.8861111111 | W120: 0 | X120: T
A121: DEL | B121: 13241 | C121: 2 | D121: MT ADAMS ORCHRDS ALD | E121: 880 ALDERDALE NO | F121: ALDERDALE | G121: 99350 | H121: 20 | I121: 30 | J121: 1 | K121: RO | L121: 20 | N121: N | O121: 0.02708333333 | P121: 27 | Q121: 0.04444444444 | R121: 34 | S121: 0.01041666667 | T121: 0.61997 | U121: 1 | V121: 0.08194444444 | W121: 0.61997 | X121: T
A122: DEL | B122: 13252 | C122: 2 | D122: ALDER RIDGE VINEYARD | E122: 103 COLUMBIA RIDGE R | F122: PROSSER | G122: 99350 | H122: 20 | I122: 1 | J122: 1 | K122: RO | L122: 13 | N122: N | O122: 0 | P122: 0 | Q122: 0.04444444444 | R122: 35 | S122: 0.01041666667 | T122: 0.57998 | U122: 1 | V122: 0.05486111111 | W122: 0.57998 | X122: T
A123: DEL | B123: 13261 | C123: 1 | D123: SARAH BOADWAY-MCCONN | E123: 8 JOSEY LN | F123: WHITE SALMON | G123: 98672 | H123: 20 | I123: 1 | J123: 1 | K123: RO | L123: 40 | N123: N | O123: 0.02291666667 | P123: 4 | Q123: 0.04236111111 | R123: 25 | S123: 0.01041666667 | T123: 0 | U123: 1 | V123: 0.07569444444 | W123: 0 | X123: T
A124: DEL | B124: 13263 | C124: 1 | D124: DAVE GIBNEY ROLL OFF | E124: 9 GIBNEY RD | F124: HUSUM | G124: 98623 | H124: 20 | I124: 1 | J124: 1 | K124: RO | L124: 20 | N124: N | O124: 0.03125 | P124: 23 | Q124: 0.04166666667 | R124: 27 | S124: 0.01041666667 | T124: 0 | U124: 1 | V124: 0.08333333333 | W124: 0 | X124: T
A125: DEL | B125: 13318 | C125: 1 | D125: MARYHILL WINERY | E125: 9774 HIGHWAY 14 | F125: GOLDENDALE | G125: 98620 | H125: 20 | I125: 18 | J125: 1 | K125: RO | L125: 40 | N125: N | O125: 0.01458333333 | P125: 14 | Q125: 0.04097222222 | R125: 44 | S125: 0.009722222222 | T125: 4.49985 | U125: 1 | V125: 0.06527777778 | W125: 4.49985 | X125: T
A126: DEL | B126: 13329 | C126: 14 | D126: THE INSITU GROUP/COM | E126: 901 E BINGEN POINT W | F126: BINGEN | G126: 98605 | H126: 20 | I126: 12 | J126: 1 | K126: RO | L126: 20 | N126: N | O126: 0.00625 | P126: 2 | Q126: 0.03819444444 | R126: 19 | S126: 0.009722222222 | T126: 0 | U126: 1 | V126: 0.05416666667 | W126: 0 | X126: T
A127: DEL | B127: 13364 | C127: 1 | D127: MANNING NANCY ROLL O | E127: 940 ESTES AVE | F127: WHITE SALMON | G127: 98672 | H127: 20 | I127: 1 | J127: 1 | K127: RO | L127: 40 | N127: N | O127: 0.006944444444 | P127: 2 | Q127: 0.03125 | R127: 20 | S127: 0.009722222222 | T127: 0 | U127: 1 | V127: 0.04791666667 | W127: 0 | X127: P
A128: DEL | B128: 13367 | C128: 1 | D128: SDS LUMBER | E128: 123 INDUSTRIAL RD | F128: BINGEN | G128: 98605 | H128: 20 | I128: 4 | J128: 1 | K128: RO | L128: 40 | N128: N | O128: 0.00625 | P128: 3 | Q128: 0.02847222222 | R128: 19 | S128: 0.009722222222 | T128: 0 | U128: 7 | V128: 0.3111111111 | W128: 0 | X128: T
A129: DEL | B129: 13375 | C129: 1 | D129: BNSF (PERM) 15587 13 | E129: 1 RAILROAD AVE | F129: WISHRAM | G129: 98673 | H129: 20 | I129: 1 | J129: 1 | K129: RO | L129: 13 | N129: N | O129: 0.0375 | P129: 20 | Q129: 0.02777777778 | R129: 14 | S129: 0.009722222222 | T129: 0 | U129: 2 | V129: 0.15 | W129: 0 | X129: T
A130: DEL | B130: 13377 | C130: 1 | D130: SKINNER TRENT ROLL O | E130: 125 MAIN ST | F130: WISHRAM | G130: 98673 | H130: 20 | I130: 1 | J130: 1 | K130: RO | L130: 13 | N130: N | O130: 0.01944444444 | P130: 14 | Q130: 0.02777777778 | R130: 19 | S130: 0.009722222222 | T130: 0 | U130: 1 | V130: 0.05694444444 | W130: 0 | X130: T
A131: DEL | B131: 13379 | C131: 4 | D131: GOLDENDALE CHAMBER O | E131: 855 N FAIRGROUNDS RD | F131: GOLDENDALE | G131: 98620 | H131: 20 | I131: 9 | J131: 1 | K131: RO | L131: 20 | N131: N | O131: 0.03402777778 | P131: 29 | Q131: 0.01597222222 | R131: 1 | S131: 0.009722222222 | T131: 0 | U131: 1 | V131: 0.05972222222 | W131: 0 | X131: T
A132: DEL | B132: 13379 | C132: 2 | D132: PUGET SOUND ENERGY | E132: 600 INDUSTRIAL WAY | F132: GOLDENDALE | G132: 98620 | H132: 20 | I132: 12 | J132: 1 | K132: RO | L132: 40 | N132: N | O132: 0.04305555556 | P132: 49 | Q132: 0.01527777778 | R132: 3 | S132: 0.009722222222 | T132: 0 | U132: 1 | V132: =(O132+Q132+S132)*U132 -> 0.06805555556 | W132: =+T132*U132 -> 0 | X132: T
A133: DEL | B133: 13380 | C133: 4 | D133: TIM SCHWAB ROLL OFF | E133: 366 SW EYRIE RD | F133: WHITE SALMON | G133: 98672 | H133: 20 | I133: 1 | J133: 1 | K133: RO | L133: 40 | N133: N | O133: 0.0006944444444 | P133: 0 | Q133: 0.009722222222 | R133: 0 | S133: 0.009722222222 | T133: 0 | U133: 1 | V133: 0.02013888889 | W133: 0 | X133: T
A134: DEL | B134: 13383 | C134: 14 | D134: THE INSITU GROUP/COM | E134: 901 E BINGEN POINT W | F134: BINGEN | G134: 98605 | H134: 20 | I134: 13 | J134: 1 | K134: RO | L134: 40 | N134: Y | O134: 0.04861111111 | P134: 46 | Q134: 0.1347222222 | R134: 150 | S134: 0.009722222222 | T134: 1.56994 | U134: 1 | V134: 0.1930555556 | W134: 1.56994 | X134: T
A135: DEL | B135: 500118 | C135: 2 | D135: CAMP JONAH ROLL OFF | E135: 37 LITTLE MOUNTAIN R | F135: TROUT LAKE | G135: 98650 | H135: 20 | I135: 1 | J135: 1 | K135: RO | L135: 40 | N135: N | O135: 0.00625 | P135: 6 | Q135: 0.09375 | R135: 84 | S135: 0.009722222222 | T135: 0 | U135: 7 | V135: 0.7680555556 | W135: 0 | X135: T
A136: DEL | B136: 500156 | C136: 2 | D136: MT ADAMS ORCHRDS ALD | E136: 880 ALDERDALE NO | F136: ALDERDALE | G136: 99350 | H136: 20 | I136: 31 | J136: 1 | K136: RO | L136: 40 | N136: N | O136: 0 | P136: 0 | Q136: 0.08055555556 | R136: 68 | S136: 0.009722222222 | T136: 8.83971 | U136: 1 | V136: 0.09027777778 | W136: 8.83971 | X136: T
A137: DEL | B137: 500156 | C137: 1 | D137: MT ADAMS ORCHARDS DU | E137: 503 OAK RIDGE RD | F137: WHITE SALMON | G137: 98672 | H137: 20 | I137: 5 | J137: 1 | K137: RO | L137: 40 | N137: N | O137: 0.01597222222 | P137: 14 | Q137: 0.07986111111 | R137: 66 | S137: 0.009722222222 | T137: 0 | U137: 2 | V137: 0.2111111111 | W137: 0 | X137: T
A138: DEL | B138: 500156 | C138: 7 | D138: BONNEVILLE POWER ADM | E138: 1329 HOCTOR RD | F138: GOLDENDALE | G138: 98620 | H138: 20 | I138: 1 | J138: 1 | K138: RO | L138: 40 | N138: N | O138: 0 | P138: 0 | Q138: 0.07986111111 | R138: 55 | S138: 0.009722222222 | T138: 0 | U138: 1 | V138: 0.08958333333 | W138: 0 | X138: T
A139: DEL | B139: 500186 | C139: 1 | D139: WYCKOFF FARMS ROLL O | E139: 1435 ALDERDALE RD | F139: PROSSER | G139: 99350 | H139: 20 | I139: 1 | J139: 1 | K139: RO | L139: 20 | N139: N | O139: 0 | P139: 0 | Q139: 0.07847222222 | R139: 77 | S139: 0.009722222222 | T139: 1.78994 | U139: 1 | V139: 0.08819444444 | W139: 1.78994 | X139: T
A140: DEL | B140: 500186 | C140: 4 | D140: TIM CARSE CONSTRUCTI | E140: 386 LYLE SNOWDEN RD | F140: LYLE | G140: 98635 | H140: 20 | I140: 1 | J140: 1 | K140: RO | L140: 40 | N140: N | O140: 0 | P140: 0 | Q140: 0.07222222222 | R140: 56 | S140: 0.009722222222 | T140: 0 | U140: 1 | V140: 0.08194444444 | W140: 0 | X140: T
A141: DEL | B141: 500225 | C141: 5 | D141: MERCER RANCHES SH | E141: 46 SONOVA (SHOP) RD | F141: PROSSER | G141: 99350 | H141: 20 | I141: 2 | J141: 1 | K141: RO | L141: 40 | N141: N | O141: 0.009027777778 | P141: 8 | Q141: 0.07083333333 | R141: 53 | S141: 0.009722222222 | T141: 2.52617 | U141: 16 | V141: 1.433333333 | W141: 40.41872 | X141: T
A142: DEL | B142: 500227 | C142: 1 | D142: FRANKLIN PETERSEN RO | E142: 58 CANYON RD | F142: LYLE | G142: 98635 | H142: 20 | I142: 1 | J142: 1 | K142: RO | L142: 20 | N142: N | O142: 0.02083333333 | P142: 15 | Q142: 0.06666666667 | R142: 39 | S142: 0.009722222222 | T142: 0 | U142: 2 | V142: 0.1944444444 | W142: 0 | X142: T
A143: DEL | B143: 500233 | C143: 1 | D143: WM BOLTHOUSE FARMS | E143: 10 SONOVA RD | F143: PROSSER | G143: 99350 | H143: 20 | I143: 5 | J143: 1 | K143: RO | L143: 40 | N143: N | O143: 0.006944444444 | P143: 6 | Q143: 0.06597222222 | R143: 53 | S143: 0.009722222222 | T143: 7.47278 | U143: 43 | V143: 3.553472222 | W143: 321.32954 | X143: T
A144: DEL | B144: 500268 | C144: 2 | D144: ALDER RIDGE VINEYARD | E144: 103 COLUMBIA RIDGE R | F144: PROSSER | G144: 99350 | H144: 20 | I144: 2 | J144: 1 | K144: RO | L144: 20 | N144: N | O144: 0 | P144: 0 | Q144: 0.06458333333 | R144: 57 | S144: 0.009722222222 | T144: 0.05999 | U144: 1 | V144: 0.07430555556 | W144: 0.05999 | X144: T
A145: DEL | B145: 500590 | C145: 2 | D145: ALDER RIDGE VINEYARD | E145: 103 COLUMBIA RIDGE R | F145: PROSSER | G145: 99350 | H145: 20 | I145: 2 | J145: 1 | K145: RO | L145: 20 | N145: N | O145: 0.01805555556 | P145: 8 | Q145: 0.0625 | R145: 68 | S145: 0.009722222222 | T145: 1.67328 | U145: 3 | V145: 0.2708333333 | W145: 5.01984 | X145: T
A146: DEL | B146: 500593 | C146: 2 | D146: WELLENS FARWELL CONS | E146: 211 NE SKYLINE DR | F146: WHITE SALMON | G146: 98672 | H146: 20 | I146: 1 | J146: 1 | K146: RO | L146: 13 | N146: N | O146: 0.05208333333 | P146: 30 | Q146: 0.06041666667 | R146: 38 | S146: 0.009722222222 | T146: 0 | U146: 2 | V146: 0.2444444444 | W146: 0 | X146: T
A147: DEL | B147: 502124 | C147: 1 | D147: WM BOLTHOUSE FARMS | E147: 10 SONOVA RD | F147: PROSSER | G147: 99350 | H147: 20 | I147: 7 | J147: 1 | K147: RO | L147: 40 | N147: N | O147: 0.01527777778 | P147: 14 | Q147: 0.05763888889 | R147: 49 | S147: 0.009722222222 | T147: 7.70999 | U147: 41 | V147: 3.388194444 | W147: 316.10959 | X147: P
A148: DEL | B148: 502124 | C148: 1 | D148: WM BOLTHOUSE FARMS | E148: 10 SONOVA RD | F148: PROSSER | G148: 99350 | H148: 20 | I148: 7 | J148: 1 | K148: RO | L148: 40 | N148: N | O148: 0.01666666667 | P148: 16 | Q148: 0.05069444444 | R148: 46 | S148: 0.009722222222 | T148: 6.45229 | U148: 16 | V148: 1.233333333 | W148: 103.23664 | X148: P
A149: DEL | B149: 502124 | C149: 1 | D149: MT ADAMS ORCHARDS DU | E149: 503 OAK RIDGE RD | F149: WHITE SALMON | G149: 98672 | H149: 20 | I149: 3 | J149: 1 | K149: RO | L149: 40 | N149: N | O149: 0.01041666667 | P149: 5 | Q149: 0.04861111111 | R149: 34 | S149: 0.009722222222 | T149: 0 | U149: 2 | V149: 0.1375 | W149: 0 | X149: P
A150: DEL | B150: 502124 | C150: 1 | D150: SDS LUMBER | E150: 123 INDUSTRIAL RD | F150: BINGEN | G150: 98605 | H150: 20 | I150: 4 | J150: 1 | K150: RO | L150: 40 | N150: N | O150: 0.009722222222 | P150: 7 | Q150: 0.04722222222 | R150: 38 | S150: 0.009722222222 | T150: 0 | U150: 43 | V150: 2.866666667 | W150: 0 | X150: P
A151: DEL | B151: 502627 | C151: 21 | D151: MERCER RANCHES CHAPM | E151: 261 SUNDALE RD | F151: ROOSEVELT | G151: 99356 | H151: 20 | I151: 1 | J151: 1 | K151: RO | L151: 40 | N151: N | O151: 0.002083333333 | P151: 14 | Q151: 0.04583333333 | R151: 30 | S151: 0.009722222222 | T151: 3.80488 | U151: 2 | V151: 0.1152777778 | W151: 7.60976 | X151: T
A152: DEL | B152: 502756 | C152: 1 | D152: ALDERCREEK PIONEER R | E152: 23 LEE ST | F152: CLEVELAND | G152: 99322 | H152: 20 | I152: 18 | J152: 1 | K152: RO | L152: 20 | N152: N | O152: 0.03472222222 | P152: 0 | Q152: 0.04513888889 | R152: 1 | S152: 0.009722222222 | T152: 0 | U152: 1 | V152: 0.08958333333 | W152: 0 | X152: P
A153: DEL | B153: 502878 | C153: 1 | D153: IBERDROLA RENEWABLES | E153: 300 BIGHORN RD | F153: BICKLETON | G153: 99322 | H153: 20 | I153: 2 | J153: 1 | K153: RO | L153: 20 | N153: N | O153: 0.02569444444 | P153: 22 | Q153: 0.04236111111 | R153: 27 | S153: 0.009722222222 | T153: 0.80747 | U153: 4 | V153: 0.3111111111 | W153: 3.22988 | X153: P
A154: DEL | B154: 503021 | C154: 1 | D154: THE INSITU GROUP | E154: 118 COLUMBIA RIVER W | F154: BINGEN | G154: 98605 | H154: 20 | I154: 11 | J154: 1 | K154: RO | L154: 40 | N154: N | O154: 0.006944444444 | P154: 2 | Q154: 0.03541666667 | R154: 21 | S154: 0.009027777778 | T154: 0 | U154: 1 | V154: 0.05138888889 | W154: 0 | X154: T
A155: DEL | B155: 503678 | C155: 1 | D155: PATRICIA CLEMENCE RO | E155: 345 SNOWDEN RD | F155: WHITE SALMON | G155: 98672 | H155: 20 | I155: 1 | J155: 1 | K155: RO | L155: 13 | N155: N | O155: 0.02777777778 | P155: 24 | Q155: 0.03333333333 | R155: 24 | S155: 0.009027777778 | T155: 0 | U155: 1 | V155: 0.07013888889 | W155: 0 | X155: T
A156: DEL | B156: 503876 | C156: 1 | D156: BICKLETON SCHOOL | E156: 3626 BICKLETON HWY | F156: BICKLETON | G156: 99322 | H156: 20 | I156: 4 | J156: 1 | K156: RO | L156: 20 | N156: N | O156: 0.007638888889 | P156: 4 | Q156: 0.03194444444 | R156: 27 | S156: 0.009027777778 | T156: 2.65991 | U156: 1 | V156: 0.04861111111 | W156: 2.65991 | X156: T
A157: DEL | B157: 503876 | C157: 1 | D157: ORTIZ RAFAEL ROLL OF | E157: 147 SW PECK RD | F157: WHITE SALMON | G157: 98672 | H157: 20 | I157: 1 | J157: 1 | K157: RO | L157: 40 | N157: N | O157: 0.006944444444 | P157: 0 | Q157: 0.02986111111 | R157: 21 | S157: 0.009027777778 | T157: 0 | U157: 1 | V157: 0.04583333333 | W157: 0 | X157: T
A158: DEL | B158: 503876 | C158: 1 | D158: RDC RECYCLE - BINGEN | E158: BINGEN POINT | F158: BINGEN | G158: 98605 | H158: 71 | I158: 3 | J158: 1 | K158: IR | L158: 20 | N158: R | O158: 0.005555555556 | P158: 2 | Q158: 0.02986111111 | R158: 19 | S158: 0.009027777778 | T158: 0 | U158: 20 | V158: 0.8888888889 | W158: 0 | X158: T
A159: DEL | B159: 503876 | C159: 6 | D159: MERCER RANCHES T | E159: 46 SONOVA (TANK FARM | F159: PROSSER | G159: 99350 | H159: 20 | I159: 9 | J159: 1 | K159: RO | L159: 40 | N159: N | O159: 0.02361111111 | P159: 22 | Q159: 0.02916666667 | R159: 27 | S159: 0.009027777778 | T159: 1.30995 | U159: 1 | V159: 0.06180555556 | W159: 1.30995 | X159: T
A160: DEL | B160: 503876 | C160: 1 | D160: IBERDROLA RENEWABLES | E160: 1051 EAST RD | F160: BICKLETON | G160: 99322 | H160: 20 | I160: 1 | J160: 1 | K160: RO | L160: 20 | N160: N | O160: 0.006944444444 | P160: 5 | Q160: 0.02777777778 | R160: 22 | S160: 0.009027777778 | T160: 0.73442 | U160: 9 | V160: 0.39375 | W160: 6.60978 | X160: T
A161: DEL | B161: 503876 | C161: 10 | D161: PUD LFG PLANT ROL | E161: 500 ROOSEVELT GRADE | F161: ROOSEVELT | G161: 99350 | H161: 20 | I161: 5 | J161: 1 | K161: RO | L161: 13 | N161: X | O161: 0.01736111111 | P161: 11 | Q161: 0.01805555556 | R161: 5 | S161: 0.009027777778 | T161: 4.94627 | U161: 14 | V161: 0.6222222222 | W161: 69.24778 | X161: T
A162: DEL | B162: 503876 | C162: 1 | D162: LYLE MERCANTILE | E162: 615 STATE ST | F162: LYLE | G162: 98635 | H162: 20 | I162: 4 | J162: 1 | K162: RO | L162: 40 | N162: N | O162: 0.01388888889 | P162: 8 | Q162: 0.01736111111 | R162: 9 | S162: 0.009027777778 | T162: 0 | U162: 1 | V162: 0.04027777778 | W162: 0 | X162: T
A163: DEL | B163: 503876 | C163: 1 | D163: BARNETT JASON ROLL | E163: 280 E 21ST ST | F163: GOLDENDALE | G163: 98620 | H163: 20 | I163: 1 | J163: 1 | K163: RO | L163: 13 | N163: N | O163: 0.00625 | P163: 3 | Q163: 0.01458333333 | R163: 2 | S163: 0.009027777778 | T163: 0 | U163: 1 | V163: 0.02986111111 | W163: 0 | X163: T
A164: DEL | B164: 503876 | C164: 1 | D164: BETTEN LINDER DORA | E164: 1525 HIGHWAY 97 | F164: GOLDENDALE | G164: 98620 | H164: 20 | I164: 1 | J164: 1 | K164: RO | L164: 20 | N164: N | O164: 0.001388888889 | P164: 8 | Q164: 0.005555555556 | R164: 24 | S164: 0.009027777778 | T164: 0 | U164: 3 | V164: 0.04791666667 | W164: 0 | X164: T
A165: DEL | B165: 503876 | C165: 1 | D165: WM BOLTHOUSE FARMS | E165: 10 SONOVA RD | F165: PROSSER | G165: 99350 | H165: 20 | I165: 5 | J165: 1 | K165: RO | L165: 40 | N165: N | O165: 0.005555555556 | P165: 7 | Q165: 0.06875 | R165: 53 | S165: 0.009027777778 | T165: 7.28669 | U165: 13 | V165: 1.083333333 | W165: 94.72697 | X165: T
A166: DEL | B166: 503876 | C166: 1 | D166: RDC BZ CORNERS TRANS | E166: 5 FIRTREE RD | F166: HUSUM | G166: 98623 | H166: 20 | I166: 6 | J166: 2 | K166: RO | L166: 50 | N166: N | O166: 0.01180555556 | P166: 8 | Q166: 0.06805555556 | R166: 45 | S166: 0.009027777778 | T166: 0 | U166: 369 | V166: 32.8 | W166: 0 | X166: T
A167: DEL | B167: 503999 | C167: 2 | D167: ICE - INNOVATIVE COM | E167: 1265 N MAIN AVE | F167: WHITE SALMON | G167: 98672 | H167: 20 | I167: 1 | J167: 1 | K167: RO | L167: 40 | N167: N | O167: 0.02430555556 | P167: 20 | Q167: 0.05347222222 | R167: 42 | S167: 0.009027777778 | T167: 0 | U167: 15 | V167: 1.302083333 | W167: 0 | X167: P
A168: DEL | B168: 504005 | C168: 4 | D168: TIM CARSE CONSTRUCTI | E168: 386 LYLE SNOWDEN RD | F168: LYLE | G168: 98635 | H168: 20 | I168: 1 | J168: 1 | K168: RO | L168: 40 | N168: N | O168: 0.02430555556 | P168: 16 | Q168: 0.04791666667 | R168: 29 | S168: 0.009027777778 | T168: 0 | U168: 2 | V168: 0.1625 | W168: 0 | X168: T
A169: DEL | B169: 504005 | C169: 1 | D169: RDC RECYCLE - BINGEN | E169: BINGEN POINT | F169: BINGEN | G169: 98605 | H169: 71 | I169: 4 | J169: 1 | K169: IR | L169: 20 | N169: G | O169: 0.01458333333 | P169: 9 | Q169: 0.04722222222 | R169: 34 | S169: 0.009027777778 | T169: 0 | U169: 13 | V169: 0.9208333333 | W169: 0 | X169: T
A170: DEL | B170: 504041 | C170: 1 | D170: RDC RECYCLE - BINGEN | E170: BINGEN POINT | F170: BINGEN | G170: 98605 | H170: 71 | I170: 3 | J170: 1 | K170: IR | L170: 20 | N170: R | O170: 0.009722222222 | P170: 5 | Q170: 0.04722222222 | R170: 91 | S170: 0.009027777778 | T170: 0 | U170: 152 | V170: 10.02777778 | W170: 0 | X170: T
A171: DEL | B171: 504189 | C171: 1 | D171: TSH BINGEN | E171: 405 E FRANKLIN ST | F171: BINGEN | G171: 98605 | H171: 20 | I171: 1 | J171: 1 | K171: RO | L171: 40 | N171: N | O171: 0.01597222222 | P171: 18 | Q171: 0.04652777778 | R171: 37 | S171: 0.009027777778 | T171: 0 | U171: 11 | V171: 0.7868055556 | W171: 0 | X171: T
A172: DEL | B172: 504189 | C172: 1 | D172: RANA & IAN NICHOLSON | E172: 24 SNOWDEN CUT OFF R | F172: WHITE SALMON | G172: 98672 | H172: 20 | I172: 2 | J172: 1 | K172: RO | L172: 40 | N172: N | O172: 0.02777777778 | P172: 17 | Q172: 0.04444444444 | R172: 22 | S172: 0.009027777778 | T172: 0 | U172: 1 | V172: 0.08125 | W172: 0 | X172: T
A173: DEL | B173: 504189 | C173: 5 | D173: GROSS ENTERPRISES LL | E173: 210 MAIN ST | F173: HUSUM | G173: 98623 | H173: 20 | I173: 1 | J173: 1 | K173: RO | L173: 40 | N173: N | O173: 0.02847222222 | P173: 27 | Q173: 0.04375 | R173: 28 | S173: 0.009027777778 | T173: 0 | U173: 1 | V173: 0.08125 | W173: 0 | X173: T
A174: DEL | B174: 504189 | C174: 2 | D174: PUGET SOUND ENERGY | E174: 600 INDUSTRIAL WAY | F174: GOLDENDALE | G174: 98620 | H174: 20 | I174: 10 | J174: 1 | K174: RO | L174: 20 | N174: N | O174: 0.00625 | P174: 5 | Q174: 0.04027777778 | R174: 28 | S174: 0.008333333333 | T174: 0 | U174: 6 | V174: 0.3291666667 | W174: 0 | X174: T
A175: DEL | B175: 504762 | C175: 4 | D175: KLICKITAT COMMUNITY | E175: 104 E MAIN ST | F175: KLICKITAT | G175: 98628 | H175: 20 | I175: 14 | J175: 2 | K175: RO | L175: 50 | N175: N | O175: 0.02569444444 | P175: 18 | Q175: 0.03472222222 | R175: 25 | S175: 0.008333333333 | T175: 0 | U175: 2 | V175: 0.1375 | W175: 0 | X175: T
A176: DEL | B176: 505325 | C176: 1 | D176: TAPANI INC ROLL O | E176: 1602 OBSERVATORY DR | F176: GOLDENDALE | G176: 98620 | H176: 20 | I176: 1 | J176: 1 | K176: RO | L176: 20 | N176: N | O176: 0.02083333333 | P176: 27 | Q176: 0.03402777778 | R176: 9 | S176: 0.008333333333 | T176: 0 | U176: 9 | V176: 0.56875 | W176: 0 | X176: T
A177: DEL | B177: 505615 | C177: 1 | D177: RDC RECYCLE - BINGEN | E177: BINGEN POINT | F177: BINGEN | G177: 98605 | H177: 71 | I177: 3 | J177: 1 | K177: IR | L177: 20 | N177: R | O177: 0.005555555556 | P177: 4 | Q177: 0.03263888889 | R177: 23 | S177: 0.008333333333 | T177: 0 | U177: 15 | V177: 0.6979166667 | W177: 0 | X177: T
A178: DEL | B178: 505645 | C178: 2 | D178: WHITE SALMON SPRING | E178: NW WASHINGTON @ WHIT | F178: WHITE SALMON | G178: 98672 | H178: 20 | I178: 2 | J178: 1 | K178: RO | L178: 40 | N178: N | O178: 0.04861111111 | P178: 47 | Q178: 0.03263888889 | R178: 20 | S178: 0.008333333333 | T178: 0 | U178: 1 | V178: 0.08958333333 | W178: 0 | X178: T
A179: DEL | B179: 505645 | C179: 3 | D179: MT STATES CONTRUCTIO | E179: 4045 S COLUMBUS AVE | F179: GOLDENDALE | G179: 98620 | H179: 20 | I179: 1 | J179: 1 | K179: RO | L179: 20 | N179: N | O179: 0.03194444444 | P179: 52 | Q179: 0.03055555556 | R179: 12 | S179: 0.008333333333 | T179: 0 | U179: 4 | V179: 0.2833333333 | W179: 0 | X179: T
A180: DEL | B180: 505757 | C180: 5 | D180: DR ROOF INC | E180: 306 3RD ST | F180: KLIKCITAT | G180: 98628 | H180: 20 | I180: 1 | J180: 1 | K180: RO | L180: 20 | N180: N | O180: 0.01597222222 | P180: 10 | Q180: 0.02986111111 | R180: 20 | S180: 0.008333333333 | T180: 0 | U180: 1 | V180: 0.05416666667 | W180: 0 | X180: T
A181: DEL | B181: 505757 | C181: 2 | D181: GRADE WORX-BLOCKHOUS | E181: 2765 HIGHWAY 142 | F181: GOLDENDALE | G181: 98620 | H181: 20 | I181: 1 | J181: 1 | K181: RO | L181: 40 | N181: N | O181: 0.0006944444444 | P181: 0 | Q181: 0.02986111111 | R181: 9 | S181: 0.008333333333 | T181: 0 | U181: 6 | V181: 0.2333333333 | W181: 0 | X181: T
A182: DEL | B182: 600920 | C182: 1 | D182: ALPINE ABATEMENT ASS | E182: 200 RHINE VILLAGE DR | F182: WHITE SALMON | G182: 98672 | H182: 20 | I182: 1 | J182: 1 | K182: RO | L182: 40 | N182: N | O182: 0.01944444444 | P182: 19 | Q182: 0.02916666667 | R182: 19 | S182: 0.008333333333 | T182: 0 | U182: 1 | V182: 0.05694444444 | W182: 0 | X182: T
A183: DEL | B183: 600969 | C183: 1 | D183: THE INSITU GROUP | E183: 118 COLUMBIA RIVER W | F183: BINGEN | G183: 98605 | H183: 20 | I183: 8 | J183: 1 | K183: RO | L183: 40 | N183: N | O183: 0.005555555556 | P183: 1 | Q183: 0.02777777778 | R183: 20 | S183: 0.008333333333 | T183: 0 | U183: 1 | V183: 0.04166666667 | W183: 0 | X183: T
A184: DMP | B184: 3509 | C184: 3 | D184: MICHELS CORP | E184: 49 CAR POOL CT | F184: GOLDENDALE | G184: 98620 | H184: 20 | I184: 1 | J184: 1 | K184: RO | L184: 40 | N184: N | O184: 0.1180555556 | P184: 89 | Q184: 0.02083333333 | R184: 8 | S184: 0.008333333333 | T184: 0 | U184: 1 | V184: 0.1472222222 | W184: 0 | X184: T
A185: DMP | B185: 3765 | C185: 10 | D185: PUD LFG PLANT ROL | E185: 500 ROOSEVELT GRADE | F185: ROOSEVELT | G185: 99350 | H185: 20 | I185: 4 | J185: 1 | K185: RO | L185: 20 | N185: N | O185: 0.05416666667 | P185: 50 | Q185: 0.01736111111 | R185: 6 | S185: 0.008333333333 | T185: 4.13986 | U185: 1 | V185: 0.07986111111 | W185: 4.13986 | X185: P
A186: DMP | B186: 7529 | C186: 1 | D186: WANG BRADY ROLL OFF | E186: 522 E BURGEN ST | F186: GOLDENDALE | G186: 98620 | H186: 20 | I186: 1 | J186: 1 | K186: RO | L186: 20 | N186: N | O186: 0.02569444444 | P186: 28 | Q186: 0.01527777778 | R186: 2 | S186: 0.008333333333 | T186: 0 | U186: 1 | V186: 0.04930555556 | W186: 0 | X186: T
A187: DMP | B187: 8418 | C187: 6 | D187: PUBLIC UTILITY DIST | E187: LOG YARD JEWETT AVE | F187: WHITE SALMON | G187: 98672 | H187: 20 | I187: 10 | J187: 1 | K187: RO | L187: 13 | N187: N | O187: 0.0006944444444 | P187: 0 | Q187: 0.008333333333 | R187: 0 | S187: 0.008333333333 | T187: 0 | U187: 1 | V187: 0.01736111111 | W187: 0 | X187: T
A188: DMP | B188: 8963 | C188: 15 | D188: RDC RECYCLE/GARBAGE- | E188: 500 ROOSEVELT GRADE | F188: ROOSEVELT | G188: 99356 | H188: 71 | I188: 11 | J188: 1 | K188: IR | L188: 20 | N188: N | O188: 0.007638888889 | P188: 6 | Q188: 0.1111111111 | R188: 114 | S188: 0.008333333333 | T188: 0 | U188: 1 | V188: 0.1270833333 | W188: 0 | X188: P
A189: DMP | B189: 12803 | C189: 1 | D189: KITCHINGS AMANDA R | E189: 104 FORDYCE RD | F189: WHITE SALMON | G189: 98672 | H189: 20 | I189: 1 | J189: 1 | K189: RO | L189: 40 | N189: N | O189: 0 | P189: 0 | Q189: 0.1076388889 | R189: 104 | S189: 0.008333333333 | T189: 0 | U189: 1 | V189: 0.1159722222 | W189: 0 | X189: T
A190: DMP | B190: 12886 | C190: 1 | D190: ROCKFORD CORPORATION | E190: 500 ROOSEVELT GRADE | F190: ROOSEVELT | G190: 99356 | H190: 20 | I190: 1 | J190: 1 | K190: RO | L190: 40 | N190: N | O190: 0.00625 | P190: 1 | Q190: 0.08472222222 | R190: 11 | S190: 0.008333333333 | T190: 0 | U190: 1 | V190: 0.09930555556 | W190: 0 | X190: T
A191: DMP | B191: 12983 | C191: 1 | D191: MT ADAMS ORCHARDS DU | E191: 503 OAK RIDGE RD | F191: WHITE SALMON | G191: 98672 | H191: 20 | I191: 3 | J191: 1 | K191: RO | L191: 40 | N191: N | O191: 0.01805555556 | P191: 14 | Q191: 0.07569444444 | R191: 67 | S191: 0.008333333333 | T191: 0 | U191: 7 | V191: 0.7145833333 | W191: 0 | X191: T
A192: DMP | B192: 500009 | C192: 5 | D192: ANDREWS AND ROWELL | E192: 1254 ALDERDALE RD | F192: PROSSER | G192: 99350 | H192: 20 | I192: 1 | J192: 1 | K192: RO | L192: 40 | N192: N | O192: 0 | P192: 0 | Q192: 0.06527777778 | R192: 66 | S192: 0.008333333333 | T192: 3.04323 | U192: 3 | V192: 0.2208333333 | W192: 9.12969 | X192: P
A193: DMP | B193: 500186 | C193: 1 | D193: JONES MICHAEL ROLL O | E193: 109 E TIMBER VALLEY | F193: APPLETON | G193: 98602 | H193: 20 | I193: 2 | J193: 1 | K193: RO | L193: 13 | N193: N | O193: 0.02847222222 | P193: 15 | Q193: 0.06319444444 | R193: 46 | S193: 0.008333333333 | T193: 0 | U193: 1 | V193: 0.1 | W193: 0 | X193: T
A194: DMP | B194: 501933 | C194: 1 | D194: WORSHAM CLYDE&LUCILL | E194: 24 WISHRAM RD | F194: WISHRAM | G194: 98673 | H194: 20 | I194: 1 | J194: 1 | K194: RO | L194: 20 | N194: N | O194: 0.01875 | P194: 18 | Q194: 0.05555555556 | R194: 54 | S194: 0.008333333333 | T194: 0 | U194: 1 | V194: 0.08263888889 | W194: 0 | X194: P
A195: DMP | B195: 502124 | C195: 2 | D195: ALEXANDRIA NICOLE CE | E195: 158422 W SONOVA RD | F195: PROSSER | G195: 99350 | H195: 20 | I195: 7 | J195: 1 | K195: RO | L195: 20 | N195: N | O195: 0 | P195: 0 | Q195: 0.05555555556 | R195: 53 | S195: 0.008333333333 | T195: 4.28986 | U195: 1 | V195: 0.06388888889 | W195: 4.28986 | X195: P
A196: DMP | B196: 502756 | C196: 1 | D196: UNDERWOOD FRUIT ROL | E196: 6550 HIGHWAY 14 | F196: BINGEN | G196: 98605 | H196: 20 | I196: 13 | J196: 1 | K196: RO | L196: 40 | N196: N | O196: 0.008333333333 | P196: 4 | Q196: 0.05486111111 | R196: 36 | S196: 0.008333333333 | T196: 0 | U196: 86 | V196: =(O196+Q196+S196)*U196 -> 6.151388889 | W196: =+T196*U196 -> 0 | X196: P
A197: DMP | B197: 502756 | C197: 1 | D197: RDC BZ CORNERS TRANS | E197: 5 FIRTREE RD | F197: HUSUM | G197: 98623 | H197: 71 | I197: 8 | J197: 1 | K197: IR | L197: 50 | N197: 2 | O197: 0.01041666667 | P197: 0 | Q197: 0.05208333333 | R197: 34 | S197: 0.008333333333 | T197: 0 | U197: 8 | V197: 0.5666666667 | W197: 0 | X197: P
A198: DMP | B198: 502756 | C198: 1 | D198: RDC BZ CORNERS TRANS | E198: 5 FIRTREE RD | F198: HUSUM | G198: 98623 | H198: 71 | I198: 7 | J198: 1 | K198: IR | L198: 20 | N198: G | O198: 0.003472222222 | P198: 0 | Q198: 0.05 | R198: 34 | S198: 0.008333333333 | T198: 0 | U198: 2 | V198: 0.1236111111 | W198: 0 | X198: P
A199: DMP | B199: 502878 | C199: 1 | D199: TRI-PLY CONSTUCTION | E199: 6550 HIGHWAY 14 | F199: WHITE SALMON | G199: 98672 | H199: 20 | I199: 1 | J199: 1 | K199: RO | L199: 40 | N199: N | O199: 0.01666666667 | P199: 12 | Q199: 0.04791666667 | R199: 38 | S199: 0.008333333333 | T199: 0 | U199: 46 | V199: 3.354166667 | W199: 0 | X199: P
A200: DMP | B200: 502878 | C200: 6 | D200: PUBLIC UTILITY DIST | E200: LOG YARD JEWETT AVE | F200: WHITE SALMON | G200: 98672 | H200: 20 | I200: 10 | J200: 1 | K200: RO | L200: 13 | N200: N | O200: 0.025 | P200: 19 | Q200: 0.04513888889 | R200: 38 | S200: 0.008333333333 | T200: 0 | U200: 2 | V200: 0.1569444444 | W200: 0 | X200: P
... 3252 more rows

Sheet Revenue Lookup
A1: Regulated Revenue Analysis
A3: Charge Code | B3: Rev Dist | C3: Description | D3: 2018-04-30 | E3: =EOMONTH(D3,1) -> 2018-05-31 | F3: =EOMONTH(E3,1) -> 2018-06-30 | G3: 2018-07-31 | H3: 2018-08-31 | I3: 2018-09-30 | J3: 2018-10-31 | K3: 2018-11-30 | L3: 2018-12-31 | M3: 2019-01-31 | N3: =EOMONTH(M3,1) -> 2019-02-28 | O3: 2019-03-31 | Q3: TOTAL
D4: 4 | E4: 5 | F4: 6 | G4: 7 | H4: 8 | I4: 9 | J4: 10 | K4: 11 | L4: 12 | M4: 1 | N4: 2 | O4: 3
A6: Residential Third Party Revenue
A7: *Total | B7: 30 | C7: Residential | D7: =SUMIFS('SQL Revenue Analysis'!$E$1:$E$65536,'SQL Revenue Analysis'!$A$1:$A$65536,D$4,'SQL Revenue Analysis'!$J$1:$J$65536,$B7) -> 51022.48 | E7: =SUMIFS('SQL Revenue Analysis'!$E$1:$E$65536,'SQL Revenue Analysis'!$A$1:$A$65536,E$4,'SQL Revenue Analysis'!$J$1:$J$65536,$B7) -> 53970.01 | F7: =SUMIFS('SQL Revenue Analysis'!$E$1:$E$65536,'SQL Revenue Analysis'!$A$1:$A$65536,F$4,'SQL Revenue Analysis'!$J$1:$J$65536,$B7) -> 53526.23 | G7: =SUMIFS('SQL Revenue Analysis'!$E$1:$E$65536,'SQL Revenue Analysis'!$A$1:$A$65536,G$4,'SQL Revenue Analysis'!$J$1:$J$65536,$B7) -> 53565.32 | H7: =SUMIFS('SQL Revenue Analysis'!$E$1:$E$65536,'SQL Revenue Analysis'!$A$1:$A$65536,H$4,'SQL Revenue Analysis'!$J$1:$J$65536,$B7) -> 54987.67 | I7: =SUMIFS('SQL Revenue Analysis'!$E$1:$E$65536,'SQL Revenue Analysis'!$A$1:$A$65536,I$4,'SQL Revenue Analysis'!$J$1:$J$65536,$B7) -> 54188.63 | J7: =SUMIFS('SQL Revenue Analysis'!$E$1:$E$65536,'SQL Revenue Analysis'!$A$1:$A$65536,J$4,'SQL Revenue Analysis'!$J$1:$J$65536,$B7) -> 52749.75 | K7: =SUMIFS('SQL Revenue Analysis'!$E$1:$E$65536,'SQL Revenue Analysis'!$A$1:$A$65536,K$4,'SQL Revenue Analysis'!$J$1:$J$65536,$B7) -> 53670.38 | L7: =SUMIFS('SQL Revenue Analysis'!$E$1:$E$65536,'SQL Revenue Analysis'!$A$1:$A$65536,L$4,'SQL Revenue Analysis'!$J$1:$J$65536,$B7) -> 53326.67 | M7: =SUMIFS('SQL Revenue Analysis'!$E$1:$E$65536,'SQL Revenue Analysis'!$A$1:$A$65536,M$4,'SQL Revenue Analysis'!$J$1:$J$65536,$B7) -> 52695.93 | N7: =SUMIFS('SQL Revenue Analysis'!$E$1:$E$65536,'SQL Revenue Analysis'!$A$1:$A$65536,N$4,'SQL Revenue Analysis'!$J$1:$J$65536,$B7) -> 51630.96 | O7: =SUMIFS('SQL Revenue Analysis'!$E$1:$E$65536,'SQL Revenue Analysis'!$A$1:$A$65536,O$4,'SQL Revenue Analysis'!$J$1:$J$65536,$B7) -> 52677.8 | Q7: =SUM(D7:P7) -> 638011.83
A8: *Total | B8: 70 | C8: Residential Recycling | D8: =SUMIFS('SQL Revenue Analysis'!$E$1:$E$65536,'SQL Revenue Analysis'!$A$1:$A$65536,D$4,'SQL Revenue Analysis'!$J$1:$J$65536,$B8) -> 991.97 | E8: =SUMIFS('SQL Revenue Analysis'!$E$1:$E$65536,'SQL Revenue Analysis'!$A$1:$A$65536,E$4,'SQL Revenue Analysis'!$J$1:$J$65536,$B8) -> 1054.86 | F8: =SUMIFS('SQL Revenue Analysis'!$E$1:$E$65536,'SQL Revenue Analysis'!$A$1:$A$65536,F$4,'SQL Revenue Analysis'!$J$1:$J$65536,$B8) -> 0 | G8: =SUMIFS('SQL Revenue Analysis'!$E$1:$E$65536,'SQL Revenue Analysis'!$A$1:$A$65536,G$4,'SQL Revenue Analysis'!$J$1:$J$65536,$B8) -> 0 | H8: =SUMIFS('SQL Revenue Analysis'!$E$1:$E$65536,'SQL Revenue Analysis'!$A$1:$A$65536,H$4,'SQL Revenue Analysis'!$J$1:$J$65536,$B8) -> 0 | I8: =SUMIFS('SQL Revenue Analysis'!$E$1:$E$65536,'SQL Revenue Analysis'!$A$1:$A$65536,I$4,'SQL Revenue Analysis'!$J$1:$J$65536,$B8) -> 0 | J8: =SUMIFS('SQL Revenue Analysis'!$E$1:$E$65536,'SQL Revenue Analysis'!$A$1:$A$65536,J$4,'SQL Revenue Analysis'!$J$1:$J$65536,$B8) -> 0 | K8: =SUMIFS('SQL Revenue Analysis'!$E$1:$E$65536,'SQL Revenue Analysis'!$A$1:$A$65536,K$4,'SQL Revenue Analysis'!$J$1:$J$65536,$B8) -> 0 | L8: =SUMIFS('SQL Revenue Analysis'!$E$1:$E$65536,'SQL Revenue Analysis'!$A$1:$A$65536,L$4,'SQL Revenue Analysis'!$J$1:$J$65536,$B8) -> 0 | M8: =SUMIFS('SQL Revenue Analysis'!$E$1:$E$65536,'SQL Revenue Analysis'!$A$1:$A$65536,M$4,'SQL Revenue Analysis'!$J$1:$J$65536,$B8) -> 0 | N8: =SUMIFS('SQL Revenue Analysis'!$E$1:$E$65536,'SQL Revenue Analysis'!$A$1:$A$65536,N$4,'SQL Revenue Analysis'!$J$1:$J$65536,$B8) -> 0 | O8: =SUMIFS('SQL Revenue Analysis'!$E$1:$E$65536,'SQL Revenue Analysis'!$A$1:$A$65536,O$4,'SQL Revenue Analysis'!$J$1:$J$65536,$B8) -> 95 | Q8: 2141.83
A9: HWF | B9: =+B7&" / "&B8 -> 30 / 70 | C9: Hazardous Waste Fee | D9: =-(SUMIFS('SQL Revenue Analysis'!$E$1:$E$65536,'SQL Revenue Analysis'!$A$1:$A$65536,D$4,'SQL Revenue Analysis'!$J$1:$J$65536,$B$7,'SQL Revenue Analysis'!$D$1:$D$65536,$A9)+SUMIFS('SQL Revenue Analysis'!$E$1:$E$65536,'SQL Revenue Analysis'!$A$1:$A$65536,D$4,'SQL Revenue Analysis'!$J$1:$J$65536,$B$8,'SQL Revenue Analysis'!$D$1:$D$65536,$A9)) -> 0 | E9: =-(SUMIFS('SQL Revenue Analysis'!$E$1:$E$65536,'SQL Revenue Analysis'!$A$1:$A$65536,E$4,'SQL Revenue Analysis'!$J$1:$J$65536,$B$7,'SQL Revenue Analysis'!$D$1:$D$65536,$A9)+SUMIFS('SQL Revenue Analysis'!$E$1:$E$65536,'SQL Revenue Analysis'!$A$1:$A$65536,E$4,'SQL Revenue Analysis'!$J$1:$J$65536,$B$8,'SQL Revenue Analysis'!$D$1:$D$65536,$A9)) -> 0 | F9: =-(SUMIFS('SQL Revenue Analysis'!$E$1:$E$65536,'SQL Revenue Analysis'!$A$1:$A$65536,F$4,'SQL Revenue Analysis'!$J$1:$J$65536,$B$7,'SQL Revenue Analysis'!$D$1:$D$65536,$A9)+SUMIFS('SQL Revenue Analysis'!$E$1:$E$65536,'SQL Revenue Analysis'!$A$1:$A$65536,F$4,'SQL Revenue Analysis'!$J$1:$J$65536,$B$8,'SQL Revenue Analysis'!$D$1:$D$65536,$A9)) -> 0 | G9: =-(SUMIFS('SQL Revenue Analysis'!$E$1:$E$65536,'SQL Revenue Analysis'!$A$1:$A$65536,G$4,'SQL Revenue Analysis'!$J$1:$J$65536,$B$7,'SQL Revenue Analysis'!$D$1:$D$65536,$A9)+SUMIFS('SQL Revenue Analysis'!$E$1:$E$65536,'SQL Revenue Analysis'!$A$1:$A$65536,G$4,'SQL Revenue Analysis'!$J$1:$J$65536,$B$8,'SQL Revenue Analysis'!$D$1:$D$65536,$A9)) -> 0 | H9: =-(SUMIFS('SQL Revenue Analysis'!$E$1:$E$65536,'SQL Revenue Analysis'!$A$1:$A$65536,H$4,'SQL Revenue Analysis'!$J$1:$J$65536,$B$7,'SQL Revenue Analysis'!$D$1:$D$65536,$A9)+SUMIFS('SQL Revenue Analysis'!$E$1:$E$65536,'SQL Revenue Analysis'!$A$1:$A$65536,H$4,'SQL Revenue Analysis'!$J$1:$J$65536,$B$8,'SQL Revenue Analysis'!$D$1:$D$65536,$A9)) -> 0 | I9: =-(SUMIFS('SQL Revenue Analysis'!$E$1:$E$65536,'SQL Revenue Analysis'!$A$1:$A$65536,I$4,'SQL Revenue Analysis'!$J$1:$J$65536,$B$7,'SQL Revenue Analysis'!$D$1:$D$65536,$A9)+SUMIFS('SQL Revenue Analysis'!$E$1:$E$65536,'SQL Revenue Analysis'!$A$1:$A$65536,I$4,'SQL Revenue Analysis'!$J$1:$J$65536,$B$8,'SQL Revenue Analysis'!$D$1:$D$65536,$A9)) -> 0 | J9: =-(SUMIFS('SQL Revenue Analysis'!$E$1:$E$65536,'SQL Revenue Analysis'!$A$1:$A$65536,J$4,'SQL Revenue Analysis'!$J$1:$J$65536,$B$7,'SQL Revenue Analysis'!$D$1:$D$65536,$A9)+SUMIFS('SQL Revenue Analysis'!$E$1:$E$65536,'SQL Revenue Analysis'!$A$1:$A$65536,J$4,'SQL Revenue Analysis'!$J$1:$J$65536,$B$8,'SQL Revenue Analysis'!$D$1:$D$65536,$A9)) -> 0 | K9: =-(SUMIFS('SQL Revenue Analysis'!$E$1:$E$65536,'SQL Revenue Analysis'!$A$1:$A$65536,K$4,'SQL Revenue Analysis'!$J$1:$J$65536,$B$7,'SQL Revenue Analysis'!$D$1:$D$65536,$A9)+SUMIFS('SQL Revenue Analysis'!$E$1:$E$65536,'SQL Revenue Analysis'!$A$1:$A$65536,K$4,'SQL Revenue Analysis'!$J$1:$J$65536,$B$8,'SQL Revenue Analysis'!$D$1:$D$65536,$A9)) -> 0 | L9: =-(SUMIFS('SQL Revenue Analysis'!$E$1:$E$65536,'SQL Revenue Analysis'!$A$1:$A$65536,L$4,'SQL Revenue Analysis'!$J$1:$J$65536,$B$7,'SQL Revenue Analysis'!$D$1:$D$65536,$A9)+SUMIFS('SQL Revenue Analysis'!$E$1:$E$65536,'SQL Revenue Analysis'!$A$1:$A$65536,L$4,'SQL Revenue Analysis'!$J$1:$J$65536,$B$8,'SQL Revenue Analysis'!$D$1:$D$65536,$A9)) -> 0 | M9: =-(SUMIFS('SQL Revenue Analysis'!$E$1:$E$65536,'SQL Revenue Analysis'!$A$1:$A$65536,M$4,'SQL Revenue Analysis'!$J$1:$J$65536,$B$7,'SQL Revenue Analysis'!$D$1:$D$65536,$A9)+SUMIFS('SQL Revenue Analysis'!$E$1:$E$65536,'SQL Revenue Analysis'!$A$1:$A$65536,M$4,'SQL Revenue Analysis'!$J$1:$J$65536,$B$8,'SQL Revenue Analysis'!$D$1:$D$65536,$A9)) -> 0 | N9: =-(SUMIFS('SQL Revenue Analysis'!$E$1:$E$65536,'SQL Revenue Analysis'!$A$1:$A$65536,N$4,'SQL Revenue Analysis'!$J$1:$J$65536,$B$7,'SQL Revenue Analysis'!$D$1:$D$65536,$A9)+SUMIFS('SQL Revenue Analysis'!$E$1:$E$65536,'SQL Revenue Analysis'!$A$1:$A$65536,N$4,'SQL Revenue Analysis'!$J$1:$J$65536,$B$8,'SQL Revenue Analysis'!$D$1:$D$65536,$A9)) -> 0 | O9: =-(SUMIFS('SQL Revenue Analysis'!$E$1:$E$65536,'SQL Revenue Analysis'!$A$1:$A$65536,O$4,'SQL Revenue Analysis'!$J$1:$J$65536,$B$7,'SQL Revenue Analysis'!$D$1:$D$65536,$A9)+SUMIFS('SQL Revenue Analysis'!$E$1:$E$65536,'SQL Revenue Analysis'!$A$1:$A$65536,O$4,'SQL Revenue Analysis'!$J$1:$J$65536,$B$8,'SQL Revenue Analysis'!$D$1:$D$65536,$A9)) -> 0 | Q9: 0
A10: ADF | B10: =+B9 -> 30 / 70 | C10: Administrative Fee | D10: =-(SUMIFS('SQL Revenue Analysis'!$E$1:$E$65536,'SQL Revenue Analysis'!$A$1:$A$65536,D$4,'SQL Revenue Analysis'!$J$1:$J$65536,$B$7,'SQL Revenue Analysis'!$D$1:$D$65536,$A10)+SUMIFS('SQL Revenue Analysis'!$E$1:$E$65536,'SQL Revenue Analysis'!$A$1:$A$65536,D$4,'SQL Revenue Analysis'!$J$1:$J$65536,$B$8,'SQL Revenue Analysis'!$D$1:$D$65536,$A10)) -> 0 | E10: =-(SUMIFS('SQL Revenue Analysis'!$E$1:$E$65536,'SQL Revenue Analysis'!$A$1:$A$65536,E$4,'SQL Revenue Analysis'!$J$1:$J$65536,$B$7,'SQL Revenue Analysis'!$D$1:$D$65536,$A10)+SUMIFS('SQL Revenue Analysis'!$E$1:$E$65536,'SQL Revenue Analysis'!$A$1:$A$65536,E$4,'SQL Revenue Analysis'!$J$1:$J$65536,$B$8,'SQL Revenue Analysis'!$D$1:$D$65536,$A10)) -> 0 | F10: =-(SUMIFS('SQL Revenue Analysis'!$E$1:$E$65536,'SQL Revenue Analysis'!$A$1:$A$65536,F$4,'SQL Revenue Analysis'!$J$1:$J$65536,$B$7,'SQL Revenue Analysis'!$D$1:$D$65536,$A10)+SUMIFS('SQL Revenue Analysis'!$E$1:$E$65536,'SQL Revenue Analysis'!$A$1:$A$65536,F$4,'SQL Revenue Analysis'!$J$1:$J$65536,$B$8,'SQL Revenue Analysis'!$D$1:$D$65536,$A10)) -> 0 | G10: =-(SUMIFS('SQL Revenue Analysis'!$E$1:$E$65536,'SQL Revenue Analysis'!$A$1:$A$65536,G$4,'SQL Revenue Analysis'!$J$1:$J$65536,$B$7,'SQL Revenue Analysis'!$D$1:$D$65536,$A10)+SUMIFS('SQL Revenue Analysis'!$E$1:$E$65536,'SQL Revenue Analysis'!$A$1:$A$65536,G$4,'SQL Revenue Analysis'!$J$1:$J$65536,$B$8,'SQL Revenue Analysis'!$D$1:$D$65536,$A10)) -> 0 | H10: =-(SUMIFS('SQL Revenue Analysis'!$E$1:$E$65536,'SQL Revenue Analysis'!$A$1:$A$65536,H$4,'SQL Revenue Analysis'!$J$1:$J$65536,$B$7,'SQL Revenue Analysis'!$D$1:$D$65536,$A10)+SUMIFS('SQL Revenue Analysis'!$E$1:$E$65536,'SQL Revenue Analysis'!$A$1:$A$65536,H$4,'SQL Revenue Analysis'!$J$1:$J$65536,$B$8,'SQL Revenue Analysis'!$D$1:$D$65536,$A10)) -> 0 | I10: =-(SUMIFS('SQL Revenue Analysis'!$E$1:$E$65536,'SQL Revenue Analysis'!$A$1:$A$65536,I$4,'SQL Revenue Analysis'!$J$1:$J$65536,$B$7,'SQL Revenue Analysis'!$D$1:$D$65536,$A10)+SUMIFS('SQL Revenue Analysis'!$E$1:$E$65536,'SQL Revenue Analysis'!$A$1:$A$65536,I$4,'SQL Revenue Analysis'!$J$1:$J$65536,$B$8,'SQL Revenue Analysis'!$D$1:$D$65536,$A10)) -> 0 | J10: =-(SUMIFS('SQL Revenue Analysis'!$E$1:$E$65536,'SQL Revenue Analysis'!$A$1:$A$65536,J$4,'SQL Revenue Analysis'!$J$1:$J$65536,$B$7,'SQL Revenue Analysis'!$D$1:$D$65536,$A10)+SUMIFS('SQL Revenue Analysis'!$E$1:$E$65536,'SQL Revenue Analysis'!$A$1:$A$65536,J$4,'SQL Revenue Analysis'!$J$1:$J$65536,$B$8,'SQL Revenue Analysis'!$D$1:$D$65536,$A10)) -> 0 | K10: =-(SUMIFS('SQL Revenue Analysis'!$E$1:$E$65536,'SQL Revenue Analysis'!$A$1:$A$65536,K$4,'SQL Revenue Analysis'!$J$1:$J$65536,$B$7,'SQL Revenue Analysis'!$D$1:$D$65536,$A10)+SUMIFS('SQL Revenue Analysis'!$E$1:$E$65536,'SQL Revenue Analysis'!$A$1:$A$65536,K$4,'SQL Revenue Analysis'!$J$1:$J$65536,$B$8,'SQL Revenue Analysis'!$D$1:$D$65536,$A10)) -> 0 | L10: =-(SUMIFS('SQL Revenue Analysis'!$E$1:$E$65536,'SQL Revenue Analysis'!$A$1:$A$65536,L$4,'SQL Revenue Analysis'!$J$1:$J$65536,$B$7,'SQL Revenue Analysis'!$D$1:$D$65536,$A10)+SUMIFS('SQL Revenue Analysis'!$E$1:$E$65536,'SQL Revenue Analysis'!$A$1:$A$65536,L$4,'SQL Revenue Analysis'!$J$1:$J$65536,$B$8,'SQL Revenue Analysis'!$D$1:$D$65536,$A10)) -> 0 | M10: =-(SUMIFS('SQL Revenue Analysis'!$E$1:$E$65536,'SQL Revenue Analysis'!$A$1:$A$65536,M$4,'SQL Revenue Analysis'!$J$1:$J$65536,$B$7,'SQL Revenue Analysis'!$D$1:$D$65536,$A10)+SUMIFS('SQL Revenue Analysis'!$E$1:$E$65536,'SQL Revenue Analysis'!$A$1:$A$65536,M$4,'SQL Revenue Analysis'!$J$1:$J$65536,$B$8,'SQL Revenue Analysis'!$D$1:$D$65536,$A10)) -> 0 | N10: =-(SUMIFS('SQL Revenue Analysis'!$E$1:$E$65536,'SQL Revenue Analysis'!$A$1:$A$65536,N$4,'SQL Revenue Analysis'!$J$1:$J$65536,$B$7,'SQL Revenue Analysis'!$D$1:$D$65536,$A10)+SUMIFS('SQL Revenue Analysis'!$E$1:$E$65536,'SQL Revenue Analysis'!$A$1:$A$65536,N$4,'SQL Revenue Analysis'!$J$1:$J$65536,$B$8,'SQL Revenue Analysis'!$D$1:$D$65536,$A10)) -> 0 | O10: =-(SUMIFS('SQL Revenue Analysis'!$E$1:$E$65536,'SQL Revenue Analysis'!$A$1:$A$65536,O$4,'SQL Revenue Analysis'!$J$1:$J$65536,$B$7,'SQL Revenue Analysis'!$D$1:$D$65536,$A10)+SUMIFS('SQL Revenue Analysis'!$E$1:$E$65536,'SQL Revenue Analysis'!$A$1:$A$65536,O$4,'SQL Revenue Analysis'!$J$1:$J$65536,$B$8,'SQL Revenue Analysis'!$D$1:$D$65536,$A10)) -> 0 | Q10: 0
A11: VRS | B11: =+B10 -> 30 / 70 | C11: Recycling Credits | D11: =-(SUMIFS('SQL Revenue Analysis'!$E$1:$E$65536,'SQL Revenue Analysis'!$A$1:$A$65536,D$4,'SQL Revenue Analysis'!$J$1:$J$65536,$B$7,'SQL Revenue Analysis'!$D$1:$D$65536,$A11)+SUMIFS('SQL Revenue Analysis'!$E$1:$E$65536,'SQL Revenue Analysis'!$A$1:$A$65536,D$4,'SQL Revenue Analysis'!$J$1:$J$65536,$B$8,'SQL Revenue Analysis'!$D$1:$D$65536,$A11)) -> 0 | E11: =-(SUMIFS('SQL Revenue Analysis'!$E$1:$E$65536,'SQL Revenue Analysis'!$A$1:$A$65536,E$4,'SQL Revenue Analysis'!$J$1:$J$65536,$B$7,'SQL Revenue Analysis'!$D$1:$D$65536,$A11)+SUMIFS('SQL Revenue Analysis'!$E$1:$E$65536,'SQL Revenue Analysis'!$A$1:$A$65536,E$4,'SQL Revenue Analysis'!$J$1:$J$65536,$B$8,'SQL Revenue Analysis'!$D$1:$D$65536,$A11)) -> 0 | F11: =-(SUMIFS('SQL Revenue Analysis'!$E$1:$E$65536,'SQL Revenue Analysis'!$A$1:$A$65536,F$4,'SQL Revenue Analysis'!$J$1:$J$65536,$B$7,'SQL Revenue Analysis'!$D$1:$D$65536,$A11)+SUMIFS('SQL Revenue Analysis'!$E$1:$E$65536,'SQL Revenue Analysis'!$A$1:$A$65536,F$4,'SQL Revenue Analysis'!$J$1:$J$65536,$B$8,'SQL Revenue Analysis'!$D$1:$D$65536,$A11)) -> 0 | G11: =-(SUMIFS('SQL Revenue Analysis'!$E$1:$E$65536,'SQL Revenue Analysis'!$A$1:$A$65536,G$4,'SQL Revenue Analysis'!$J$1:$J$65536,$B$7,'SQL Revenue Analysis'!$D$1:$D$65536,$A11)+SUMIFS('SQL Revenue Analysis'!$E$1:$E$65536,'SQL Revenue Analysis'!$A$1:$A$65536,G$4,'SQL Revenue Analysis'!$J$1:$J$65536,$B$8,'SQL Revenue Analysis'!$D$1:$D$65536,$A11)) -> 0 | H11: =-(SUMIFS('SQL Revenue Analysis'!$E$1:$E$65536,'SQL Revenue Analysis'!$A$1:$A$65536,H$4,'SQL Revenue Analysis'!$J$1:$J$65536,$B$7,'SQL Revenue Analysis'!$D$1:$D$65536,$A11)+SUMIFS('SQL Revenue Analysis'!$E$1:$E$65536,'SQL Revenue Analysis'!$A$1:$A$65536,H$4,'SQL Revenue Analysis'!$J$1:$J$65536,$B$8,'SQL Revenue Analysis'!$D$1:$D$65536,$A11)) -> 0 | I11: =-(SUMIFS('SQL Revenue Analysis'!$E$1:$E$65536,'SQL Revenue Analysis'!$A$1:$A$65536,I$4,'SQL Revenue Analysis'!$J$1:$J$65536,$B$7,'SQL Revenue Analysis'!$D$1:$D$65536,$A11)+SUMIFS('SQL Revenue Analysis'!$E$1:$E$65536,'SQL Revenue Analysis'!$A$1:$A$65536,I$4,'SQL Revenue Analysis'!$J$1:$J$65536,$B$8,'SQL Revenue Analysis'!$D$1:$D$65536,$A11)) -> 0 | J11: =-(SUMIFS('SQL Revenue Analysis'!$E$1:$E$65536,'SQL Revenue Analysis'!$A$1:$A$65536,J$4,'SQL Revenue Analysis'!$J$1:$J$65536,$B$7,'SQL Revenue Analysis'!$D$1:$D$65536,$A11)+SUMIFS('SQL Revenue Analysis'!$E$1:$E$65536,'SQL Revenue Analysis'!$A$1:$A$65536,J$4,'SQL Revenue Analysis'!$J$1:$J$65536,$B$8,'SQL Revenue Analysis'!$D$1:$D$65536,$A11)) -> 0 | K11: =-(SUMIFS('SQL Revenue Analysis'!$E$1:$E$65536,'SQL Revenue Analysis'!$A$1:$A$65536,K$4,'SQL Revenue Analysis'!$J$1:$J$65536,$B$7,'SQL Revenue Analysis'!$D$1:$D$65536,$A11)+SUMIFS('SQL Revenue Analysis'!$E$1:$E$65536,'SQL Revenue Analysis'!$A$1:$A$65536,K$4,'SQL Revenue Analysis'!$J$1:$J$65536,$B$8,'SQL Revenue Analysis'!$D$1:$D$65536,$A11)) -> 0 | L11: =-(SUMIFS('SQL Revenue Analysis'!$E$1:$E$65536,'SQL Revenue Analysis'!$A$1:$A$65536,L$4,'SQL Revenue Analysis'!$J$1:$J$65536,$B$7,'SQL Revenue Analysis'!$D$1:$D$65536,$A11)+SUMIFS('SQL Revenue Analysis'!$E$1:$E$65536,'SQL Revenue Analysis'!$A$1:$A$65536,L$4,'SQL Revenue Analysis'!$J$1:$J$65536,$B$8,'SQL Revenue Analysis'!$D$1:$D$65536,$A11)) -> 0 | M11: =-(SUMIFS('SQL Revenue Analysis'!$E$1:$E$65536,'SQL Revenue Analysis'!$A$1:$A$65536,M$4,'SQL Revenue Analysis'!$J$1:$J$65536,$B$7,'SQL Revenue Analysis'!$D$1:$D$65536,$A11)+SUMIFS('SQL Revenue Analysis'!$E$1:$E$65536,'SQL Revenue Analysis'!$A$1:$A$65536,M$4,'SQL Revenue Analysis'!$J$1:$J$65536,$B$8,'SQL Revenue Analysis'!$D$1:$D$65536,$A11)) -> 0 | N11: =-(SUMIFS('SQL Revenue Analysis'!$E$1:$E$65536,'SQL Revenue Analysis'!$A$1:$A$65536,N$4,'SQL Revenue Analysis'!$J$1:$J$65536,$B$7,'SQL Revenue Analysis'!$D$1:$D$65536,$A11)+SUMIFS('SQL Revenue Analysis'!$E$1:$E$65536,'SQL Revenue Analysis'!$A$1:$A$65536,N$4,'SQL Revenue Analysis'!$J$1:$J$65536,$B$8,'SQL Revenue Analysis'!$D$1:$D$65536,$A11)) -> 0 | O11: =-(SUMIFS('SQL Revenue Analysis'!$E$1:$E$65536,'SQL Revenue Analysis'!$A$1:$A$65536,O$4,'SQL Revenue Analysis'!$J$1:$J$65536,$B$7,'SQL Revenue Analysis'!$D$1:$D$65536,$A11)+SUMIFS('SQL Revenue Analysis'!$E$1:$E$65536,'SQL Revenue Analysis'!$A$1:$A$65536,O$4,'SQL Revenue Analysis'!$J$1:$J$65536,$B$8,'SQL Revenue Analysis'!$D$1:$D$65536,$A11)) -> 0 | Q11: 0 | S11: Charges not represented in price out tabs utilizing 'regular' tariff rates
A12: VMF | B12: =+B11 -> 30 / 70 | C12: Recycling Credits | D12: =-(SUMIFS('SQL Revenue Analysis'!$E$1:$E$65536,'SQL Revenue Analysis'!$A$1:$A$65536,D$4,'SQL Revenue Analysis'!$J$1:$J$65536,$B$7,'SQL Revenue Analysis'!$D$1:$D$65536,$A12)+SUMIFS('SQL Revenue Analysis'!$E$1:$E$65536,'SQL Revenue Analysis'!$A$1:$A$65536,D$4,'SQL Revenue Analysis'!$J$1:$J$65536,$B$8,'SQL Revenue Analysis'!$D$1:$D$65536,$A12)) -> 0 | E12: =-(SUMIFS('SQL Revenue Analysis'!$E$1:$E$65536,'SQL Revenue Analysis'!$A$1:$A$65536,E$4,'SQL Revenue Analysis'!$J$1:$J$65536,$B$7,'SQL Revenue Analysis'!$D$1:$D$65536,$A12)+SUMIFS('SQL Revenue Analysis'!$E$1:$E$65536,'SQL Revenue Analysis'!$A$1:$A$65536,E$4,'SQL Revenue Analysis'!$J$1:$J$65536,$B$8,'SQL Revenue Analysis'!$D$1:$D$65536,$A12)) -> 0 | F12: =-(SUMIFS('SQL Revenue Analysis'!$E$1:$E$65536,'SQL Revenue Analysis'!$A$1:$A$65536,F$4,'SQL Revenue Analysis'!$J$1:$J$65536,$B$7,'SQL Revenue Analysis'!$D$1:$D$65536,$A12)+SUMIFS('SQL Revenue Analysis'!$E$1:$E$65536,'SQL Revenue Analysis'!$A$1:$A$65536,F$4,'SQL Revenue Analysis'!$J$1:$J$65536,$B$8,'SQL Revenue Analysis'!$D$1:$D$65536,$A12)) -> 0 | G12: =-(SUMIFS('SQL Revenue Analysis'!$E$1:$E$65536,'SQL Revenue Analysis'!$A$1:$A$65536,G$4,'SQL Revenue Analysis'!$J$1:$J$65536,$B$7,'SQL Revenue Analysis'!$D$1:$D$65536,$A12)+SUMIFS('SQL Revenue Analysis'!$E$1:$E$65536,'SQL Revenue Analysis'!$A$1:$A$65536,G$4,'SQL Revenue Analysis'!$J$1:$J$65536,$B$8,'SQL Revenue Analysis'!$D$1:$D$65536,$A12)) -> 0 | H12: =-(SUMIFS('SQL Revenue Analysis'!$E$1:$E$65536,'SQL Revenue Analysis'!$A$1:$A$65536,H$4,'SQL Revenue Analysis'!$J$1:$J$65536,$B$7,'SQL Revenue Analysis'!$D$1:$D$65536,$A12)+SUMIFS('SQL Revenue Analysis'!$E$1:$E$65536,'SQL Revenue Analysis'!$A$1:$A$65536,H$4,'SQL Revenue Analysis'!$J$1:$J$65536,$B$8,'SQL Revenue Analysis'!$D$1:$D$65536,$A12)) -> 0 | I12: =-(SUMIFS('SQL Revenue Analysis'!$E$1:$E$65536,'SQL Revenue Analysis'!$A$1:$A$65536,I$4,'SQL Revenue Analysis'!$J$1:$J$65536,$B$7,'SQL Revenue Analysis'!$D$1:$D$65536,$A12)+SUMIFS('SQL Revenue Analysis'!$E$1:$E$65536,'SQL Revenue Analysis'!$A$1:$A$65536,I$4,'SQL Revenue Analysis'!$J$1:$J$65536,$B$8,'SQL Revenue Analysis'!$D$1:$D$65536,$A12)) -> 0 | J12: =-(SUMIFS('SQL Revenue Analysis'!$E$1:$E$65536,'SQL Revenue Analysis'!$A$1:$A$65536,J$4,'SQL Revenue Analysis'!$J$1:$J$65536,$B$7,'SQL Revenue Analysis'!$D$1:$D$65536,$A12)+SUMIFS('SQL Revenue Analysis'!$E$1:$E$65536,'SQL Revenue Analysis'!$A$1:$A$65536,J$4,'SQL Revenue Analysis'!$J$1:$J$65536,$B$8,'SQL Revenue Analysis'!$D$1:$D$65536,$A12)) -> 0 | K12: =-(SUMIFS('SQL Revenue Analysis'!$E$1:$E$65536,'SQL Revenue Analysis'!$A$1:$A$65536,K$4,'SQL Revenue Analysis'!$J$1:$J$65536,$B$7,'SQL Revenue Analysis'!$D$1:$D$65536,$A12)+SUMIFS('SQL Revenue Analysis'!$E$1:$E$65536,'SQL Revenue Analysis'!$A$1:$A$65536,K$4,'SQL Revenue Analysis'!$J$1:$J$65536,$B$8,'SQL Revenue Analysis'!$D$1:$D$65536,$A12)) -> 0 | L12: =-(SUMIFS('SQL Revenue Analysis'!$E$1:$E$65536,'SQL Revenue Analysis'!$A$1:$A$65536,L$4,'SQL Revenue Analysis'!$J$1:$J$65536,$B$7,'SQL Revenue Analysis'!$D$1:$D$65536,$A12)+SUMIFS('SQL Revenue Analysis'!$E$1:$E$65536,'SQL Revenue Analysis'!$A$1:$A$65536,L$4,'SQL Revenue Analysis'!$J$1:$J$65536,$B$8,'SQL Revenue Analysis'!$D$1:$D$65536,$A12)) -> 0 | M12: =-(SUMIFS('SQL Revenue Analysis'!$E$1:$E$65536,'SQL Revenue Analysis'!$A$1:$A$65536,M$4,'SQL Revenue Analysis'!$J$1:$J$65536,$B$7,'SQL Revenue Analysis'!$D$1:$D$65536,$A12)+SUMIFS('SQL Revenue Analysis'!$E$1:$E$65536,'SQL Revenue Analysis'!$A$1:$A$65536,M$4,'SQL Revenue Analysis'!$J$1:$J$65536,$B$8,'SQL Revenue Analysis'!$D$1:$D$65536,$A12)) -> 0 | N12: =-(SUMIFS('SQL Revenue Analysis'!$E$1:$E$65536,'SQL Revenue Analysis'!$A$1:$A$65536,N$4,'SQL Revenue Analysis'!$J$1:$J$65536,$B$7,'SQL Revenue Analysis'!$D$1:$D$65536,$A12)+SUMIFS('SQL Revenue Analysis'!$E$1:$E$65536,'SQL Revenue Analysis'!$A$1:$A$65536,N$4,'SQL Revenue Analysis'!$J$1:$J$65536,$B$8,'SQL Revenue Analysis'!$D$1:$D$65536,$A12)) -> 0 | O12: =-(SUMIFS('SQL Revenue Analysis'!$E$1:$E$65536,'SQL Revenue Analysis'!$A$1:$A$65536,O$4,'SQL Revenue Analysis'!$J$1:$J$65536,$B$7,'SQL Revenue Analysis'!$D$1:$D$65536,$A12)+SUMIFS('SQL Revenue Analysis'!$E$1:$E$65536,'SQL Revenue Analysis'!$A$1:$A$65536,O$4,'SQL Revenue Analysis'!$J$1:$J$65536,$B$8,'SQL Revenue Analysis'!$D$1:$D$65536,$A12)) -> 0 | Q12: 0
A13: CBB | B13: =+B12 -> 30 / 70 | C13: Extra - Can/Bag/Box | D13: =-(SUMIFS('SQL Revenue Analysis'!$E$1:$E$65536,'SQL Revenue Analysis'!$A$1:$A$65536,D$4,'SQL Revenue Analysis'!$J$1:$J$65536,$B$7,'SQL Revenue Analysis'!$D$1:$D$65536,$A13)+SUMIFS('SQL Revenue Analysis'!$E$1:$E$65536,'SQL Revenue Analysis'!$A$1:$A$65536,D$4,'SQL Revenue Analysis'!$J$1:$J$65536,$B$8,'SQL Revenue Analysis'!$D$1:$D$65536,$A13)) -> 0 | E13: =-(SUMIFS('SQL Revenue Analysis'!$E$1:$E$65536,'SQL Revenue Analysis'!$A$1:$A$65536,E$4,'SQL Revenue Analysis'!$J$1:$J$65536,$B$7,'SQL Revenue Analysis'!$D$1:$D$65536,$A13)+SUMIFS('SQL Revenue Analysis'!$E$1:$E$65536,'SQL Revenue Analysis'!$A$1:$A$65536,E$4,'SQL Revenue Analysis'!$J$1:$J$65536,$B$8,'SQL Revenue Analysis'!$D$1:$D$65536,$A13)) -> 0 | F13: =-(SUMIFS('SQL Revenue Analysis'!$E$1:$E$65536,'SQL Revenue Analysis'!$A$1:$A$65536,F$4,'SQL Revenue Analysis'!$J$1:$J$65536,$B$7,'SQL Revenue Analysis'!$D$1:$D$65536,$A13)+SUMIFS('SQL Revenue Analysis'!$E$1:$E$65536,'SQL Revenue Analysis'!$A$1:$A$65536,F$4,'SQL Revenue Analysis'!$J$1:$J$65536,$B$8,'SQL Revenue Analysis'!$D$1:$D$65536,$A13)) -> 0 | G13: =-(SUMIFS('SQL Revenue Analysis'!$E$1:$E$65536,'SQL Revenue Analysis'!$A$1:$A$65536,G$4,'SQL Revenue Analysis'!$J$1:$J$65536,$B$7,'SQL Revenue Analysis'!$D$1:$D$65536,$A13)+SUMIFS('SQL Revenue Analysis'!$E$1:$E$65536,'SQL Revenue Analysis'!$A$1:$A$65536,G$4,'SQL Revenue Analysis'!$J$1:$J$65536,$B$8,'SQL Revenue Analysis'!$D$1:$D$65536,$A13)) -> 0 | H13: =-(SUMIFS('SQL Revenue Analysis'!$E$1:$E$65536,'SQL Revenue Analysis'!$A$1:$A$65536,H$4,'SQL Revenue Analysis'!$J$1:$J$65536,$B$7,'SQL Revenue Analysis'!$D$1:$D$65536,$A13)+SUMIFS('SQL Revenue Analysis'!$E$1:$E$65536,'SQL Revenue Analysis'!$A$1:$A$65536,H$4,'SQL Revenue Analysis'!$J$1:$J$65536,$B$8,'SQL Revenue Analysis'!$D$1:$D$65536,$A13)) -> 0 | I13: =-(SUMIFS('SQL Revenue Analysis'!$E$1:$E$65536,'SQL Revenue Analysis'!$A$1:$A$65536,I$4,'SQL Revenue Analysis'!$J$1:$J$65536,$B$7,'SQL Revenue Analysis'!$D$1:$D$65536,$A13)+SUMIFS('SQL Revenue Analysis'!$E$1:$E$65536,'SQL Revenue Analysis'!$A$1:$A$65536,I$4,'SQL Revenue Analysis'!$J$1:$J$65536,$B$8,'SQL Revenue Analysis'!$D$1:$D$65536,$A13)) -> 0 | J13: =-(SUMIFS('SQL Revenue Analysis'!$E$1:$E$65536,'SQL Revenue Analysis'!$A$1:$A$65536,J$4,'SQL Revenue Analysis'!$J$1:$J$65536,$B$7,'SQL Revenue Analysis'!$D$1:$D$65536,$A13)+SUMIFS('SQL Revenue Analysis'!$E$1:$E$65536,'SQL Revenue Analysis'!$A$1:$A$65536,J$4,'SQL Revenue Analysis'!$J$1:$J$65536,$B$8,'SQL Revenue Analysis'!$D$1:$D$65536,$A13)) -> 0 | K13: =-(SUMIFS('SQL Revenue Analysis'!$E$1:$E$65536,'SQL Revenue Analysis'!$A$1:$A$65536,K$4,'SQL Revenue Analysis'!$J$1:$J$65536,$B$7,'SQL Revenue Analysis'!$D$1:$D$65536,$A13)+SUMIFS('SQL Revenue Analysis'!$E$1:$E$65536,'SQL Revenue Analysis'!$A$1:$A$65536,K$4,'SQL Revenue Analysis'!$J$1:$J$65536,$B$8,'SQL Revenue Analysis'!$D$1:$D$65536,$A13)) -> 0 | L13: =-(SUMIFS('SQL Revenue Analysis'!$E$1:$E$65536,'SQL Revenue Analysis'!$A$1:$A$65536,L$4,'SQL Revenue Analysis'!$J$1:$J$65536,$B$7,'SQL Revenue Analysis'!$D$1:$D$65536,$A13)+SUMIFS('SQL Revenue Analysis'!$E$1:$E$65536,'SQL Revenue Analysis'!$A$1:$A$65536,L$4,'SQL Revenue Analysis'!$J$1:$J$65536,$B$8,'SQL Revenue Analysis'!$D$1:$D$65536,$A13)) -> 0 | M13: =-(SUMIFS('SQL Revenue Analysis'!$E$1:$E$65536,'SQL Revenue Analysis'!$A$1:$A$65536,M$4,'SQL Revenue Analysis'!$J$1:$J$65536,$B$7,'SQL Revenue Analysis'!$D$1:$D$65536,$A13)+SUMIFS('SQL Revenue Analysis'!$E$1:$E$65536,'SQL Revenue Analysis'!$A$1:$A$65536,M$4,'SQL Revenue Analysis'!$J$1:$J$65536,$B$8,'SQL Revenue Analysis'!$D$1:$D$65536,$A13)) -> 0 | N13: =-(SUMIFS('SQL Revenue Analysis'!$E$1:$E$65536,'SQL Revenue Analysis'!$A$1:$A$65536,N$4,'SQL Revenue Analysis'!$J$1:$J$65536,$B$7,'SQL Revenue Analysis'!$D$1:$D$65536,$A13)+SUMIFS('SQL Revenue Analysis'!$E$1:$E$65536,'SQL Revenue Analysis'!$A$1:$A$65536,N$4,'SQL Revenue Analysis'!$J$1:$J$65536,$B$8,'SQL Revenue Analysis'!$D$1:$D$65536,$A13)) -> 0 | O13: =-(SUMIFS('SQL Revenue Analysis'!$E$1:$E$65536,'SQL Revenue Analysis'!$A$1:$A$65536,O$4,'SQL Revenue Analysis'!$J$1:$J$65536,$B$7,'SQL Revenue Analysis'!$D$1:$D$65536,$A13)+SUMIFS('SQL Revenue Analysis'!$E$1:$E$65536,'SQL Revenue Analysis'!$A$1:$A$65536,O$4,'SQL Revenue Analysis'!$J$1:$J$65536,$B$8,'SQL Revenue Analysis'!$D$1:$D$65536,$A13)) -> 0 | Q13: 0
A14: EXY | B14: =+B13 -> 30 / 70 | C14: Extra - Extra Yard | D14: =-(SUMIFS('SQL Revenue Analysis'!$E$1:$E$65536,'SQL Revenue Analysis'!$A$1:$A$65536,D$4,'SQL Revenue Analysis'!$J$1:$J$65536,$B$7,'SQL Revenue Analysis'!$D$1:$D$65536,$A14)+SUMIFS('SQL Revenue Analysis'!$E$1:$E$65536,'SQL Revenue Analysis'!$A$1:$A$65536,D$4,'SQL Revenue Analysis'!$J$1:$J$65536,$B$8,'SQL Revenue Analysis'!$D$1:$D$65536,$A14)) -> -12.5 | E14: =-(SUMIFS('SQL Revenue Analysis'!$E$1:$E$65536,'SQL Revenue Analysis'!$A$1:$A$65536,E$4,'SQL Revenue Analysis'!$J$1:$J$65536,$B$7,'SQL Revenue Analysis'!$D$1:$D$65536,$A14)+SUMIFS('SQL Revenue Analysis'!$E$1:$E$65536,'SQL Revenue Analysis'!$A$1:$A$65536,E$4,'SQL Revenue Analysis'!$J$1:$J$65536,$B$8,'SQL Revenue Analysis'!$D$1:$D$65536,$A14)) -> -12.5 | F14: =-(SUMIFS('SQL Revenue Analysis'!$E$1:$E$65536,'SQL Revenue Analysis'!$A$1:$A$65536,F$4,'SQL Revenue Analysis'!$J$1:$J$65536,$B$7,'SQL Revenue Analysis'!$D$1:$D$65536,$A14)+SUMIFS('SQL Revenue Analysis'!$E$1:$E$65536,'SQL Revenue Analysis'!$A$1:$A$65536,F$4,'SQL Revenue Analysis'!$J$1:$J$65536,$B$8,'SQL Revenue Analysis'!$D$1:$D$65536,$A14)) -> -12.5 | G14: =-(SUMIFS('SQL Revenue Analysis'!$E$1:$E$65536,'SQL Revenue Analysis'!$A$1:$A$65536,G$4,'SQL Revenue Analysis'!$J$1:$J$65536,$B$7,'SQL Revenue Analysis'!$D$1:$D$65536,$A14)+SUMIFS('SQL Revenue Analysis'!$E$1:$E$65536,'SQL Revenue Analysis'!$A$1:$A$65536,G$4,'SQL Revenue Analysis'!$J$1:$J$65536,$B$8,'SQL Revenue Analysis'!$D$1:$D$65536,$A14)) -> -12.5 | H14: =-(SUMIFS('SQL Revenue Analysis'!$E$1:$E$65536,'SQL Revenue Analysis'!$A$1:$A$65536,H$4,'SQL Revenue Analysis'!$J$1:$J$65536,$B$7,'SQL Revenue Analysis'!$D$1:$D$65536,$A14)+SUMIFS('SQL Revenue Analysis'!$E$1:$E$65536,'SQL Revenue Analysis'!$A$1:$A$65536,H$4,'SQL Revenue Analysis'!$J$1:$J$65536,$B$8,'SQL Revenue Analysis'!$D$1:$D$65536,$A14)) -> -37.5 | I14: =-(SUMIFS('SQL Revenue Analysis'!$E$1:$E$65536,'SQL Revenue Analysis'!$A$1:$A$65536,I$4,'SQL Revenue Analysis'!$J$1:$J$65536,$B$7,'SQL Revenue Analysis'!$D$1:$D$65536,$A14)+SUMIFS('SQL Revenue Analysis'!$E$1:$E$65536,'SQL Revenue Analysis'!$A$1:$A$65536,I$4,'SQL Revenue Analysis'!$J$1:$J$65536,$B$8,'SQL Revenue Analysis'!$D$1:$D$65536,$A14)) -> -125 | J14: =-(SUMIFS('SQL Revenue Analysis'!$E$1:$E$65536,'SQL Revenue Analysis'!$A$1:$A$65536,J$4,'SQL Revenue Analysis'!$J$1:$J$65536,$B$7,'SQL Revenue Analysis'!$D$1:$D$65536,$A14)+SUMIFS('SQL Revenue Analysis'!$E$1:$E$65536,'SQL Revenue Analysis'!$A$1:$A$65536,J$4,'SQL Revenue Analysis'!$J$1:$J$65536,$B$8,'SQL Revenue Analysis'!$D$1:$D$65536,$A14)) -> -25 | K14: =-(SUMIFS('SQL Revenue Analysis'!$E$1:$E$65536,'SQL Revenue Analysis'!$A$1:$A$65536,K$4,'SQL Revenue Analysis'!$J$1:$J$65536,$B$7,'SQL Revenue Analysis'!$D$1:$D$65536,$A14)+SUMIFS('SQL Revenue Analysis'!$E$1:$E$65536,'SQL Revenue Analysis'!$A$1:$A$65536,K$4,'SQL Revenue Analysis'!$J$1:$J$65536,$B$8,'SQL Revenue Analysis'!$D$1:$D$65536,$A14)) -> -75 | L14: =-(SUMIFS('SQL Revenue Analysis'!$E$1:$E$65536,'SQL Revenue Analysis'!$A$1:$A$65536,L$4,'SQL Revenue Analysis'!$J$1:$J$65536,$B$7,'SQL Revenue Analysis'!$D$1:$D$65536,$A14)+SUMIFS('SQL Revenue Analysis'!$E$1:$E$65536,'SQL Revenue Analysis'!$A$1:$A$65536,L$4,'SQL Revenue Analysis'!$J$1:$J$65536,$B$8,'SQL Revenue Analysis'!$D$1:$D$65536,$A14)) -> -12.5 | M14: =-(SUMIFS('SQL Revenue Analysis'!$E$1:$E$65536,'SQL Revenue Analysis'!$A$1:$A$65536,M$4,'SQL Revenue Analysis'!$J$1:$J$65536,$B$7,'SQL Revenue Analysis'!$D$1:$D$65536,$A14)+SUMIFS('SQL Revenue Analysis'!$E$1:$E$65536,'SQL Revenue Analysis'!$A$1:$A$65536,M$4,'SQL Revenue Analysis'!$J$1:$J$65536,$B$8,'SQL Revenue Analysis'!$D$1:$D$65536,$A14)) -> 0 | N14: =-(SUMIFS('SQL Revenue Analysis'!$E$1:$E$65536,'SQL Revenue Analysis'!$A$1:$A$65536,N$4,'SQL Revenue Analysis'!$J$1:$J$65536,$B$7,'SQL Revenue Analysis'!$D$1:$D$65536,$A14)+SUMIFS('SQL Revenue Analysis'!$E$1:$E$65536,'SQL Revenue Analysis'!$A$1:$A$65536,N$4,'SQL Revenue Analysis'!$J$1:$J$65536,$B$8,'SQL Revenue Analysis'!$D$1:$D$65536,$A14)) -> 0 | O14: =-(SUMIFS('SQL Revenue Analysis'!$E$1:$E$65536,'SQL Revenue Analysis'!$A$1:$A$65536,O$4,'SQL Revenue Analysis'!$J$1:$J$65536,$B$7,'SQL Revenue Analysis'!$D$1:$D$65536,$A14)+SUMIFS('SQL Revenue Analysis'!$E$1:$E$65536,'SQL Revenue Analysis'!$A$1:$A$65536,O$4,'SQL Revenue Analysis'!$J$1:$J$65536,$B$8,'SQL Revenue Analysis'!$D$1:$D$65536,$A14)) -> -12.5 | Q14: -337.5
A15: DRV | B15: =+B14 -> 30 / 70 | C15: Drive-in Service | D15: =-(SUMIFS('SQL Revenue Analysis'!$E$1:$E$65536,'SQL Revenue Analysis'!$A$1:$A$65536,D$4,'SQL Revenue Analysis'!$J$1:$J$65536,$B$7,'SQL Revenue Analysis'!$D$1:$D$65536,$A15)+SUMIFS('SQL Revenue Analysis'!$E$1:$E$65536,'SQL Revenue Analysis'!$A$1:$A$65536,D$4,'SQL Revenue Analysis'!$J$1:$J$65536,$B$8,'SQL Revenue Analysis'!$D$1:$D$65536,$A15)) -> -202.96 | E15: =-(SUMIFS('SQL Revenue Analysis'!$E$1:$E$65536,'SQL Revenue Analysis'!$A$1:$A$65536,E$4,'SQL Revenue Analysis'!$J$1:$J$65536,$B$7,'SQL Revenue Analysis'!$D$1:$D$65536,$A15)+SUMIFS('SQL Revenue Analysis'!$E$1:$E$65536,'SQL Revenue Analysis'!$A$1:$A$65536,E$4,'SQL Revenue Analysis'!$J$1:$J$65536,$B$8,'SQL Revenue Analysis'!$D$1:$D$65536,$A15)) -> -256.06 | F15: =-(SUMIFS('SQL Revenue Analysis'!$E$1:$E$65536,'SQL Revenue Analysis'!$A$1:$A$65536,F$4,'SQL Revenue Analysis'!$J$1:$J$65536,$B$7,'SQL Revenue Analysis'!$D$1:$D$65536,$A15)+SUMIFS('SQL Revenue Analysis'!$E$1:$E$65536,'SQL Revenue Analysis'!$A$1:$A$65536,F$4,'SQL Revenue Analysis'!$J$1:$J$65536,$B$8,'SQL Revenue Analysis'!$D$1:$D$65536,$A15)) -> -180.45 | G15: =-(SUMIFS('SQL Revenue Analysis'!$E$1:$E$65536,'SQL Revenue Analysis'!$A$1:$A$65536,G$4,'SQL Revenue Analysis'!$J$1:$J$65536,$B$7,'SQL Revenue Analysis'!$D$1:$D$65536,$A15)+SUMIFS('SQL Revenue Analysis'!$E$1:$E$65536,'SQL Revenue Analysis'!$A$1:$A$65536,G$4,'SQL Revenue Analysis'!$J$1:$J$65536,$B$8,'SQL Revenue Analysis'!$D$1:$D$65536,$A15)) -> -207.09 | H15: =-(SUMIFS('SQL Revenue Analysis'!$E$1:$E$65536,'SQL Revenue Analysis'!$A$1:$A$65536,H$4,'SQL Revenue Analysis'!$J$1:$J$65536,$B$7,'SQL Revenue Analysis'!$D$1:$D$65536,$A15)+SUMIFS('SQL Revenue Analysis'!$E$1:$E$65536,'SQL Revenue Analysis'!$A$1:$A$65536,H$4,'SQL Revenue Analysis'!$J$1:$J$65536,$B$8,'SQL Revenue Analysis'!$D$1:$D$65536,$A15)) -> -253.11 | I15: =-(SUMIFS('SQL Revenue Analysis'!$E$1:$E$65536,'SQL Revenue Analysis'!$A$1:$A$65536,I$4,'SQL Revenue Analysis'!$J$1:$J$65536,$B$7,'SQL Revenue Analysis'!$D$1:$D$65536,$A15)+SUMIFS('SQL Revenue Analysis'!$E$1:$E$65536,'SQL Revenue Analysis'!$A$1:$A$65536,I$4,'SQL Revenue Analysis'!$J$1:$J$65536,$B$8,'SQL Revenue Analysis'!$D$1:$D$65536,$A15)) -> -188.11 | J15: =-(SUMIFS('SQL Revenue Analysis'!$E$1:$E$65536,'SQL Revenue Analysis'!$A$1:$A$65536,J$4,'SQL Revenue Analysis'!$J$1:$J$65536,$B$7,'SQL Revenue Analysis'!$D$1:$D$65536,$A15)+SUMIFS('SQL Revenue Analysis'!$E$1:$E$65536,'SQL Revenue Analysis'!$A$1:$A$65536,J$4,'SQL Revenue Analysis'!$J$1:$J$65536,$B$8,'SQL Revenue Analysis'!$D$1:$D$65536,$A15)) -> -205.07 | K15: =-(SUMIFS('SQL Revenue Analysis'!$E$1:$E$65536,'SQL Revenue Analysis'!$A$1:$A$65536,K$4,'SQL Revenue Analysis'!$J$1:$J$65536,$B$7,'SQL Revenue Analysis'!$D$1:$D$65536,$A15)+SUMIFS('SQL Revenue Analysis'!$E$1:$E$65536,'SQL Revenue Analysis'!$A$1:$A$65536,K$4,'SQL Revenue Analysis'!$J$1:$J$65536,$B$8,'SQL Revenue Analysis'!$D$1:$D$65536,$A15)) -> -230.1 | L15: =-(SUMIFS('SQL Revenue Analysis'!$E$1:$E$65536,'SQL Revenue Analysis'!$A$1:$A$65536,L$4,'SQL Revenue Analysis'!$J$1:$J$65536,$B$7,'SQL Revenue Analysis'!$D$1:$D$65536,$A15)+SUMIFS('SQL Revenue Analysis'!$E$1:$E$65536,'SQL Revenue Analysis'!$A$1:$A$65536,L$4,'SQL Revenue Analysis'!$J$1:$J$65536,$B$8,'SQL Revenue Analysis'!$D$1:$D$65536,$A15)) -> -165.97 | M15: =-(SUMIFS('SQL Revenue Analysis'!$E$1:$E$65536,'SQL Revenue Analysis'!$A$1:$A$65536,M$4,'SQL Revenue Analysis'!$J$1:$J$65536,$B$7,'SQL Revenue Analysis'!$D$1:$D$65536,$A15)+SUMIFS('SQL Revenue Analysis'!$E$1:$E$65536,'SQL Revenue Analysis'!$A$1:$A$65536,M$4,'SQL Revenue Analysis'!$J$1:$J$65536,$B$8,'SQL Revenue Analysis'!$D$1:$D$65536,$A15)) -> -192.76 | N15: =-(SUMIFS('SQL Revenue Analysis'!$E$1:$E$65536,'SQL Revenue Analysis'!$A$1:$A$65536,N$4,'SQL Revenue Analysis'!$J$1:$J$65536,$B$7,'SQL Revenue Analysis'!$D$1:$D$65536,$A15)+SUMIFS('SQL Revenue Analysis'!$E$1:$E$65536,'SQL Revenue Analysis'!$A$1:$A$65536,N$4,'SQL Revenue Analysis'!$J$1:$J$65536,$B$8,'SQL Revenue Analysis'!$D$1:$D$65536,$A15)) -> -222.43 | O15: =-(SUMIFS('SQL Revenue Analysis'!$E$1:$E$65536,'SQL Revenue Analysis'!$A$1:$A$65536,O$4,'SQL Revenue Analysis'!$J$1:$J$65536,$B$7,'SQL Revenue Analysis'!$D$1:$D$65536,$A15)+SUMIFS('SQL Revenue Analysis'!$E$1:$E$65536,'SQL Revenue Analysis'!$A$1:$A$65536,O$4,'SQL Revenue Analysis'!$J$1:$J$65536,$B$8,'SQL Revenue Analysis'!$D$1:$D$65536,$A15)) -> -268.45 | Q15: -2572.56
A16: HRS | B16: 30 / 70 | C16: Hours | D16: =-(SUMIFS('SQL Revenue Analysis'!$E$1:$E$65536,'SQL Revenue Analysis'!$A$1:$A$65536,D$4,'SQL Revenue Analysis'!$J$1:$J$65536,$B$7,'SQL Revenue Analysis'!$D$1:$D$65536,$A16)+SUMIFS('SQL Revenue Analysis'!$E$1:$E$65536,'SQL Revenue Analysis'!$A$1:$A$65536,D$4,'SQL Revenue Analysis'!$J$1:$J$65536,$B$8,'SQL Revenue Analysis'!$D$1:$D$65536,$A16)) -> 0 | E16: =-(SUMIFS('SQL Revenue Analysis'!$E$1:$E$65536,'SQL Revenue Analysis'!$A$1:$A$65536,E$4,'SQL Revenue Analysis'!$J$1:$J$65536,$B$7,'SQL Revenue Analysis'!$D$1:$D$65536,$A16)+SUMIFS('SQL Revenue Analysis'!$E$1:$E$65536,'SQL Revenue Analysis'!$A$1:$A$65536,E$4,'SQL Revenue Analysis'!$J$1:$J$65536,$B$8,'SQL Revenue Analysis'!$D$1:$D$65536,$A16)) -> 0 | F16: =-(SUMIFS('SQL Revenue Analysis'!$E$1:$E$65536,'SQL Revenue Analysis'!$A$1:$A$65536,F$4,'SQL Revenue Analysis'!$J$1:$J$65536,$B$7,'SQL Revenue Analysis'!$D$1:$D$65536,$A16)+SUMIFS('SQL Revenue Analysis'!$E$1:$E$65536,'SQL Revenue Analysis'!$A$1:$A$65536,F$4,'SQL Revenue Analysis'!$J$1:$J$65536,$B$8,'SQL Revenue Analysis'!$D$1:$D$65536,$A16)) -> 0 | G16: =-(SUMIFS('SQL Revenue Analysis'!$E$1:$E$65536,'SQL Revenue Analysis'!$A$1:$A$65536,G$4,'SQL Revenue Analysis'!$J$1:$J$65536,$B$7,'SQL Revenue Analysis'!$D$1:$D$65536,$A16)+SUMIFS('SQL Revenue Analysis'!$E$1:$E$65536,'SQL Revenue Analysis'!$A$1:$A$65536,G$4,'SQL Revenue Analysis'!$J$1:$J$65536,$B$8,'SQL Revenue Analysis'!$D$1:$D$65536,$A16)) -> 0 | H16: =-(SUMIFS('SQL Revenue Analysis'!$E$1:$E$65536,'SQL Revenue Analysis'!$A$1:$A$65536,H$4,'SQL Revenue Analysis'!$J$1:$J$65536,$B$7,'SQL Revenue Analysis'!$D$1:$D$65536,$A16)+SUMIFS('SQL Revenue Analysis'!$E$1:$E$65536,'SQL Revenue Analysis'!$A$1:$A$65536,H$4,'SQL Revenue Analysis'!$J$1:$J$65536,$B$8,'SQL Revenue Analysis'!$D$1:$D$65536,$A16)) -> 0 | I16: =-(SUMIFS('SQL Revenue Analysis'!$E$1:$E$65536,'SQL Revenue Analysis'!$A$1:$A$65536,I$4,'SQL Revenue Analysis'!$J$1:$J$65536,$B$7,'SQL Revenue Analysis'!$D$1:$D$65536,$A16)+SUMIFS('SQL Revenue Analysis'!$E$1:$E$65536,'SQL Revenue Analysis'!$A$1:$A$65536,I$4,'SQL Revenue Analysis'!$J$1:$J$65536,$B$8,'SQL Revenue Analysis'!$D$1:$D$65536,$A16)) -> 0 | J16: =-(SUMIFS('SQL Revenue Analysis'!$E$1:$E$65536,'SQL Revenue Analysis'!$A$1:$A$65536,J$4,'SQL Revenue Analysis'!$J$1:$J$65536,$B$7,'SQL Revenue Analysis'!$D$1:$D$65536,$A16)+SUMIFS('SQL Revenue Analysis'!$E$1:$E$65536,'SQL Revenue Analysis'!$A$1:$A$65536,J$4,'SQL Revenue Analysis'!$J$1:$J$65536,$B$8,'SQL Revenue Analysis'!$D$1:$D$65536,$A16)) -> 0 | K16: =-(SUMIFS('SQL Revenue Analysis'!$E$1:$E$65536,'SQL Revenue Analysis'!$A$1:$A$65536,K$4,'SQL Revenue Analysis'!$J$1:$J$65536,$B$7,'SQL Revenue Analysis'!$D$1:$D$65536,$A16)+SUMIFS('SQL Revenue Analysis'!$E$1:$E$65536,'SQL Revenue Analysis'!$A$1:$A$65536,K$4,'SQL Revenue Analysis'!$J$1:$J$65536,$B$8,'SQL Revenue Analysis'!$D$1:$D$65536,$A16)) -> 0 | L16: =-(SUMIFS('SQL Revenue Analysis'!$E$1:$E$65536,'SQL Revenue Analysis'!$A$1:$A$65536,L$4,'SQL Revenue Analysis'!$J$1:$J$65536,$B$7,'SQL Revenue Analysis'!$D$1:$D$65536,$A16)+SUMIFS('SQL Revenue Analysis'!$E$1:$E$65536,'SQL Revenue Analysis'!$A$1:$A$65536,L$4,'SQL Revenue Analysis'!$J$1:$J$65536,$B$8,'SQL Revenue Analysis'!$D$1:$D$65536,$A16)) -> 0 | M16: =-(SUMIFS('SQL Revenue Analysis'!$E$1:$E$65536,'SQL Revenue Analysis'!$A$1:$A$65536,M$4,'SQL Revenue Analysis'!$J$1:$J$65536,$B$7,'SQL Revenue Analysis'!$D$1:$D$65536,$A16)+SUMIFS('SQL Revenue Analysis'!$E$1:$E$65536,'SQL Revenue Analysis'!$A$1:$A$65536,M$4,'SQL Revenue Analysis'!$J$1:$J$65536,$B$8,'SQL Revenue Analysis'!$D$1:$D$65536,$A16)) -> 0 | N16: =-(SUMIFS('SQL Revenue Analysis'!$E$1:$E$65536,'SQL Revenue Analysis'!$A$1:$A$65536,N$4,'SQL Revenue Analysis'!$J$1:$J$65536,$B$7,'SQL Revenue Analysis'!$D$1:$D$65536,$A16)+SUMIFS('SQL Revenue Analysis'!$E$1:$E$65536,'SQL Revenue Analysis'!$A$1:$A$65536,N$4,'SQL Revenue Analysis'!$J$1:$J$65536,$B$8,'SQL Revenue Analysis'!$D$1:$D$65536,$A16)) -> 0 | O16: =-(SUMIFS('SQL Revenue Analysis'!$E$1:$E$65536,'SQL Revenue Analysis'!$A$1:$A$65536,O$4,'SQL Revenue Analysis'!$J$1:$J$65536,$B$7,'SQL Revenue Analysis'!$D$1:$D$65536,$A16)+SUMIFS('SQL Revenue Analysis'!$E$1:$E$65536,'SQL Revenue Analysis'!$A$1:$A$65536,O$4,'SQL Revenue Analysis'!$J$1:$J$65536,$B$8,'SQL Revenue Analysis'!$D$1:$D$65536,$A16)) -> 0 | Q16: 0
A17: PUL | B17: 30 / 70 | C17: Pull Out Charge | D17: =-(SUMIFS('SQL Revenue Analysis'!$E$1:$E$65536,'SQL Revenue Analysis'!$A$1:$A$65536,D$4,'SQL Revenue Analysis'!$J$1:$J$65536,$B$7,'SQL Revenue Analysis'!$D$1:$D$65536,$A17)+SUMIFS('SQL Revenue Analysis'!$E$1:$E$65536,'SQL Revenue Analysis'!$A$1:$A$65536,D$4,'SQL Revenue Analysis'!$J$1:$J$65536,$B$8,'SQL Revenue Analysis'!$D$1:$D$65536,$A17)) -> 0 | E17: =-(SUMIFS('SQL Revenue Analysis'!$E$1:$E$65536,'SQL Revenue Analysis'!$A$1:$A$65536,E$4,'SQL Revenue Analysis'!$J$1:$J$65536,$B$7,'SQL Revenue Analysis'!$D$1:$D$65536,$A17)+SUMIFS('SQL Revenue Analysis'!$E$1:$E$65536,'SQL Revenue Analysis'!$A$1:$A$65536,E$4,'SQL Revenue Analysis'!$J$1:$J$65536,$B$8,'SQL Revenue Analysis'!$D$1:$D$65536,$A17)) -> 0 | F17: =-(SUMIFS('SQL Revenue Analysis'!$E$1:$E$65536,'SQL Revenue Analysis'!$A$1:$A$65536,F$4,'SQL Revenue Analysis'!$J$1:$J$65536,$B$7,'SQL Revenue Analysis'!$D$1:$D$65536,$A17)+SUMIFS('SQL Revenue Analysis'!$E$1:$E$65536,'SQL Revenue Analysis'!$A$1:$A$65536,F$4,'SQL Revenue Analysis'!$J$1:$J$65536,$B$8,'SQL Revenue Analysis'!$D$1:$D$65536,$A17)) -> 0 | G17: =-(SUMIFS('SQL Revenue Analysis'!$E$1:$E$65536,'SQL Revenue Analysis'!$A$1:$A$65536,G$4,'SQL Revenue Analysis'!$J$1:$J$65536,$B$7,'SQL Revenue Analysis'!$D$1:$D$65536,$A17)+SUMIFS('SQL Revenue Analysis'!$E$1:$E$65536,'SQL Revenue Analysis'!$A$1:$A$65536,G$4,'SQL Revenue Analysis'!$J$1:$J$65536,$B$8,'SQL Revenue Analysis'!$D$1:$D$65536,$A17)) -> 0 | H17: =-(SUMIFS('SQL Revenue Analysis'!$E$1:$E$65536,'SQL Revenue Analysis'!$A$1:$A$65536,H$4,'SQL Revenue Analysis'!$J$1:$J$65536,$B$7,'SQL Revenue Analysis'!$D$1:$D$65536,$A17)+SUMIFS('SQL Revenue Analysis'!$E$1:$E$65536,'SQL Revenue Analysis'!$A$1:$A$65536,H$4,'SQL Revenue Analysis'!$J$1:$J$65536,$B$8,'SQL Revenue Analysis'!$D$1:$D$65536,$A17)) -> 0 | I17: =-(SUMIFS('SQL Revenue Analysis'!$E$1:$E$65536,'SQL Revenue Analysis'!$A$1:$A$65536,I$4,'SQL Revenue Analysis'!$J$1:$J$65536,$B$7,'SQL Revenue Analysis'!$D$1:$D$65536,$A17)+SUMIFS('SQL Revenue Analysis'!$E$1:$E$65536,'SQL Revenue Analysis'!$A$1:$A$65536,I$4,'SQL Revenue Analysis'!$J$1:$J$65536,$B$8,'SQL Revenue Analysis'!$D$1:$D$65536,$A17)) -> 0 | J17: =-(SUMIFS('SQL Revenue Analysis'!$E$1:$E$65536,'SQL Revenue Analysis'!$A$1:$A$65536,J$4,'SQL Revenue Analysis'!$J$1:$J$65536,$B$7,'SQL Revenue Analysis'!$D$1:$D$65536,$A17)+SUMIFS('SQL Revenue Analysis'!$E$1:$E$65536,'SQL Revenue Analysis'!$A$1:$A$65536,J$4,'SQL Revenue Analysis'!$J$1:$J$65536,$B$8,'SQL Revenue Analysis'!$D$1:$D$65536,$A17)) -> 0 | K17: =-(SUMIFS('SQL Revenue Analysis'!$E$1:$E$65536,'SQL Revenue Analysis'!$A$1:$A$65536,K$4,'SQL Revenue Analysis'!$J$1:$J$65536,$B$7,'SQL Revenue Analysis'!$D$1:$D$65536,$A17)+SUMIFS('SQL Revenue Analysis'!$E$1:$E$65536,'SQL Revenue Analysis'!$A$1:$A$65536,K$4,'SQL Revenue Analysis'!$J$1:$J$65536,$B$8,'SQL Revenue Analysis'!$D$1:$D$65536,$A17)) -> 0 | L17: =-(SUMIFS('SQL Revenue Analysis'!$E$1:$E$65536,'SQL Revenue Analysis'!$A$1:$A$65536,L$4,'SQL Revenue Analysis'!$J$1:$J$65536,$B$7,'SQL Revenue Analysis'!$D$1:$D$65536,$A17)+SUMIFS('SQL Revenue Analysis'!$E$1:$E$65536,'SQL Revenue Analysis'!$A$1:$A$65536,L$4,'SQL Revenue Analysis'!$J$1:$J$65536,$B$8,'SQL Revenue Analysis'!$D$1:$D$65536,$A17)) -> 0 | M17: =-(SUMIFS('SQL Revenue Analysis'!$E$1:$E$65536,'SQL Revenue Analysis'!$A$1:$A$65536,M$4,'SQL Revenue Analysis'!$J$1:$J$65536,$B$7,'SQL Revenue Analysis'!$D$1:$D$65536,$A17)+SUMIFS('SQL Revenue Analysis'!$E$1:$E$65536,'SQL Revenue Analysis'!$A$1:$A$65536,M$4,'SQL Revenue Analysis'!$J$1:$J$65536,$B$8,'SQL Revenue Analysis'!$D$1:$D$65536,$A17)) -> 0 | N17: =-(SUMIFS('SQL Revenue Analysis'!$E$1:$E$65536,'SQL Revenue Analysis'!$A$1:$A$65536,N$4,'SQL Revenue Analysis'!$J$1:$J$65536,$B$7,'SQL Revenue Analysis'!$D$1:$D$65536,$A17)+SUMIFS('SQL Revenue Analysis'!$E$1:$E$65536,'SQL Revenue Analysis'!$A$1:$A$65536,N$4,'SQL Revenue Analysis'!$J$1:$J$65536,$B$8,'SQL Revenue Analysis'!$D$1:$D$65536,$A17)) -> 0 | O17: =-(SUMIFS('SQL Revenue Analysis'!$E$1:$E$65536,'SQL Revenue Analysis'!$A$1:$A$65536,O$4,'SQL Revenue Analysis'!$J$1:$J$65536,$B$7,'SQL Revenue Analysis'!$D$1:$D$65536,$A17)+SUMIFS('SQL Revenue Analysis'!$E$1:$E$65536,'SQL Revenue Analysis'!$A$1:$A$65536,O$4,'SQL Revenue Analysis'!$J$1:$J$65536,$B$8,'SQL Revenue Analysis'!$D$1:$D$65536,$A17)) -> 0 | Q17: 0
A18: ADM | B18: 30 / 70 | D18: =-(SUMIFS('SQL Revenue Analysis'!$E$1:$E$65536,'SQL Revenue Analysis'!$A$1:$A$65536,D$4,'SQL Revenue Analysis'!$J$1:$J$65536,$B$7,'SQL Revenue Analysis'!$D$1:$D$65536,$A18)+SUMIFS('SQL Revenue Analysis'!$E$1:$E$65536,'SQL Revenue Analysis'!$A$1:$A$65536,D$4,'SQL Revenue Analysis'!$J$1:$J$65536,$B$8,'SQL Revenue Analysis'!$D$1:$D$65536,$A18)) -> 0 | E18: =-(SUMIFS('SQL Revenue Analysis'!$E$1:$E$65536,'SQL Revenue Analysis'!$A$1:$A$65536,E$4,'SQL Revenue Analysis'!$J$1:$J$65536,$B$7,'SQL Revenue Analysis'!$D$1:$D$65536,$A18)+SUMIFS('SQL Revenue Analysis'!$E$1:$E$65536,'SQL Revenue Analysis'!$A$1:$A$65536,E$4,'SQL Revenue Analysis'!$J$1:$J$65536,$B$8,'SQL Revenue Analysis'!$D$1:$D$65536,$A18)) -> 0 | F18: =-(SUMIFS('SQL Revenue Analysis'!$E$1:$E$65536,'SQL Revenue Analysis'!$A$1:$A$65536,F$4,'SQL Revenue Analysis'!$J$1:$J$65536,$B$7,'SQL Revenue Analysis'!$D$1:$D$65536,$A18)+SUMIFS('SQL Revenue Analysis'!$E$1:$E$65536,'SQL Revenue Analysis'!$A$1:$A$65536,F$4,'SQL Revenue Analysis'!$J$1:$J$65536,$B$8,'SQL Revenue Analysis'!$D$1:$D$65536,$A18)) -> 0 | G18: =-(SUMIFS('SQL Revenue Analysis'!$E$1:$E$65536,'SQL Revenue Analysis'!$A$1:$A$65536,G$4,'SQL Revenue Analysis'!$J$1:$J$65536,$B$7,'SQL Revenue Analysis'!$D$1:$D$65536,$A18)+SUMIFS('SQL Revenue Analysis'!$E$1:$E$65536,'SQL Revenue Analysis'!$A$1:$A$65536,G$4,'SQL Revenue Analysis'!$J$1:$J$65536,$B$8,'SQL Revenue Analysis'!$D$1:$D$65536,$A18)) -> 0 | H18: =-(SUMIFS('SQL Revenue Analysis'!$E$1:$E$65536,'SQL Revenue Analysis'!$A$1:$A$65536,H$4,'SQL Revenue Analysis'!$J$1:$J$65536,$B$7,'SQL Revenue Analysis'!$D$1:$D$65536,$A18)+SUMIFS('SQL Revenue Analysis'!$E$1:$E$65536,'SQL Revenue Analysis'!$A$1:$A$65536,H$4,'SQL Revenue Analysis'!$J$1:$J$65536,$B$8,'SQL Revenue Analysis'!$D$1:$D$65536,$A18)) -> 0 | I18: =-(SUMIFS('SQL Revenue Analysis'!$E$1:$E$65536,'SQL Revenue Analysis'!$A$1:$A$65536,I$4,'SQL Revenue Analysis'!$J$1:$J$65536,$B$7,'SQL Revenue Analysis'!$D$1:$D$65536,$A18)+SUMIFS('SQL Revenue Analysis'!$E$1:$E$65536,'SQL Revenue Analysis'!$A$1:$A$65536,I$4,'SQL Revenue Analysis'!$J$1:$J$65536,$B$8,'SQL Revenue Analysis'!$D$1:$D$65536,$A18)) -> 0 | J18: =-(SUMIFS('SQL Revenue Analysis'!$E$1:$E$65536,'SQL Revenue Analysis'!$A$1:$A$65536,J$4,'SQL Revenue Analysis'!$J$1:$J$65536,$B$7,'SQL Revenue Analysis'!$D$1:$D$65536,$A18)+SUMIFS('SQL Revenue Analysis'!$E$1:$E$65536,'SQL Revenue Analysis'!$A$1:$A$65536,J$4,'SQL Revenue Analysis'!$J$1:$J$65536,$B$8,'SQL Revenue Analysis'!$D$1:$D$65536,$A18)) -> 0 | K18: =-(SUMIFS('SQL Revenue Analysis'!$E$1:$E$65536,'SQL Revenue Analysis'!$A$1:$A$65536,K$4,'SQL Revenue Analysis'!$J$1:$J$65536,$B$7,'SQL Revenue Analysis'!$D$1:$D$65536,$A18)+SUMIFS('SQL Revenue Analysis'!$E$1:$E$65536,'SQL Revenue Analysis'!$A$1:$A$65536,K$4,'SQL Revenue Analysis'!$J$1:$J$65536,$B$8,'SQL Revenue Analysis'!$D$1:$D$65536,$A18)) -> 0 | L18: =-(SUMIFS('SQL Revenue Analysis'!$E$1:$E$65536,'SQL Revenue Analysis'!$A$1:$A$65536,L$4,'SQL Revenue Analysis'!$J$1:$J$65536,$B$7,'SQL Revenue Analysis'!$D$1:$D$65536,$A18)+SUMIFS('SQL Revenue Analysis'!$E$1:$E$65536,'SQL Revenue Analysis'!$A$1:$A$65536,L$4,'SQL Revenue Analysis'!$J$1:$J$65536,$B$8,'SQL Revenue Analysis'!$D$1:$D$65536,$A18)) -> 0 | M18: =-(SUMIFS('SQL Revenue Analysis'!$E$1:$E$65536,'SQL Revenue Analysis'!$A$1:$A$65536,M$4,'SQL Revenue Analysis'!$J$1:$J$65536,$B$7,'SQL Revenue Analysis'!$D$1:$D$65536,$A18)+SUMIFS('SQL Revenue Analysis'!$E$1:$E$65536,'SQL Revenue Analysis'!$A$1:$A$65536,M$4,'SQL Revenue Analysis'!$J$1:$J$65536,$B$8,'SQL Revenue Analysis'!$D$1:$D$65536,$A18)) -> 0 | N18: =-(SUMIFS('SQL Revenue Analysis'!$E$1:$E$65536,'SQL Revenue Analysis'!$A$1:$A$65536,N$4,'SQL Revenue Analysis'!$J$1:$J$65536,$B$7,'SQL Revenue Analysis'!$D$1:$D$65536,$A18)+SUMIFS('SQL Revenue Analysis'!$E$1:$E$65536,'SQL Revenue Analysis'!$A$1:$A$65536,N$4,'SQL Revenue Analysis'!$J$1:$J$65536,$B$8,'SQL Revenue Analysis'!$D$1:$D$65536,$A18)) -> 0 | O18: =-(SUMIFS('SQL Revenue Analysis'!$E$1:$E$65536,'SQL Revenue Analysis'!$A$1:$A$65536,O$4,'SQL Revenue Analysis'!$J$1:$J$65536,$B$7,'SQL Revenue Analysis'!$D$1:$D$65536,$A18)+SUMIFS('SQL Revenue Analysis'!$E$1:$E$65536,'SQL Revenue Analysis'!$A$1:$A$65536,O$4,'SQL Revenue Analysis'!$J$1:$J$65536,$B$8,'SQL Revenue Analysis'!$D$1:$D$65536,$A18)) -> 0 | Q18: =SUM(D18:P18) -> 0
A19: COP | B19: 30 / 70 | D19: =-(SUMIFS('SQL Revenue Analysis'!$E$1:$E$65536,'SQL Revenue Analysis'!$A$1:$A$65536,D$4,'SQL Revenue Analysis'!$J$1:$J$65536,$B$7,'SQL Revenue Analysis'!$D$1:$D$65536,$A19)+SUMIFS('SQL Revenue Analysis'!$E$1:$E$65536,'SQL Revenue Analysis'!$A$1:$A$65536,D$4,'SQL Revenue Analysis'!$J$1:$J$65536,$B$8,'SQL Revenue Analysis'!$D$1:$D$65536,$A19)) -> 0 | E19: =-(SUMIFS('SQL Revenue Analysis'!$E$1:$E$65536,'SQL Revenue Analysis'!$A$1:$A$65536,E$4,'SQL Revenue Analysis'!$J$1:$J$65536,$B$7,'SQL Revenue Analysis'!$D$1:$D$65536,$A19)+SUMIFS('SQL Revenue Analysis'!$E$1:$E$65536,'SQL Revenue Analysis'!$A$1:$A$65536,E$4,'SQL Revenue Analysis'!$J$1:$J$65536,$B$8,'SQL Revenue Analysis'!$D$1:$D$65536,$A19)) -> 0 | F19: =-(SUMIFS('SQL Revenue Analysis'!$E$1:$E$65536,'SQL Revenue Analysis'!$A$1:$A$65536,F$4,'SQL Revenue Analysis'!$J$1:$J$65536,$B$7,'SQL Revenue Analysis'!$D$1:$D$65536,$A19)+SUMIFS('SQL Revenue Analysis'!$E$1:$E$65536,'SQL Revenue Analysis'!$A$1:$A$65536,F$4,'SQL Revenue Analysis'!$J$1:$J$65536,$B$8,'SQL Revenue Analysis'!$D$1:$D$65536,$A19)) -> 0 | G19: =-(SUMIFS('SQL Revenue Analysis'!$E$1:$E$65536,'SQL Revenue Analysis'!$A$1:$A$65536,G$4,'SQL Revenue Analysis'!$J$1:$J$65536,$B$7,'SQL Revenue Analysis'!$D$1:$D$65536,$A19)+SUMIFS('SQL Revenue Analysis'!$E$1:$E$65536,'SQL Revenue Analysis'!$A$1:$A$65536,G$4,'SQL Revenue Analysis'!$J$1:$J$65536,$B$8,'SQL Revenue Analysis'!$D$1:$D$65536,$A19)) -> 0 | H19: =-(SUMIFS('SQL Revenue Analysis'!$E$1:$E$65536,'SQL Revenue Analysis'!$A$1:$A$65536,H$4,'SQL Revenue Analysis'!$J$1:$J$65536,$B$7,'SQL Revenue Analysis'!$D$1:$D$65536,$A19)+SUMIFS('SQL Revenue Analysis'!$E$1:$E$65536,'SQL Revenue Analysis'!$A$1:$A$65536,H$4,'SQL Revenue Analysis'!$J$1:$J$65536,$B$8,'SQL Revenue Analysis'!$D$1:$D$65536,$A19)) -> 0 | I19: =-(SUMIFS('SQL Revenue Analysis'!$E$1:$E$65536,'SQL Revenue Analysis'!$A$1:$A$65536,I$4,'SQL Revenue Analysis'!$J$1:$J$65536,$B$7,'SQL Revenue Analysis'!$D$1:$D$65536,$A19)+SUMIFS('SQL Revenue Analysis'!$E$1:$E$65536,'SQL Revenue Analysis'!$A$1:$A$65536,I$4,'SQL Revenue Analysis'!$J$1:$J$65536,$B$8,'SQL Revenue Analysis'!$D$1:$D$65536,$A19)) -> 0 | J19: =-(SUMIFS('SQL Revenue Analysis'!$E$1:$E$65536,'SQL Revenue Analysis'!$A$1:$A$65536,J$4,'SQL Revenue Analysis'!$J$1:$J$65536,$B$7,'SQL Revenue Analysis'!$D$1:$D$65536,$A19)+SUMIFS('SQL Revenue Analysis'!$E$1:$E$65536,'SQL Revenue Analysis'!$A$1:$A$65536,J$4,'SQL Revenue Analysis'!$J$1:$J$65536,$B$8,'SQL Revenue Analysis'!$D$1:$D$65536,$A19)) -> 0 | K19: =-(SUMIFS('SQL Revenue Analysis'!$E$1:$E$65536,'SQL Revenue Analysis'!$A$1:$A$65536,K$4,'SQL Revenue Analysis'!$J$1:$J$65536,$B$7,'SQL Revenue Analysis'!$D$1:$D$65536,$A19)+SUMIFS('SQL Revenue Analysis'!$E$1:$E$65536,'SQL Revenue Analysis'!$A$1:$A$65536,K$4,'SQL Revenue Analysis'!$J$1:$J$65536,$B$8,'SQL Revenue Analysis'!$D$1:$D$65536,$A19)) -> 0 | L19: =-(SUMIFS('SQL Revenue Analysis'!$E$1:$E$65536,'SQL Revenue Analysis'!$A$1:$A$65536,L$4,'SQL Revenue Analysis'!$J$1:$J$65536,$B$7,'SQL Revenue Analysis'!$D$1:$D$65536,$A19)+SUMIFS('SQL Revenue Analysis'!$E$1:$E$65536,'SQL Revenue Analysis'!$A$1:$A$65536,L$4,'SQL Revenue Analysis'!$J$1:$J$65536,$B$8,'SQL Revenue Analysis'!$D$1:$D$65536,$A19)) -> 0 | M19: =-(SUMIFS('SQL Revenue Analysis'!$E$1:$E$65536,'SQL Revenue Analysis'!$A$1:$A$65536,M$4,'SQL Revenue Analysis'!$J$1:$J$65536,$B$7,'SQL Revenue Analysis'!$D$1:$D$65536,$A19)+SUMIFS('SQL Revenue Analysis'!$E$1:$E$65536,'SQL Revenue Analysis'!$A$1:$A$65536,M$4,'SQL Revenue Analysis'!$J$1:$J$65536,$B$8,'SQL Revenue Analysis'!$D$1:$D$65536,$A19)) -> 0 | N19: =-(SUMIFS('SQL Revenue Analysis'!$E$1:$E$65536,'SQL Revenue Analysis'!$A$1:$A$65536,N$4,'SQL Revenue Analysis'!$J$1:$J$65536,$B$7,'SQL Revenue Analysis'!$D$1:$D$65536,$A19)+SUMIFS('SQL Revenue Analysis'!$E$1:$E$65536,'SQL Revenue Analysis'!$A$1:$A$65536,N$4,'SQL Revenue Analysis'!$J$1:$J$65536,$B$8,'SQL Revenue Analysis'!$D$1:$D$65536,$A19)) -> 0 | O19: =-(SUMIFS('SQL Revenue Analysis'!$E$1:$E$65536,'SQL Revenue Analysis'!$A$1:$A$65536,O$4,'SQL Revenue Analysis'!$J$1:$J$65536,$B$7,'SQL Revenue Analysis'!$D$1:$D$65536,$A19)+SUMIFS('SQL Revenue Analysis'!$E$1:$E$65536,'SQL Revenue Analysis'!$A$1:$A$65536,O$4,'SQL Revenue Analysis'!$J$1:$J$65536,$B$8,'SQL Revenue Analysis'!$D$1:$D$65536,$A19)) -> 0 | Q19: 0
A20: CPR | B20: 30 / 70 | D20: =-(SUMIFS('SQL Revenue Analysis'!$E$1:$E$65536,'SQL Revenue Analysis'!$A$1:$A$65536,D$4,'SQL Revenue Analysis'!$J$1:$J$65536,$B$7,'SQL Revenue Analysis'!$D$1:$D$65536,$A20)+SUMIFS('SQL Revenue Analysis'!$E$1:$E$65536,'SQL Revenue Analysis'!$A$1:$A$65536,D$4,'SQL Revenue Analysis'!$J$1:$J$65536,$B$8,'SQL Revenue Analysis'!$D$1:$D$65536,$A20)) -> 0 | E20: =-(SUMIFS('SQL Revenue Analysis'!$E$1:$E$65536,'SQL Revenue Analysis'!$A$1:$A$65536,E$4,'SQL Revenue Analysis'!$J$1:$J$65536,$B$7,'SQL Revenue Analysis'!$D$1:$D$65536,$A20)+SUMIFS('SQL Revenue Analysis'!$E$1:$E$65536,'SQL Revenue Analysis'!$A$1:$A$65536,E$4,'SQL Revenue Analysis'!$J$1:$J$65536,$B$8,'SQL Revenue Analysis'!$D$1:$D$65536,$A20)) -> 0 | F20: =-(SUMIFS('SQL Revenue Analysis'!$E$1:$E$65536,'SQL Revenue Analysis'!$A$1:$A$65536,F$4,'SQL Revenue Analysis'!$J$1:$J$65536,$B$7,'SQL Revenue Analysis'!$D$1:$D$65536,$A20)+SUMIFS('SQL Revenue Analysis'!$E$1:$E$65536,'SQL Revenue Analysis'!$A$1:$A$65536,F$4,'SQL Revenue Analysis'!$J$1:$J$65536,$B$8,'SQL Revenue Analysis'!$D$1:$D$65536,$A20)) -> 0 | G20: =-(SUMIFS('SQL Revenue Analysis'!$E$1:$E$65536,'SQL Revenue Analysis'!$A$1:$A$65536,G$4,'SQL Revenue Analysis'!$J$1:$J$65536,$B$7,'SQL Revenue Analysis'!$D$1:$D$65536,$A20)+SUMIFS('SQL Revenue Analysis'!$E$1:$E$65536,'SQL Revenue Analysis'!$A$1:$A$65536,G$4,'SQL Revenue Analysis'!$J$1:$J$65536,$B$8,'SQL Revenue Analysis'!$D$1:$D$65536,$A20)) -> 0 | H20: =-(SUMIFS('SQL Revenue Analysis'!$E$1:$E$65536,'SQL Revenue Analysis'!$A$1:$A$65536,H$4,'SQL Revenue Analysis'!$J$1:$J$65536,$B$7,'SQL Revenue Analysis'!$D$1:$D$65536,$A20)+SUMIFS('SQL Revenue Analysis'!$E$1:$E$65536,'SQL Revenue Analysis'!$A$1:$A$65536,H$4,'SQL Revenue Analysis'!$J$1:$J$65536,$B$8,'SQL Revenue Analysis'!$D$1:$D$65536,$A20)) -> 0 | I20: =-(SUMIFS('SQL Revenue Analysis'!$E$1:$E$65536,'SQL Revenue Analysis'!$A$1:$A$65536,I$4,'SQL Revenue Analysis'!$J$1:$J$65536,$B$7,'SQL Revenue Analysis'!$D$1:$D$65536,$A20)+SUMIFS('SQL Revenue Analysis'!$E$1:$E$65536,'SQL Revenue Analysis'!$A$1:$A$65536,I$4,'SQL Revenue Analysis'!$J$1:$J$65536,$B$8,'SQL Revenue Analysis'!$D$1:$D$65536,$A20)) -> 0 | J20: =-(SUMIFS('SQL Revenue Analysis'!$E$1:$E$65536,'SQL Revenue Analysis'!$A$1:$A$65536,J$4,'SQL Revenue Analysis'!$J$1:$J$65536,$B$7,'SQL Revenue Analysis'!$D$1:$D$65536,$A20)+SUMIFS('SQL Revenue Analysis'!$E$1:$E$65536,'SQL Revenue Analysis'!$A$1:$A$65536,J$4,'SQL Revenue Analysis'!$J$1:$J$65536,$B$8,'SQL Revenue Analysis'!$D$1:$D$65536,$A20)) -> 0 | K20: =-(SUMIFS('SQL Revenue Analysis'!$E$1:$E$65536,'SQL Revenue Analysis'!$A$1:$A$65536,K$4,'SQL Revenue Analysis'!$J$1:$J$65536,$B$7,'SQL Revenue Analysis'!$D$1:$D$65536,$A20)+SUMIFS('SQL Revenue Analysis'!$E$1:$E$65536,'SQL Revenue Analysis'!$A$1:$A$65536,K$4,'SQL Revenue Analysis'!$J$1:$J$65536,$B$8,'SQL Revenue Analysis'!$D$1:$D$65536,$A20)) -> 0 | L20: =-(SUMIFS('SQL Revenue Analysis'!$E$1:$E$65536,'SQL Revenue Analysis'!$A$1:$A$65536,L$4,'SQL Revenue Analysis'!$J$1:$J$65536,$B$7,'SQL Revenue Analysis'!$D$1:$D$65536,$A20)+SUMIFS('SQL Revenue Analysis'!$E$1:$E$65536,'SQL Revenue Analysis'!$A$1:$A$65536,L$4,'SQL Revenue Analysis'!$J$1:$J$65536,$B$8,'SQL Revenue Analysis'!$D$1:$D$65536,$A20)) -> 0 | M20: =-(SUMIFS('SQL Revenue Analysis'!$E$1:$E$65536,'SQL Revenue Analysis'!$A$1:$A$65536,M$4,'SQL Revenue Analysis'!$J$1:$J$65536,$B$7,'SQL Revenue Analysis'!$D$1:$D$65536,$A20)+SUMIFS('SQL Revenue Analysis'!$E$1:$E$65536,'SQL Revenue Analysis'!$A$1:$A$65536,M$4,'SQL Revenue Analysis'!$J$1:$J$65536,$B$8,'SQL Revenue Analysis'!$D$1:$D$65536,$A20)) -> 0 | N20: =-(SUMIFS('SQL Revenue Analysis'!$E$1:$E$65536,'SQL Revenue Analysis'!$A$1:$A$65536,N$4,'SQL Revenue Analysis'!$J$1:$J$65536,$B$7,'SQL Revenue Analysis'!$D$1:$D$65536,$A20)+SUMIFS('SQL Revenue Analysis'!$E$1:$E$65536,'SQL Revenue Analysis'!$A$1:$A$65536,N$4,'SQL Revenue Analysis'!$J$1:$J$65536,$B$8,'SQL Revenue Analysis'!$D$1:$D$65536,$A20)) -> 0 | O20: =-(SUMIFS('SQL Revenue Analysis'!$E$1:$E$65536,'SQL Revenue Analysis'!$A$1:$A$65536,O$4,'SQL Revenue Analysis'!$J$1:$J$65536,$B$7,'SQL Revenue Analysis'!$D$1:$D$65536,$A20)+SUMIFS('SQL Revenue Analysis'!$E$1:$E$65536,'SQL Revenue Analysis'!$A$1:$A$65536,O$4,'SQL Revenue Analysis'!$J$1:$J$65536,$B$8,'SQL Revenue Analysis'!$D$1:$D$65536,$A20)) -> 0 | Q20: 0
A21: ES9 | B21: 30 / 70 | D21: =-(SUMIFS('SQL Revenue Analysis'!$E$1:$E$65536,'SQL Revenue Analysis'!$A$1:$A$65536,D$4,'SQL Revenue Analysis'!$J$1:$J$65536,$B$7,'SQL Revenue Analysis'!$D$1:$D$65536,$A21)+SUMIFS('SQL Revenue Analysis'!$E$1:$E$65536,'SQL Revenue Analysis'!$A$1:$A$65536,D$4,'SQL Revenue Analysis'!$J$1:$J$65536,$B$8,'SQL Revenue Analysis'!$D$1:$D$65536,$A21)) -> 0 | E21: =-(SUMIFS('SQL Revenue Analysis'!$E$1:$E$65536,'SQL Revenue Analysis'!$A$1:$A$65536,E$4,'SQL Revenue Analysis'!$J$1:$J$65536,$B$7,'SQL Revenue Analysis'!$D$1:$D$65536,$A21)+SUMIFS('SQL Revenue Analysis'!$E$1:$E$65536,'SQL Revenue Analysis'!$A$1:$A$65536,E$4,'SQL Revenue Analysis'!$J$1:$J$65536,$B$8,'SQL Revenue Analysis'!$D$1:$D$65536,$A21)) -> 0 | F21: =-(SUMIFS('SQL Revenue Analysis'!$E$1:$E$65536,'SQL Revenue Analysis'!$A$1:$A$65536,F$4,'SQL Revenue Analysis'!$J$1:$J$65536,$B$7,'SQL Revenue Analysis'!$D$1:$D$65536,$A21)+SUMIFS('SQL Revenue Analysis'!$E$1:$E$65536,'SQL Revenue Analysis'!$A$1:$A$65536,F$4,'SQL Revenue Analysis'!$J$1:$J$65536,$B$8,'SQL Revenue Analysis'!$D$1:$D$65536,$A21)) -> 0 | G21: =-(SUMIFS('SQL Revenue Analysis'!$E$1:$E$65536,'SQL Revenue Analysis'!$A$1:$A$65536,G$4,'SQL Revenue Analysis'!$J$1:$J$65536,$B$7,'SQL Revenue Analysis'!$D$1:$D$65536,$A21)+SUMIFS('SQL Revenue Analysis'!$E$1:$E$65536,'SQL Revenue Analysis'!$A$1:$A$65536,G$4,'SQL Revenue Analysis'!$J$1:$J$65536,$B$8,'SQL Revenue Analysis'!$D$1:$D$65536,$A21)) -> 0 | H21: =-(SUMIFS('SQL Revenue Analysis'!$E$1:$E$65536,'SQL Revenue Analysis'!$A$1:$A$65536,H$4,'SQL Revenue Analysis'!$J$1:$J$65536,$B$7,'SQL Revenue Analysis'!$D$1:$D$65536,$A21)+SUMIFS('SQL Revenue Analysis'!$E$1:$E$65536,'SQL Revenue Analysis'!$A$1:$A$65536,H$4,'SQL Revenue Analysis'!$J$1:$J$65536,$B$8,'SQL Revenue Analysis'!$D$1:$D$65536,$A21)) -> 0 | I21: =-(SUMIFS('SQL Revenue Analysis'!$E$1:$E$65536,'SQL Revenue Analysis'!$A$1:$A$65536,I$4,'SQL Revenue Analysis'!$J$1:$J$65536,$B$7,'SQL Revenue Analysis'!$D$1:$D$65536,$A21)+SUMIFS('SQL Revenue Analysis'!$E$1:$E$65536,'SQL Revenue Analysis'!$A$1:$A$65536,I$4,'SQL Revenue Analysis'!$J$1:$J$65536,$B$8,'SQL Revenue Analysis'!$D$1:$D$65536,$A21)) -> 0 | J21: =-(SUMIFS('SQL Revenue Analysis'!$E$1:$E$65536,'SQL Revenue Analysis'!$A$1:$A$65536,J$4,'SQL Revenue Analysis'!$J$1:$J$65536,$B$7,'SQL Revenue Analysis'!$D$1:$D$65536,$A21)+SUMIFS('SQL Revenue Analysis'!$E$1:$E$65536,'SQL Revenue Analysis'!$A$1:$A$65536,J$4,'SQL Revenue Analysis'!$J$1:$J$65536,$B$8,'SQL Revenue Analysis'!$D$1:$D$65536,$A21)) -> 0 | K21: =-(SUMIFS('SQL Revenue Analysis'!$E$1:$E$65536,'SQL Revenue Analysis'!$A$1:$A$65536,K$4,'SQL Revenue Analysis'!$J$1:$J$65536,$B$7,'SQL Revenue Analysis'!$D$1:$D$65536,$A21)+SUMIFS('SQL Revenue Analysis'!$E$1:$E$65536,'SQL Revenue Analysis'!$A$1:$A$65536,K$4,'SQL Revenue Analysis'!$J$1:$J$65536,$B$8,'SQL Revenue Analysis'!$D$1:$D$65536,$A21)) -> 0 | L21: =-(SUMIFS('SQL Revenue Analysis'!$E$1:$E$65536,'SQL Revenue Analysis'!$A$1:$A$65536,L$4,'SQL Revenue Analysis'!$J$1:$J$65536,$B$7,'SQL Revenue Analysis'!$D$1:$D$65536,$A21)+SUMIFS('SQL Revenue Analysis'!$E$1:$E$65536,'SQL Revenue Analysis'!$A$1:$A$65536,L$4,'SQL Revenue Analysis'!$J$1:$J$65536,$B$8,'SQL Revenue Analysis'!$D$1:$D$65536,$A21)) -> 0 | M21: =-(SUMIFS('SQL Revenue Analysis'!$E$1:$E$65536,'SQL Revenue Analysis'!$A$1:$A$65536,M$4,'SQL Revenue Analysis'!$J$1:$J$65536,$B$7,'SQL Revenue Analysis'!$D$1:$D$65536,$A21)+SUMIFS('SQL Revenue Analysis'!$E$1:$E$65536,'SQL Revenue Analysis'!$A$1:$A$65536,M$4,'SQL Revenue Analysis'!$J$1:$J$65536,$B$8,'SQL Revenue Analysis'!$D$1:$D$65536,$A21)) -> 0 | N21: =-(SUMIFS('SQL Revenue Analysis'!$E$1:$E$65536,'SQL Revenue Analysis'!$A$1:$A$65536,N$4,'SQL Revenue Analysis'!$J$1:$J$65536,$B$7,'SQL Revenue Analysis'!$D$1:$D$65536,$A21)+SUMIFS('SQL Revenue Analysis'!$E$1:$E$65536,'SQL Revenue Analysis'!$A$1:$A$65536,N$4,'SQL Revenue Analysis'!$J$1:$J$65536,$B$8,'SQL Revenue Analysis'!$D$1:$D$65536,$A21)) -> 0 | O21: =-(SUMIFS('SQL Revenue Analysis'!$E$1:$E$65536,'SQL Revenue Analysis'!$A$1:$A$65536,O$4,'SQL Revenue Analysis'!$J$1:$J$65536,$B$7,'SQL Revenue Analysis'!$D$1:$D$65536,$A21)+SUMIFS('SQL Revenue Analysis'!$E$1:$E$65536,'SQL Revenue Analysis'!$A$1:$A$65536,O$4,'SQL Revenue Analysis'!$J$1:$J$65536,$B$8,'SQL Revenue Analysis'!$D$1:$D$65536,$A21)) -> 0 | Q21: 0
A22: MIS | B22: 30 / 70 | D22: =-(SUMIFS('SQL Revenue Analysis'!$E$1:$E$65536,'SQL Revenue Analysis'!$A$1:$A$65536,D$4,'SQL Revenue Analysis'!$J$1:$J$65536,$B$7,'SQL Revenue Analysis'!$D$1:$D$65536,$A22)+SUMIFS('SQL Revenue Analysis'!$E$1:$E$65536,'SQL Revenue Analysis'!$A$1:$A$65536,D$4,'SQL Revenue Analysis'!$J$1:$J$65536,$B$8,'SQL Revenue Analysis'!$D$1:$D$65536,$A22)) -> 0 | E22: =-(SUMIFS('SQL Revenue Analysis'!$E$1:$E$65536,'SQL Revenue Analysis'!$A$1:$A$65536,E$4,'SQL Revenue Analysis'!$J$1:$J$65536,$B$7,'SQL Revenue Analysis'!$D$1:$D$65536,$A22)+SUMIFS('SQL Revenue Analysis'!$E$1:$E$65536,'SQL Revenue Analysis'!$A$1:$A$65536,E$4,'SQL Revenue Analysis'!$J$1:$J$65536,$B$8,'SQL Revenue Analysis'!$D$1:$D$65536,$A22)) -> 0 | F22: =-(SUMIFS('SQL Revenue Analysis'!$E$1:$E$65536,'SQL Revenue Analysis'!$A$1:$A$65536,F$4,'SQL Revenue Analysis'!$J$1:$J$65536,$B$7,'SQL Revenue Analysis'!$D$1:$D$65536,$A22)+SUMIFS('SQL Revenue Analysis'!$E$1:$E$65536,'SQL Revenue Analysis'!$A$1:$A$65536,F$4,'SQL Revenue Analysis'!$J$1:$J$65536,$B$8,'SQL Revenue Analysis'!$D$1:$D$65536,$A22)) -> 0 | G22: =-(SUMIFS('SQL Revenue Analysis'!$E$1:$E$65536,'SQL Revenue Analysis'!$A$1:$A$65536,G$4,'SQL Revenue Analysis'!$J$1:$J$65536,$B$7,'SQL Revenue Analysis'!$D$1:$D$65536,$A22)+SUMIFS('SQL Revenue Analysis'!$E$1:$E$65536,'SQL Revenue Analysis'!$A$1:$A$65536,G$4,'SQL Revenue Analysis'!$J$1:$J$65536,$B$8,'SQL Revenue Analysis'!$D$1:$D$65536,$A22)) -> 0 | H22: =-(SUMIFS('SQL Revenue Analysis'!$E$1:$E$65536,'SQL Revenue Analysis'!$A$1:$A$65536,H$4,'SQL Revenue Analysis'!$J$1:$J$65536,$B$7,'SQL Revenue Analysis'!$D$1:$D$65536,$A22)+SUMIFS('SQL Revenue Analysis'!$E$1:$E$65536,'SQL Revenue Analysis'!$A$1:$A$65536,H$4,'SQL Revenue Analysis'!$J$1:$J$65536,$B$8,'SQL Revenue Analysis'!$D$1:$D$65536,$A22)) -> 0 | I22: =-(SUMIFS('SQL Revenue Analysis'!$E$1:$E$65536,'SQL Revenue Analysis'!$A$1:$A$65536,I$4,'SQL Revenue Analysis'!$J$1:$J$65536,$B$7,'SQL Revenue Analysis'!$D$1:$D$65536,$A22)+SUMIFS('SQL Revenue Analysis'!$E$1:$E$65536,'SQL Revenue Analysis'!$A$1:$A$65536,I$4,'SQL Revenue Analysis'!$J$1:$J$65536,$B$8,'SQL Revenue Analysis'!$D$1:$D$65536,$A22)) -> 0 | J22: =-(SUMIFS('SQL Revenue Analysis'!$E$1:$E$65536,'SQL Revenue Analysis'!$A$1:$A$65536,J$4,'SQL Revenue Analysis'!$J$1:$J$65536,$B$7,'SQL Revenue Analysis'!$D$1:$D$65536,$A22)+SUMIFS('SQL Revenue Analysis'!$E$1:$E$65536,'SQL Revenue Analysis'!$A$1:$A$65536,J$4,'SQL Revenue Analysis'!$J$1:$J$65536,$B$8,'SQL Revenue Analysis'!$D$1:$D$65536,$A22)) -> 0 | K22: =-(SUMIFS('SQL Revenue Analysis'!$E$1:$E$65536,'SQL Revenue Analysis'!$A$1:$A$65536,K$4,'SQL Revenue Analysis'!$J$1:$J$65536,$B$7,'SQL Revenue Analysis'!$D$1:$D$65536,$A22)+SUMIFS('SQL Revenue Analysis'!$E$1:$E$65536,'SQL Revenue Analysis'!$A$1:$A$65536,K$4,'SQL Revenue Analysis'!$J$1:$J$65536,$B$8,'SQL Revenue Analysis'!$D$1:$D$65536,$A22)) -> 0 | L22: =-(SUMIFS('SQL Revenue Analysis'!$E$1:$E$65536,'SQL Revenue Analysis'!$A$1:$A$65536,L$4,'SQL Revenue Analysis'!$J$1:$J$65536,$B$7,'SQL Revenue Analysis'!$D$1:$D$65536,$A22)+SUMIFS('SQL Revenue Analysis'!$E$1:$E$65536,'SQL Revenue Analysis'!$A$1:$A$65536,L$4,'SQL Revenue Analysis'!$J$1:$J$65536,$B$8,'SQL Revenue Analysis'!$D$1:$D$65536,$A22)) -> 0 | M22: =-(SUMIFS('SQL Revenue Analysis'!$E$1:$E$65536,'SQL Revenue Analysis'!$A$1:$A$65536,M$4,'SQL Revenue Analysis'!$J$1:$J$65536,$B$7,'SQL Revenue Analysis'!$D$1:$D$65536,$A22)+SUMIFS('SQL Revenue Analysis'!$E$1:$E$65536,'SQL Revenue Analysis'!$A$1:$A$65536,M$4,'SQL Revenue Analysis'!$J$1:$J$65536,$B$8,'SQL Revenue Analysis'!$D$1:$D$65536,$A22)) -> 0 | N22: =-(SUMIFS('SQL Revenue Analysis'!$E$1:$E$65536,'SQL Revenue Analysis'!$A$1:$A$65536,N$4,'SQL Revenue Analysis'!$J$1:$J$65536,$B$7,'SQL Revenue Analysis'!$D$1:$D$65536,$A22)+SUMIFS('SQL Revenue Analysis'!$E$1:$E$65536,'SQL Revenue Analysis'!$A$1:$A$65536,N$4,'SQL Revenue Analysis'!$J$1:$J$65536,$B$8,'SQL Revenue Analysis'!$D$1:$D$65536,$A22)) -> 0 | O22: =-(SUMIFS('SQL Revenue Analysis'!$E$1:$E$65536,'SQL Revenue Analysis'!$A$1:$A$65536,O$4,'SQL Revenue Analysis'!$J$1:$J$65536,$B$7,'SQL Revenue Analysis'!$D$1:$D$65536,$A22)+SUMIFS('SQL Revenue Analysis'!$E$1:$E$65536,'SQL Revenue Analysis'!$A$1:$A$65536,O$4,'SQL Revenue Analysis'!$J$1:$J$65536,$B$8,'SQL Revenue Analysis'!$D$1:$D$65536,$A22)) -> 0 | Q22: 0
A23: OVS | B23: 30 / 70 | D23: =-(SUMIFS('SQL Revenue Analysis'!$E$1:$E$65536,'SQL Revenue Analysis'!$A$1:$A$65536,D$4,'SQL Revenue Analysis'!$J$1:$J$65536,$B$7,'SQL Revenue Analysis'!$D$1:$D$65536,$A23)+SUMIFS('SQL Revenue Analysis'!$E$1:$E$65536,'SQL Revenue Analysis'!$A$1:$A$65536,D$4,'SQL Revenue Analysis'!$J$1:$J$65536,$B$8,'SQL Revenue Analysis'!$D$1:$D$65536,$A23)) -> 0 | E23: =-(SUMIFS('SQL Revenue Analysis'!$E$1:$E$65536,'SQL Revenue Analysis'!$A$1:$A$65536,E$4,'SQL Revenue Analysis'!$J$1:$J$65536,$B$7,'SQL Revenue Analysis'!$D$1:$D$65536,$A23)+SUMIFS('SQL Revenue Analysis'!$E$1:$E$65536,'SQL Revenue Analysis'!$A$1:$A$65536,E$4,'SQL Revenue Analysis'!$J$1:$J$65536,$B$8,'SQL Revenue Analysis'!$D$1:$D$65536,$A23)) -> 0 | F23: =-(SUMIFS('SQL Revenue Analysis'!$E$1:$E$65536,'SQL Revenue Analysis'!$A$1:$A$65536,F$4,'SQL Revenue Analysis'!$J$1:$J$65536,$B$7,'SQL Revenue Analysis'!$D$1:$D$65536,$A23)+SUMIFS('SQL Revenue Analysis'!$E$1:$E$65536,'SQL Revenue Analysis'!$A$1:$A$65536,F$4,'SQL Revenue Analysis'!$J$1:$J$65536,$B$8,'SQL Revenue Analysis'!$D$1:$D$65536,$A23)) -> 0 | G23: =-(SUMIFS('SQL Revenue Analysis'!$E$1:$E$65536,'SQL Revenue Analysis'!$A$1:$A$65536,G$4,'SQL Revenue Analysis'!$J$1:$J$65536,$B$7,'SQL Revenue Analysis'!$D$1:$D$65536,$A23)+SUMIFS('SQL Revenue Analysis'!$E$1:$E$65536,'SQL Revenue Analysis'!$A$1:$A$65536,G$4,'SQL Revenue Analysis'!$J$1:$J$65536,$B$8,'SQL Revenue Analysis'!$D$1:$D$65536,$A23)) -> 0 | H23: =-(SUMIFS('SQL Revenue Analysis'!$E$1:$E$65536,'SQL Revenue Analysis'!$A$1:$A$65536,H$4,'SQL Revenue Analysis'!$J$1:$J$65536,$B$7,'SQL Revenue Analysis'!$D$1:$D$65536,$A23)+SUMIFS('SQL Revenue Analysis'!$E$1:$E$65536,'SQL Revenue Analysis'!$A$1:$A$65536,H$4,'SQL Revenue Analysis'!$J$1:$J$65536,$B$8,'SQL Revenue Analysis'!$D$1:$D$65536,$A23)) -> 0 | I23: =-(SUMIFS('SQL Revenue Analysis'!$E$1:$E$65536,'SQL Revenue Analysis'!$A$1:$A$65536,I$4,'SQL Revenue Analysis'!$J$1:$J$65536,$B$7,'SQL Revenue Analysis'!$D$1:$D$65536,$A23)+SUMIFS('SQL Revenue Analysis'!$E$1:$E$65536,'SQL Revenue Analysis'!$A$1:$A$65536,I$4,'SQL Revenue Analysis'!$J$1:$J$65536,$B$8,'SQL Revenue Analysis'!$D$1:$D$65536,$A23)) -> 0 | J23: =-(SUMIFS('SQL Revenue Analysis'!$E$1:$E$65536,'SQL Revenue Analysis'!$A$1:$A$65536,J$4,'SQL Revenue Analysis'!$J$1:$J$65536,$B$7,'SQL Revenue Analysis'!$D$1:$D$65536,$A23)+SUMIFS('SQL Revenue Analysis'!$E$1:$E$65536,'SQL Revenue Analysis'!$A$1:$A$65536,J$4,'SQL Revenue Analysis'!$J$1:$J$65536,$B$8,'SQL Revenue Analysis'!$D$1:$D$65536,$A23)) -> 0 | K23: =-(SUMIFS('SQL Revenue Analysis'!$E$1:$E$65536,'SQL Revenue Analysis'!$A$1:$A$65536,K$4,'SQL Revenue Analysis'!$J$1:$J$65536,$B$7,'SQL Revenue Analysis'!$D$1:$D$65536,$A23)+SUMIFS('SQL Revenue Analysis'!$E$1:$E$65536,'SQL Revenue Analysis'!$A$1:$A$65536,K$4,'SQL Revenue Analysis'!$J$1:$J$65536,$B$8,'SQL Revenue Analysis'!$D$1:$D$65536,$A23)) -> 0 | L23: =-(SUMIFS('SQL Revenue Analysis'!$E$1:$E$65536,'SQL Revenue Analysis'!$A$1:$A$65536,L$4,'SQL Revenue Analysis'!$J$1:$J$65536,$B$7,'SQL Revenue Analysis'!$D$1:$D$65536,$A23)+SUMIFS('SQL Revenue Analysis'!$E$1:$E$65536,'SQL Revenue Analysis'!$A$1:$A$65536,L$4,'SQL Revenue Analysis'!$J$1:$J$65536,$B$8,'SQL Revenue Analysis'!$D$1:$D$65536,$A23)) -> 0 | M23: =-(SUMIFS('SQL Revenue Analysis'!$E$1:$E$65536,'SQL Revenue Analysis'!$A$1:$A$65536,M$4,'SQL Revenue Analysis'!$J$1:$J$65536,$B$7,'SQL Revenue Analysis'!$D$1:$D$65536,$A23)+SUMIFS('SQL Revenue Analysis'!$E$1:$E$65536,'SQL Revenue Analysis'!$A$1:$A$65536,M$4,'SQL Revenue Analysis'!$J$1:$J$65536,$B$8,'SQL Revenue Analysis'!$D$1:$D$65536,$A23)) -> 0 | N23: =-(SUMIFS('SQL Revenue Analysis'!$E$1:$E$65536,'SQL Revenue Analysis'!$A$1:$A$65536,N$4,'SQL Revenue Analysis'!$J$1:$J$65536,$B$7,'SQL Revenue Analysis'!$D$1:$D$65536,$A23)+SUMIFS('SQL Revenue Analysis'!$E$1:$E$65536,'SQL Revenue Analysis'!$A$1:$A$65536,N$4,'SQL Revenue Analysis'!$J$1:$J$65536,$B$8,'SQL Revenue Analysis'!$D$1:$D$65536,$A23)) -> 0 | O23: =-(SUMIFS('SQL Revenue Analysis'!$E$1:$E$65536,'SQL Revenue Analysis'!$A$1:$A$65536,O$4,'SQL Revenue Analysis'!$J$1:$J$65536,$B$7,'SQL Revenue Analysis'!$D$1:$D$65536,$A23)+SUMIFS('SQL Revenue Analysis'!$E$1:$E$65536,'SQL Revenue Analysis'!$A$1:$A$65536,O$4,'SQL Revenue Analysis'!$J$1:$J$65536,$B$8,'SQL Revenue Analysis'!$D$1:$D$65536,$A23)) -> 0 | Q23: 0
A24: REM | B24: 30 / 70 | D24: =-(SUMIFS('SQL Revenue Analysis'!$E$1:$E$65536,'SQL Revenue Analysis'!$A$1:$A$65536,D$4,'SQL Revenue Analysis'!$J$1:$J$65536,$B$7,'SQL Revenue Analysis'!$D$1:$D$65536,$A24)+SUMIFS('SQL Revenue Analysis'!$E$1:$E$65536,'SQL Revenue Analysis'!$A$1:$A$65536,D$4,'SQL Revenue Analysis'!$J$1:$J$65536,$B$8,'SQL Revenue Analysis'!$D$1:$D$65536,$A24)) -> 0 | E24: =-(SUMIFS('SQL Revenue Analysis'!$E$1:$E$65536,'SQL Revenue Analysis'!$A$1:$A$65536,E$4,'SQL Revenue Analysis'!$J$1:$J$65536,$B$7,'SQL Revenue Analysis'!$D$1:$D$65536,$A24)+SUMIFS('SQL Revenue Analysis'!$E$1:$E$65536,'SQL Revenue Analysis'!$A$1:$A$65536,E$4,'SQL Revenue Analysis'!$J$1:$J$65536,$B$8,'SQL Revenue Analysis'!$D$1:$D$65536,$A24)) -> 0 | F24: =-(SUMIFS('SQL Revenue Analysis'!$E$1:$E$65536,'SQL Revenue Analysis'!$A$1:$A$65536,F$4,'SQL Revenue Analysis'!$J$1:$J$65536,$B$7,'SQL Revenue Analysis'!$D$1:$D$65536,$A24)+SUMIFS('SQL Revenue Analysis'!$E$1:$E$65536,'SQL Revenue Analysis'!$A$1:$A$65536,F$4,'SQL Revenue Analysis'!$J$1:$J$65536,$B$8,'SQL Revenue Analysis'!$D$1:$D$65536,$A24)) -> 0 | G24: =-(SUMIFS('SQL Revenue Analysis'!$E$1:$E$65536,'SQL Revenue Analysis'!$A$1:$A$65536,G$4,'SQL Revenue Analysis'!$J$1:$J$65536,$B$7,'SQL Revenue Analysis'!$D$1:$D$65536,$A24)+SUMIFS('SQL Revenue Analysis'!$E$1:$E$65536,'SQL Revenue Analysis'!$A$1:$A$65536,G$4,'SQL Revenue Analysis'!$J$1:$J$65536,$B$8,'SQL Revenue Analysis'!$D$1:$D$65536,$A24)) -> 0 | H24: =-(SUMIFS('SQL Revenue Analysis'!$E$1:$E$65536,'SQL Revenue Analysis'!$A$1:$A$65536,H$4,'SQL Revenue Analysis'!$J$1:$J$65536,$B$7,'SQL Revenue Analysis'!$D$1:$D$65536,$A24)+SUMIFS('SQL Revenue Analysis'!$E$1:$E$65536,'SQL Revenue Analysis'!$A$1:$A$65536,H$4,'SQL Revenue Analysis'!$J$1:$J$65536,$B$8,'SQL Revenue Analysis'!$D$1:$D$65536,$A24)) -> 0 | I24: =-(SUMIFS('SQL Revenue Analysis'!$E$1:$E$65536,'SQL Revenue Analysis'!$A$1:$A$65536,I$4,'SQL Revenue Analysis'!$J$1:$J$65536,$B$7,'SQL Revenue Analysis'!$D$1:$D$65536,$A24)+SUMIFS('SQL Revenue Analysis'!$E$1:$E$65536,'SQL Revenue Analysis'!$A$1:$A$65536,I$4,'SQL Revenue Analysis'!$J$1:$J$65536,$B$8,'SQL Revenue Analysis'!$D$1:$D$65536,$A24)) -> 0 | J24: =-(SUMIFS('SQL Revenue Analysis'!$E$1:$E$65536,'SQL Revenue Analysis'!$A$1:$A$65536,J$4,'SQL Revenue Analysis'!$J$1:$J$65536,$B$7,'SQL Revenue Analysis'!$D$1:$D$65536,$A24)+SUMIFS('SQL Revenue Analysis'!$E$1:$E$65536,'SQL Revenue Analysis'!$A$1:$A$65536,J$4,'SQL Revenue Analysis'!$J$1:$J$65536,$B$8,'SQL Revenue Analysis'!$D$1:$D$65536,$A24)) -> 0 | K24: =-(SUMIFS('SQL Revenue Analysis'!$E$1:$E$65536,'SQL Revenue Analysis'!$A$1:$A$65536,K$4,'SQL Revenue Analysis'!$J$1:$J$65536,$B$7,'SQL Revenue Analysis'!$D$1:$D$65536,$A24)+SUMIFS('SQL Revenue Analysis'!$E$1:$E$65536,'SQL Revenue Analysis'!$A$1:$A$65536,K$4,'SQL Revenue Analysis'!$J$1:$J$65536,$B$8,'SQL Revenue Analysis'!$D$1:$D$65536,$A24)) -> 0 | L24: =-(SUMIFS('SQL Revenue Analysis'!$E$1:$E$65536,'SQL Revenue Analysis'!$A$1:$A$65536,L$4,'SQL Revenue Analysis'!$J$1:$J$65536,$B$7,'SQL Revenue Analysis'!$D$1:$D$65536,$A24)+SUMIFS('SQL Revenue Analysis'!$E$1:$E$65536,'SQL Revenue Analysis'!$A$1:$A$65536,L$4,'SQL Revenue Analysis'!$J$1:$J$65536,$B$8,'SQL Revenue Analysis'!$D$1:$D$65536,$A24)) -> 0 | M24: =-(SUMIFS('SQL Revenue Analysis'!$E$1:$E$65536,'SQL Revenue Analysis'!$A$1:$A$65536,M$4,'SQL Revenue Analysis'!$J$1:$J$65536,$B$7,'SQL Revenue Analysis'!$D$1:$D$65536,$A24)+SUMIFS('SQL Revenue Analysis'!$E$1:$E$65536,'SQL Revenue Analysis'!$A$1:$A$65536,M$4,'SQL Revenue Analysis'!$J$1:$J$65536,$B$8,'SQL Revenue Analysis'!$D$1:$D$65536,$A24)) -> 0 | N24: =-(SUMIFS('SQL Revenue Analysis'!$E$1:$E$65536,'SQL Revenue Analysis'!$A$1:$A$65536,N$4,'SQL Revenue Analysis'!$J$1:$J$65536,$B$7,'SQL Revenue Analysis'!$D$1:$D$65536,$A24)+SUMIFS('SQL Revenue Analysis'!$E$1:$E$65536,'SQL Revenue Analysis'!$A$1:$A$65536,N$4,'SQL Revenue Analysis'!$J$1:$J$65536,$B$8,'SQL Revenue Analysis'!$D$1:$D$65536,$A24)) -> 0 | O24: =-(SUMIFS('SQL Revenue Analysis'!$E$1:$E$65536,'SQL Revenue Analysis'!$A$1:$A$65536,O$4,'SQL Revenue Analysis'!$J$1:$J$65536,$B$7,'SQL Revenue Analysis'!$D$1:$D$65536,$A24)+SUMIFS('SQL Revenue Analysis'!$E$1:$E$65536,'SQL Revenue Analysis'!$A$1:$A$65536,O$4,'SQL Revenue Analysis'!$J$1:$J$65536,$B$8,'SQL Revenue Analysis'!$D$1:$D$65536,$A24)) -> 0 | Q24: 0
A25: RES | B25: 30 / 70 | D25: =-(SUMIFS('SQL Revenue Analysis'!$E$1:$E$65536,'SQL Revenue Analysis'!$A$1:$A$65536,D$4,'SQL Revenue Analysis'!$J$1:$J$65536,$B$7,'SQL Revenue Analysis'!$D$1:$D$65536,$A25)+SUMIFS('SQL Revenue Analysis'!$E$1:$E$65536,'SQL Revenue Analysis'!$A$1:$A$65536,D$4,'SQL Revenue Analysis'!$J$1:$J$65536,$B$8,'SQL Revenue Analysis'!$D$1:$D$65536,$A25)) -> 0 | E25: =-(SUMIFS('SQL Revenue Analysis'!$E$1:$E$65536,'SQL Revenue Analysis'!$A$1:$A$65536,E$4,'SQL Revenue Analysis'!$J$1:$J$65536,$B$7,'SQL Revenue Analysis'!$D$1:$D$65536,$A25)+SUMIFS('SQL Revenue Analysis'!$E$1:$E$65536,'SQL Revenue Analysis'!$A$1:$A$65536,E$4,'SQL Revenue Analysis'!$J$1:$J$65536,$B$8,'SQL Revenue Analysis'!$D$1:$D$65536,$A25)) -> 0 | F25: =-(SUMIFS('SQL Revenue Analysis'!$E$1:$E$65536,'SQL Revenue Analysis'!$A$1:$A$65536,F$4,'SQL Revenue Analysis'!$J$1:$J$65536,$B$7,'SQL Revenue Analysis'!$D$1:$D$65536,$A25)+SUMIFS('SQL Revenue Analysis'!$E$1:$E$65536,'SQL Revenue Analysis'!$A$1:$A$65536,F$4,'SQL Revenue Analysis'!$J$1:$J$65536,$B$8,'SQL Revenue Analysis'!$D$1:$D$65536,$A25)) -> 0 | G25: =-(SUMIFS('SQL Revenue Analysis'!$E$1:$E$65536,'SQL Revenue Analysis'!$A$1:$A$65536,G$4,'SQL Revenue Analysis'!$J$1:$J$65536,$B$7,'SQL Revenue Analysis'!$D$1:$D$65536,$A25)+SUMIFS('SQL Revenue Analysis'!$E$1:$E$65536,'SQL Revenue Analysis'!$A$1:$A$65536,G$4,'SQL Revenue Analysis'!$J$1:$J$65536,$B$8,'SQL Revenue Analysis'!$D$1:$D$65536,$A25)) -> 0 | H25: =-(SUMIFS('SQL Revenue Analysis'!$E$1:$E$65536,'SQL Revenue Analysis'!$A$1:$A$65536,H$4,'SQL Revenue Analysis'!$J$1:$J$65536,$B$7,'SQL Revenue Analysis'!$D$1:$D$65536,$A25)+SUMIFS('SQL Revenue Analysis'!$E$1:$E$65536,'SQL Revenue Analysis'!$A$1:$A$65536,H$4,'SQL Revenue Analysis'!$J$1:$J$65536,$B$8,'SQL Revenue Analysis'!$D$1:$D$65536,$A25)) -> 0 | I25: =-(SUMIFS('SQL Revenue Analysis'!$E$1:$E$65536,'SQL Revenue Analysis'!$A$1:$A$65536,I$4,'SQL Revenue Analysis'!$J$1:$J$65536,$B$7,'SQL Revenue Analysis'!$D$1:$D$65536,$A25)+SUMIFS('SQL Revenue Analysis'!$E$1:$E$65536,'SQL Revenue Analysis'!$A$1:$A$65536,I$4,'SQL Revenue Analysis'!$J$1:$J$65536,$B$8,'SQL Revenue Analysis'!$D$1:$D$65536,$A25)) -> 0 | J25: =-(SUMIFS('SQL Revenue Analysis'!$E$1:$E$65536,'SQL Revenue Analysis'!$A$1:$A$65536,J$4,'SQL Revenue Analysis'!$J$1:$J$65536,$B$7,'SQL Revenue Analysis'!$D$1:$D$65536,$A25)+SUMIFS('SQL Revenue Analysis'!$E$1:$E$65536,'SQL Revenue Analysis'!$A$1:$A$65536,J$4,'SQL Revenue Analysis'!$J$1:$J$65536,$B$8,'SQL Revenue Analysis'!$D$1:$D$65536,$A25)) -> 0 | K25: =-(SUMIFS('SQL Revenue Analysis'!$E$1:$E$65536,'SQL Revenue Analysis'!$A$1:$A$65536,K$4,'SQL Revenue Analysis'!$J$1:$J$65536,$B$7,'SQL Revenue Analysis'!$D$1:$D$65536,$A25)+SUMIFS('SQL Revenue Analysis'!$E$1:$E$65536,'SQL Revenue Analysis'!$A$1:$A$65536,K$4,'SQL Revenue Analysis'!$J$1:$J$65536,$B$8,'SQL Revenue Analysis'!$D$1:$D$65536,$A25)) -> 0 | L25: =-(SUMIFS('SQL Revenue Analysis'!$E$1:$E$65536,'SQL Revenue Analysis'!$A$1:$A$65536,L$4,'SQL Revenue Analysis'!$J$1:$J$65536,$B$7,'SQL Revenue Analysis'!$D$1:$D$65536,$A25)+SUMIFS('SQL Revenue Analysis'!$E$1:$E$65536,'SQL Revenue Analysis'!$A$1:$A$65536,L$4,'SQL Revenue Analysis'!$J$1:$J$65536,$B$8,'SQL Revenue Analysis'!$D$1:$D$65536,$A25)) -> 0 | M25: =-(SUMIFS('SQL Revenue Analysis'!$E$1:$E$65536,'SQL Revenue Analysis'!$A$1:$A$65536,M$4,'SQL Revenue Analysis'!$J$1:$J$65536,$B$7,'SQL Revenue Analysis'!$D$1:$D$65536,$A25)+SUMIFS('SQL Revenue Analysis'!$E$1:$E$65536,'SQL Revenue Analysis'!$A$1:$A$65536,M$4,'SQL Revenue Analysis'!$J$1:$J$65536,$B$8,'SQL Revenue Analysis'!$D$1:$D$65536,$A25)) -> 0 | N25: =-(SUMIFS('SQL Revenue Analysis'!$E$1:$E$65536,'SQL Revenue Analysis'!$A$1:$A$65536,N$4,'SQL Revenue Analysis'!$J$1:$J$65536,$B$7,'SQL Revenue Analysis'!$D$1:$D$65536,$A25)+SUMIFS('SQL Revenue Analysis'!$E$1:$E$65536,'SQL Revenue Analysis'!$A$1:$A$65536,N$4,'SQL Revenue Analysis'!$J$1:$J$65536,$B$8,'SQL Revenue Analysis'!$D$1:$D$65536,$A25)) -> 0 | O25: =-(SUMIFS('SQL Revenue Analysis'!$E$1:$E$65536,'SQL Revenue Analysis'!$A$1:$A$65536,O$4,'SQL Revenue Analysis'!$J$1:$J$65536,$B$7,'SQL Revenue Analysis'!$D$1:$D$65536,$A25)+SUMIFS('SQL Revenue Analysis'!$E$1:$E$65536,'SQL Revenue Analysis'!$A$1:$A$65536,O$4,'SQL Revenue Analysis'!$J$1:$J$65536,$B$8,'SQL Revenue Analysis'!$D$1:$D$65536,$A25)) -> 0 | Q25: 0
A26: RPF | B26: 30 / 70 | D26: =-(SUMIFS('SQL Revenue Analysis'!$E$1:$E$65536,'SQL Revenue Analysis'!$A$1:$A$65536,D$4,'SQL Revenue Analysis'!$J$1:$J$65536,$B$7,'SQL Revenue Analysis'!$D$1:$D$65536,$A26)+SUMIFS('SQL Revenue Analysis'!$E$1:$E$65536,'SQL Revenue Analysis'!$A$1:$A$65536,D$4,'SQL Revenue Analysis'!$J$1:$J$65536,$B$8,'SQL Revenue Analysis'!$D$1:$D$65536,$A26)) -> 0 | E26: =-(SUMIFS('SQL Revenue Analysis'!$E$1:$E$65536,'SQL Revenue Analysis'!$A$1:$A$65536,E$4,'SQL Revenue Analysis'!$J$1:$J$65536,$B$7,'SQL Revenue Analysis'!$D$1:$D$65536,$A26)+SUMIFS('SQL Revenue Analysis'!$E$1:$E$65536,'SQL Revenue Analysis'!$A$1:$A$65536,E$4,'SQL Revenue Analysis'!$J$1:$J$65536,$B$8,'SQL Revenue Analysis'!$D$1:$D$65536,$A26)) -> 0 | F26: =-(SUMIFS('SQL Revenue Analysis'!$E$1:$E$65536,'SQL Revenue Analysis'!$A$1:$A$65536,F$4,'SQL Revenue Analysis'!$J$1:$J$65536,$B$7,'SQL Revenue Analysis'!$D$1:$D$65536,$A26)+SUMIFS('SQL Revenue Analysis'!$E$1:$E$65536,'SQL Revenue Analysis'!$A$1:$A$65536,F$4,'SQL Revenue Analysis'!$J$1:$J$65536,$B$8,'SQL Revenue Analysis'!$D$1:$D$65536,$A26)) -> 0 | G26: =-(SUMIFS('SQL Revenue Analysis'!$E$1:$E$65536,'SQL Revenue Analysis'!$A$1:$A$65536,G$4,'SQL Revenue Analysis'!$J$1:$J$65536,$B$7,'SQL Revenue Analysis'!$D$1:$D$65536,$A26)+SUMIFS('SQL Revenue Analysis'!$E$1:$E$65536,'SQL Revenue Analysis'!$A$1:$A$65536,G$4,'SQL Revenue Analysis'!$J$1:$J$65536,$B$8,'SQL Revenue Analysis'!$D$1:$D$65536,$A26)) -> 0 | H26: =-(SUMIFS('SQL Revenue Analysis'!$E$1:$E$65536,'SQL Revenue Analysis'!$A$1:$A$65536,H$4,'SQL Revenue Analysis'!$J$1:$J$65536,$B$7,'SQL Revenue Analysis'!$D$1:$D$65536,$A26)+SUMIFS('SQL Revenue Analysis'!$E$1:$E$65536,'SQL Revenue Analysis'!$A$1:$A$65536,H$4,'SQL Revenue Analysis'!$J$1:$J$65536,$B$8,'SQL Revenue Analysis'!$D$1:$D$65536,$A26)) -> 0 | I26: =-(SUMIFS('SQL Revenue Analysis'!$E$1:$E$65536,'SQL Revenue Analysis'!$A$1:$A$65536,I$4,'SQL Revenue Analysis'!$J$1:$J$65536,$B$7,'SQL Revenue Analysis'!$D$1:$D$65536,$A26)+SUMIFS('SQL Revenue Analysis'!$E$1:$E$65536,'SQL Revenue Analysis'!$A$1:$A$65536,I$4,'SQL Revenue Analysis'!$J$1:$J$65536,$B$8,'SQL Revenue Analysis'!$D$1:$D$65536,$A26)) -> 0 | J26: =-(SUMIFS('SQL Revenue Analysis'!$E$1:$E$65536,'SQL Revenue Analysis'!$A$1:$A$65536,J$4,'SQL Revenue Analysis'!$J$1:$J$65536,$B$7,'SQL Revenue Analysis'!$D$1:$D$65536,$A26)+SUMIFS('SQL Revenue Analysis'!$E$1:$E$65536,'SQL Revenue Analysis'!$A$1:$A$65536,J$4,'SQL Revenue Analysis'!$J$1:$J$65536,$B$8,'SQL Revenue Analysis'!$D$1:$D$65536,$A26)) -> 0 | K26: =-(SUMIFS('SQL Revenue Analysis'!$E$1:$E$65536,'SQL Revenue Analysis'!$A$1:$A$65536,K$4,'SQL Revenue Analysis'!$J$1:$J$65536,$B$7,'SQL Revenue Analysis'!$D$1:$D$65536,$A26)+SUMIFS('SQL Revenue Analysis'!$E$1:$E$65536,'SQL Revenue Analysis'!$A$1:$A$65536,K$4,'SQL Revenue Analysis'!$J$1:$J$65536,$B$8,'SQL Revenue Analysis'!$D$1:$D$65536,$A26)) -> 0 | L26: =-(SUMIFS('SQL Revenue Analysis'!$E$1:$E$65536,'SQL Revenue Analysis'!$A$1:$A$65536,L$4,'SQL Revenue Analysis'!$J$1:$J$65536,$B$7,'SQL Revenue Analysis'!$D$1:$D$65536,$A26)+SUMIFS('SQL Revenue Analysis'!$E$1:$E$65536,'SQL Revenue Analysis'!$A$1:$A$65536,L$4,'SQL Revenue Analysis'!$J$1:$J$65536,$B$8,'SQL Revenue Analysis'!$D$1:$D$65536,$A26)) -> 0 | M26: =-(SUMIFS('SQL Revenue Analysis'!$E$1:$E$65536,'SQL Revenue Analysis'!$A$1:$A$65536,M$4,'SQL Revenue Analysis'!$J$1:$J$65536,$B$7,'SQL Revenue Analysis'!$D$1:$D$65536,$A26)+SUMIFS('SQL Revenue Analysis'!$E$1:$E$65536,'SQL Revenue Analysis'!$A$1:$A$65536,M$4,'SQL Revenue Analysis'!$J$1:$J$65536,$B$8,'SQL Revenue Analysis'!$D$1:$D$65536,$A26)) -> 0 | N26: =-(SUMIFS('SQL Revenue Analysis'!$E$1:$E$65536,'SQL Revenue Analysis'!$A$1:$A$65536,N$4,'SQL Revenue Analysis'!$J$1:$J$65536,$B$7,'SQL Revenue Analysis'!$D$1:$D$65536,$A26)+SUMIFS('SQL Revenue Analysis'!$E$1:$E$65536,'SQL Revenue Analysis'!$A$1:$A$65536,N$4,'SQL Revenue Analysis'!$J$1:$J$65536,$B$8,'SQL Revenue Analysis'!$D$1:$D$65536,$A26)) -> 0 | O26: =-(SUMIFS('SQL Revenue Analysis'!$E$1:$E$65536,'SQL Revenue Analysis'!$A$1:$A$65536,O$4,'SQL Revenue Analysis'!$J$1:$J$65536,$B$7,'SQL Revenue Analysis'!$D$1:$D$65536,$A26)+SUMIFS('SQL Revenue Analysis'!$E$1:$E$65536,'SQL Revenue Analysis'!$A$1:$A$65536,O$4,'SQL Revenue Analysis'!$J$1:$J$65536,$B$8,'SQL Revenue Analysis'!$D$1:$D$65536,$A26)) -> 0 | Q26: 0
A27: RPS | B27: 30 / 70 | D27: =-(SUMIFS('SQL Revenue Analysis'!$E$1:$E$65536,'SQL Revenue Analysis'!$A$1:$A$65536,D$4,'SQL Revenue Analysis'!$J$1:$J$65536,$B$7,'SQL Revenue Analysis'!$D$1:$D$65536,$A27)+SUMIFS('SQL Revenue Analysis'!$E$1:$E$65536,'SQL Revenue Analysis'!$A$1:$A$65536,D$4,'SQL Revenue Analysis'!$J$1:$J$65536,$B$8,'SQL Revenue Analysis'!$D$1:$D$65536,$A27)) -> 0 | E27: =-(SUMIFS('SQL Revenue Analysis'!$E$1:$E$65536,'SQL Revenue Analysis'!$A$1:$A$65536,E$4,'SQL Revenue Analysis'!$J$1:$J$65536,$B$7,'SQL Revenue Analysis'!$D$1:$D$65536,$A27)+SUMIFS('SQL Revenue Analysis'!$E$1:$E$65536,'SQL Revenue Analysis'!$A$1:$A$65536,E$4,'SQL Revenue Analysis'!$J$1:$J$65536,$B$8,'SQL Revenue Analysis'!$D$1:$D$65536,$A27)) -> 0 | F27: =-(SUMIFS('SQL Revenue Analysis'!$E$1:$E$65536,'SQL Revenue Analysis'!$A$1:$A$65536,F$4,'SQL Revenue Analysis'!$J$1:$J$65536,$B$7,'SQL Revenue Analysis'!$D$1:$D$65536,$A27)+SUMIFS('SQL Revenue Analysis'!$E$1:$E$65536,'SQL Revenue Analysis'!$A$1:$A$65536,F$4,'SQL Revenue Analysis'!$J$1:$J$65536,$B$8,'SQL Revenue Analysis'!$D$1:$D$65536,$A27)) -> 0 | G27: =-(SUMIFS('SQL Revenue Analysis'!$E$1:$E$65536,'SQL Revenue Analysis'!$A$1:$A$65536,G$4,'SQL Revenue Analysis'!$J$1:$J$65536,$B$7,'SQL Revenue Analysis'!$D$1:$D$65536,$A27)+SUMIFS('SQL Revenue Analysis'!$E$1:$E$65536,'SQL Revenue Analysis'!$A$1:$A$65536,G$4,'SQL Revenue Analysis'!$J$1:$J$65536,$B$8,'SQL Revenue Analysis'!$D$1:$D$65536,$A27)) -> 0 | H27: =-(SUMIFS('SQL Revenue Analysis'!$E$1:$E$65536,'SQL Revenue Analysis'!$A$1:$A$65536,H$4,'SQL Revenue Analysis'!$J$1:$J$65536,$B$7,'SQL Revenue Analysis'!$D$1:$D$65536,$A27)+SUMIFS('SQL Revenue Analysis'!$E$1:$E$65536,'SQL Revenue Analysis'!$A$1:$A$65536,H$4,'SQL Revenue Analysis'!$J$1:$J$65536,$B$8,'SQL Revenue Analysis'!$D$1:$D$65536,$A27)) -> 0 | I27: =-(SUMIFS('SQL Revenue Analysis'!$E$1:$E$65536,'SQL Revenue Analysis'!$A$1:$A$65536,I$4,'SQL Revenue Analysis'!$J$1:$J$65536,$B$7,'SQL Revenue Analysis'!$D$1:$D$65536,$A27)+SUMIFS('SQL Revenue Analysis'!$E$1:$E$65536,'SQL Revenue Analysis'!$A$1:$A$65536,I$4,'SQL Revenue Analysis'!$J$1:$J$65536,$B$8,'SQL Revenue Analysis'!$D$1:$D$65536,$A27)) -> 0 | J27: =-(SUMIFS('SQL Revenue Analysis'!$E$1:$E$65536,'SQL Revenue Analysis'!$A$1:$A$65536,J$4,'SQL Revenue Analysis'!$J$1:$J$65536,$B$7,'SQL Revenue Analysis'!$D$1:$D$65536,$A27)+SUMIFS('SQL Revenue Analysis'!$E$1:$E$65536,'SQL Revenue Analysis'!$A$1:$A$65536,J$4,'SQL Revenue Analysis'!$J$1:$J$65536,$B$8,'SQL Revenue Analysis'!$D$1:$D$65536,$A27)) -> 0 | K27: =-(SUMIFS('SQL Revenue Analysis'!$E$1:$E$65536,'SQL Revenue Analysis'!$A$1:$A$65536,K$4,'SQL Revenue Analysis'!$J$1:$J$65536,$B$7,'SQL Revenue Analysis'!$D$1:$D$65536,$A27)+SUMIFS('SQL Revenue Analysis'!$E$1:$E$65536,'SQL Revenue Analysis'!$A$1:$A$65536,K$4,'SQL Revenue Analysis'!$J$1:$J$65536,$B$8,'SQL Revenue Analysis'!$D$1:$D$65536,$A27)) -> 0 | L27: =-(SUMIFS('SQL Revenue Analysis'!$E$1:$E$65536,'SQL Revenue Analysis'!$A$1:$A$65536,L$4,'SQL Revenue Analysis'!$J$1:$J$65536,$B$7,'SQL Revenue Analysis'!$D$1:$D$65536,$A27)+SUMIFS('SQL Revenue Analysis'!$E$1:$E$65536,'SQL Revenue Analysis'!$A$1:$A$65536,L$4,'SQL Revenue Analysis'!$J$1:$J$65536,$B$8,'SQL Revenue Analysis'!$D$1:$D$65536,$A27)) -> 0 | M27: =-(SUMIFS('SQL Revenue Analysis'!$E$1:$E$65536,'SQL Revenue Analysis'!$A$1:$A$65536,M$4,'SQL Revenue Analysis'!$J$1:$J$65536,$B$7,'SQL Revenue Analysis'!$D$1:$D$65536,$A27)+SUMIFS('SQL Revenue Analysis'!$E$1:$E$65536,'SQL Revenue Analysis'!$A$1:$A$65536,M$4,'SQL Revenue Analysis'!$J$1:$J$65536,$B$8,'SQL Revenue Analysis'!$D$1:$D$65536,$A27)) -> 0 | N27: =-(SUMIFS('SQL Revenue Analysis'!$E$1:$E$65536,'SQL Revenue Analysis'!$A$1:$A$65536,N$4,'SQL Revenue Analysis'!$J$1:$J$65536,$B$7,'SQL Revenue Analysis'!$D$1:$D$65536,$A27)+SUMIFS('SQL Revenue Analysis'!$E$1:$E$65536,'SQL Revenue Analysis'!$A$1:$A$65536,N$4,'SQL Revenue Analysis'!$J$1:$J$65536,$B$8,'SQL Revenue Analysis'!$D$1:$D$65536,$A27)) -> 0 | O27: =-(SUMIFS('SQL Revenue Analysis'!$E$1:$E$65536,'SQL Revenue Analysis'!$A$1:$A$65536,O$4,'SQL Revenue Analysis'!$J$1:$J$65536,$B$7,'SQL Revenue Analysis'!$D$1:$D$65536,$A27)+SUMIFS('SQL Revenue Analysis'!$E$1:$E$65536,'SQL Revenue Analysis'!$A$1:$A$65536,O$4,'SQL Revenue Analysis'!$J$1:$J$65536,$B$8,'SQL Revenue Analysis'!$D$1:$D$65536,$A27)) -> 0 | Q27: 0
A28: RTN | B28: 30 / 70 | D28: =-(SUMIFS('SQL Revenue Analysis'!$E$1:$E$65536,'SQL Revenue Analysis'!$A$1:$A$65536,D$4,'SQL Revenue Analysis'!$J$1:$J$65536,$B$7,'SQL Revenue Analysis'!$D$1:$D$65536,$A28)+SUMIFS('SQL Revenue Analysis'!$E$1:$E$65536,'SQL Revenue Analysis'!$A$1:$A$65536,D$4,'SQL Revenue Analysis'!$J$1:$J$65536,$B$8,'SQL Revenue Analysis'!$D$1:$D$65536,$A28)) -> -15 | E28: =-(SUMIFS('SQL Revenue Analysis'!$E$1:$E$65536,'SQL Revenue Analysis'!$A$1:$A$65536,E$4,'SQL Revenue Analysis'!$J$1:$J$65536,$B$7,'SQL Revenue Analysis'!$D$1:$D$65536,$A28)+SUMIFS('SQL Revenue Analysis'!$E$1:$E$65536,'SQL Revenue Analysis'!$A$1:$A$65536,E$4,'SQL Revenue Analysis'!$J$1:$J$65536,$B$8,'SQL Revenue Analysis'!$D$1:$D$65536,$A28)) -> -5 | F28: =-(SUMIFS('SQL Revenue Analysis'!$E$1:$E$65536,'SQL Revenue Analysis'!$A$1:$A$65536,F$4,'SQL Revenue Analysis'!$J$1:$J$65536,$B$7,'SQL Revenue Analysis'!$D$1:$D$65536,$A28)+SUMIFS('SQL Revenue Analysis'!$E$1:$E$65536,'SQL Revenue Analysis'!$A$1:$A$65536,F$4,'SQL Revenue Analysis'!$J$1:$J$65536,$B$8,'SQL Revenue Analysis'!$D$1:$D$65536,$A28)) -> -10 | G28: =-(SUMIFS('SQL Revenue Analysis'!$E$1:$E$65536,'SQL Revenue Analysis'!$A$1:$A$65536,G$4,'SQL Revenue Analysis'!$J$1:$J$65536,$B$7,'SQL Revenue Analysis'!$D$1:$D$65536,$A28)+SUMIFS('SQL Revenue Analysis'!$E$1:$E$65536,'SQL Revenue Analysis'!$A$1:$A$65536,G$4,'SQL Revenue Analysis'!$J$1:$J$65536,$B$8,'SQL Revenue Analysis'!$D$1:$D$65536,$A28)) -> -15 | H28: =-(SUMIFS('SQL Revenue Analysis'!$E$1:$E$65536,'SQL Revenue Analysis'!$A$1:$A$65536,H$4,'SQL Revenue Analysis'!$J$1:$J$65536,$B$7,'SQL Revenue Analysis'!$D$1:$D$65536,$A28)+SUMIFS('SQL Revenue Analysis'!$E$1:$E$65536,'SQL Revenue Analysis'!$A$1:$A$65536,H$4,'SQL Revenue Analysis'!$J$1:$J$65536,$B$8,'SQL Revenue Analysis'!$D$1:$D$65536,$A28)) -> -45 | I28: =-(SUMIFS('SQL Revenue Analysis'!$E$1:$E$65536,'SQL Revenue Analysis'!$A$1:$A$65536,I$4,'SQL Revenue Analysis'!$J$1:$J$65536,$B$7,'SQL Revenue Analysis'!$D$1:$D$65536,$A28)+SUMIFS('SQL Revenue Analysis'!$E$1:$E$65536,'SQL Revenue Analysis'!$A$1:$A$65536,I$4,'SQL Revenue Analysis'!$J$1:$J$65536,$B$8,'SQL Revenue Analysis'!$D$1:$D$65536,$A28)) -> -5 | J28: =-(SUMIFS('SQL Revenue Analysis'!$E$1:$E$65536,'SQL Revenue Analysis'!$A$1:$A$65536,J$4,'SQL Revenue Analysis'!$J$1:$J$65536,$B$7,'SQL Revenue Analysis'!$D$1:$D$65536,$A28)+SUMIFS('SQL Revenue Analysis'!$E$1:$E$65536,'SQL Revenue Analysis'!$A$1:$A$65536,J$4,'SQL Revenue Analysis'!$J$1:$J$65536,$B$8,'SQL Revenue Analysis'!$D$1:$D$65536,$A28)) -> -10 | K28: =-(SUMIFS('SQL Revenue Analysis'!$E$1:$E$65536,'SQL Revenue Analysis'!$A$1:$A$65536,K$4,'SQL Revenue Analysis'!$J$1:$J$65536,$B$7,'SQL Revenue Analysis'!$D$1:$D$65536,$A28)+SUMIFS('SQL Revenue Analysis'!$E$1:$E$65536,'SQL Revenue Analysis'!$A$1:$A$65536,K$4,'SQL Revenue Analysis'!$J$1:$J$65536,$B$8,'SQL Revenue Analysis'!$D$1:$D$65536,$A28)) -> -10 | L28: =-(SUMIFS('SQL Revenue Analysis'!$E$1:$E$65536,'SQL Revenue Analysis'!$A$1:$A$65536,L$4,'SQL Revenue Analysis'!$J$1:$J$65536,$B$7,'SQL Revenue Analysis'!$D$1:$D$65536,$A28)+SUMIFS('SQL Revenue Analysis'!$E$1:$E$65536,'SQL Revenue Analysis'!$A$1:$A$65536,L$4,'SQL Revenue Analysis'!$J$1:$J$65536,$B$8,'SQL Revenue Analysis'!$D$1:$D$65536,$A28)) -> -10 | M28: =-(SUMIFS('SQL Revenue Analysis'!$E$1:$E$65536,'SQL Revenue Analysis'!$A$1:$A$65536,M$4,'SQL Revenue Analysis'!$J$1:$J$65536,$B$7,'SQL Revenue Analysis'!$D$1:$D$65536,$A28)+SUMIFS('SQL Revenue Analysis'!$E$1:$E$65536,'SQL Revenue Analysis'!$A$1:$A$65536,M$4,'SQL Revenue Analysis'!$J$1:$J$65536,$B$8,'SQL Revenue Analysis'!$D$1:$D$65536,$A28)) -> -15 | N28: =-(SUMIFS('SQL Revenue Analysis'!$E$1:$E$65536,'SQL Revenue Analysis'!$A$1:$A$65536,N$4,'SQL Revenue Analysis'!$J$1:$J$65536,$B$7,'SQL Revenue Analysis'!$D$1:$D$65536,$A28)+SUMIFS('SQL Revenue Analysis'!$E$1:$E$65536,'SQL Revenue Analysis'!$A$1:$A$65536,N$4,'SQL Revenue Analysis'!$J$1:$J$65536,$B$8,'SQL Revenue Analysis'!$D$1:$D$65536,$A28)) -> -10 | O28: =-(SUMIFS('SQL Revenue Analysis'!$E$1:$E$65536,'SQL Revenue Analysis'!$A$1:$A$65536,O$4,'SQL Revenue Analysis'!$J$1:$J$65536,$B$7,'SQL Revenue Analysis'!$D$1:$D$65536,$A28)+SUMIFS('SQL Revenue Analysis'!$E$1:$E$65536,'SQL Revenue Analysis'!$A$1:$A$65536,O$4,'SQL Revenue Analysis'!$J$1:$J$65536,$B$8,'SQL Revenue Analysis'!$D$1:$D$65536,$A28)) -> -10 | Q28: -160
A29: TAX | B29: 30 / 70 | D29: =-(SUMIFS('SQL Revenue Analysis'!$E$1:$E$65536,'SQL Revenue Analysis'!$A$1:$A$65536,D$4,'SQL Revenue Analysis'!$J$1:$J$65536,$B$7,'SQL Revenue Analysis'!$D$1:$D$65536,$A29)+SUMIFS('SQL Revenue Analysis'!$E$1:$E$65536,'SQL Revenue Analysis'!$A$1:$A$65536,D$4,'SQL Revenue Analysis'!$J$1:$J$65536,$B$8,'SQL Revenue Analysis'!$D$1:$D$65536,$A29)) -> 0 | E29: =-(SUMIFS('SQL Revenue Analysis'!$E$1:$E$65536,'SQL Revenue Analysis'!$A$1:$A$65536,E$4,'SQL Revenue Analysis'!$J$1:$J$65536,$B$7,'SQL Revenue Analysis'!$D$1:$D$65536,$A29)+SUMIFS('SQL Revenue Analysis'!$E$1:$E$65536,'SQL Revenue Analysis'!$A$1:$A$65536,E$4,'SQL Revenue Analysis'!$J$1:$J$65536,$B$8,'SQL Revenue Analysis'!$D$1:$D$65536,$A29)) -> 0 | F29: =-(SUMIFS('SQL Revenue Analysis'!$E$1:$E$65536,'SQL Revenue Analysis'!$A$1:$A$65536,F$4,'SQL Revenue Analysis'!$J$1:$J$65536,$B$7,'SQL Revenue Analysis'!$D$1:$D$65536,$A29)+SUMIFS('SQL Revenue Analysis'!$E$1:$E$65536,'SQL Revenue Analysis'!$A$1:$A$65536,F$4,'SQL Revenue Analysis'!$J$1:$J$65536,$B$8,'SQL Revenue Analysis'!$D$1:$D$65536,$A29)) -> 0 | G29: =-(SUMIFS('SQL Revenue Analysis'!$E$1:$E$65536,'SQL Revenue Analysis'!$A$1:$A$65536,G$4,'SQL Revenue Analysis'!$J$1:$J$65536,$B$7,'SQL Revenue Analysis'!$D$1:$D$65536,$A29)+SUMIFS('SQL Revenue Analysis'!$E$1:$E$65536,'SQL Revenue Analysis'!$A$1:$A$65536,G$4,'SQL Revenue Analysis'!$J$1:$J$65536,$B$8,'SQL Revenue Analysis'!$D$1:$D$65536,$A29)) -> 0 | H29: =-(SUMIFS('SQL Revenue Analysis'!$E$1:$E$65536,'SQL Revenue Analysis'!$A$1:$A$65536,H$4,'SQL Revenue Analysis'!$J$1:$J$65536,$B$7,'SQL Revenue Analysis'!$D$1:$D$65536,$A29)+SUMIFS('SQL Revenue Analysis'!$E$1:$E$65536,'SQL Revenue Analysis'!$A$1:$A$65536,H$4,'SQL Revenue Analysis'!$J$1:$J$65536,$B$8,'SQL Revenue Analysis'!$D$1:$D$65536,$A29)) -> 0 | I29: =-(SUMIFS('SQL Revenue Analysis'!$E$1:$E$65536,'SQL Revenue Analysis'!$A$1:$A$65536,I$4,'SQL Revenue Analysis'!$J$1:$J$65536,$B$7,'SQL Revenue Analysis'!$D$1:$D$65536,$A29)+SUMIFS('SQL Revenue Analysis'!$E$1:$E$65536,'SQL Revenue Analysis'!$A$1:$A$65536,I$4,'SQL Revenue Analysis'!$J$1:$J$65536,$B$8,'SQL Revenue Analysis'!$D$1:$D$65536,$A29)) -> 0 | J29: =-(SUMIFS('SQL Revenue Analysis'!$E$1:$E$65536,'SQL Revenue Analysis'!$A$1:$A$65536,J$4,'SQL Revenue Analysis'!$J$1:$J$65536,$B$7,'SQL Revenue Analysis'!$D$1:$D$65536,$A29)+SUMIFS('SQL Revenue Analysis'!$E$1:$E$65536,'SQL Revenue Analysis'!$A$1:$A$65536,J$4,'SQL Revenue Analysis'!$J$1:$J$65536,$B$8,'SQL Revenue Analysis'!$D$1:$D$65536,$A29)) -> 0 | K29: =-(SUMIFS('SQL Revenue Analysis'!$E$1:$E$65536,'SQL Revenue Analysis'!$A$1:$A$65536,K$4,'SQL Revenue Analysis'!$J$1:$J$65536,$B$7,'SQL Revenue Analysis'!$D$1:$D$65536,$A29)+SUMIFS('SQL Revenue Analysis'!$E$1:$E$65536,'SQL Revenue Analysis'!$A$1:$A$65536,K$4,'SQL Revenue Analysis'!$J$1:$J$65536,$B$8,'SQL Revenue Analysis'!$D$1:$D$65536,$A29)) -> 0 | L29: =-(SUMIFS('SQL Revenue Analysis'!$E$1:$E$65536,'SQL Revenue Analysis'!$A$1:$A$65536,L$4,'SQL Revenue Analysis'!$J$1:$J$65536,$B$7,'SQL Revenue Analysis'!$D$1:$D$65536,$A29)+SUMIFS('SQL Revenue Analysis'!$E$1:$E$65536,'SQL Revenue Analysis'!$A$1:$A$65536,L$4,'SQL Revenue Analysis'!$J$1:$J$65536,$B$8,'SQL Revenue Analysis'!$D$1:$D$65536,$A29)) -> 0 | M29: =-(SUMIFS('SQL Revenue Analysis'!$E$1:$E$65536,'SQL Revenue Analysis'!$A$1:$A$65536,M$4,'SQL Revenue Analysis'!$J$1:$J$65536,$B$7,'SQL Revenue Analysis'!$D$1:$D$65536,$A29)+SUMIFS('SQL Revenue Analysis'!$E$1:$E$65536,'SQL Revenue Analysis'!$A$1:$A$65536,M$4,'SQL Revenue Analysis'!$J$1:$J$65536,$B$8,'SQL Revenue Analysis'!$D$1:$D$65536,$A29)) -> 0 | N29: =-(SUMIFS('SQL Revenue Analysis'!$E$1:$E$65536,'SQL Revenue Analysis'!$A$1:$A$65536,N$4,'SQL Revenue Analysis'!$J$1:$J$65536,$B$7,'SQL Revenue Analysis'!$D$1:$D$65536,$A29)+SUMIFS('SQL Revenue Analysis'!$E$1:$E$65536,'SQL Revenue Analysis'!$A$1:$A$65536,N$4,'SQL Revenue Analysis'!$J$1:$J$65536,$B$8,'SQL Revenue Analysis'!$D$1:$D$65536,$A29)) -> 0 | O29: =-(SUMIFS('SQL Revenue Analysis'!$E$1:$E$65536,'SQL Revenue Analysis'!$A$1:$A$65536,O$4,'SQL Revenue Analysis'!$J$1:$J$65536,$B$7,'SQL Revenue Analysis'!$D$1:$D$65536,$A29)+SUMIFS('SQL Revenue Analysis'!$E$1:$E$65536,'SQL Revenue Analysis'!$A$1:$A$65536,O$4,'SQL Revenue Analysis'!$J$1:$J$65536,$B$8,'SQL Revenue Analysis'!$D$1:$D$65536,$A29)) -> 0 | Q29: 0
A30: VAC | B30: 30 / 70 | D30: =-(SUMIFS('SQL Revenue Analysis'!$E$1:$E$65536,'SQL Revenue Analysis'!$A$1:$A$65536,D$4,'SQL Revenue Analysis'!$J$1:$J$65536,$B$7,'SQL Revenue Analysis'!$D$1:$D$65536,$A30)+SUMIFS('SQL Revenue Analysis'!$E$1:$E$65536,'SQL Revenue Analysis'!$A$1:$A$65536,D$4,'SQL Revenue Analysis'!$J$1:$J$65536,$B$8,'SQL Revenue Analysis'!$D$1:$D$65536,$A30)) -> 0 | E30: =-(SUMIFS('SQL Revenue Analysis'!$E$1:$E$65536,'SQL Revenue Analysis'!$A$1:$A$65536,E$4,'SQL Revenue Analysis'!$J$1:$J$65536,$B$7,'SQL Revenue Analysis'!$D$1:$D$65536,$A30)+SUMIFS('SQL Revenue Analysis'!$E$1:$E$65536,'SQL Revenue Analysis'!$A$1:$A$65536,E$4,'SQL Revenue Analysis'!$J$1:$J$65536,$B$8,'SQL Revenue Analysis'!$D$1:$D$65536,$A30)) -> 0 | F30: =-(SUMIFS('SQL Revenue Analysis'!$E$1:$E$65536,'SQL Revenue Analysis'!$A$1:$A$65536,F$4,'SQL Revenue Analysis'!$J$1:$J$65536,$B$7,'SQL Revenue Analysis'!$D$1:$D$65536,$A30)+SUMIFS('SQL Revenue Analysis'!$E$1:$E$65536,'SQL Revenue Analysis'!$A$1:$A$65536,F$4,'SQL Revenue Analysis'!$J$1:$J$65536,$B$8,'SQL Revenue Analysis'!$D$1:$D$65536,$A30)) -> 0 | G30: =-(SUMIFS('SQL Revenue Analysis'!$E$1:$E$65536,'SQL Revenue Analysis'!$A$1:$A$65536,G$4,'SQL Revenue Analysis'!$J$1:$J$65536,$B$7,'SQL Revenue Analysis'!$D$1:$D$65536,$A30)+SUMIFS('SQL Revenue Analysis'!$E$1:$E$65536,'SQL Revenue Analysis'!$A$1:$A$65536,G$4,'SQL Revenue Analysis'!$J$1:$J$65536,$B$8,'SQL Revenue Analysis'!$D$1:$D$65536,$A30)) -> 0 | H30: =-(SUMIFS('SQL Revenue Analysis'!$E$1:$E$65536,'SQL Revenue Analysis'!$A$1:$A$65536,H$4,'SQL Revenue Analysis'!$J$1:$J$65536,$B$7,'SQL Revenue Analysis'!$D$1:$D$65536,$A30)+SUMIFS('SQL Revenue Analysis'!$E$1:$E$65536,'SQL Revenue Analysis'!$A$1:$A$65536,H$4,'SQL Revenue Analysis'!$J$1:$J$65536,$B$8,'SQL Revenue Analysis'!$D$1:$D$65536,$A30)) -> 0 | I30: =-(SUMIFS('SQL Revenue Analysis'!$E$1:$E$65536,'SQL Revenue Analysis'!$A$1:$A$65536,I$4,'SQL Revenue Analysis'!$J$1:$J$65536,$B$7,'SQL Revenue Analysis'!$D$1:$D$65536,$A30)+SUMIFS('SQL Revenue Analysis'!$E$1:$E$65536,'SQL Revenue Analysis'!$A$1:$A$65536,I$4,'SQL Revenue Analysis'!$J$1:$J$65536,$B$8,'SQL Revenue Analysis'!$D$1:$D$65536,$A30)) -> 0 | J30: =-(SUMIFS('SQL Revenue Analysis'!$E$1:$E$65536,'SQL Revenue Analysis'!$A$1:$A$65536,J$4,'SQL Revenue Analysis'!$J$1:$J$65536,$B$7,'SQL Revenue Analysis'!$D$1:$D$65536,$A30)+SUMIFS('SQL Revenue Analysis'!$E$1:$E$65536,'SQL Revenue Analysis'!$A$1:$A$65536,J$4,'SQL Revenue Analysis'!$J$1:$J$65536,$B$8,'SQL Revenue Analysis'!$D$1:$D$65536,$A30)) -> 0 | K30: =-(SUMIFS('SQL Revenue Analysis'!$E$1:$E$65536,'SQL Revenue Analysis'!$A$1:$A$65536,K$4,'SQL Revenue Analysis'!$J$1:$J$65536,$B$7,'SQL Revenue Analysis'!$D$1:$D$65536,$A30)+SUMIFS('SQL Revenue Analysis'!$E$1:$E$65536,'SQL Revenue Analysis'!$A$1:$A$65536,K$4,'SQL Revenue Analysis'!$J$1:$J$65536,$B$8,'SQL Revenue Analysis'!$D$1:$D$65536,$A30)) -> 0 | L30: =-(SUMIFS('SQL Revenue Analysis'!$E$1:$E$65536,'SQL Revenue Analysis'!$A$1:$A$65536,L$4,'SQL Revenue Analysis'!$J$1:$J$65536,$B$7,'SQL Revenue Analysis'!$D$1:$D$65536,$A30)+SUMIFS('SQL Revenue Analysis'!$E$1:$E$65536,'SQL Revenue Analysis'!$A$1:$A$65536,L$4,'SQL Revenue Analysis'!$J$1:$J$65536,$B$8,'SQL Revenue Analysis'!$D$1:$D$65536,$A30)) -> 0 | M30: =-(SUMIFS('SQL Revenue Analysis'!$E$1:$E$65536,'SQL Revenue Analysis'!$A$1:$A$65536,M$4,'SQL Revenue Analysis'!$J$1:$J$65536,$B$7,'SQL Revenue Analysis'!$D$1:$D$65536,$A30)+SUMIFS('SQL Revenue Analysis'!$E$1:$E$65536,'SQL Revenue Analysis'!$A$1:$A$65536,M$4,'SQL Revenue Analysis'!$J$1:$J$65536,$B$8,'SQL Revenue Analysis'!$D$1:$D$65536,$A30)) -> 0 | N30: =-(SUMIFS('SQL Revenue Analysis'!$E$1:$E$65536,'SQL Revenue Analysis'!$A$1:$A$65536,N$4,'SQL Revenue Analysis'!$J$1:$J$65536,$B$7,'SQL Revenue Analysis'!$D$1:$D$65536,$A30)+SUMIFS('SQL Revenue Analysis'!$E$1:$E$65536,'SQL Revenue Analysis'!$A$1:$A$65536,N$4,'SQL Revenue Analysis'!$J$1:$J$65536,$B$8,'SQL Revenue Analysis'!$D$1:$D$65536,$A30)) -> 0 | O30: =-(SUMIFS('SQL Revenue Analysis'!$E$1:$E$65536,'SQL Revenue Analysis'!$A$1:$A$65536,O$4,'SQL Revenue Analysis'!$J$1:$J$65536,$B$7,'SQL Revenue Analysis'!$D$1:$D$65536,$A30)+SUMIFS('SQL Revenue Analysis'!$E$1:$E$65536,'SQL Revenue Analysis'!$A$1:$A$65536,O$4,'SQL Revenue Analysis'!$J$1:$J$65536,$B$8,'SQL Revenue Analysis'!$D$1:$D$65536,$A30)) -> 0 | Q30: 0
A31: DEL | B31: 30 / 70 | D31: =-(SUMIFS('SQL Revenue Analysis'!$E$1:$E$65536,'SQL Revenue Analysis'!$A$1:$A$65536,D$4,'SQL Revenue Analysis'!$J$1:$J$65536,$B$7,'SQL Revenue Analysis'!$D$1:$D$65536,$A31)+SUMIFS('SQL Revenue Analysis'!$E$1:$E$65536,'SQL Revenue Analysis'!$A$1:$A$65536,D$4,'SQL Revenue Analysis'!$J$1:$J$65536,$B$8,'SQL Revenue Analysis'!$D$1:$D$65536,$A31)) -> 0 | E31: =-(SUMIFS('SQL Revenue Analysis'!$E$1:$E$65536,'SQL Revenue Analysis'!$A$1:$A$65536,E$4,'SQL Revenue Analysis'!$J$1:$J$65536,$B$7,'SQL Revenue Analysis'!$D$1:$D$65536,$A31)+SUMIFS('SQL Revenue Analysis'!$E$1:$E$65536,'SQL Revenue Analysis'!$A$1:$A$65536,E$4,'SQL Revenue Analysis'!$J$1:$J$65536,$B$8,'SQL Revenue Analysis'!$D$1:$D$65536,$A31)) -> 0 | F31: =-(SUMIFS('SQL Revenue Analysis'!$E$1:$E$65536,'SQL Revenue Analysis'!$A$1:$A$65536,F$4,'SQL Revenue Analysis'!$J$1:$J$65536,$B$7,'SQL Revenue Analysis'!$D$1:$D$65536,$A31)+SUMIFS('SQL Revenue Analysis'!$E$1:$E$65536,'SQL Revenue Analysis'!$A$1:$A$65536,F$4,'SQL Revenue Analysis'!$J$1:$J$65536,$B$8,'SQL Revenue Analysis'!$D$1:$D$65536,$A31)) -> -44.4 | G31: =-(SUMIFS('SQL Revenue Analysis'!$E$1:$E$65536,'SQL Revenue Analysis'!$A$1:$A$65536,G$4,'SQL Revenue Analysis'!$J$1:$J$65536,$B$7,'SQL Revenue Analysis'!$D$1:$D$65536,$A31)+SUMIFS('SQL Revenue Analysis'!$E$1:$E$65536,'SQL Revenue Analysis'!$A$1:$A$65536,G$4,'SQL Revenue Analysis'!$J$1:$J$65536,$B$8,'SQL Revenue Analysis'!$D$1:$D$65536,$A31)) -> 0 | H31: =-(SUMIFS('SQL Revenue Analysis'!$E$1:$E$65536,'SQL Revenue Analysis'!$A$1:$A$65536,H$4,'SQL Revenue Analysis'!$J$1:$J$65536,$B$7,'SQL Revenue Analysis'!$D$1:$D$65536,$A31)+SUMIFS('SQL Revenue Analysis'!$E$1:$E$65536,'SQL Revenue Analysis'!$A$1:$A$65536,H$4,'SQL Revenue Analysis'!$J$1:$J$65536,$B$8,'SQL Revenue Analysis'!$D$1:$D$65536,$A31)) -> 0 | I31: =-(SUMIFS('SQL Revenue Analysis'!$E$1:$E$65536,'SQL Revenue Analysis'!$A$1:$A$65536,I$4,'SQL Revenue Analysis'!$J$1:$J$65536,$B$7,'SQL Revenue Analysis'!$D$1:$D$65536,$A31)+SUMIFS('SQL Revenue Analysis'!$E$1:$E$65536,'SQL Revenue Analysis'!$A$1:$A$65536,I$4,'SQL Revenue Analysis'!$J$1:$J$65536,$B$8,'SQL Revenue Analysis'!$D$1:$D$65536,$A31)) -> 0 | J31: =-(SUMIFS('SQL Revenue Analysis'!$E$1:$E$65536,'SQL Revenue Analysis'!$A$1:$A$65536,J$4,'SQL Revenue Analysis'!$J$1:$J$65536,$B$7,'SQL Revenue Analysis'!$D$1:$D$65536,$A31)+SUMIFS('SQL Revenue Analysis'!$E$1:$E$65536,'SQL Revenue Analysis'!$A$1:$A$65536,J$4,'SQL Revenue Analysis'!$J$1:$J$65536,$B$8,'SQL Revenue Analysis'!$D$1:$D$65536,$A31)) -> 0 | K31: =-(SUMIFS('SQL Revenue Analysis'!$E$1:$E$65536,'SQL Revenue Analysis'!$A$1:$A$65536,K$4,'SQL Revenue Analysis'!$J$1:$J$65536,$B$7,'SQL Revenue Analysis'!$D$1:$D$65536,$A31)+SUMIFS('SQL Revenue Analysis'!$E$1:$E$65536,'SQL Revenue Analysis'!$A$1:$A$65536,K$4,'SQL Revenue Analysis'!$J$1:$J$65536,$B$8,'SQL Revenue Analysis'!$D$1:$D$65536,$A31)) -> 0 | L31: =-(SUMIFS('SQL Revenue Analysis'!$E$1:$E$65536,'SQL Revenue Analysis'!$A$1:$A$65536,L$4,'SQL Revenue Analysis'!$J$1:$J$65536,$B$7,'SQL Revenue Analysis'!$D$1:$D$65536,$A31)+SUMIFS('SQL Revenue Analysis'!$E$1:$E$65536,'SQL Revenue Analysis'!$A$1:$A$65536,L$4,'SQL Revenue Analysis'!$J$1:$J$65536,$B$8,'SQL Revenue Analysis'!$D$1:$D$65536,$A31)) -> 0 | M31: =-(SUMIFS('SQL Revenue Analysis'!$E$1:$E$65536,'SQL Revenue Analysis'!$A$1:$A$65536,M$4,'SQL Revenue Analysis'!$J$1:$J$65536,$B$7,'SQL Revenue Analysis'!$D$1:$D$65536,$A31)+SUMIFS('SQL Revenue Analysis'!$E$1:$E$65536,'SQL Revenue Analysis'!$A$1:$A$65536,M$4,'SQL Revenue Analysis'!$J$1:$J$65536,$B$8,'SQL Revenue Analysis'!$D$1:$D$65536,$A31)) -> -44.4 | N31: =-(SUMIFS('SQL Revenue Analysis'!$E$1:$E$65536,'SQL Revenue Analysis'!$A$1:$A$65536,N$4,'SQL Revenue Analysis'!$J$1:$J$65536,$B$7,'SQL Revenue Analysis'!$D$1:$D$65536,$A31)+SUMIFS('SQL Revenue Analysis'!$E$1:$E$65536,'SQL Revenue Analysis'!$A$1:$A$65536,N$4,'SQL Revenue Analysis'!$J$1:$J$65536,$B$8,'SQL Revenue Analysis'!$D$1:$D$65536,$A31)) -> 0 | O31: =-(SUMIFS('SQL Revenue Analysis'!$E$1:$E$65536,'SQL Revenue Analysis'!$A$1:$A$65536,O$4,'SQL Revenue Analysis'!$J$1:$J$65536,$B$7,'SQL Revenue Analysis'!$D$1:$D$65536,$A31)+SUMIFS('SQL Revenue Analysis'!$E$1:$E$65536,'SQL Revenue Analysis'!$A$1:$A$65536,O$4,'SQL Revenue Analysis'!$J$1:$J$65536,$B$8,'SQL Revenue Analysis'!$D$1:$D$65536,$A31)) -> 0 | Q31: -88.8
A32: EVX | B32: 30 / 70 | D32: =-(SUMIFS('SQL Revenue Analysis'!$E$1:$E$65536,'SQL Revenue Analysis'!$A$1:$A$65536,D$4,'SQL Revenue Analysis'!$J$1:$J$65536,$B$7,'SQL Revenue Analysis'!$D$1:$D$65536,$A32)+SUMIFS('SQL Revenue Analysis'!$E$1:$E$65536,'SQL Revenue Analysis'!$A$1:$A$65536,D$4,'SQL Revenue Analysis'!$J$1:$J$65536,$B$8,'SQL Revenue Analysis'!$D$1:$D$65536,$A32)) -> -43.16 | E32: =-(SUMIFS('SQL Revenue Analysis'!$E$1:$E$65536,'SQL Revenue Analysis'!$A$1:$A$65536,E$4,'SQL Revenue Analysis'!$J$1:$J$65536,$B$7,'SQL Revenue Analysis'!$D$1:$D$65536,$A32)+SUMIFS('SQL Revenue Analysis'!$E$1:$E$65536,'SQL Revenue Analysis'!$A$1:$A$65536,E$4,'SQL Revenue Analysis'!$J$1:$J$65536,$B$8,'SQL Revenue Analysis'!$D$1:$D$65536,$A32)) -> -45.12 | F32: =-(SUMIFS('SQL Revenue Analysis'!$E$1:$E$65536,'SQL Revenue Analysis'!$A$1:$A$65536,F$4,'SQL Revenue Analysis'!$J$1:$J$65536,$B$7,'SQL Revenue Analysis'!$D$1:$D$65536,$A32)+SUMIFS('SQL Revenue Analysis'!$E$1:$E$65536,'SQL Revenue Analysis'!$A$1:$A$65536,F$4,'SQL Revenue Analysis'!$J$1:$J$65536,$B$8,'SQL Revenue Analysis'!$D$1:$D$65536,$A32)) -> 0 | G32: =-(SUMIFS('SQL Revenue Analysis'!$E$1:$E$65536,'SQL Revenue Analysis'!$A$1:$A$65536,G$4,'SQL Revenue Analysis'!$J$1:$J$65536,$B$7,'SQL Revenue Analysis'!$D$1:$D$65536,$A32)+SUMIFS('SQL Revenue Analysis'!$E$1:$E$65536,'SQL Revenue Analysis'!$A$1:$A$65536,G$4,'SQL Revenue Analysis'!$J$1:$J$65536,$B$8,'SQL Revenue Analysis'!$D$1:$D$65536,$A32)) -> 0 | H32: =-(SUMIFS('SQL Revenue Analysis'!$E$1:$E$65536,'SQL Revenue Analysis'!$A$1:$A$65536,H$4,'SQL Revenue Analysis'!$J$1:$J$65536,$B$7,'SQL Revenue Analysis'!$D$1:$D$65536,$A32)+SUMIFS('SQL Revenue Analysis'!$E$1:$E$65536,'SQL Revenue Analysis'!$A$1:$A$65536,H$4,'SQL Revenue Analysis'!$J$1:$J$65536,$B$8,'SQL Revenue Analysis'!$D$1:$D$65536,$A32)) -> 0 | I32: =-(SUMIFS('SQL Revenue Analysis'!$E$1:$E$65536,'SQL Revenue Analysis'!$A$1:$A$65536,I$4,'SQL Revenue Analysis'!$J$1:$J$65536,$B$7,'SQL Revenue Analysis'!$D$1:$D$65536,$A32)+SUMIFS('SQL Revenue Analysis'!$E$1:$E$65536,'SQL Revenue Analysis'!$A$1:$A$65536,I$4,'SQL Revenue Analysis'!$J$1:$J$65536,$B$8,'SQL Revenue Analysis'!$D$1:$D$65536,$A32)) -> 0 | J32: =-(SUMIFS('SQL Revenue Analysis'!$E$1:$E$65536,'SQL Revenue Analysis'!$A$1:$A$65536,J$4,'SQL Revenue Analysis'!$J$1:$J$65536,$B$7,'SQL Revenue Analysis'!$D$1:$D$65536,$A32)+SUMIFS('SQL Revenue Analysis'!$E$1:$E$65536,'SQL Revenue Analysis'!$A$1:$A$65536,J$4,'SQL Revenue Analysis'!$J$1:$J$65536,$B$8,'SQL Revenue Analysis'!$D$1:$D$65536,$A32)) -> 0 | K32: =-(SUMIFS('SQL Revenue Analysis'!$E$1:$E$65536,'SQL Revenue Analysis'!$A$1:$A$65536,K$4,'SQL Revenue Analysis'!$J$1:$J$65536,$B$7,'SQL Revenue Analysis'!$D$1:$D$65536,$A32)+SUMIFS('SQL Revenue Analysis'!$E$1:$E$65536,'SQL Revenue Analysis'!$A$1:$A$65536,K$4,'SQL Revenue Analysis'!$J$1:$J$65536,$B$8,'SQL Revenue Analysis'!$D$1:$D$65536,$A32)) -> 0 | L32: =-(SUMIFS('SQL Revenue Analysis'!$E$1:$E$65536,'SQL Revenue Analysis'!$A$1:$A$65536,L$4,'SQL Revenue Analysis'!$J$1:$J$65536,$B$7,'SQL Revenue Analysis'!$D$1:$D$65536,$A32)+SUMIFS('SQL Revenue Analysis'!$E$1:$E$65536,'SQL Revenue Analysis'!$A$1:$A$65536,L$4,'SQL Revenue Analysis'!$J$1:$J$65536,$B$8,'SQL Revenue Analysis'!$D$1:$D$65536,$A32)) -> 0 | M32: =-(SUMIFS('SQL Revenue Analysis'!$E$1:$E$65536,'SQL Revenue Analysis'!$A$1:$A$65536,M$4,'SQL Revenue Analysis'!$J$1:$J$65536,$B$7,'SQL Revenue Analysis'!$D$1:$D$65536,$A32)+SUMIFS('SQL Revenue Analysis'!$E$1:$E$65536,'SQL Revenue Analysis'!$A$1:$A$65536,M$4,'SQL Revenue Analysis'!$J$1:$J$65536,$B$8,'SQL Revenue Analysis'!$D$1:$D$65536,$A32)) -> 0 | N32: =-(SUMIFS('SQL Revenue Analysis'!$E$1:$E$65536,'SQL Revenue Analysis'!$A$1:$A$65536,N$4,'SQL Revenue Analysis'!$J$1:$J$65536,$B$7,'SQL Revenue Analysis'!$D$1:$D$65536,$A32)+SUMIFS('SQL Revenue Analysis'!$E$1:$E$65536,'SQL Revenue Analysis'!$A$1:$A$65536,N$4,'SQL Revenue Analysis'!$J$1:$J$65536,$B$8,'SQL Revenue Analysis'!$D$1:$D$65536,$A32)) -> 0 | O32: =-(SUMIFS('SQL Revenue Analysis'!$E$1:$E$65536,'SQL Revenue Analysis'!$A$1:$A$65536,O$4,'SQL Revenue Analysis'!$J$1:$J$65536,$B$7,'SQL Revenue Analysis'!$D$1:$D$65536,$A32)+SUMIFS('SQL Revenue Analysis'!$E$1:$E$65536,'SQL Revenue Analysis'!$A$1:$A$65536,O$4,'SQL Revenue Analysis'!$J$1:$J$65536,$B$8,'SQL Revenue Analysis'!$D$1:$D$65536,$A32)) -> 0 | Q32: =SUM(D32:P32) -> -88.28
A33: FRX | B33: 30 / 70 | D33: =-(SUMIFS('SQL Revenue Analysis'!$E$1:$E$65536,'SQL Revenue Analysis'!$A$1:$A$65536,D$4,'SQL Revenue Analysis'!$J$1:$J$65536,$B$7,'SQL Revenue Analysis'!$D$1:$D$65536,$A33)+SUMIFS('SQL Revenue Analysis'!$E$1:$E$65536,'SQL Revenue Analysis'!$A$1:$A$65536,D$4,'SQL Revenue Analysis'!$J$1:$J$65536,$B$8,'SQL Revenue Analysis'!$D$1:$D$65536,$A33)) -> -87.9 | E33: =-(SUMIFS('SQL Revenue Analysis'!$E$1:$E$65536,'SQL Revenue Analysis'!$A$1:$A$65536,E$4,'SQL Revenue Analysis'!$J$1:$J$65536,$B$7,'SQL Revenue Analysis'!$D$1:$D$65536,$A33)+SUMIFS('SQL Revenue Analysis'!$E$1:$E$65536,'SQL Revenue Analysis'!$A$1:$A$65536,E$4,'SQL Revenue Analysis'!$J$1:$J$65536,$B$8,'SQL Revenue Analysis'!$D$1:$D$65536,$A33)) -> -93.44 | F33: =-(SUMIFS('SQL Revenue Analysis'!$E$1:$E$65536,'SQL Revenue Analysis'!$A$1:$A$65536,F$4,'SQL Revenue Analysis'!$J$1:$J$65536,$B$7,'SQL Revenue Analysis'!$D$1:$D$65536,$A33)+SUMIFS('SQL Revenue Analysis'!$E$1:$E$65536,'SQL Revenue Analysis'!$A$1:$A$65536,F$4,'SQL Revenue Analysis'!$J$1:$J$65536,$B$8,'SQL Revenue Analysis'!$D$1:$D$65536,$A33)) -> 0 | G33: =-(SUMIFS('SQL Revenue Analysis'!$E$1:$E$65536,'SQL Revenue Analysis'!$A$1:$A$65536,G$4,'SQL Revenue Analysis'!$J$1:$J$65536,$B$7,'SQL Revenue Analysis'!$D$1:$D$65536,$A33)+SUMIFS('SQL Revenue Analysis'!$E$1:$E$65536,'SQL Revenue Analysis'!$A$1:$A$65536,G$4,'SQL Revenue Analysis'!$J$1:$J$65536,$B$8,'SQL Revenue Analysis'!$D$1:$D$65536,$A33)) -> 0 | H33: =-(SUMIFS('SQL Revenue Analysis'!$E$1:$E$65536,'SQL Revenue Analysis'!$A$1:$A$65536,H$4,'SQL Revenue Analysis'!$J$1:$J$65536,$B$7,'SQL Revenue Analysis'!$D$1:$D$65536,$A33)+SUMIFS('SQL Revenue Analysis'!$E$1:$E$65536,'SQL Revenue Analysis'!$A$1:$A$65536,H$4,'SQL Revenue Analysis'!$J$1:$J$65536,$B$8,'SQL Revenue Analysis'!$D$1:$D$65536,$A33)) -> 0 | I33: =-(SUMIFS('SQL Revenue Analysis'!$E$1:$E$65536,'SQL Revenue Analysis'!$A$1:$A$65536,I$4,'SQL Revenue Analysis'!$J$1:$J$65536,$B$7,'SQL Revenue Analysis'!$D$1:$D$65536,$A33)+SUMIFS('SQL Revenue Analysis'!$E$1:$E$65536,'SQL Revenue Analysis'!$A$1:$A$65536,I$4,'SQL Revenue Analysis'!$J$1:$J$65536,$B$8,'SQL Revenue Analysis'!$D$1:$D$65536,$A33)) -> 0 | J33: =-(SUMIFS('SQL Revenue Analysis'!$E$1:$E$65536,'SQL Revenue Analysis'!$A$1:$A$65536,J$4,'SQL Revenue Analysis'!$J$1:$J$65536,$B$7,'SQL Revenue Analysis'!$D$1:$D$65536,$A33)+SUMIFS('SQL Revenue Analysis'!$E$1:$E$65536,'SQL Revenue Analysis'!$A$1:$A$65536,J$4,'SQL Revenue Analysis'!$J$1:$J$65536,$B$8,'SQL Revenue Analysis'!$D$1:$D$65536,$A33)) -> 0 | K33: =-(SUMIFS('SQL Revenue Analysis'!$E$1:$E$65536,'SQL Revenue Analysis'!$A$1:$A$65536,K$4,'SQL Revenue Analysis'!$J$1:$J$65536,$B$7,'SQL Revenue Analysis'!$D$1:$D$65536,$A33)+SUMIFS('SQL Revenue Analysis'!$E$1:$E$65536,'SQL Revenue Analysis'!$A$1:$A$65536,K$4,'SQL Revenue Analysis'!$J$1:$J$65536,$B$8,'SQL Revenue Analysis'!$D$1:$D$65536,$A33)) -> 0 | L33: =-(SUMIFS('SQL Revenue Analysis'!$E$1:$E$65536,'SQL Revenue Analysis'!$A$1:$A$65536,L$4,'SQL Revenue Analysis'!$J$1:$J$65536,$B$7,'SQL Revenue Analysis'!$D$1:$D$65536,$A33)+SUMIFS('SQL Revenue Analysis'!$E$1:$E$65536,'SQL Revenue Analysis'!$A$1:$A$65536,L$4,'SQL Revenue Analysis'!$J$1:$J$65536,$B$8,'SQL Revenue Analysis'!$D$1:$D$65536,$A33)) -> 0 | M33: =-(SUMIFS('SQL Revenue Analysis'!$E$1:$E$65536,'SQL Revenue Analysis'!$A$1:$A$65536,M$4,'SQL Revenue Analysis'!$J$1:$J$65536,$B$7,'SQL Revenue Analysis'!$D$1:$D$65536,$A33)+SUMIFS('SQL Revenue Analysis'!$E$1:$E$65536,'SQL Revenue Analysis'!$A$1:$A$65536,M$4,'SQL Revenue Analysis'!$J$1:$J$65536,$B$8,'SQL Revenue Analysis'!$D$1:$D$65536,$A33)) -> 0 | N33: =-(SUMIFS('SQL Revenue Analysis'!$E$1:$E$65536,'SQL Revenue Analysis'!$A$1:$A$65536,N$4,'SQL Revenue Analysis'!$J$1:$J$65536,$B$7,'SQL Revenue Analysis'!$D$1:$D$65536,$A33)+SUMIFS('SQL Revenue Analysis'!$E$1:$E$65536,'SQL Revenue Analysis'!$A$1:$A$65536,N$4,'SQL Revenue Analysis'!$J$1:$J$65536,$B$8,'SQL Revenue Analysis'!$D$1:$D$65536,$A33)) -> 0 | O33: =-(SUMIFS('SQL Revenue Analysis'!$E$1:$E$65536,'SQL Revenue Analysis'!$A$1:$A$65536,O$4,'SQL Revenue Analysis'!$J$1:$J$65536,$B$7,'SQL Revenue Analysis'!$D$1:$D$65536,$A33)+SUMIFS('SQL Revenue Analysis'!$E$1:$E$65536,'SQL Revenue Analysis'!$A$1:$A$65536,O$4,'SQL Revenue Analysis'!$J$1:$J$65536,$B$8,'SQL Revenue Analysis'!$D$1:$D$65536,$A33)) -> 0 | Q33: -181.34
A34: GAT | B34: =+B17 -> 30 / 70 | C34: Gate Fee | D34: =-(SUMIFS('SQL Revenue Analysis'!$E$1:$E$65536,'SQL Revenue Analysis'!$A$1:$A$65536,D$4,'SQL Revenue Analysis'!$J$1:$J$65536,$B$7,'SQL Revenue Analysis'!$D$1:$D$65536,$A34)+SUMIFS('SQL Revenue Analysis'!$E$1:$E$65536,'SQL Revenue Analysis'!$A$1:$A$65536,D$4,'SQL Revenue Analysis'!$J$1:$J$65536,$B$8,'SQL Revenue Analysis'!$D$1:$D$65536,$A34)) -> 0 | E34: =-(SUMIFS('SQL Revenue Analysis'!$E$1:$E$65536,'SQL Revenue Analysis'!$A$1:$A$65536,E$4,'SQL Revenue Analysis'!$J$1:$J$65536,$B$7,'SQL Revenue Analysis'!$D$1:$D$65536,$A34)+SUMIFS('SQL Revenue Analysis'!$E$1:$E$65536,'SQL Revenue Analysis'!$A$1:$A$65536,E$4,'SQL Revenue Analysis'!$J$1:$J$65536,$B$8,'SQL Revenue Analysis'!$D$1:$D$65536,$A34)) -> 0 | F34: =-(SUMIFS('SQL Revenue Analysis'!$E$1:$E$65536,'SQL Revenue Analysis'!$A$1:$A$65536,F$4,'SQL Revenue Analysis'!$J$1:$J$65536,$B$7,'SQL Revenue Analysis'!$D$1:$D$65536,$A34)+SUMIFS('SQL Revenue Analysis'!$E$1:$E$65536,'SQL Revenue Analysis'!$A$1:$A$65536,F$4,'SQL Revenue Analysis'!$J$1:$J$65536,$B$8,'SQL Revenue Analysis'!$D$1:$D$65536,$A34)) -> 0 | G34: =-(SUMIFS('SQL Revenue Analysis'!$E$1:$E$65536,'SQL Revenue Analysis'!$A$1:$A$65536,G$4,'SQL Revenue Analysis'!$J$1:$J$65536,$B$7,'SQL Revenue Analysis'!$D$1:$D$65536,$A34)+SUMIFS('SQL Revenue Analysis'!$E$1:$E$65536,'SQL Revenue Analysis'!$A$1:$A$65536,G$4,'SQL Revenue Analysis'!$J$1:$J$65536,$B$8,'SQL Revenue Analysis'!$D$1:$D$65536,$A34)) -> 0 | H34: =-(SUMIFS('SQL Revenue Analysis'!$E$1:$E$65536,'SQL Revenue Analysis'!$A$1:$A$65536,H$4,'SQL Revenue Analysis'!$J$1:$J$65536,$B$7,'SQL Revenue Analysis'!$D$1:$D$65536,$A34)+SUMIFS('SQL Revenue Analysis'!$E$1:$E$65536,'SQL Revenue Analysis'!$A$1:$A$65536,H$4,'SQL Revenue Analysis'!$J$1:$J$65536,$B$8,'SQL Revenue Analysis'!$D$1:$D$65536,$A34)) -> 0 | I34: =-(SUMIFS('SQL Revenue Analysis'!$E$1:$E$65536,'SQL Revenue Analysis'!$A$1:$A$65536,I$4,'SQL Revenue Analysis'!$J$1:$J$65536,$B$7,'SQL Revenue Analysis'!$D$1:$D$65536,$A34)+SUMIFS('SQL Revenue Analysis'!$E$1:$E$65536,'SQL Revenue Analysis'!$A$1:$A$65536,I$4,'SQL Revenue Analysis'!$J$1:$J$65536,$B$8,'SQL Revenue Analysis'!$D$1:$D$65536,$A34)) -> 0 | J34: =-(SUMIFS('SQL Revenue Analysis'!$E$1:$E$65536,'SQL Revenue Analysis'!$A$1:$A$65536,J$4,'SQL Revenue Analysis'!$J$1:$J$65536,$B$7,'SQL Revenue Analysis'!$D$1:$D$65536,$A34)+SUMIFS('SQL Revenue Analysis'!$E$1:$E$65536,'SQL Revenue Analysis'!$A$1:$A$65536,J$4,'SQL Revenue Analysis'!$J$1:$J$65536,$B$8,'SQL Revenue Analysis'!$D$1:$D$65536,$A34)) -> 0 | K34: =-(SUMIFS('SQL Revenue Analysis'!$E$1:$E$65536,'SQL Revenue Analysis'!$A$1:$A$65536,K$4,'SQL Revenue Analysis'!$J$1:$J$65536,$B$7,'SQL Revenue Analysis'!$D$1:$D$65536,$A34)+SUMIFS('SQL Revenue Analysis'!$E$1:$E$65536,'SQL Revenue Analysis'!$A$1:$A$65536,K$4,'SQL Revenue Analysis'!$J$1:$J$65536,$B$8,'SQL Revenue Analysis'!$D$1:$D$65536,$A34)) -> 0 | L34: =-(SUMIFS('SQL Revenue Analysis'!$E$1:$E$65536,'SQL Revenue Analysis'!$A$1:$A$65536,L$4,'SQL Revenue Analysis'!$J$1:$J$65536,$B$7,'SQL Revenue Analysis'!$D$1:$D$65536,$A34)+SUMIFS('SQL Revenue Analysis'!$E$1:$E$65536,'SQL Revenue Analysis'!$A$1:$A$65536,L$4,'SQL Revenue Analysis'!$J$1:$J$65536,$B$8,'SQL Revenue Analysis'!$D$1:$D$65536,$A34)) -> 0 | M34: =-(SUMIFS('SQL Revenue Analysis'!$E$1:$E$65536,'SQL Revenue Analysis'!$A$1:$A$65536,M$4,'SQL Revenue Analysis'!$J$1:$J$65536,$B$7,'SQL Revenue Analysis'!$D$1:$D$65536,$A34)+SUMIFS('SQL Revenue Analysis'!$E$1:$E$65536,'SQL Revenue Analysis'!$A$1:$A$65536,M$4,'SQL Revenue Analysis'!$J$1:$J$65536,$B$8,'SQL Revenue Analysis'!$D$1:$D$65536,$A34)) -> 0 | N34: =-(SUMIFS('SQL Revenue Analysis'!$E$1:$E$65536,'SQL Revenue Analysis'!$A$1:$A$65536,N$4,'SQL Revenue Analysis'!$J$1:$J$65536,$B$7,'SQL Revenue Analysis'!$D$1:$D$65536,$A34)+SUMIFS('SQL Revenue Analysis'!$E$1:$E$65536,'SQL Revenue Analysis'!$A$1:$A$65536,N$4,'SQL Revenue Analysis'!$J$1:$J$65536,$B$8,'SQL Revenue Analysis'!$D$1:$D$65536,$A34)) -> 0 | O34: =-(SUMIFS('SQL Revenue Analysis'!$E$1:$E$65536,'SQL Revenue Analysis'!$A$1:$A$65536,O$4,'SQL Revenue Analysis'!$J$1:$J$65536,$B$7,'SQL Revenue Analysis'!$D$1:$D$65536,$A34)+SUMIFS('SQL Revenue Analysis'!$E$1:$E$65536,'SQL Revenue Analysis'!$A$1:$A$65536,O$4,'SQL Revenue Analysis'!$J$1:$J$65536,$B$8,'SQL Revenue Analysis'!$D$1:$D$65536,$A34)) -> 0 | Q34: 0
A35: HHG | B35: 30 / 70 | C35: Household Goods / Items | D35: =-(SUMIFS('SQL Revenue Analysis'!$E$1:$E$65536,'SQL Revenue Analysis'!$A$1:$A$65536,D$4,'SQL Revenue Analysis'!$J$1:$J$65536,$B$7,'SQL Revenue Analysis'!$D$1:$D$65536,$A35)+SUMIFS('SQL Revenue Analysis'!$E$1:$E$65536,'SQL Revenue Analysis'!$A$1:$A$65536,D$4,'SQL Revenue Analysis'!$J$1:$J$65536,$B$8,'SQL Revenue Analysis'!$D$1:$D$65536,$A35)) -> 0 | E35: =-(SUMIFS('SQL Revenue Analysis'!$E$1:$E$65536,'SQL Revenue Analysis'!$A$1:$A$65536,E$4,'SQL Revenue Analysis'!$J$1:$J$65536,$B$7,'SQL Revenue Analysis'!$D$1:$D$65536,$A35)+SUMIFS('SQL Revenue Analysis'!$E$1:$E$65536,'SQL Revenue Analysis'!$A$1:$A$65536,E$4,'SQL Revenue Analysis'!$J$1:$J$65536,$B$8,'SQL Revenue Analysis'!$D$1:$D$65536,$A35)) -> 0 | F35: =-(SUMIFS('SQL Revenue Analysis'!$E$1:$E$65536,'SQL Revenue Analysis'!$A$1:$A$65536,F$4,'SQL Revenue Analysis'!$J$1:$J$65536,$B$7,'SQL Revenue Analysis'!$D$1:$D$65536,$A35)+SUMIFS('SQL Revenue Analysis'!$E$1:$E$65536,'SQL Revenue Analysis'!$A$1:$A$65536,F$4,'SQL Revenue Analysis'!$J$1:$J$65536,$B$8,'SQL Revenue Analysis'!$D$1:$D$65536,$A35)) -> 0 | G35: =-(SUMIFS('SQL Revenue Analysis'!$E$1:$E$65536,'SQL Revenue Analysis'!$A$1:$A$65536,G$4,'SQL Revenue Analysis'!$J$1:$J$65536,$B$7,'SQL Revenue Analysis'!$D$1:$D$65536,$A35)+SUMIFS('SQL Revenue Analysis'!$E$1:$E$65536,'SQL Revenue Analysis'!$A$1:$A$65536,G$4,'SQL Revenue Analysis'!$J$1:$J$65536,$B$8,'SQL Revenue Analysis'!$D$1:$D$65536,$A35)) -> 0 | H35: =-(SUMIFS('SQL Revenue Analysis'!$E$1:$E$65536,'SQL Revenue Analysis'!$A$1:$A$65536,H$4,'SQL Revenue Analysis'!$J$1:$J$65536,$B$7,'SQL Revenue Analysis'!$D$1:$D$65536,$A35)+SUMIFS('SQL Revenue Analysis'!$E$1:$E$65536,'SQL Revenue Analysis'!$A$1:$A$65536,H$4,'SQL Revenue Analysis'!$J$1:$J$65536,$B$8,'SQL Revenue Analysis'!$D$1:$D$65536,$A35)) -> 0 | I35: =-(SUMIFS('SQL Revenue Analysis'!$E$1:$E$65536,'SQL Revenue Analysis'!$A$1:$A$65536,I$4,'SQL Revenue Analysis'!$J$1:$J$65536,$B$7,'SQL Revenue Analysis'!$D$1:$D$65536,$A35)+SUMIFS('SQL Revenue Analysis'!$E$1:$E$65536,'SQL Revenue Analysis'!$A$1:$A$65536,I$4,'SQL Revenue Analysis'!$J$1:$J$65536,$B$8,'SQL Revenue Analysis'!$D$1:$D$65536,$A35)) -> 0 | J35: =-(SUMIFS('SQL Revenue Analysis'!$E$1:$E$65536,'SQL Revenue Analysis'!$A$1:$A$65536,J$4,'SQL Revenue Analysis'!$J$1:$J$65536,$B$7,'SQL Revenue Analysis'!$D$1:$D$65536,$A35)+SUMIFS('SQL Revenue Analysis'!$E$1:$E$65536,'SQL Revenue Analysis'!$A$1:$A$65536,J$4,'SQL Revenue Analysis'!$J$1:$J$65536,$B$8,'SQL Revenue Analysis'!$D$1:$D$65536,$A35)) -> 0 | K35: =-(SUMIFS('SQL Revenue Analysis'!$E$1:$E$65536,'SQL Revenue Analysis'!$A$1:$A$65536,K$4,'SQL Revenue Analysis'!$J$1:$J$65536,$B$7,'SQL Revenue Analysis'!$D$1:$D$65536,$A35)+SUMIFS('SQL Revenue Analysis'!$E$1:$E$65536,'SQL Revenue Analysis'!$A$1:$A$65536,K$4,'SQL Revenue Analysis'!$J$1:$J$65536,$B$8,'SQL Revenue Analysis'!$D$1:$D$65536,$A35)) -> 0 | L35: =-(SUMIFS('SQL Revenue Analysis'!$E$1:$E$65536,'SQL Revenue Analysis'!$A$1:$A$65536,L$4,'SQL Revenue Analysis'!$J$1:$J$65536,$B$7,'SQL Revenue Analysis'!$D$1:$D$65536,$A35)+SUMIFS('SQL Revenue Analysis'!$E$1:$E$65536,'SQL Revenue Analysis'!$A$1:$A$65536,L$4,'SQL Revenue Analysis'!$J$1:$J$65536,$B$8,'SQL Revenue Analysis'!$D$1:$D$65536,$A35)) -> 0 | M35: =-(SUMIFS('SQL Revenue Analysis'!$E$1:$E$65536,'SQL Revenue Analysis'!$A$1:$A$65536,M$4,'SQL Revenue Analysis'!$J$1:$J$65536,$B$7,'SQL Revenue Analysis'!$D$1:$D$65536,$A35)+SUMIFS('SQL Revenue Analysis'!$E$1:$E$65536,'SQL Revenue Analysis'!$A$1:$A$65536,M$4,'SQL Revenue Analysis'!$J$1:$J$65536,$B$8,'SQL Revenue Analysis'!$D$1:$D$65536,$A35)) -> 0 | N35: =-(SUMIFS('SQL Revenue Analysis'!$E$1:$E$65536,'SQL Revenue Analysis'!$A$1:$A$65536,N$4,'SQL Revenue Analysis'!$J$1:$J$65536,$B$7,'SQL Revenue Analysis'!$D$1:$D$65536,$A35)+SUMIFS('SQL Revenue Analysis'!$E$1:$E$65536,'SQL Revenue Analysis'!$A$1:$A$65536,N$4,'SQL Revenue Analysis'!$J$1:$J$65536,$B$8,'SQL Revenue Analysis'!$D$1:$D$65536,$A35)) -> 0 | O35: =-(SUMIFS('SQL Revenue Analysis'!$E$1:$E$65536,'SQL Revenue Analysis'!$A$1:$A$65536,O$4,'SQL Revenue Analysis'!$J$1:$J$65536,$B$7,'SQL Revenue Analysis'!$D$1:$D$65536,$A35)+SUMIFS('SQL Revenue Analysis'!$E$1:$E$65536,'SQL Revenue Analysis'!$A$1:$A$65536,O$4,'SQL Revenue Analysis'!$J$1:$J$65536,$B$8,'SQL Revenue Analysis'!$D$1:$D$65536,$A35)) -> 0 | Q35: 0
Q36: 0
A37: Total Revenue Per InfoPro SQL Query | D37: =SUM(D7:D36) -> 51652.93 | E37: 54612.75 | F37: 53278.88 | G37: 53330.73 | H37: 54652.06 | I37: 53870.52 | J37: 52509.68 | K37: 53355.28 | L37: 53138.2 | M37: 52443.77 | N37: 51398.53 | O37: 52481.85 | Q37: 636725.18
A40: Commercial Third Party Revenue
A41: *Total | B41: 10 | C41: Commercial | D41: =SUMIFS('SQL Revenue Analysis'!$E$1:$E$65536,'SQL Revenue Analysis'!$A$1:$A$65536,D$4,'SQL Revenue Analysis'!$J$1:$J$65536,$B41) -> 65244.08 | E41: =SUMIFS('SQL Revenue Analysis'!$E$1:$E$65536,'SQL Revenue Analysis'!$A$1:$A$65536,E$4,'SQL Revenue Analysis'!$J$1:$J$65536,$B41) -> 68910.57 | F41: =SUMIFS('SQL Revenue Analysis'!$E$1:$E$65536,'SQL Revenue Analysis'!$A$1:$A$65536,F$4,'SQL Revenue Analysis'!$J$1:$J$65536,$B41) -> 68111.07 | G41: =SUMIFS('SQL Revenue Analysis'!$E$1:$E$65536,'SQL Revenue Analysis'!$A$1:$A$65536,G$4,'SQL Revenue Analysis'!$J$1:$J$65536,$B41) -> 69934 | H41: =SUMIFS('SQL Revenue Analysis'!$E$1:$E$65536,'SQL Revenue Analysis'!$A$1:$A$65536,H$4,'SQL Revenue Analysis'!$J$1:$J$65536,$B41) -> 71706 | I41: =SUMIFS('SQL Revenue Analysis'!$E$1:$E$65536,'SQL Revenue Analysis'!$A$1:$A$65536,I$4,'SQL Revenue Analysis'!$J$1:$J$65536,$B41) -> 69483.25 | J41: =SUMIFS('SQL Revenue Analysis'!$E$1:$E$65536,'SQL Revenue Analysis'!$A$1:$A$65536,J$4,'SQL Revenue Analysis'!$J$1:$J$65536,$B41) -> 66471.39 | K41: =SUMIFS('SQL Revenue Analysis'!$E$1:$E$65536,'SQL Revenue Analysis'!$A$1:$A$65536,K$4,'SQL Revenue Analysis'!$J$1:$J$65536,$B41) -> 64426.15 | L41: =SUMIFS('SQL Revenue Analysis'!$E$1:$E$65536,'SQL Revenue Analysis'!$A$1:$A$65536,L$4,'SQL Revenue Analysis'!$J$1:$J$65536,$B41) -> 63851.93 | M41: =SUMIFS('SQL Revenue Analysis'!$E$1:$E$65536,'SQL Revenue Analysis'!$A$1:$A$65536,M$4,'SQL Revenue Analysis'!$J$1:$J$65536,$B41) -> 62225.03 | N41: =SUMIFS('SQL Revenue Analysis'!$E$1:$E$65536,'SQL Revenue Analysis'!$A$1:$A$65536,N$4,'SQL Revenue Analysis'!$J$1:$J$65536,$B41) -> 61154.84 | O41: =SUMIFS('SQL Revenue Analysis'!$E$1:$E$65536,'SQL Revenue Analysis'!$A$1:$A$65536,O$4,'SQL Revenue Analysis'!$J$1:$J$65536,$B41) -> 62316.68 | Q41: =SUM(D41:P41) -> 793834.99
A42: *Total | C42: Commercial | D42: =SUMIFS('SQL Revenue Analysis'!$E$1:$E$65536,'SQL Revenue Analysis'!$A$1:$A$65536,D$4,'SQL Revenue Analysis'!$J$1:$J$65536,$B42) -> 0 | E42: =SUMIFS('SQL Revenue Analysis'!$E$1:$E$65536,'SQL Revenue Analysis'!$A$1:$A$65536,E$4,'SQL Revenue Analysis'!$J$1:$J$65536,$B42) -> 0 | F42: =SUMIFS('SQL Revenue Analysis'!$E$1:$E$65536,'SQL Revenue Analysis'!$A$1:$A$65536,F$4,'SQL Revenue Analysis'!$J$1:$J$65536,$B42) -> 0 | G42: =SUMIFS('SQL Revenue Analysis'!$E$1:$E$65536,'SQL Revenue Analysis'!$A$1:$A$65536,G$4,'SQL Revenue Analysis'!$J$1:$J$65536,$B42) -> 0 | H42: =SUMIFS('SQL Revenue Analysis'!$E$1:$E$65536,'SQL Revenue Analysis'!$A$1:$A$65536,H$4,'SQL Revenue Analysis'!$J$1:$J$65536,$B42) -> 0 | I42: =SUMIFS('SQL Revenue Analysis'!$E$1:$E$65536,'SQL Revenue Analysis'!$A$1:$A$65536,I$4,'SQL Revenue Analysis'!$J$1:$J$65536,$B42) -> 0 | J42: =SUMIFS('SQL Revenue Analysis'!$E$1:$E$65536,'SQL Revenue Analysis'!$A$1:$A$65536,J$4,'SQL Revenue Analysis'!$J$1:$J$65536,$B42) -> 0 | K42: =SUMIFS('SQL Revenue Analysis'!$E$1:$E$65536,'SQL Revenue Analysis'!$A$1:$A$65536,K$4,'SQL Revenue Analysis'!$J$1:$J$65536,$B42) -> 0 | L42: =SUMIFS('SQL Revenue Analysis'!$E$1:$E$65536,'SQL Revenue Analysis'!$A$1:$A$65536,L$4,'SQL Revenue Analysis'!$J$1:$J$65536,$B42) -> 0 | M42: =SUMIFS('SQL Revenue Analysis'!$E$1:$E$65536,'SQL Revenue Analysis'!$A$1:$A$65536,M$4,'SQL Revenue Analysis'!$J$1:$J$65536,$B42) -> 0 | N42: =SUMIFS('SQL Revenue Analysis'!$E$1:$E$65536,'SQL Revenue Analysis'!$A$1:$A$65536,N$4,'SQL Revenue Analysis'!$J$1:$J$65536,$B42) -> 0 | O42: =SUMIFS('SQL Revenue Analysis'!$E$1:$E$65536,'SQL Revenue Analysis'!$A$1:$A$65536,O$4,'SQL Revenue Analysis'!$J$1:$J$65536,$B42) -> 0 | Q42: 0
